{"text_format":"1","workbook":"xlsx","n_sheets":23,"sheets":["現状変更 入力シート","申請書（現状変更）","補助金交付申請入力シート","補助金申請書（当初）様式１","補助金申請書（変更）","補助金申請書（完了） ","様式２","支出内訳総括表","内訳書","木材明細(当初修理）","木材明細(当初修景）","木材明細(変更修理）","木材明細(変更修景）","木材明細(実績修理）","木材明細(実績修景）","同意書","消費税仕入税額控除チェックリスト","様式７","様式８","事業完了届け","入札執行調書","請求書","data"],"not_rendered":{"charts":0,"images":0,"macros":1,"external_links":4,"defined_names":663,"comments":2,"pivot_tables":0},"unopened":[],"bounds":{"document_bytes":16777216,"sheet_cells":100000,"rows_first":2000,"rows_last":500,"rows_between":2000,"halvings":0,"cell_chars":16384,"cell_head_chars":4096},"cells_cut":0,"cells_raw":0,"read":"whole","date_system":"1900"}

{"sheet":"現状変更 入力シート","index":0,"n_rows":37,"n_cols":10,"rows_kept":37,"cut":false,"hidden":false,"merged":[[22,0,23,0],[26,3,26,9],[25,3,25,9],[14,2,14,9],[36,0,36,1],[24,3,24,9],[5,1,6,1],[15,2,15,9],[12,2,12,9],[35,2,35,9],[31,0,31,1],[27,0,27,1],[32,2,32,3],[34,2,34,3],[34,0,35,0],[32,0,33,0],[22,2,22,3],[24,0,26,0],[0,0,0,10],[2,0,2,10],[30,0,30,10],[3,0,6,0],[5,2,5,4],[5,6,5,8],[3,2,3,9],[10,0,12,0],[14,0,17,0],[10,1,11,1],[18,0,18,1],[6,2,6,4],[6,6,6,9],[16,2,16,9],[21,0,21,10],[8,3,8,9]]}
["現状変更行為の申請について"]
[]
["①許可の申請"]
["申請者（代表者）","住所\n（法人の場合は事務所の所在地）",{"$f":"補助金交付申請入力シート!C4","v":0}]
[null,"電話番号",{"$f":"補助金交付申請入力シート!C5","v":0},"－",{"$f":"補助金交付申請入力シート!G5","v":0},"－",{"$f":"補助金交付申請入力シート!I5","v":0}]
[null,"氏名\n（法人の場合は代表者氏名）","氏",null,null,null,"名"]
[null,null,{"$f":"補助金交付申請入力シート!C8","v":0},null,null,null,{"$f":"補助金交付申請入力シート!H8","v":0}]
[]
["現状変更行為の場所","住所","豊田市足助町",{"$f":"補助金交付申請入力シート!E11","v":0}]
[]
["現状変更申請","現状変更行為に\n係る工事期間","開始年月日","令和",null,"年",null,"月",null,"日"]
[null,null,"終了年月日","令和",null,"年",null,"月",null,"日"]
[null,"現状変更行為の内容"]
[]
["工事施工者の\n住所、氏名及び\n電話番号","住所"]
[null,"名称"]
[null,"施工責任者"]
[null,"電話番号",null,"－",null,"－"]
["現状変更を申請する日",null,null,"令和",null,"年",null,"月",null,"日"]
[]
[]
["②変更するとき"]
["現状変更行為の許可決定通知書について","許可年月日","令和",null,null,"年",null,"月",null,"日"]
[null,"許可番号","豊文財発","第",null,"号"]
["許可を受けた内容から変更する内容","変更前","変更前"]
[null,"変更後","変更後"]
[null,"変更内容","変更理由"]
["現状変更の変更を申請する日",null,null,"令和",null,"年",null,"月",null,"日"]
[]
[]
["③完了・中止するとき"]
["中止or完了",null,"完了","←選択してください"]
["現状変更行為の許可決定通知書について","許可年月日","令和",null,{"$f":"E23","v":0},"年",{"$f":"G23","v":0},"月",{"$f":"I23","v":0},"日"]
[null,"許可番号","豊文財発","第",{"$f":"E24","v":0},"号"]
["完了・中止する内容","完了・中止年月日","令和",null,null,"年",null,"月",null,"日"]
[null,"完了・中止の理由"]
["現状変更の完了または中止を申請する日",null,null,"令和",null,"年",null,"月",null,"日"]

{"sheet":"申請書（現状変更）","index":1,"n_rows":88,"n_cols":209,"rows_kept":88,"cut":false,"hidden":false,"merged":[[85,4,86,44],[69,19,73,40],[48,53,50,55],[55,3,59,16],[65,3,69,16],[48,24,50,26],[48,30,50,32],[48,20,50,23],[64,19,68,68],[54,19,62,68],[48,27,50,29],[48,33,50,35],[48,47,50,49],[69,41,70,44],[69,47,70,52],[71,41,72,48],[71,49,72,68],[69,63,70,68],[69,61,70,62],[69,55,70,60],[48,39,50,46],[83,4,84,44],[81,4,82,44],[77,2,78,9],[48,123,50,125],[40,99,44,138],[69,53,70,54],[34,2,37,69],[28,40,29,41],[28,48,29,49],[28,56,29,57],[40,3,44,16],[47,3,51,16],[48,50,50,52],[40,19,44,28],[40,29,44,68],[48,36,50,38],[48,59,50,61],[48,56,50,58],[48,62,50,66],[48,97,50,99],[48,103,50,105],[48,94,50,96],[48,100,50,102],[48,106,50,108],[48,117,50,122],[0,70,1,92],[5,70,6,139],[10,128,11,129],[10,133,11,134],[10,138,11,139],[14,72,15,94],[10,135,11,137],[24,138,25,139],[20,102,21,105],[20,106,21,139],[20,94,21,99],[10,121,11,124],[10,125,11,127],[10,130,11,132],[24,102,25,105],[24,106,25,137],[0,0,1,22],[10,58,11,59],[22,32,23,61],[10,51,11,54],[10,55,11,57],[5,0,6,69],[20,24,21,29],[14,2,15,24],[79,4,80,44],[69,45,70,46],[28,32,29,39],[28,42,29,47],[28,58,29,64],[28,50,29,55],[26,102,27,131],[22,102,23,131],[26,32,27,61],[24,32,25,35],[24,36,25,67],[24,68,25,69],[10,68,11,69],[10,63,11,64],[10,60,11,62],[10,65,11,67],[20,32,21,35],[20,36,21,69],[24,208,25,209],[24,176,25,207],[28,182,29,187],[4,173,7,176],[10,208,11,209],[28,196,29,197],[24,172,25,175],[28,198,29,204],[10,205,11,207],[20,172,21,175],[22,172,23,201],[5,177,6,182],[20,176,21,209],[10,200,11,202],[26,172,27,201],[10,191,11,194],[10,195,11,197],[10,198,11,199],[10,203,11,204],[28,190,29,195],[28,180,29,181],[28,188,29,189],[0,140,1,162],[5,140,6,172],[14,142,15,164],[20,164,21,169],[87,74,88,114],[40,73,44,86],[85,74,86,114],[39,143,44,156],[55,143,60,156],[61,143,66,156],[48,109,50,116],[68,89,74,138],[54,73,65,75],[54,78,55,86],[47,73,51,86],[83,74,84,114],[81,144,82,184],[83,144,84,184],[79,74,80,114],[81,74,82,114],[62,167,65,169],[62,164,65,166],[68,143,74,156],[61,89,65,138],[62,160,65,163],[68,159,75,208],[77,72,78,79],[48,90,50,93],[85,144,86,184],[79,142,80,149],[56,164,59,166],[56,170,59,172],[56,176,59,178],[47,143,52,156],[56,179,59,186],[56,160,59,163],[46,159,53,208],[56,173,59,175],[56,193,59,195],[56,187,59,192],[62,170,65,172],[62,173,65,175],[62,179,65,182],[62,176,65,178],[56,167,59,169],[54,89,58,138],[61,78,62,86],[68,73,69,86],[35,142,36,209],[40,159,43,168],[40,169,43,208],[28,120,29,125],[34,72,37,138],[28,102,29,109],[28,118,29,119],[28,126,29,127],[28,112,29,117],[28,128,29,134],[28,172,29,179],[40,89,44,98],[32,145,33,162],[32,167,33,209],[28,110,29,111],[31,163,34,166]]}
["様式第１号（第２条関係）",null,null,null,null,null,null,null,null,null,null,null,null,null,null,null,null,null,null,null,null,null,null,null,null,null,null,null,null,null,null,null,null,null,null,null,null,null,null,null,null,null,null,null,null,null,null,null,null,null,null,null,null,null,null,null,null,null,null,null,null,null,null,null,null,null,null,null,null,null,"様式第４号（第４条関係）",null,null,null,null,null,null,null,null,null,null,null,null,null,null,null,null,null,null,null,null,null,null,null,null,null,null,null,null,null,null,null,null,null,null,null,null,null,null,null,null,null,null,null,null,null,null,null,null,null,null,null,null,null,null,null,null,null,null,null,null,null,null,null,null,null,null,null,null,null,"様式第５号（第５条関係）"]
[]
[]
[]
[null,null,null,null,null,null,null,null,null,null,null,null,null,null,null,null,null,null,null,null,null,null,null,null,null,null,null,null,null,null,null,null,null,null,null,null,null,null,null,null,null,null,null,null,null,null,null,null,null,null,null,null,null,null,null,null,null,null,null,null,null,null,null,null,null,null,null,null,null,null,null,null,null,null,null,null,null,null,null,null,null,null,null,null,null,null,null,null,null,null,null,null,null,null,null,null,null,null,null,null,null,null,null,null,null,null,null,null,null,null,null,null,null,null,null,null,null,null,null,null,null,null,null,null,null,null,null,null,null,null,null,null,null,null,null,null,null,null,null,null,null,null,null,null,null,null,null,null,null,null,null,null,null,null,null,null,null,null,null,null,null,null,null,null,null,null,null,null,null,null,null,null,null,{"$f":"IF('現状変更 入力シート'!C32=\"完了\",\"完了\",IF('現状変更 入力シート'!C32=\"中止\",\"中止\",\"完了\n中止\"))","v":"完了"}]
["現状変更行為許可申請書",null,null,null,null,null,null,null,null,null,null,null,null,null,null,null,null,null,null,null,null,null,null,null,null,null,null,null,null,null,null,null,null,null,null,null,null,null,null,null,null,null,null,null,null,null,null,null,null,null,null,null,null,null,null,null,null,null,null,null,null,null,null,null,null,null,null,null,null,null,"現状変更行為変更許可申請書",null,null,null,null,null,null,null,null,null,null,null,null,null,null,null,null,null,null,null,null,null,null,null,null,null,null,null,null,null,null,null,null,null,null,null,null,null,null,null,null,null,null,null,null,null,null,null,null,null,null,null,null,null,null,null,null,null,null,null,null,null,null,null,null,null,null,null,null,null,"現状変更行為",null,null,null,null,null,null,null,null,null,null,null,null,null,null,null,null,null,null,null,null,null,null,null,null,null,null,null,null,null,null,null,null,null,null,null,null,"届出書"]
[]
[]
[]
[]
[null,null,null,null,null,null,null,null,null,null,null,null,null,null,null,null,null,null,null,null,null,null,null,null,null,null,null,null,null,null,null,null,null,null,null,null,null,null,null,null,null,null,null,null,null,null,null,null,null,null,null,"令和",null,null,null,{"$f":"'現状変更 入力シート'!E19","v":0},null,null,"年",null,{"$f":"'現状変更 入力シート'!G19","v":0},null,null,"月",null,{"$f":"'現状変更 入力シート'!I19","v":0},null,null,"日",null,null,null,null,null,null,null,null,null,null,null,null,null,null,null,null,null,null,null,null,null,null,null,null,null,null,null,null,null,null,null,null,null,null,null,null,null,null,null,null,null,null,null,null,null,null,null,null,null,null,null,null,"令和",null,null,null,{"$f":"'現状変更 入力シート'!E28","v":0},null,null,"年",null,{"$f":"'現状変更 入力シート'!G28","v":0},null,null,"月",null,{"$f":"'現状変更 入力シート'!I28","v":0},null,null,"日",null,null,null,null,null,null,null,null,null,null,null,null,null,null,null,null,null,null,null,null,null,null,null,null,null,null,null,null,null,null,null,null,null,null,null,null,null,null,null,null,null,null,null,null,null,null,null,null,null,null,null,null,"令和",null,null,null,{"$f":"'現状変更 入力シート'!E37","v":0},null,null,"年",null,{"$f":"'現状変更 入力シート'!G37","v":0},null,null,"月",null,{"$f":"'現状変更 入力シート'!I37","v":0},null,null,"日"]
[]
[]
[]
[null,null,"豊田市長　様",null,null,null,null,null,null,null,null,null,null,null,null,null,null,null,null,null,null,null,null,null,null,null,null,null,null,null,null,null,null,null,null,null,null,null,null,null,null,null,null,null,null,null,null,null,null,null,null,null,null,null,null,null,null,null,null,null,null,null,null,null,null,null,null,null,null,null,null,null,"豊田市長　様",null,null,null,null,null,null,null,null,null,null,null,null,null,null,null,null,null,null,null,null,null,null,null,null,null,null,null,null,null,null,null,null,null,null,null,null,null,null,null,null,null,null,null,null,null,null,null,null,null,null,null,null,null,null,null,null,null,null,null,null,null,null,null,null,null,null,null,null,null,"豊田市長　様"]
[]
[]
[]
[]
[]
[null,null,null,null,null,null,null,null,null,null,null,null,null,null,null,null,null,null,null,null,null,null,null,null,"申請者",null,null,null,null,null,null,null,"住所",null,null,null,{"$f":"T('現状変更 入力シート'!C4:J4)","v":""},null,null,null,null,null,null,null,null,null,null,null,null,null,null,null,null,null,null,null,null,null,null,null,null,null,null,null,null,null,null,null,null,null,null,null,null,null,null,null,null,null,null,null,null,null,null,null,null,null,null,null,null,null,null,null,null,null,"申請者",null,null,null,null,null,null,null,"住所",null,null,null,{"$f":"T('現状変更 入力シート'!C4:J4)","v":""},null,null,null,null,null,null,null,null,null,null,null,null,null,null,null,null,null,null,null,null,null,null,null,null,null,null,null,null,null,null,null,null,null,null,null,null,null,null,null,null,null,null,null,null,null,null,null,null,null,null,null,null,null,null,null,null,null,"申請者",null,null,null,null,null,null,null,"住所",null,null,null,{"$f":"T('現状変更 入力シート'!C4:J4)","v":""}]
[]
[null,null,null,null,null,null,null,null,null,null,null,null,null,null,null,null,null,null,null,null,null,null,null,null,null,null,null,null,null,null,null,null,"（法人の場合は主たる事務所の所在地）",null,null,null,null,null,null,null,null,null,null,null,null,null,null,null,null,null,null,null,null,null,null,null,null,null,null,null,null,null,null,null,null,null,null,null,null,null,null,null,null,null,null,null,null,null,null,null,null,null,null,null,null,null,null,null,null,null,null,null,null,null,null,null,null,null,null,null,null,null,"（法人の場合は主たる事務所の所在地）",null,null,null,null,null,null,null,null,null,null,null,null,null,null,null,null,null,null,null,null,null,null,null,null,null,null,null,null,null,null,null,null,null,null,null,null,null,null,null,null,null,null,null,null,null,null,null,null,null,null,null,null,null,null,null,null,null,null,null,null,null,null,null,null,null,null,null,null,null,"（法人の場合は主たる事務所の所在地）"]
[]
[null,null,null,null,null,null,null,null,null,null,null,null,null,null,null,null,null,null,null,null,null,null,null,null,null,null,null,null,null,null,null,null,"氏名",null,null,null,{"$f":"CONCATENATE(T('現状変更 入力シート'!C7:E7),\"　\",T('現状変更 入力シート'!G7:J7))","v":"　"},null,null,null,null,null,null,null,null,null,null,null,null,null,null,null,null,null,null,null,null,null,null,null,null,null,null,null,null,null,null,null,null,null,null,null,null,null,null,null,null,null,null,null,null,null,null,null,null,null,null,null,null,null,null,null,null,null,null,null,null,null,null,null,null,null,"氏名",null,null,null,{"$f":"CONCATENATE(T('現状変更 入力シート'!C7:E7),\"　\",T('現状変更 入力シート'!G7:J7))","v":"　"},null,null,null,null,null,null,null,null,null,null,null,null,null,null,null,null,null,null,null,null,null,null,null,null,null,null,null,null,null,null,null,null,null,null,null,null,null,null,null,null,null,null,null,null,null,null,null,null,null,null,null,null,null,null,null,null,null,null,null,null,null,null,null,null,null,"氏名",null,null,null,{"$f":"CONCATENATE(T('現状変更 入力シート'!C7:E7),\"　\",T('現状変更 入力シート'!G7:J7))","v":"　"}]
[]
[null,null,null,null,null,null,null,null,null,null,null,null,null,null,null,null,null,null,null,null,null,null,null,null,null,null,null,null,null,null,null,null,"（法人の場合は名称及び代表者の氏名）",null,null,null,null,null,null,null,null,null,null,null,null,null,null,null,null,null,null,null,null,null,null,null,null,null,null,null,null,null,null,null,null,null,null,null,null,null,null,null,null,null,null,null,null,null,null,null,null,null,null,null,null,null,null,null,null,null,null,null,null,null,null,null,null,null,null,null,null,null,"（法人の場合は名称及び代表者の氏名）",null,null,null,null,null,null,null,null,null,null,null,null,null,null,null,null,null,null,null,null,null,null,null,null,null,null,null,null,null,null,null,null,null,null,null,null,null,null,null,null,null,null,null,null,null,null,null,null,null,null,null,null,null,null,null,null,null,null,null,null,null,null,null,null,null,null,null,null,null,"（法人の場合は名称及び代表者の氏名）"]
[]
[null,null,null,null,null,null,null,null,null,null,null,null,null,null,null,null,null,null,null,null,null,null,null,null,null,null,null,null,null,null,null,null,"電話番号",null,null,null,null,null,null,null,"（",null,{"$f":"'現状変更 入力シート'!C5","v":0},null,null,null,null,null,"）",null,{"$f":"'現状変更 入力シート'!E5","v":0},null,null,null,null,null,"－",null,{"$f":"'現状変更 入力シート'!G5","v":0},null,null,null,null,null,null,null,null,null,null,null,null,null,null,null,null,null,null,null,null,null,null,null,null,null,null,null,null,null,null,null,null,null,null,null,null,null,null,null,null,null,null,null,"電話番号",null,null,null,null,null,null,null,"（",null,{"$f":"'現状変更 入力シート'!C5","v":0},null,null,null,null,null,"）",null,{"$f":"'現状変更 入力シート'!E5","v":0},null,null,null,null,null,"－",null,{"$f":"'現状変更 入力シート'!G5","v":0},null,null,null,null,null,null,null,null,null,null,null,null,null,null,null,null,null,null,null,null,null,null,null,null,null,null,null,null,null,null,null,null,null,null,null,null,null,null,null,null,null,null,null,"電話番号",null,null,null,null,null,null,null,"（",null,{"$f":"'現状変更 入力シート'!C5","v":0},null,null,null,null,null,"）",null,{"$f":"'現状変更 入力シート'!E5","v":0},null,null,null,null,null,"－",null,{"$f":"'現状変更 入力シート'!G5","v":0}]
[]
[]
[null,null,null,null,null,null,null,null,null,null,null,null,null,null,null,null,null,null,null,null,null,null,null,null,null,null,null,null,null,null,null,null,null,null,null,null,null,null,null,null,null,null,null,null,null,null,null,null,null,null,null,null,null,null,null,null,null,null,null,null,null,null,null,null,null,null,null,null,null,null,null,null,null,null,null,null,null,null,null,null,null,null,null,null,null,null,null,null,null,null,null,null,null,null,null,null,null,null,null,null,null,null,null,null,null,null,null,null,null,null,null,null,null,null,null,null,null,null,null,null,null,null,null,null,null,null,null,null,null,null,null,null,null,null,null,null,null,null,null,null,null,null,null,null,null,null,null,null,null,null,null,null,null,null,null,null,null,null,null,null,null,null,null,{"$f":"IF('現状変更 入力シート'!C32=\"完了\",\"完了\",IF('現状変更 入力シート'!C32=\"中止\",\"中止\",\"完了\n中止\"))","v":"完了"}]
[null,null,null,null,null,null,null,null,null,null,null,null,null,null,null,null,null,null,null,null,null,null,null,null,null,null,null,null,null,null,null,null,null,null,null,null,null,null,null,null,null,null,null,null,null,null,null,null,null,null,null,null,null,null,null,null,null,null,null,null,null,null,null,null,null,null,null,null,null,null,null,null,null,null,null,null,null,null,null,null,null,null,null,null,null,null,null,null,null,null,null,null,null,null,null,null,null,null,null,null,null,null,null,null,null,null,null,null,null,null,null,null,null,null,null,null,null,null,null,null,null,null,null,null,null,null,null,null,null,null,null,null,null,null,null,null,null,null,null,null,null,null,null,null,null,"次のとおり現状変更行為を",null,null,null,null,null,null,null,null,null,null,null,null,null,null,null,null,null,null,null,null,null,"したので、豊田市伝統的建造物群保存地区保存規則第５条の"]
[]
[null,null,"　現状変更行為の許可を受けたいので、豊田市伝統的建造物群保存地区保存条例第６条第１項の規定により、次のとおり申請します。",null,null,null,null,null,null,null,null,null,null,null,null,null,null,null,null,null,null,null,null,null,null,null,null,null,null,null,null,null,null,null,null,null,null,null,null,null,null,null,null,null,null,null,null,null,null,null,null,null,null,null,null,null,null,null,null,null,null,null,null,null,null,null,null,null,null,null,null,null,"　現状変更行為の変更の許可を受けたいので、豊田市伝統的建造物群保存地区保存条例第６条第１項の規定により、次のとおり申請します。"]
[null,null,null,null,null,null,null,null,null,null,null,null,null,null,null,null,null,null,null,null,null,null,null,null,null,null,null,null,null,null,null,null,null,null,null,null,null,null,null,null,null,null,null,null,null,null,null,null,null,null,null,null,null,null,null,null,null,null,null,null,null,null,null,null,null,null,null,null,null,null,null,null,null,null,null,null,null,null,null,null,null,null,null,null,null,null,null,null,null,null,null,null,null,null,null,null,null,null,null,null,null,null,null,null,null,null,null,null,null,null,null,null,null,null,null,null,null,null,null,null,null,null,null,null,null,null,null,null,null,null,null,null,null,null,null,null,null,null,null,null,null,null,"規定により届け出ます。"]
[]
[]
[]
[null,null,null,null,null,null,null,null,null,null,null,null,null,null,null,null,null,null,null,null,null,null,null,null,null,null,null,null,null,null,null,null,null,null,null,null,null,null,null,null,null,null,null,null,null,null,null,null,null,null,null,null,null,null,null,null,null,null,null,null,null,null,null,null,null,null,null,null,null,null,null,null,null,null,null,null,null,null,null,null,null,null,null,null,null,null,null,null,null,null,null,null,null,null,null,null,null,null,null,null,null,null,null,null,null,null,null,null,null,null,null,null,null,null,null,null,null,null,null,null,null,null,null,null,null,null,null,null,null,null,null,null,null,null,null,null,null,null,null,null,null,null,null,"現状変更\n行為の場所"]
[null,null,null,"現状変更\n行為の場所",null,null,null,null,null,null,null,null,null,null,null,null,null,null,null,"豊田市足助町",null,null,null,null,null,null,null,null,null,{"$f":"T('現状変更 入力シート'!D9:J9)","v":""},null,null,null,null,null,null,null,null,null,null,null,null,null,null,null,null,null,null,null,null,null,null,null,null,null,null,null,null,null,null,null,null,null,null,null,null,null,null,null,null,null,null,null,"現状変更\n行為の場所",null,null,null,null,null,null,null,null,null,null,null,null,null,null,null,"豊田市足助町",null,null,null,null,null,null,null,null,null,{"$f":"T('現状変更 入力シート'!D9:J9)","v":""},null,null,null,null,null,null,null,null,null,null,null,null,null,null,null,null,null,null,null,null,null,null,null,null,null,null,null,null,null,null,null,null,null,null,null,null,null,null,null,null,null,null,null,null,null,null,null,null,null,null,null,null,null,null,null,null,null,null,null,"豊田市足助町",null,null,null,null,null,null,null,null,null,{"$f":"T('現状変更 入力シート'!D9:J9)","v":""}]
[]
[]
[]
[]
[]
[null,null,null,null,null,null,null,null,null,null,null,null,null,null,null,null,null,null,null,null,null,null,null,null,null,null,null,null,null,null,null,null,null,null,null,null,null,null,null,null,null,null,null,null,null,null,null,null,null,null,null,null,null,null,null,null,null,null,null,null,null,null,null,null,null,null,null,null,null,null,null,null,null,null,null,null,null,null,null,null,null,null,null,null,null,null,null,null,null,null,null,null,null,null,null,null,null,null,null,null,null,null,null,null,null,null,null,null,null,null,null,null,null,null,null,null,null,null,null,null,null,null,null,null,null,null,null,null,null,null,null,null,null,null,null,null,null,null,null,null,null,null,null,null,null,null,null,null,null,null,null,null,null,null,null,null,null,null,null,{"$f":"T('現状変更 入力シート'!C13:J13)","v":""}]
[null,null,null,"現状変更行為に\n係る工事期間",null,null,null,null,null,null,null,null,null,null,null,null,null,null,null,null,null,null,null,null,null,null,null,null,null,null,null,null,null,null,null,null,null,null,null,null,null,null,null,null,null,null,null,null,null,null,null,null,null,null,null,null,null,null,null,null,null,null,null,null,null,null,null,null,null,null,null,null,null,"許可年月日\n及び許可番号",null,null,null,null,null,null,null,null,null,null,null,null,null,null,null,null,null,null,null,null,null,null,null,null,null,null,null,null,null,null,null,null,null,null,null,null,null,null,null,null,null,null,null,null,null,null,null,null,null,null,null,null,null,null,null,null,null,null,null,null,null,null,null,null,null,null,null,null,null,"現状変更\n行為の内容"]
[null,null,null,null,null,null,null,null,null,null,null,null,null,null,null,null,null,null,null,null,"令和",null,null,null,{"$f":"'現状変更 入力シート'!E11","v":0},null,null,"年",null,null,{"$f":"'現状変更 入力シート'!G11","v":0},null,null,"月",null,null,{"$f":"'現状変更 入力シート'!I11","v":0},null,null,"日から令和",null,null,null,null,null,null,null,{"$f":"'現状変更 入力シート'!E12","v":0},null,null,"年",null,null,{"$f":"'現状変更 入力シート'!G12","v":0},null,null,"月",null,null,{"$f":"'現状変更 入力シート'!I12","v":0},null,null,"日まで",null,null,null,null,null,null,null,null,null,null,null,null,null,null,null,null,null,null,null,null,null,null,null,null,null,null,null,"令和",null,null,null,{"$f":"'現状変更 入力シート'!E23","v":0},null,null,"年",null,null,{"$f":"'現状変更 入力シート'!G23","v":0},null,null,"月",null,null,{"$f":"'現状変更 入力シート'!I23","v":0},null,null,"日　　第",null,null,null,null,null,null,null,{"$f":"'現状変更 入力シート'!E24","v":0},null,null,null,null,null,"号"]
[]
[]
[]
[]
[]
[null,null,null,null,null,null,null,null,null,null,null,null,null,null,null,null,null,null,null,{"$f":"T('現状変更 入力シート'!C13:J13)","v":""},null,null,null,null,null,null,null,null,null,null,null,null,null,null,null,null,null,null,null,null,null,null,null,null,null,null,null,null,null,null,null,null,null,null,null,null,null,null,null,null,null,null,null,null,null,null,null,null,null,null,null,null,null,"変\n更\nの\n内\n容",null,null,null,null,"変更前",null,null,null,null,null,null,null,null,null,null,{"$f":"T('現状変更 入力シート'!D25:J25)","v":""}]
[null,null,null,"現状変更\n行為の内容",null,null,null,null,null,null,null,null,null,null,null,null,null,null,null,null,null,null,null,null,null,null,null,null,null,null,null,null,null,null,null,null,null,null,null,null,null,null,null,null,null,null,null,null,null,null,null,null,null,null,null,null,null,null,null,null,null,null,null,null,null,null,null,null,null,null,null,null,null,null,null,null,null,null,null,null,null,null,null,null,null,null,null,null,null,null,null,null,null,null,null,null,null,null,null,null,null,null,null,null,null,null,null,null,null,null,null,null,null,null,null,null,null,null,null,null,null,null,null,null,null,null,null,null,null,null,null,null,null,null,null,null,null,null,null,null,null,null,null,"許可年月日\n及び許可番号"]
[null,null,null,null,null,null,null,null,null,null,null,null,null,null,null,null,null,null,null,null,null,null,null,null,null,null,null,null,null,null,null,null,null,null,null,null,null,null,null,null,null,null,null,null,null,null,null,null,null,null,null,null,null,null,null,null,null,null,null,null,null,null,null,null,null,null,null,null,null,null,null,null,null,null,null,null,null,null,null,null,null,null,null,null,null,null,null,null,null,null,null,null,null,null,null,null,null,null,null,null,null,null,null,null,null,null,null,null,null,null,null,null,null,null,null,null,null,null,null,null,null,null,null,null,null,null,null,null,null,null,null,null,null,null,null,null,null,null,null,null,null,null,null,null,null,null,null,null,null,null,null,null,null,null,null,null,null,null,null,null,"令和",null,null,null,{"$f":"'現状変更 入力シート'!E33","v":0},null,null,"年",null,null,{"$f":"'現状変更 入力シート'!G33","v":0},null,null,"月",null,null,{"$f":"'現状変更 入力シート'!I33","v":0},null,null,"日　　第",null,null,null,null,null,null,null,{"$f":"'現状変更 入力シート'!E34","v":0},null,null,null,null,null,"号"]
[]
[]
[]
[]
[null,null,null,null,null,null,null,null,null,null,null,null,null,null,null,null,null,null,null,null,null,null,null,null,null,null,null,null,null,null,null,null,null,null,null,null,null,null,null,null,null,null,null,null,null,null,null,null,null,null,null,null,null,null,null,null,null,null,null,null,null,null,null,null,null,null,null,null,null,null,null,null,null,null,null,null,null,null,"変更後",null,null,null,null,null,null,null,null,null,null,{"$f":"T('現状変更 入力シート'!D26:J26)","v":""},null,null,null,null,null,null,null,null,null,null,null,null,null,null,null,null,null,null,null,null,null,null,null,null,null,null,null,null,null,null,null,null,null,null,null,null,null,null,null,null,null,null,null,null,null,null,null,null,null,null,null,null,null,"完了年月日\n又は中止年月日"]
[null,null,null,null,null,null,null,null,null,null,null,null,null,null,null,null,null,null,null,null,null,null,null,null,null,null,null,null,null,null,null,null,null,null,null,null,null,null,null,null,null,null,null,null,null,null,null,null,null,null,null,null,null,null,null,null,null,null,null,null,null,null,null,null,null,null,null,null,null,null,null,null,null,null,null,null,null,null,null,null,null,null,null,null,null,null,null,null,null,null,null,null,null,null,null,null,null,null,null,null,null,null,null,null,null,null,null,null,null,null,null,null,null,null,null,null,null,null,null,null,null,null,null,null,null,null,null,null,null,null,null,null,null,null,null,null,null,null,null,null,null,null,null,null,null,null,null,null,null,null,null,null,null,null,null,null,null,null,null,null,"令和",null,null,null,{"$f":"'現状変更 入力シート'!E35","v":0},null,null,"年",null,null,{"$f":"'現状変更 入力シート'!G35","v":0},null,null,"月",null,null,{"$f":"'現状変更 入力シート'!I35","v":0},null,null,"日"]
[]
[null,null,null,null,null,null,null,null,null,null,null,null,null,null,null,null,null,null,null,{"$f":"T('現状変更 入力シート'!C15:J15)","v":""}]
[null,null,null,"工事施工者の\n住所、氏名及び\n電話番号"]
[]
[]
[null,null,null,null,null,null,null,null,null,null,null,null,null,null,null,null,null,null,null,null,null,null,null,null,null,null,null,null,null,null,null,null,null,null,null,null,null,null,null,null,null,null,null,null,null,null,null,null,null,null,null,null,null,null,null,null,null,null,null,null,null,null,null,null,null,null,null,null,null,null,null,null,null,"変更の理由",null,null,null,null,null,null,null,null,null,null,null,null,null,null,null,{"$f":"T('現状変更 入力シート'!D27:J27)","v":""},null,null,null,null,null,null,null,null,null,null,null,null,null,null,null,null,null,null,null,null,null,null,null,null,null,null,null,null,null,null,null,null,null,null,null,null,null,null,null,null,null,null,null,null,null,null,null,null,null,null,null,null,null,"現状変更行為を\n中止したとき\nは、その理由",null,null,null,null,null,null,null,null,null,null,null,null,null,null,null,{"$f":"T('現状変更 入力シート'!C36:J36)","v":""}]
[null,null,null,null,null,null,null,null,null,null,null,null,null,null,null,null,null,null,null,{"$f":"T('現状変更 入力シート'!C16:J16)","v":""},null,null,null,null,null,null,null,null,null,null,null,null,null,null,null,null,null,null,null,null,null,"電話",null,null,null,"（",null,{"$f":"'現状変更 入力シート'!C18","v":0},null,null,null,null,null,"）",null,{"$f":"'現状変更 入力シート'!E18","v":0},null,null,null,null,null,"－",null,{"$f":"'現状変更 入力シート'!G18","v":0}]
[]
[null,null,null,null,null,null,null,null,null,null,null,null,null,null,null,null,null,null,null,null,null,null,null,null,null,null,null,null,null,null,null,null,null,null,null,null,null,null,null,null,null,"施工責任者",null,null,null,null,null,null,null,{"$f":"T('現状変更 入力シート'!C17:J17)","v":""}]
[]
[]
[]
[]
[]
[null,null,"添付書類",null,null,null,null,null,null,null,null,null,null,null,null,null,null,null,null,null,null,null,null,null,null,null,null,null,null,null,null,null,null,null,null,null,null,null,null,null,null,null,null,null,null,null,null,null,null,null,null,null,null,null,null,null,null,null,null,null,null,null,null,null,null,null,null,null,null,null,null,null,"添付書類"]
[]
[null,null,null,null,"１　付近見取図",null,null,null,null,null,null,null,null,null,null,null,null,null,null,null,null,null,null,null,null,null,null,null,null,null,null,null,null,null,null,null,null,null,null,null,null,null,null,null,null,null,null,null,null,null,null,null,null,null,null,null,null,null,null,null,null,null,null,null,null,null,null,null,null,null,null,null,null,null,"次に掲げる書類のうち変更に係るもの",null,null,null,null,null,null,null,null,null,null,null,null,null,null,null,null,null,null,null,null,null,null,null,null,null,null,null,null,null,null,null,null,null,null,null,null,null,null,null,null,null,null,null,null,null,null,null,null,null,null,null,null,null,null,null,null,null,null,null,null,null,null,null,null,null,null,null,"添付書類"]
[]
[null,null,null,null,"２　敷地内配置図",null,null,null,null,null,null,null,null,null,null,null,null,null,null,null,null,null,null,null,null,null,null,null,null,null,null,null,null,null,null,null,null,null,null,null,null,null,null,null,null,null,null,null,null,null,null,null,null,null,null,null,null,null,null,null,null,null,null,null,null,null,null,null,null,null,null,null,null,null,"１　付近見取図",null,null,null,null,null,null,null,null,null,null,null,null,null,null,null,null,null,null,null,null,null,null,null,null,null,null,null,null,null,null,null,null,null,null,null,null,null,null,null,null,null,null,null,null,null,null,null,null,null,null,null,null,null,null,null,null,null,null,null,null,null,null,null,null,null,null,null,null,null,"１　許可に係る行為を完了し、又は中止した後の現場写真"]
[]
[null,null,null,null,"３　設計図及び設計仕様所",null,null,null,null,null,null,null,null,null,null,null,null,null,null,null,null,null,null,null,null,null,null,null,null,null,null,null,null,null,null,null,null,null,null,null,null,null,null,null,null,null,null,null,null,null,null,null,null,null,null,null,null,null,null,null,null,null,null,null,null,null,null,null,null,null,null,null,null,null,"２　敷地内配置図",null,null,null,null,null,null,null,null,null,null,null,null,null,null,null,null,null,null,null,null,null,null,null,null,null,null,null,null,null,null,null,null,null,null,null,null,null,null,null,null,null,null,null,null,null,null,null,null,null,null,null,null,null,null,null,null,null,null,null,null,null,null,null,null,null,null,null,null,null,"２　竣工図（許可に係る行為を完了した場合に限る。）"]
[]
[null,null,null,null,"４　その他市長が必要と認める書類",null,null,null,null,null,null,null,null,null,null,null,null,null,null,null,null,null,null,null,null,null,null,null,null,null,null,null,null,null,null,null,null,null,null,null,null,null,null,null,null,null,null,null,null,null,null,null,null,null,null,null,null,null,null,null,null,null,null,null,null,null,null,null,null,null,null,null,null,null,"３　設計図及び設計仕様所",null,null,null,null,null,null,null,null,null,null,null,null,null,null,null,null,null,null,null,null,null,null,null,null,null,null,null,null,null,null,null,null,null,null,null,null,null,null,null,null,null,null,null,null,null,null,null,null,null,null,null,null,null,null,null,null,null,null,null,null,null,null,null,null,null,null,null,null,null,"３　その他市長が必要と認める書類"]
[]
[null,null,null,null,null,null,null,null,null,null,null,null,null,null,null,null,null,null,null,null,null,null,null,null,null,null,null,null,null,null,null,null,null,null,null,null,null,null,null,null,null,null,null,null,null,null,null,null,null,null,null,null,null,null,null,null,null,null,null,null,null,null,null,null,null,null,null,null,null,null,null,null,null,null,"４　その他市長が必要と認める書類"]

{"sheet":"補助金交付申請入力シート","index":2,"n_rows":44,"n_cols":12,"rows_kept":44,"cut":false,"hidden":false,"merged":[[26,0,26,1],[26,2,26,9],[12,0,15,0],[14,1,15,1],[19,2,19,3],[24,2,24,3],[17,0,22,0],[20,1,22,1],[20,2,20,3],[21,2,22,3],[12,2,12,4],[10,2,10,3],[10,4,10,11],[13,2,13,11],[17,2,17,3],[14,2,14,4],[15,2,15,4],[17,10,18,11],[0,0,0,11],[3,0,8,0],[6,2,6,5],[5,7,5,11],[6,7,6,11],[3,2,3,11],[4,2,4,4],[7,2,7,5],[5,2,5,5],[7,7,7,11],[8,2,8,5],[36,1,36,9],[37,1,37,9],[38,1,38,9],[32,1,32,2],[35,8,35,9]]}
["豊田市伝統的建造物群保存地区補助金交付申請"]
["①当初申請"]
[]
["申請者（代表者）","住所"]
[null,"電話番号",null,null,null,"－",null,"－"]
[null,null,"氏",null,null,null,null,"名"]
[null,"（フリガナ）",{"$f":"PHONETIC(C8)","v":""},null,null,null,null,{"$f":"PHONETIC(H8)","v":""}]
[null,"氏名"]
[null,"生年月日",null,null,null,null,null,"年",null,"月",null,"日"]
[]
["事業実施の場所","住所","豊田市足助町"]
[]
["補助金交付申請","補助金交付申請額",null,null,null,"円"]
[null,"補助事業の内容"]
[null,"補助事業の期間","開始年月日",null,null,"令和",null,"年",null,"月",null,"日"]
[null,null,"終了年月日",null,null,"令和",null,"年",null,"月",null,"日"]
[]
["過去の補助金履歴",null,null,null,"1回目↓",null,"2回目↓",null,"3回目↓",null,"合計"]
[null,"確定通知番号","豊文財発","第",null,"号",null,"号",null,"号"]
[null,"補助金交付額",null,null,null,"円",null,"円",null,"円",{"$f":"SUM(E20,G20,I20)","v":0},"円"]
[null,"補助金交付年月日","令和",null,null,"年",null,"年",null,"年",{"$f":"SUM(E21,G21,I21)","v":0}]
[null,null,null,null,null,"月",null,"月",null,"月"]
[null,null,null,null,null,"日",null,"日",null,"日"]
[]
["申請日","申請日","令和",null,null,"年",null,"月",null,"日"]
[]
["事業名"]
[]
["②変更申請"]
[]
[]
["交付決定年月日","令和",null,"年",null,"月",null,"日"]
["交付決定番号","豊文財発",null,"第",null,"号"]
["補助金交付決定額",null,null,null,null,"円"]
[]
["変更申請年月日","令和",null,"年",null,"月",null,"日"]
["変更する事項"]
["変更内容"]
["変更理由"]
[]
[]
["③完了等報告書"]
[]
["完了年月日","令和",null,"年",null,"月",null,"日"]

{"sheet":"補助金申請書（当初）様式１","index":3,"n_rows":91,"n_cols":135,"rows_kept":91,"cut":false,"hidden":false,"merged":[[0,30,1,34],[0,95,1,99],[1,67,2,93],[4,110,6,129],[10,67,16,109],[7,67,9,109],[4,67,6,109],[7,110,9,129],[10,110,16,129],[15,46,16,64],[2,53,3,55],[2,58,3,60],[7,46,8,64],[2,51,3,52],[7,29,8,36],[19,67,20,129],[25,67,27,70],[25,71,27,74],[25,75,27,78],[25,79,27,82],[25,83,27,86],[25,87,27,90],[25,91,27,94],[25,95,27,98],[25,99,27,102],[25,103,27,106],[25,107,27,110],[25,111,27,114],[25,115,27,118],[22,67,24,118],[64,1,66,14],[68,1,69,13],[68,15,71,62],[43,24,45,26],[43,30,45,32],[30,0,34,64],[36,30,37,32],[46,49,48,59],[46,33,48,40],[49,49,51,59],[49,33,51,40],[46,47,48,48],[55,1,57,14],[40,1,42,14],[40,15,42,25],[49,16,51,18],[46,41,48,46],[46,22,48,23],[46,24,48,26],[46,27,48,29],[43,60,45,61],[55,28,57,38],[55,26,57,27],[43,1,44,3],[52,31,54,38],[43,49,45,59],[13,46,14,64],[9,38,10,45],[43,19,45,21],[43,33,45,40],[92,15,93,59],[90,15,91,59],[86,15,87,59],[88,15,89,59],[80,15,81,59],[64,28,66,30],[64,45,66,47],[64,19,66,21],[64,25,66,27],[64,42,66,44],[64,48,66,50],[64,31,66,33],[78,15,79,59],[82,15,83,59],[46,60,48,61],[72,1,73,14],[95,1,96,65],[59,1,61,14],[59,16,63,61],[52,47,54,59],[43,41,45,46],[49,27,51,29],[49,47,51,48],[49,60,51,61],[72,15,73,59],[49,22,51,23],[49,24,51,26],[49,30,51,32],[49,41,51,46],[64,22,66,24],[64,54,66,56],[64,34,66,41],[84,15,85,59],[76,15,77,59],[74,15,75,59],[64,51,66,53],[64,57,66,61],[64,15,66,18],[55,39,57,41],[46,30,48,32],[0,0,1,22],[46,1,51,14],[46,16,48,18],[49,19,51,21],[52,60,54,61],[5,0,6,13],[43,22,45,23],[43,27,45,29],[26,0,27,63],[2,44,3,47],[43,47,45,48],[40,26,42,62],[7,38,8,45],[15,38,16,45],[9,46,10,64],[2,48,3,50],[43,16,45,18],[46,19,48,21],[2,61,3,62],[2,56,3,57],[11,38,12,45],[13,38,14,45],[11,46,12,64],[19,37,22,63],[33,130,35,133],[36,130,38,133],[39,130,41,133],[42,130,44,133],[18,134,20,190],[30,134,32,190],[45,130,47,133],[7,130,13,190],[3,130,5,190],[15,134,17,190],[33,134,35,190],[36,134,38,190],[39,134,41,190],[42,134,44,190],[45,134,47,190],[21,134,23,190],[24,134,26,190],[27,134,29,190],[15,130,17,133],[18,130,20,133],[21,130,23,133],[24,130,26,133],[27,130,29,133],[30,130,32,133],[48,134,50,190],[51,134,53,190],[54,134,56,190],[57,134,59,190],[60,134,62,190],[54,130,56,133],[57,130,59,133],[60,130,62,133],[48,130,50,133],[51,130,53,133]]}
["様式第１号（第９条関係）",null,null,null,null,null,null,null,null,null,null,null,null,null,null,null,null,null,null,null,null,null,null,null,null,null,null,null,null,null,"（表）",null,null,null,null,null,null,null,null,null,null,null,null,null,null,null,null,null,null,null,null,null,null,null,null,null,null,null,null,null,null,null,null,null,null,null,null,null,null,null,null,null,null,null,null,null,null,null,null,null,null,null,null,null,null,null,null,null,null,null,null,null,null,null,null,"（裏）"]
[null,null,null,null,null,null,null,null,null,null,null,null,null,null,null,null,null,null,null,null,null,null,null,null,null,null,null,null,null,"（表）",null,null,null,null,null,null,null,null,null,null,null,null,null,null,null,null,null,null,null,null,null,null,null,null,null,null,null,null,null,null,null,null,null,null,null,null,null,"＜補助金申請の同意・誓約事項＞"]
[null,null,null,null,null,null,null,null,null,null,null,null,null,null,null,null,null,null,null,null,null,null,null,null,null,null,null,null,null,null,null,null,null,null,null,null,null,null,null,null,null,null,null,null,"令和",null,null,null,{"$f":"補助金交付申請入力シート!E25","v":0},null,null,"年",null,{"$f":"補助金交付申請入力シート!G25","v":0},null,null,"月",null,{"$f":"補助金交付申請入力シート!I25","v":0},null,null,"日"]
[null,null,null,null,null,null,null,null,null,null,null,null,null,null,null,null,null,null,null,null,null,null,null,null,null,null,null,null,null,null,null,null,null,null,null,null,null,null,null,null,null,null,null,null,null,null,null,null,null,null,null,null,null,null,null,null,null,null,null,null,null,null,null,null,null,null,null,null,null,null,null,null,null,null,null,null,null,null,null,null,null,null,null,null,null,null,null,null,null,null,null,null,null,null,null,null,null,null,null,null,null,null,null,null,null,null,null,null,null,null,null,null,null,null,null,null,null,null,null,null,null,null,null,null,null,null,null,null,null,null,"申請書添付書類　チェックリスト"]
[null,null,null,null,null,null,null,null,null,null,null,null,null,null,null,null,null,null,null,null,null,null,null,null,null,null,null,null,null,null,null,null,null,null,null,null,null,null,null,null,null,null,null,null,null,null,null,null,null,null,null,null,null,null,null,null,null,null,null,null,null,null,null,null,null,null,null,"内容",null,null,null,null,null,null,null,null,null,null,null,null,null,null,null,null,null,null,null,null,null,null,null,null,null,null,null,null,null,null,null,null,null,null,null,null,null,null,null,null,null,null,"同意・誓約欄　　　　　（☑チェックしてください。）"]
["　豊田市長　様"]
[]
[null,null,null,null,null,null,null,null,null,null,null,null,null,null,null,null,null,null,null,null,null,null,null,null,null,null,null,null,null,"（申請者）",null,null,null,null,null,null,null,null,"住　　所",null,null,null,null,null,null,null,{"$f":"CONCATENATE(補助金交付申請入力シート!C4)","v":""},null,null,null,null,null,null,null,null,null,null,null,null,null,null,null,null,null,null,null,null,"１　豊田市税を滞納していない。",null,null,null,null,null,null,null,null,null,null,null,null,null,null,null,null,null,null,null,null,null,null,null,null,null,null,null,null,null,null,null,null,null,null,null,null,null,null,null,null,null,null,"□",null,null,null,null,null,null,null,null,null,null,null,null,null,null,null,null,null,null,null,"　下記リストにて添付書類のチェックをして申請書と一緒に提出してください。"]
[]
[null,null,null,null,null,null,null,null,null,null,null,null,null,null,null,null,null,null,null,null,null,null,null,null,null,null,null,null,null,null,null,null,null,null,null,null,null,null,"（フリガナ）",null,null,null,null,null,null,null,{"$f":"CONCATENATE(補助金交付申請入力シート!C7,\"　\",補助金交付申請入力シート!H7)","v":"　"}]
[null,null,null,null,null,null,null,null,null,null,null,null,null,null,null,null,null,null,null,null,null,null,null,null,null,null,null,null,null,null,null,null,null,null,null,null,null,null,null,null,null,null,null,null,null,null,null,null,null,null,null,null,null,null,null,null,null,null,null,null,null,null,null,null,null,null,null,"２　本補助金の交付事務に必要な内容に関し、法人・任意団体等の場合は市税の収納状況を、個人・個人事業主等の場合は住民基本台帳の閲覧及び市税の収納状況を確認することに同意します。",null,null,null,null,null,null,null,null,null,null,null,null,null,null,null,null,null,null,null,null,null,null,null,null,null,null,null,null,null,null,null,null,null,null,null,null,null,null,null,null,null,null,"□"]
[null,null,null,null,null,null,null,null,null,null,null,null,null,null,null,null,null,null,null,null,null,null,null,null,null,null,null,null,null,null,null,null,null,null,null,null,null,null,"氏　　名",null,null,null,null,null,null,null,{"$f":"CONCATENATE(補助金交付申請入力シート!C8,\"　\",補助金交付申請入力シート!H8)","v":"　"}]
[]
[null,null,null,null,null,null,null,null,null,null,null,null,null,null,null,null,null,null,null,null,null,null,null,null,null,null,null,null,null,null,null,null,null,null,null,null,null,null,"生年月日",null,null,null,null,null,null,null,{"$f":"CONCATENATE(IF(ISBLANK(補助金交付申請入力シート!G9),\"\",補助金交付申請入力シート!C9),補助金交付申請入力シート!G9,IF(ISBLANK(補助金交付申請入力シート!G9),\"\",\"年\"),補助金交付申請入力シート!I9,IF(ISBLANK(補助金交付申請入力シート!I9),\"\",\"月\"),補助金交付申請入力シート!K9,IF(ISBLANK(補助金交付申請入力シート!K9),\"\",\"日\"))","v":""}]
[]
[null,null,null,null,null,null,null,null,null,null,null,null,null,null,null,null,null,null,null,null,null,null,null,null,null,null,null,null,null,null,null,null,null,null,null,null,null,null,"電話番号",null,null,null,null,null,null,null,{"$f":"IF(ISBLANK(補助金交付申請入力シート!C5),\"\",\nCONCATENATE(補助金交付申請入力シート!C5,\"－\",補助金交付申請入力シート!G5,\"－\",補助金交付申請入力シート!I5))","v":""},null,null,null,null,null,null,null,null,null,null,null,null,null,null,null,null,null,null,null,null,null,null,null,null,null,null,null,null,null,null,null,null,null,null,null,null,null,null,null,null,null,null,null,null,null,null,null,null,null,null,null,null,null,null,null,null,null,null,null,null,null,null,null,null,null,null,null,null,null,null,null,null,null,null,null,null,null,null,null,null,null,null,null,"チェック欄",null,null,null,"添付に必要な書類"]
[]
[]
[null,null,null,null,null,null,null,null,null,null,null,null,null,null,null,null,null,null,null,null,null,null,null,null,null,null,null,null,null,null,null,null,null,null,null,null,null,null,null,null,null,null,null,null,null,null,null,null,null,null,null,null,null,null,null,null,null,null,null,null,null,null,null,null,null,null,null,null,null,null,null,null,null,null,null,null,null,null,null,null,null,null,null,null,null,null,null,null,null,null,null,null,null,null,null,null,null,null,null,null,null,null,null,null,null,null,null,null,null,null,null,null,null,null,null,null,null,null,null,null,null,null,null,null,null,null,null,null,null,null,"□",null,null,null,"　１　付近見取図又は位置図"]
[null,null,null,null,null,null,null,null,null,null,null,null,null,null,null,null,null,null,null,null,null,null,null,null,null,null,null,null,null,null,null,null,null,null,null,null,null,"法人にあっては、主たる事務所の所在\n地、名称、代表者の氏名及び生年月日",null,null,null,null,null,null,null,null,null,null,null,null,null,null,null,null,null,null,null,null,null,null,null,null,null,null,null,null,null,"＜法人番号＞※不明な場合は国税庁ＨＰ「法人番号公表サイト」でご確認ください。"]
[]
[null,null,null,null,null,null,null,null,null,null,null,null,null,null,null,null,null,null,null,null,null,null,null,null,null,null,null,null,null,null,null,null,null,null,null,null,null,null,null,null,null,null,null,null,null,null,null,null,null,null,null,null,null,null,null,null,null,null,null,null,null,null,null,null,null,null,null,null,null,null,null,null,null,null,null,null,null,null,null,null,null,null,null,null,null,null,null,null,null,null,null,null,null,null,null,null,null,null,null,null,null,null,null,null,null,null,null,null,null,null,null,null,null,null,null,null,null,null,null,null,null,null,null,null,null,null,null,null,null,null,"□",null,null,null,"　２　配置図"]
[null,null,null,null,null,null,null,null,null,null,null,null,null,null,null,null,null,null,null,null,null,null,null,null,null,null,null,null,null,null,null,null,null,null,null,null,null,null,null,null,null,null,null,null,null,null,null,null,null,null,null,null,null,null,null,null,null,null,null,null,null,null,null,null,null,null,null,"法人番号（１３桁）"]
[]
[null,null,null,null,null,null,null,null,null,null,null,null,null,null,null,null,null,null,null,null,null,null,null,null,null,null,null,null,null,null,null,null,null,null,null,null,null,null,null,null,null,null,null,null,null,null,null,null,null,null,null,null,null,null,null,null,null,null,null,null,null,null,null,null,null,null,null,null,null,null,null,null,null,null,null,null,null,null,null,null,null,null,null,null,null,null,null,null,null,null,null,null,null,null,null,null,null,null,null,null,null,null,null,null,null,null,null,null,null,null,null,null,null,null,null,null,null,null,null,null,null,null,null,null,null,null,null,null,null,null,"□",null,null,null,"　３　現況のカラー写真"]
[]
["豊田市伝統的建造物群保存地区補助金交付申請書"]
[null,null,null,null,null,null,null,null,null,null,null,null,null,null,null,null,null,null,null,null,null,null,null,null,null,null,null,null,null,null,null,null,null,null,null,null,null,null,null,null,null,null,null,null,null,null,null,null,null,null,null,null,null,null,null,null,null,null,null,null,null,null,null,null,null,null,null,null,null,null,null,null,null,null,null,null,null,null,null,null,null,null,null,null,null,null,null,null,null,null,null,null,null,null,null,null,null,null,null,null,null,null,null,null,null,null,null,null,null,null,null,null,null,null,null,null,null,null,null,null,null,null,null,null,null,null,null,null,null,null,"□",null,null,null,"　４　設計図及び仕様書"]
[]
[]
["伝統的建造物群保存地区内において、豊田市伝統的建造物群保存地区補助金交付要綱第５条に規定する補助事業を実施したいので、豊田市補助金等交付規則第４条の規定により、次のとおり申請します。",null,null,null,null,null,null,null,null,null,null,null,null,null,null,null,null,null,null,null,null,null,null,null,null,null,null,null,null,null,null,null,null,null,null,null,null,null,null,null,null,null,null,null,null,null,null,null,null,null,null,null,null,null,null,null,null,null,null,null,null,null,null,null,null,null,null,null,null,null,null,null,null,null,null,null,null,null,null,null,null,null,null,null,null,null,null,null,null,null,null,null,null,null,null,null,null,null,null,null,null,null,null,null,null,null,null,null,null,null,null,null,null,null,null,null,null,null,null,null,null,null,null,null,null,null,null,null,null,null,"□",null,null,null,"　５　設計書又は見積書"]
[]
[]
[null,null,null,null,null,null,null,null,null,null,null,null,null,null,null,null,null,null,null,null,null,null,null,null,null,null,null,null,null,null,null,null,null,null,null,null,null,null,null,null,null,null,null,null,null,null,null,null,null,null,null,null,null,null,null,null,null,null,null,null,null,null,null,null,null,null,null,null,null,null,null,null,null,null,null,null,null,null,null,null,null,null,null,null,null,null,null,null,null,null,null,null,null,null,null,null,null,null,null,null,null,null,null,null,null,null,null,null,null,null,null,null,null,null,null,null,null,null,null,null,null,null,null,null,null,null,null,null,null,null,"□",null,null,null,"　６　事業計画書"]
[]
[]
[null,null,null,null,null,null,null,null,null,null,null,null,null,null,null,null,null,null,null,null,null,null,null,null,null,null,null,null,null,null,"記",null,null,null,null,null,null,null,null,null,null,null,null,null,null,null,null,null,null,null,null,null,null,null,null,null,null,null,null,null,null,null,null,null,null,null,null,null,null,null,null,null,null,null,null,null,null,null,null,null,null,null,null,null,null,null,null,null,null,null,null,null,null,null,null,null,null,null,null,null,null,null,null,null,null,null,null,null,null,null,null,null,null,null,null,null,null,null,null,null,null,null,null,null,null,null,null,null,null,null,"□",null,null,null,"　７　所有者の同意書（申請者と所有者が異なる場合）"]
[]
[]
[null,null,null,null,null,null,null,null,null,null,null,null,null,null,null,null,null,null,null,null,null,null,null,null,null,null,null,null,null,null,null,null,null,null,null,null,null,null,null,null,null,null,null,null,null,null,null,null,null,null,null,null,null,null,null,null,null,null,null,null,null,null,null,null,null,null,null,null,null,null,null,null,null,null,null,null,null,null,null,null,null,null,null,null,null,null,null,null,null,null,null,null,null,null,null,null,null,null,null,null,null,null,null,null,null,null,null,null,null,null,null,null,null,null,null,null,null,null,null,null,null,null,null,null,null,null,null,null,null,null,"□",null,null,null,"　８　現状変更行為許可／許可変更／申請書の写し"]
[null,"補助事業実施場所",null,null,null,null,null,null,null,null,null,null,null,null,null,"豊田市　足助町",null,null,null,null,null,null,null,null,null,null,{"$f":"IF(ISBLANK(補助金交付申請入力シート!E11),\"\",補助金交付申請入力シート!E11)","v":""}]
[]
[null,null,null,null,null,null,null,null,null,null,null,null,null,null,null,null,null,null,null,null,null,null,null,null,null,null,null,null,null,null,null,null,null,null,null,null,null,null,null,null,null,null,null,null,null,null,null,null,null,null,null,null,null,null,null,null,null,null,null,null,null,null,null,null,null,null,null,null,null,null,null,null,null,null,null,null,null,null,null,null,null,null,null,null,null,null,null,null,null,null,null,null,null,null,null,null,null,null,null,null,null,null,null,null,null,null,null,null,null,null,null,null,null,null,null,null,null,null,null,null,null,null,null,null,null,null,null,null,null,null,"□",null,null,null,"　９　市税の完納証明書"]
[null,"※",null,null,null,null,null,null,null,null,null,null,null,null,null,null,"令和",null,null,{"$f":"IF(ISBLANK(補助金交付申請入力シート!E21),\"\",補助金交付申請入力シート!E21)","v":""},null,null,"年",null,{"$f":"IF(ISBLANK(補助金交付申請入力シート!E22),\"\",補助金交付申請入力シート!E22)","v":""},null,null,"月",null,null,{"$f":"IF(ISBLANK(補助金交付申請入力シート!E23),\"\",補助金交付申請入力シート!E23)","v":""},null,null,"日付け・第",null,null,null,null,null,null,null,{"$f":"IF(ISBLANK(補助金交付申請入力シート!E19),\"\",補助金交付申請入力シート!E19)","v":""},null,null,null,null,null,"号",null,{"$f":"IF(ISBLANK(補助金交付申請入力シート!E20),\"\",補助金交付申請入力シート!E20)","v":""},null,null,null,null,null,null,null,null,null,null,"円"]
[]
[null,null,null,null,null,null,null,null,null,null,null,null,null,null,null,null,null,null,null,null,null,null,null,null,null,null,null,null,null,null,null,null,null,null,null,null,null,null,null,null,null,null,null,null,null,null,null,null,null,null,null,null,null,null,null,null,null,null,null,null,null,null,null,null,null,null,null,null,null,null,null,null,null,null,null,null,null,null,null,null,null,null,null,null,null,null,null,null,null,null,null,null,null,null,null,null,null,null,null,null,null,null,null,null,null,null,null,null,null,null,null,null,null,null,null,null,null,null,null,null,null,null,null,null,null,null,null,null,null,null,"□",null,null,null,"１０　団体調書及び役員名簿（申請者が団体の場合）　"]
[null,"過去の確定通知書\nの番号及び補助金の交付額",null,null,null,null,null,null,null,null,null,null,null,null,null,null,"令和",null,null,{"$f":"補助金交付申請入力シート!G21","v":0},null,null,"年",null,{"$f":"補助金交付申請入力シート!G22","v":0},null,null,"月",null,null,{"$f":"補助金交付申請入力シート!G23","v":0},null,null,"日付け・第",null,null,null,null,null,null,null,{"$f":"補助金交付申請入力シート!G19","v":0},null,null,null,null,null,"号",null,{"$f":"IF(ISBLANK(補助金交付申請入力シート!G20),\"\",補助金交付申請入力シート!G20)","v":""},null,null,null,null,null,null,null,null,null,null,"円"]
[]
[null,null,null,null,null,null,null,null,null,null,null,null,null,null,null,null,null,null,null,null,null,null,null,null,null,null,null,null,null,null,null,null,null,null,null,null,null,null,null,null,null,null,null,null,null,null,null,null,null,null,null,null,null,null,null,null,null,null,null,null,null,null,null,null,null,null,null,null,null,null,null,null,null,null,null,null,null,null,null,null,null,null,null,null,null,null,null,null,null,null,null,null,null,null,null,null,null,null,null,null,null,null,null,null,null,null,null,null,null,null,null,null,null,null,null,null,null,null,null,null,null,null,null,null,null,null,null,null,null,null,null,null,null,null,"１１　その他市長が必要と認める書類"]
[null,null,null,null,null,null,null,null,null,null,null,null,null,null,null,null,"令和",null,null,{"$f":"補助金交付申請入力シート!I21","v":0},null,null,"年",null,{"$f":"補助金交付申請入力シート!I22","v":0},null,null,"月",null,null,{"$f":"補助金交付申請入力シート!I23","v":0},null,null,"日付け・第",null,null,null,null,null,null,null,{"$f":"補助金交付申請入力シート!I19","v":0},null,null,null,null,null,"号",null,{"$f":"IF(ISBLANK(補助金交付申請入力シート!I20),\"\",補助金交付申請入力シート!I20)","v":""},null,null,null,null,null,null,null,null,null,null,"円"]
[]
[null,null,null,null,null,null,null,null,null,null,null,null,null,null,null,null,null,null,null,null,null,null,null,null,null,null,null,null,null,null,null,null,null,null,null,null,null,null,null,null,null,null,null,null,null,null,null,null,null,null,null,null,null,null,null,null,null,null,null,null,null,null,null,null,null,null,null,null,null,null,null,null,null,null,null,null,null,null,null,null,null,null,null,null,null,null,null,null,null,null,null,null,null,null,null,null,null,null,null,null,null,null,null,null,null,null,null,null,null,null,null,null,null,null,null,null,null,null,null,null,null,null,null,null,null,null,null,null,null,null,"□",null,null,null,"　　　工程表（任意様式）"]
[null,null,null,null,null,null,null,null,null,null,null,null,null,null,null,null,null,null,null,null,null,null,null,null,null,null,null,null,null,null,null,"合　計",null,null,null,null,null,null,null,{"$f":"補助金交付申請入力シート!G20","v":0},null,null,null,null,null,null,null,{"$f":"CONCATENATE(IF(補助金交付申請入力シート!C13=0,\"\",FIXED(補助金交付申請入力シート!K20,0)),\" \")","v":" "},null,null,null,null,null,null,null,null,null,null,null,null,"円"]
[]
[null,null,null,null,null,null,null,null,null,null,null,null,null,null,null,null,null,null,null,null,null,null,null,null,null,null,null,null,null,null,null,null,null,null,null,null,null,null,null,null,null,null,null,null,null,null,null,null,null,null,null,null,null,null,null,null,null,null,null,null,null,null,null,null,null,null,null,null,null,null,null,null,null,null,null,null,null,null,null,null,null,null,null,null,null,null,null,null,null,null,null,null,null,null,null,null,null,null,null,null,null,null,null,null,null,null,null,null,null,null,null,null,null,null,null,null,null,null,null,null,null,null,null,null,null,null,null,null,null,null,"□",null,null,null,"　　　設計書および図面（PDF形式）の電子データ（メールでも可）"]
[null,"補助金交付申請額",null,null,null,null,null,null,null,null,null,null,null,null,null,null,null,null,null,null,null,null,null,null,null,null,"金",null,{"$f":"IF(ISBLANK(補助金交付申請入力シート!C13),\"\",補助金交付申請入力シート!C13)","v":""},null,null,null,null,null,null,null,null,null,null,"円"]
[]
[null,null,null,null,null,null,null,null,null,null,null,null,null,null,null,null,null,null,null,null,null,null,null,null,null,null,null,null,null,null,null,null,null,null,null,null,null,null,null,null,null,null,null,null,null,null,null,null,null,null,null,null,null,null,null,null,null,null,null,null,null,null,null,null,null,null,null,null,null,null,null,null,null,null,null,null,null,null,null,null,null,null,null,null,null,null,null,null,null,null,null,null,null,null,null,null,null,null,null,null,null,null,null,null,null,null,null,null,null,null,null,null,null,null,null,null,null,null,null,null,null,null,null,null,null,null,null,null,null,null,"□",null,null,null,"　　　補助金の振込先の通帳の写し（銀行名、口座番号、名義の分かる頁）"]
[]
[null,"補助事業の内容",null,null,null,null,null,null,null,null,null,null,null,null,null,null,{"$f":"補助金交付申請入力シート!C14","v":0}]
[null,null,null,null,null,null,null,null,null,null,null,null,null,null,null,null,null,null,null,null,null,null,null,null,null,null,null,null,null,null,null,null,null,null,null,null,null,null,null,null,null,null,null,null,null,null,null,null,null,null,null,null,null,null,null,null,null,null,null,null,null,null,null,null,null,null,null,null,null,null,null,null,null,null,null,null,null,null,null,null,null,null,null,null,null,null,null,null,null,null,null,null,null,null,null,null,null,null,null,null,null,null,null,null,null,null,null,null,null,null,null,null,null,null,null,null,null,null,null,null,null,null,null,null,null,null,null,null,null,null,"□",null,null,null,"　　　消費税仕入税額控除に係るチェックリスト（申請者の押印必要・両面印刷）"]
[]
[]
[]
[null,"補助事業の期間",null,null,null,null,null,null,null,null,null,null,null,null,null,"令和",null,null,null,{"$f":"補助金交付申請入力シート!G15","v":0},null,null,"年",null,null,{"$f":"補助金交付申請入力シート!I15","v":0},null,null,"月",null,null,{"$f":"補助金交付申請入力シート!K15","v":0},null,null,"日から令和",null,null,null,null,null,null,null,{"$f":"補助金交付申請入力シート!G16","v":0},null,null,"年",null,null,{"$f":"補助金交付申請入力シート!I16","v":0},null,null,"月",null,null,{"$f":"補助金交付申請入力シート!K16","v":0},null,null,"日まで"]
[]
[]
[]
[null,"記入上の注意",null,null,null,null,null,null,null,null,null,null,null,null,null,"　補助金の交付を受けた後に当該補助金を返還している場合は、※印の欄に返還額を記載してください。"]
[]
[]
[]
[null,"添付書類",null,null,null,null,null,null,null,null,null,null,null,null,null,"　１　付近見取図又は位置図"]
[]
[null,null,null,null,null,null,null,null,null,null,null,null,null,null,null,"　２　配置図"]
[]
[null,null,null,null,null,null,null,null,null,null,null,null,null,null,null,"　３　現況のカラー写真"]
[]
[null,null,null,null,null,null,null,null,null,null,null,null,null,null,null,"　４　設計図及び仕様書"]
[]
[null,null,null,null,null,null,null,null,null,null,null,null,null,null,null,"　５　設計書又は見積書"]
[]
[null,null,null,null,null,null,null,null,null,null,null,null,null,null,null,"　６　事業計画書"]
[]
[null,null,null,null,null,null,null,null,null,null,null,null,null,null,null,"　７　所有者の同意書（申請者と所有者が異なる場合）"]
[]
[null,null,null,null,null,null,null,null,null,null,null,null,null,null,null,"　８　現状変更行為許可／許可変更／申請書の写し"]
[]
[null,null,null,null,null,null,null,null,null,null,null,null,null,null,null,"　９　団体調書及び役員名簿（申請者が団体の場合）"]
[]
[null,null,null,null,null,null,null,null,null,null,null,null,null,null,null,"１０　その他市長が必要と認める書類　"]

{"sheet":"補助金申請書（変更）","index":4,"n_rows":81,"n_cols":62,"rows_kept":81,"cut":false,"hidden":false,"merged":[[95,1,96,65],[78,1,79,7],[78,8,79,63],[80,8,81,63],[74,1,75,63],[67,3,68,12],[63,14,72,63],[56,3,57,12],[53,14,62,63],[47,3,48,12],[43,14,52,63],[34,0,37,63],[40,30,41,31],[32,16,33,18],[32,19,33,31],[32,32,33,37],[32,38,33,63],[32,2,33,4],[32,5,33,7],[32,8,33,9],[32,10,33,12],[32,13,33,15],[19,37,22,63],[26,0,27,63],[15,34,16,41],[15,42,16,64],[13,34,14,41],[13,42,14,64],[11,34,12,41],[11,42,12,64],[7,42,8,64],[9,34,10,41],[9,42,10,64],[0,0,1,22],[5,0,6,13],[7,24,8,31],[7,34,8,41],[2,61,3,62],[2,44,3,47],[2,48,3,50],[2,51,3,52],[2,53,3,55],[2,56,3,57],[2,58,3,60]]}
["様式第４号（第１１条関係）　"]
[]
[null,null,null,null,null,null,null,null,null,null,null,null,null,null,null,null,null,null,null,null,null,null,null,null,null,null,null,null,null,null,null,null,null,null,null,null,null,null,null,null,null,null,null,null,"令和",null,null,null,{"$f":"補助金交付申請入力シート!C36","v":0},null,null,"年",null,{"$f":"補助金交付申請入力シート!E36","v":0},null,null,"月",null,{"$f":"補助金交付申請入力シート!G36","v":0},null,null,"日"]
[]
[]
["　豊田市長　様"]
[]
[null,null,null,null,null,null,null,null,null,null,null,null,null,null,null,null,null,null,null,null,null,null,null,null,"（申請者）",null,null,null,null,null,null,null,null,null,"住　　所",null,null,null,null,null,null,null,{"$f":"CONCATENATE(補助金交付申請入力シート!C4)","v":""}]
[]
[null,null,null,null,null,null,null,null,null,null,null,null,null,null,null,null,null,null,null,null,null,null,null,null,null,null,null,null,null,null,null,null,null,null,"（フリガナ）",null,null,null,null,null,null,null,{"$f":"CONCATENATE(補助金交付申請入力シート!C7,\"　\",補助金交付申請入力シート!H7)","v":"　"}]
[]
[null,null,null,null,null,null,null,null,null,null,null,null,null,null,null,null,null,null,null,null,null,null,null,null,null,null,null,null,null,null,null,null,null,null,"氏　　名",null,null,null,null,null,null,null,{"$f":"CONCATENATE(補助金交付申請入力シート!C8,\"　\",補助金交付申請入力シート!H8)","v":"　"}]
[]
[null,null,null,null,null,null,null,null,null,null,null,null,null,null,null,null,null,null,null,null,null,null,null,null,null,null,null,null,null,null,null,null,null,null,"生年月日",null,null,null,null,null,null,null,{"$f":"CONCATENATE(IF(ISBLANK(補助金交付申請入力シート!G9),\"\",補助金交付申請入力シート!C9),補助金交付申請入力シート!G9,IF(ISBLANK(補助金交付申請入力シート!G9),\"\",\"年\"),補助金交付申請入力シート!I9,IF(ISBLANK(補助金交付申請入力シート!I9),\"\",\"月\"),補助金交付申請入力シート!K9,IF(ISBLANK(補助金交付申請入力シート!K9),\"\",\"日\"))","v":""}]
[]
[null,null,null,null,null,null,null,null,null,null,null,null,null,null,null,null,null,null,null,null,null,null,null,null,null,null,null,null,null,null,null,null,null,null,"電話番号",null,null,null,null,null,null,null,{"$f":"IF(ISBLANK(補助金交付申請入力シート!C5),\"\",\nCONCATENATE(補助金交付申請入力シート!C5,\"－\",補助金交付申請入力シート!G5,\"－\",補助金交付申請入力シート!I5))","v":""}]
[]
[]
[]
[null,null,null,null,null,null,null,null,null,null,null,null,null,null,null,null,null,null,null,null,null,null,null,null,null,null,null,null,null,null,null,null,null,null,null,null,null,"法人にあっては、主たる事務所の所在\n地、名称、代表者の氏名及び生年月日"]
[]
[]
[]
[]
[]
[]
["豊田市伝統的建造物群保存地区補助事業変更等承認申請書"]
[]
[]
[]
[]
[]
["　平成",null,"令和",null,null,{"$f":"補助金交付申請入力シート!C32","v":0},null,null,"年",null,{"$f":"補助金交付申請入力シート!E32","v":0},null,null,"月",null,null,{"$f":"補助金交付申請入力シート!G32","v":0},null,null,"日付け豊文財発第",null,null,null,null,null,null,null,null,null,null,null,null,{"$f":"補助金交付申請入力シート!E33","v":0},null,null,null,null,null,"号で交付決定のありました豊田市伝"]
[]
["統的建造物群保存地区補助金交付要綱第５条に規定する補助事業につきまして、次のとおり　☐変更□中止したいので、豊田市補助金等交付規則第８条第１項の規定により、次のとおり申請します。"]
[]
[]
[]
[]
[]
[]
[]
[]
[null,null,null,null,null,null,null,null,null,null,null,null,null,null,{"$f":"補助金交付申請入力シート!B37","v":0}]
[]
[]
[]
[null,null,null,"変更する事項"]
[]
[]
[]
[]
[]
[null,null,null,null,null,null,null,null,null,null,null,null,null,null,{"$f":"補助金交付申請入力シート!B38","v":0}]
[]
[]
[null,null,null,"変更内容"]
[]
[]
[]
[]
[]
[]
[null,null,null,null,null,null,null,null,null,null,null,null,null,null,{"$f":"補助金交付申請入力シート!B39","v":0}]
[]
[]
[]
[null,null,null,"変更理由"]
[]
[]
[]
[]
[]
[]
[null,"記入上の注意　　□のところは、該当するものにレ印を付してください。"]
[]
[]
[]
[null,"添付書類",null,null,null,null,null,null,"１　交付申請時に添付した書類のうち、変更に係るもの（中止の場合を除く。）"]
[]
[null,null,null,null,null,null,null,null,"２　その他市長が必要と認める書類"]

{"sheet":"補助金申請書（完了） ","index":5,"n_rows":74,"n_cols":72,"rows_kept":74,"cut":false,"hidden":false,"merged":[[95,1,96,65],[69,3,70,47],[71,3,72,47],[73,3,74,47],[65,3,66,47],[67,3,68,47],[59,1,60,14],[61,3,62,47],[63,3,64,47],[55,1,56,63],[50,37,52,39],[50,40,52,42],[50,43,52,45],[50,46,52,48],[49,1,53,14],[50,26,52,30],[50,31,52,33],[50,34,52,36],[45,1,47,14],[45,15,47,25],[45,26,47,62],[32,37,33,63],[34,0,37,63],[32,8,33,9],[32,10,33,12],[32,13,33,14],[32,15,33,17],[32,18,33,30],[32,31,33,36],[32,2,33,4],[32,5,33,7],[19,37,22,63],[26,0,27,63],[15,34,16,41],[15,42,16,64],[13,34,14,41],[13,42,14,64],[11,34,12,41],[11,42,12,64],[7,24,8,31],[7,34,8,41],[7,42,8,64],[9,34,10,41],[9,42,10,64],[0,0,1,22],[2,58,3,60],[2,61,3,62],[5,0,6,13],[2,44,3,47],[2,48,3,50],[2,51,3,52],[2,53,3,55],[2,56,3,57],[3,67,5,127],[7,67,13,127],[15,67,17,70],[15,71,17,127],[18,67,20,70],[18,71,20,127],[21,67,23,70],[21,71,23,127],[24,67,26,70],[24,71,26,127],[27,67,29,70],[27,71,29,127],[39,67,41,70],[39,71,41,127],[42,67,44,70],[42,71,44,127],[30,67,32,70],[30,71,32,127],[33,67,35,70],[33,71,35,127],[36,67,38,70],[36,71,38,127]]}
["様式第６号（第１２条関係）"]
[]
[null,null,null,null,null,null,null,null,null,null,null,null,null,null,null,null,null,null,null,null,null,null,null,null,null,null,null,null,null,null,null,null,null,null,null,null,null,null,null,null,null,null,null,null,"令和",null,null,null,{"$f":"補助金交付申請入力シート!C44","v":0},null,null,"年",null,{"$f":"補助金交付申請入力シート!E44","v":0},null,null,"月",null,{"$f":"補助金交付申請入力シート!G44","v":0},null,null,"日"]
[null,null,null,null,null,null,null,null,null,null,null,null,null,null,null,null,null,null,null,null,null,null,null,null,null,null,null,null,null,null,null,null,null,null,null,null,null,null,null,null,null,null,null,null,null,null,null,null,null,null,null,null,null,null,null,null,null,null,null,null,null,null,null,null,null,null,null,"報告書添付書類　チェックリスト"]
[]
["　豊田市長　様"]
[]
[null,null,null,null,null,null,null,null,null,null,null,null,null,null,null,null,null,null,null,null,null,null,null,null,"（報告者）",null,null,null,null,null,null,null,null,null,"住　　所",null,null,null,null,null,null,null,{"$f":"CONCATENATE(補助金交付申請入力シート!C4)","v":""},null,null,null,null,null,null,null,null,null,null,null,null,null,null,null,null,null,null,null,null,null,null,null,null,"　下記リストにて添付書類のチェックをして報告書と一緒に提出してください。"]
[]
[null,null,null,null,null,null,null,null,null,null,null,null,null,null,null,null,null,null,null,null,null,null,null,null,null,null,null,null,null,null,null,null,null,null,"（フリガナ）",null,null,null,null,null,null,null,{"$f":"CONCATENATE(補助金交付申請入力シート!C7,\"　\",補助金交付申請入力シート!H7)","v":"　"}]
[]
[null,null,null,null,null,null,null,null,null,null,null,null,null,null,null,null,null,null,null,null,null,null,null,null,null,null,null,null,null,null,null,null,null,null,"氏　　名",null,null,null,null,null,null,null,{"$f":"CONCATENATE(補助金交付申請入力シート!C8,\"　\",補助金交付申請入力シート!H8)","v":"　"}]
[]
[null,null,null,null,null,null,null,null,null,null,null,null,null,null,null,null,null,null,null,null,null,null,null,null,null,null,null,null,null,null,null,null,null,null,"生年月日",null,null,null,null,null,null,null,{"$f":"CONCATENATE(IF(ISBLANK(補助金交付申請入力シート!G9),\"\",補助金交付申請入力シート!C9),補助金交付申請入力シート!G9,IF(ISBLANK(補助金交付申請入力シート!G9),\"\",\"年\"),補助金交付申請入力シート!I9,IF(ISBLANK(補助金交付申請入力シート!I9),\"\",\"月\"),補助金交付申請入力シート!K9,IF(ISBLANK(補助金交付申請入力シート!K9),\"\",\"日\"))","v":""}]
[]
[null,null,null,null,null,null,null,null,null,null,null,null,null,null,null,null,null,null,null,null,null,null,null,null,null,null,null,null,null,null,null,null,null,null,"電話番号",null,null,null,null,null,null,null,{"$f":"IF(ISBLANK(補助金交付申請入力シート!C5),\"\",\nCONCATENATE(補助金交付申請入力シート!C5,\"－\",補助金交付申請入力シート!G5,\"－\",補助金交付申請入力シート!I5))","v":""},null,null,null,null,null,null,null,null,null,null,null,null,null,null,null,null,null,null,null,null,null,null,null,null,"チェック欄",null,null,null,"添付に必要な書類"]
[]
[]
[null,null,null,null,null,null,null,null,null,null,null,null,null,null,null,null,null,null,null,null,null,null,null,null,null,null,null,null,null,null,null,null,null,null,null,null,null,null,null,null,null,null,null,null,null,null,null,null,null,null,null,null,null,null,null,null,null,null,null,null,null,null,null,null,null,null,null,"□",null,null,null,"１　竣工図及び実施設計図書"]
[null,null,null,null,null,null,null,null,null,null,null,null,null,null,null,null,null,null,null,null,null,null,null,null,null,null,null,null,null,null,null,null,null,null,null,null,null,"法人にあっては、主たる事務所の所在\n地、名称、代表者の氏名及び生年月日"]
[]
[null,null,null,null,null,null,null,null,null,null,null,null,null,null,null,null,null,null,null,null,null,null,null,null,null,null,null,null,null,null,null,null,null,null,null,null,null,null,null,null,null,null,null,null,null,null,null,null,null,null,null,null,null,null,null,null,null,null,null,null,null,null,null,null,null,null,null,"□",null,null,null,"２　補助事業の実施を記録したカラー写真"]
[]
[]
[null,null,null,null,null,null,null,null,null,null,null,null,null,null,null,null,null,null,null,null,null,null,null,null,null,null,null,null,null,null,null,null,null,null,null,null,null,null,null,null,null,null,null,null,null,null,null,null,null,null,null,null,null,null,null,null,null,null,null,null,null,null,null,null,null,null,null,"□",null,null,null,"３　契約書の写し"]
[]
["豊田市伝統的建造物群保存地区補助事業完了等報告書"]
[null,null,null,null,null,null,null,null,null,null,null,null,null,null,null,null,null,null,null,null,null,null,null,null,null,null,null,null,null,null,null,null,null,null,null,null,null,null,null,null,null,null,null,null,null,null,null,null,null,null,null,null,null,null,null,null,null,null,null,null,null,null,null,null,null,null,null,"□",null,null,null,"４　領収証その他の費用の支払を証明する書類（申請者の原本証明が必要）"]
[]
[]
[null,null,null,null,null,null,null,null,null,null,null,null,null,null,null,null,null,null,null,null,null,null,null,null,null,null,null,null,null,null,null,null,null,null,null,null,null,null,null,null,null,null,null,null,null,null,null,null,null,null,null,null,null,null,null,null,null,null,null,null,null,null,null,null,null,null,null,"□",null,null,null,"５　施工業者の事業完了届の写し"]
[]
[null,null,"令和",null,null,{"$f":"補助金交付申請入力シート!C32","v":0},null,null,"年",null,{"$f":"補助金交付申請入力シート!E32","v":0},null,null,"月",null,{"$f":"補助金交付申請入力シート!G32","v":0},null,null,"日付け豊文財発第",null,null,null,null,null,null,null,null,null,null,null,null,{"$f":"補助金交付申請入力シート!E33","v":0},null,null,null,null,null,"号で交付決定のありました豊田市伝"]
[null,null,null,null,null,null,null,null,null,null,null,null,null,null,null,null,null,null,null,null,null,null,null,null,null,null,null,null,null,null,null,null,null,null,null,null,null,null,null,null,null,null,null,null,null,null,null,null,null,null,null,null,null,null,null,null,null,null,null,null,null,null,null,null,null,null,null,"□",null,null,null,"６　事業実績書"]
["統的建造物群保存地区補助金交付要綱第５条に規定する補助事業を　□完了　□中止　しましたので、豊田市補助金等交付規則第１０条の規定により、次のとおり報告します。　"]
[]
[null,null,null,null,null,null,null,null,null,null,null,null,null,null,null,null,null,null,null,null,null,null,null,null,null,null,null,null,null,null,null,null,null,null,null,null,null,null,null,null,null,null,null,null,null,null,null,null,null,null,null,null,null,null,null,null,null,null,null,null,null,null,null,null,null,null,null,null,null,null,null,"７　その他市長が必要と認める書類"]
[]
[]
[null,null,null,null,null,null,null,null,null,null,null,null,null,null,null,null,null,null,null,null,null,null,null,null,null,null,null,null,null,null,null,null,null,null,null,null,null,null,null,null,null,null,null,null,null,null,null,null,null,null,null,null,null,null,null,null,null,null,null,null,null,null,null,null,null,null,null,"□",null,null,null,"　　　入札執行調書および入札書の写し（提出済みの場合を除く）"]
[]
[]
[null,null,null,null,null,null,null,null,null,null,null,null,null,null,null,null,null,null,null,null,null,null,null,null,null,null,null,null,null,null,null,null,null,null,null,null,null,null,null,null,null,null,null,null,null,null,null,null,null,null,null,null,null,null,null,null,null,null,null,null,null,null,null,null,null,null,null,"□",null,null,null,"　　　設計書および図面（PDF形式）の電子データ（メールでも可）"]
[]
[]
[null,"補助事業実施場所",null,null,null,null,null,null,null,null,null,null,null,null,null,"豊田市　足助町",null,null,null,null,null,null,null,null,null,null,{"$f":"IF(ISBLANK(補助金交付申請入力シート!E11),\"\",補助金交付申請入力シート!E11)","v":""}]
[]
[]
[]
[null,"補助事業を完了又は中止した日"]
[null,null,null,null,null,null,null,null,null,null,null,null,null,null,null,null,null,null,null,null,null,null,null,null,null,null,"令和",null,null,null,null,{"$f":"補助金交付申請入力シート!C44","v":0},null,null,"年",null,null,{"$f":"補助金交付申請入力シート!E44","v":0},null,null,"月",null,null,{"$f":"補助金交付申請入力シート!G44","v":0},null,null,"日"]
[]
[]
[]
[]
[null,"記入上の注意　　□のところは、該当するものにレ印を付してください。"]
[]
[]
[]
[null,"添付書類"]
[]
[null,null,null,"１　竣工図及び実施設計図書"]
[]
[null,null,null,"２　補助事業の実施を記録したカラー写真"]
[]
[null,null,null,"３　契約書の写し"]
[]
[null,null,null,"４　領収証その他の費用の支払を証明する書類"]
[]
[null,null,null,"５　施工業者の事業完了届の写し"]
[]
[null,null,null,"６　事業実績書"]
[]
[null,null,null,"７　その他市長が必要と認める書類"]

{"sheet":"様式２","index":6,"n_rows":74,"n_cols":11,"rows_kept":74,"cut":false,"hidden":false,"merged":[[21,1,21,2],[73,0,73,3],[62,0,72,1],[62,2,62,3],[63,2,63,3],[64,2,64,3],[65,2,65,3],[66,2,66,3],[67,2,67,3],[68,2,68,3],[69,2,69,3],[70,2,70,3],[71,2,71,3],[72,2,72,3],[48,0,61,1],[52,2,52,3],[0,0,0,5],[36,0,36,5],[39,0,39,3],[40,0,40,3],[41,0,41,3],[25,3,25,5],[33,4,33,5],[25,1,25,2],[23,3,23,5],[32,4,32,5],[31,4,31,5],[29,4,29,5],[30,4,30,5],[37,0,37,5],[26,4,26,5],[27,4,27,5],[8,1,8,2],[24,3,24,5],[23,1,23,2],[24,1,24,2],[22,1,22,2],[16,4,16,5],[21,3,21,5],[19,4,19,5],[14,4,14,5],[17,4,17,5],[15,4,15,5],[18,4,18,5],[20,4,20,5],[22,3,22,5],[9,3,9,5],[12,3,12,5],[1,0,1,5],[11,1,11,2],[12,1,12,2],[13,1,13,2],[10,1,10,2],[5,4,5,5],[3,0,3,5],[4,0,4,5],[8,3,8,5],[9,1,9,2],[10,3,10,5],[11,3,11,5],[13,4,13,5],[6,4,6,5],[7,4,7,5],[5,0,7,2],[28,4,28,5],[44,7,45,7],[46,7,47,7],[34,1,34,2],[47,0,47,3],[42,0,42,3],[43,0,43,3],[44,0,44,3],[38,0,38,5],[46,0,46,5],[48,2,48,3],[49,2,49,3],[51,2,51,3],[61,2,61,3],[57,2,57,3],[58,2,58,3],[59,2,59,3],[60,2,60,3],[53,2,53,3],[54,2,54,3],[55,2,55,3],[56,2,56,3],[50,2,50,3]]}
["（表）"]
["様式第２号（第８条関係）"]
[]
["事　業　計　画　書"]
["１．事業内容"]
["主工事",null,null,"屋根"]
[null,null,null,"外壁"]
[null,null,null,"構造"]
[null,"部位",null,"仕上げ・仕様"]
[null,"庇"]
[null,"建具"]
[null,"格子"]
["既","軒裏"]
[]
[]
["存"]
[]
[]
[]
[]
[]
[null,"部位",null,"仕上げ・仕様"]
[null,"庇"]
[null,"建具"]
[null,"格子"]
["計","軒裏"]
[]
[]
["画"]
[]
[]
[]
[]
[]
[]
[]
["（裏）"]
["２．収支予算書"]
["（１）収入"]
["項　　目",null,null,null,"当 初 金 額（円）","　変 更 後 金 額（円）",null,null,null,"修理","修景"]
["補　助　金（修理）",null,null,null,{"$f":"IF(J46>J42,J42,J46)","v":0},{"$f":"IF(K46>J42,J42,K46)","v":0},null,null,"補助率",0.8,0.6]
["　　　　　（修景）",null,null,null,{"$f":"IF(J48>K42,J48,J48)","v":0},{"$f":"IF(K48>K42,K42,K48)","v":0},null,null,"上限",50000000,5000000]
["自　己　資　金",null,null,null,{"$f":"E45-E44-E41-E42","v":0},{"$f":"F45-F44-F41-F42","v":0}]
["他の補助金（　　　　　　　）",null,null,null,0,0,"←あれば記入",null,null,"当初","変更"]
["合　　　計",null,null,null,{"$f":"E74","v":0},{"$f":"F74","v":0},null,"修理","補助対象",{"$f":"E49","v":0},{"$f":"F49","v":0}]
[null,null,null,null,null,null,null,null,"計算",{"$f":"ROUNDDOWN(J45*J41,-3)","v":0},{"$f":"ROUNDDOWN(K45*J41,-3)","v":0}]
["（２）支出",null,null,null,null,null,null,"修景","補助対象",{"$f":"E50","v":0},{"$f":"F50","v":0}]
["項　　目",null,null,null,"当 初 金 額（円）","　変 更 後 金 額（円）",null,null,"計算",{"$f":"ROUNDDOWN(J47*K41,-3)","v":0},{"$f":"ROUNDDOWN(K47*K41,-3)","v":0}]
["補　助　対　象　経　費",null,"修理（別添資料参照）",null,{"$f":"支出内訳総括表!D28","v":0},{"$f":"支出内訳総括表!G28","v":0}]
[null,null,"修景（別添資料参照）",null,{"$f":"支出内訳総括表!E28","v":0},{"$f":"支出内訳総括表!H28","v":0}]
[]
[]
[]
[]
[]
[]
[]
[]
[]
[]
[]
[null,null,"小計",null,{"$f":"SUM(E49:E61)","v":0},{"$f":"SUM(F49:F61)","v":0}]
["補助対象とならない経費",null,"(別添資料参照）",null,{"$f":"支出内訳総括表!C28-支出内訳総括表!D28-支出内訳総括表!E28","v":0},{"$f":"支出内訳総括表!F28-支出内訳総括表!G28-支出内訳総括表!H28","v":0}]
[]
[]
[]
[]
[]
[]
[]
[]
[]
[null,null,"小計",null,{"$f":"SUM(E63:E72)","v":0},{"$f":"SUM(F63:F72)","v":0}]
["合　　　計",null,null,null,{"$f":"支出内訳総括表!C28","v":0},{"$f":"支出内訳総括表!F28","v":0}]

{"sheet":"支出内訳総括表","index":7,"n_rows":28,"n_cols":15,"rows_kept":28,"cut":false,"hidden":false,"merged":[[4,2,4,4],[4,1,5,1],[4,11,5,11],[4,5,4,7],[4,8,4,10]]}
[{"$f":"data!C9","v":"別添書類6-（2-2）-1"}]
[]
[null,"支出内訳明細総括表"]
[]
[null,"種　　別","当初",null,null,"変更",null,null,"実績",null,null,"備　　考"]
[null,null,"工 事 費 等","修理\n補助対象経費等","修景\n補助対象経費等","工 事 費 等","修理\n補助対象経費等","修景\n補助対象経費等","工 事 費 等","修理\n補助対象経費等","修景\n補助対象経費等"]
[null,"直接仮設工事",{"$f":"内訳書!F28","v":0},{"$f":"内訳書!H16","v":0},{"$f":"内訳書!H28","v":0},{"$f":"内訳書!J28","v":0},{"$f":"内訳書!L16","v":0},{"$f":"内訳書!L28","v":0},{"$f":"内訳書!N28","v":0},{"$f":"内訳書!P16","v":0},{"$f":"内訳書!P28","v":0}]
[null,"解体工事",{"$f":"内訳書!F53","v":0},{"$f":"内訳書!H39","v":0},{"$f":"内訳書!H53","v":0},{"$f":"内訳書!J53","v":0},{"$f":"内訳書!L39","v":0},{"$f":"内訳書!L53","v":0},{"$f":"内訳書!N53","v":0},{"$f":"内訳書!P39","v":0},{"$f":"内訳書!P53","v":0}]
[null,"基礎工事",{"$f":"内訳書!F78","v":0},{"$f":"内訳書!H66","v":0},{"$f":"内訳書!H78","v":0},{"$f":"内訳書!J78","v":0},{"$f":"内訳書!L66","v":0},{"$f":"内訳書!L78","v":0},{"$f":"内訳書!N78","v":0},{"$f":"内訳書!P66","v":0},{"$f":"内訳書!P78","v":0}]
[null,"木　工事",{"$f":"内訳書!F128","v":0},{"$f":"内訳書!H103","v":0},{"$f":"内訳書!H128","v":0},{"$f":"内訳書!J128","v":0},{"$f":"内訳書!L103","v":0},{"$f":"内訳書!L128","v":0},{"$f":"内訳書!N128","v":0},{"$f":"内訳書!P103","v":0},{"$f":"内訳書!P128","v":0}]
[null,"屋根工事",{"$f":"内訳書!F153","v":0},{"$f":"内訳書!H140","v":0},{"$f":"内訳書!H153","v":0},{"$f":"内訳書!J153","v":0},{"$f":"内訳書!L140","v":0},{"$f":"内訳書!L153","v":0},{"$f":"内訳書!N153","v":0},{"$f":"内訳書!P140","v":0},{"$f":"内訳書!P153","v":0}]
[null,"板金工事",{"$f":"内訳書!F178","v":0},{"$f":"内訳書!H165","v":0},{"$f":"内訳書!H178","v":0},{"$f":"内訳書!J178","v":0},{"$f":"内訳書!L165","v":0},{"$f":"内訳書!L178","v":0},{"$f":"内訳書!N178","v":0},{"$f":"内訳書!P165","v":0},{"$f":"内訳書!P178","v":0}]
[null,"左官工事",{"$f":"内訳書!F203","v":0},{"$f":"内訳書!H191","v":0},{"$f":"内訳書!H203","v":0},{"$f":"内訳書!J203","v":0},{"$f":"内訳書!L191","v":0},{"$f":"内訳書!L203","v":0},{"$f":"内訳書!N203","v":0},{"$f":"内訳書!P191","v":0},{"$f":"内訳書!P203","v":0}]
[null,"建具工事",{"$f":"内訳書!F228","v":0},{"$f":"内訳書!H220","v":0},{"$f":"内訳書!H228","v":0},{"$f":"内訳書!J228","v":0},{"$f":"内訳書!L220","v":0},{"$f":"内訳書!L228","v":0},{"$f":"内訳書!N228","v":0},{"$f":"内訳書!P220","v":0},{"$f":"内訳書!P228","v":0}]
[null,"塗装工事",{"$f":"内訳書!F253","v":0},{"$f":"内訳書!H240","v":0},{"$f":"内訳書!H253","v":0},{"$f":"内訳書!J253","v":0},{"$f":"内訳書!L240","v":0},{"$f":"内訳書!L253","v":0},{"$f":"内訳書!N253","v":0},{"$f":"内訳書!P240","v":0},{"$f":"内訳書!P253","v":0}]
[null,"雑工事",{"$f":"内訳書!F278","v":0},{"$f":"内訳書!H266","v":0},{"$f":"内訳書!H278","v":0},{"$f":"内訳書!J278","v":0},{"$f":"内訳書!L266","v":0},{"$f":"内訳書!L278","v":0},{"$f":"内訳書!N278","v":0},{"$f":"内訳書!P266","v":0},{"$f":"内訳書!P278","v":0}]
[null,"設備工事",{"$f":"内訳書!F378","v":0},{"$f":"内訳書!H353","v":0},{"$f":"内訳書!H378","v":0},{"$f":"内訳書!J378","v":0},{"$f":"内訳書!L353","v":0},{"$f":"内訳書!L378","v":0},{"$f":"内訳書!N378","v":0},{"$f":"内訳書!P353","v":0},{"$f":"内訳書!P378","v":0}]
[null," 直接工事費計",{"$f":"SUM(C7:C17)","v":0},{"$f":"SUM(D7:D17)","v":0},{"$f":"SUM(E7:E17)","v":0},0,0,0,0,0,0]
[null,"諸経費",{"$f":"内訳書!F428","v":0},{"$f":"内訳書!H406","v":0},{"$f":"内訳書!H407","v":0},{"$f":"内訳書!J428","v":0},{"$f":"内訳書!L410","v":0},{"$f":"内訳書!L411","v":0},{"$f":"内訳書!N428","v":0},{"$f":"内訳書!P414","v":0},{"$f":"内訳書!P415","v":0}]
[null,"端数調整",{"$f":"ROUNDDOWN(C18+C19,-3)-C18-C19","v":0},{"$f":"IF(C18=0,0,(ROUNDDOWN(C20*D18/C18,0)))","v":0},{"$f":"IF(C18=0,0,(ROUNDDOWN(C20*E18/C18,0)))","v":0},{"$f":"ROUNDDOWN(F18+F19,-3)-F18-F19","v":0},{"$f":"IF(F18=0,0,ROUNDDOWN(F20*G18/F18,0))","v":0},{"$f":"IF(F18=0,0,ROUNDDOWN(F20*H18/F18,0))","v":0},{"$f":"ROUNDDOWN(I18+I19,-3)-I18-I19","v":0},{"$f":"IF(I18=0,0,ROUNDDOWN(I20*J18/I18,0))","v":0},{"$f":"IF(I18=0,0,ROUNDDOWN(I20*K18/I18,0))","v":0},null,null,"設計",{"$f":"C22","v":0}]
[null,"入札差金分",null,null,null,{"$f":"ROUNDUP((F18+F19+F20)*(O$22-1),0)","v":0},{"$f":"ROUNDUP((G18+G19+G20)*(O$22-1),0)","v":0},{"$f":"ROUNDUP((H18+H19+H20)*(O$22-1),0)","v":0},{"$f":"ROUNDUP((I18+I19+I20)*(O$22-1),0)","v":0},{"$f":"ROUNDUP((J18+J19+J20)*(O$22-1),0)","v":0},{"$f":"ROUNDUP((K18+K19+K20)*(O$22-1),0)","v":0},null,null,"入札",16640000]
[null," 工事費計",{"$f":"C18+C19+C20","v":0},{"$f":"D18+D19+D20","v":0},{"$f":"E18+E19+E20","v":0},{"$f":"F18+F19+F20+F21","v":0},{"$f":"G18+G19+G20+G21","v":0},0,0,0,0,null,null,"入札率",{"$f":"IF(O20=0,0,(ROUNDDOWN(O21/O20,8)))","v":0}]
[null,"消費税相当額",{"$f":"ROUNDDOWN((C22)*$O23,0)","v":0},{"$f":"ROUNDDOWN((D22)*$O23,0)","v":0},0,0,0,0,0,0,0,null,null,"消費税率",0.1]
[null,"小　計",{"$f":"SUM(C22:C23)","v":0},{"$f":"SUM(D22:D23)","v":0},0,0,0,0,0,0,0]
[null,"設計監理料",{"$f":"内訳書!F403","v":0},{"$f":"内訳書!H381","v":0},{"$f":"内訳書!H382","v":0},{"$f":"内訳書!J403","v":0},{"$f":"内訳書!L385","v":0},{"$f":"内訳書!L386","v":0},{"$f":"内訳書!N403","v":0},{"$f":"内訳書!P389","v":0},{"$f":"内訳書!P390","v":0}]
[null,"消費税相当額",{"$f":"ROUNDDOWN((C25)*$O26,0)","v":0},{"$f":"ROUNDDOWN((D25)*$O26,0)","v":0},0,0,0,0,0,0,{"$f":"ROUNDDOWN((K25)*$O26,0)","v":0},null,null,"消費税率",0.1]
[null,"小　計",{"$f":"SUM(C25:C26)","v":0},{"$f":"SUM(D25:D26)","v":0},0,0,0,0,0,0,0]
[null,"合　　計",{"$f":"C24+C27","v":0},{"$f":"D24+D27","v":0},0,0,0,0,0,0,0]

{"sheet":"内訳書","index":8,"n_rows":428,"n_cols":26,"rows_kept":428,"cut":false,"hidden":false,"merged":[[38,0,38,3],[265,0,265,3],[352,0,352,3],[402,0,402,3],[377,0,377,3],[65,0,65,3],[102,0,102,3],[139,0,139,3],[52,0,52,3],[127,0,127,3],[152,0,152,3],[427,0,427,3],[277,0,277,3],[252,0,252,3],[190,0,190,3],[219,0,219,3],[15,0,15,3],[1,3,2,3],[239,0,239,3],[202,0,202,3],[1,16,2,16],[1,0,2,0],[1,4,1,7],[27,0,27,3],[1,1,2,1],[1,2,2,2],[1,8,1,11],[1,12,1,15],[177,0,177,3],[227,0,227,3],[164,0,164,3],[77,0,77,3]]}
[{"$f":"data!C11","v":"別添書類6-（2-2）-2"},null,null,"設計内訳書"]
["名　 称","摘  要","単 位","単 価 \n（円）","当初",null,null,null,"変更",null,null,null,"実績",null,null,null,"備  考\n※積算根拠など","補助対象","豊田市"]
[null,null,null,null,"全体\n数量","全体\n金 額 （円）","補助対象\n数量","補助対象\n金額（円）","全体\n数量","全体\n金 額 （円）","補助対象\n数量","補助対象\n金額（円）","全体\n数量","全体\n金 額 （円）","補助対象\n数量","補助対象\n金額（円）",null,"単価","単価"]
["直接仮設工事【修理】"]
["水盛・遣方・墨出し","損料手間共","㎡",null,null,{"$f":"ROUNDDOWN($D5*E5,0)","v":0},null,{"$f":"ROUNDDOWN(G5*$R5,0)","v":0},null,{"$f":"ROUNDDOWN($D5*I5,0)","v":0},null,{"$f":"ROUNDDOWN(K5*$R5,0)","v":0},null,{"$f":"ROUNDDOWN($D5*M5,0)","v":0},null,{"$f":"ROUNDDOWN(O5*$R5,0)","v":0},null,{"$f":"IF(S5=\"\",D5,IF(S5>D5,D5,S5))","v":0}]
["養生シート","損料手間共","式",null,null,{"$f":"ROUNDDOWN($D6*E6,0)","v":0},null,{"$f":"ROUNDDOWN(G6*$R6,0)","v":0},null,{"$f":"ROUNDDOWN($D6*I6,0)","v":0},null,{"$f":"ROUNDDOWN(K6*$R6,0)","v":0},null,{"$f":"ROUNDDOWN($D6*M6,0)","v":0},null,{"$f":"ROUNDDOWN(O6*$R6,0)","v":0},null,0]
["整理清掃費","場内外残廃材搬出、手間共","㎡",null,null,0,null,0,null,0,null,0,null,0,null,0,null,0]
["仮設便所・水道・電気","町内トイレ使用","式",null,null,0,null,0,null,0,null,0,null,0,null,0,null,0]
["外部足場","北側建物","式",null,null,0,null,0,null,0,null,0,null,0,null,0,null,0]
["外部足場","盛替、材料小運搬","式",null,null,0,null,0,null,0,null,0,null,0,null,0,null,0]
["土間養生","コンパネ等","式",null,null,0,null,0,null,0,null,0,null,0,null,0,null,{"$f":"IF(S11=\"\",D11,IF(S11>D11,D11,S11))","v":0}]
["安全対策","ロープ、シート等","式",null,null,0,null,0,null,0,null,0,null,0,null,0,null,0]
["仮囲い","安全対策、バリケード等","式",null,null,{"$f":"ROUNDDOWN($D13*E13,0)","v":0},null,0,null,0,null,0,null,0,null,0,null,0]
["仮設建物","作業下小屋・材料置場・損料","式",null,null,0,null,0,null,null,null,null,null,null,null,null,null,0]
["材料小運搬","木工事等","式",null,null,0,null,0,null,0,null,0,null,null,null,null,null,0]
["小計",null,null,null,null,null,null,{"$f":"SUM(H5:H15)","v":0},null,null,null,{"$f":"SUM(L5:L15)","v":0},null,null,null,{"$f":"SUM(P5:P15)","v":0},null,0]
["直接仮設工事【修景】"]
["水盛・遣方・墨出し","損料手間共","㎡",null,null,{"$f":"ROUNDDOWN($D18*E18,0)","v":0},null,{"$f":"ROUNDDOWN(G18*$R18,0)","v":0},null,{"$f":"ROUNDDOWN($D18*I18,0)","v":0},null,{"$f":"ROUNDDOWN(K18*$R18,0)","v":0},null,{"$f":"ROUNDDOWN($D18*M18,0)","v":0},null,{"$f":"ROUNDDOWN(O18*$R18,0)","v":0},null,{"$f":"IF(S18=\"\",D18,IF(S18>D18,D18,S18))","v":0}]
["養生シート","損料手間共","式",null,null,{"$f":"ROUNDDOWN($D19*E19,0)","v":0},null,{"$f":"ROUNDDOWN(G19*$R19,0)","v":0},null,{"$f":"ROUNDDOWN($D19*I19,0)","v":0},null,{"$f":"ROUNDDOWN(K19*$R19,0)","v":0},null,{"$f":"ROUNDDOWN($D19*M19,0)","v":0},null,{"$f":"ROUNDDOWN(O19*$R19,0)","v":0},null,0]
["整理清掃費","場内外残廃材搬出、手間共","㎡",null,null,0,null,0,null,0,null,0,null,0,null,0,null,0]
["仮設便所・水道・電気",{"$f":"B8","v":"町内トイレ使用"},"式",null,null,0,null,0,null,0,null,0,null,0,null,0,null,0]
["外部足場",{"$f":"B9","v":"北側建物"},"㎡",null,null,0,null,0,null,0,null,0,null,0,null,0,null,0]
["外部足場",{"$f":"B10","v":"盛替、材料小運搬"},"㎡",null,null,0,null,0,null,0,null,0,null,0,null,0,null,0]
["建屋揚屋",null,"㎡",null,null,0,null,0,null,0,null,0,null,0,null,0,null,0]
["素屋根","架け払い","㎡",null,null,0,null,0,null,0,null,0,null,0,null,0,null,0]
["仮囲い",{"$f":"B13","v":"安全対策、バリケード等"},"式",null,null,0,null,0,null,0,null,0,null,0,null,0,null,0]
[{"$f":"A15","v":"材料小運搬"},{"$f":"B15","v":"木工事等"},"式",null,null,0,null,0,null,0,null,0,null,null,null,null,null,0]
["小計",null,null,null,null,{"$f":"SUM(F5:F27)","v":0},null,{"$f":"SUM(H18:H27)","v":0},null,{"$f":"SUM(J5:J27)","v":0},null,{"$f":"SUM(L18:L27)","v":0},null,{"$f":"SUM(N5:N27)","v":0},null,{"$f":"SUM(P18:P27)","v":0},null,0]
["解体工事【修理】"]
["既設建物解体",null,"㎡",null,null,{"$f":"ROUNDDOWN(D30*E30,0)","v":0},null,{"$f":"ROUNDDOWN(G30*$R30,0)","v":0},null,{"$f":"ROUNDDOWN($D30*I30,0)","v":0},null,{"$f":"ROUNDDOWN(K30*$R30,0)","v":0},null,{"$f":"ROUNDDOWN(D30*M30,0)","v":0},null,{"$f":"ROUNDDOWN(O30*$R30,0)","v":0},null,{"$f":"IF(S30=\"\",D30,IF(S30>D30,D30,S30))","v":0}]
["既設建物解体",null,"式",null,null,0,null,0,null,0,null,0,null,0,null,0,null,0]
["屋根瓦降ろし","大屋根、下屋共","㎡",null,null,0,null,0,null,0,null,0,null,0,null,0,null,0]
["垂木・野地板撤去","大屋根","㎡",null,null,0,null,0,null,0,null,0,null,0,null,0,null,0]
["発生材処分費","野地板、葺き土処分","㎥",null,null,0,null,0,null,0,null,0,null,0,null,0,null,0]
["発生材運搬費","積み替え手間","式",null,null,0,null,0,null,0,null,0,null,0,null,0,null,0]
["大津壁及び中塗土撤去","北・東面外壁","㎡",null,null,0,null,0,null,0,null,0,null,0,null,null,null,0]
["既設雨樋撤去","処分共","式",null,null,0,null,0,null,0,null,0,null,0,null,null,null,0]
[null,null,"㎡",null,null,0,null,0,null,0,null,0,null,null,null,null,null,0]
["小計",null,null,null,null,null,null,{"$f":"SUM(H30:H38)","v":0},null,null,null,{"$f":"SUM(L30:L38)","v":0},null,null,null,{"$f":"SUM(P30:P38)","v":0},null,0]
["解体工事【修景】"]
["既設建物解体","全解体","㎡",null,null,{"$f":"ROUNDDOWN(D41*E41,0)","v":0},null,{"$f":"ROUNDDOWN(G41*$R41,0)","v":0},null,{"$f":"ROUNDDOWN($D41*I41,0)","v":0},null,{"$f":"ROUNDDOWN(K41*$R41,0)","v":0},null,{"$f":"ROUNDDOWN(D41*M41,0)","v":0},null,{"$f":"ROUNDDOWN(O41*$R41,0)","v":0},null,{"$f":"IF(S41=\"\",D41,IF(S41>D41,D41,S41))","v":0}]
["既設建物解体","半解体、処分共","㎡",null,null,0,null,0,null,0,null,0,null,0,null,0,null,0]
["屋根瓦降ろし",null,"㎡",null,null,0,null,0,null,0,null,0,null,0,null,0,null,0]
["土壁解体",null,"㎡",null,null,0,null,0,null,0,null,0,null,0,null,0,null,0]
["発生材処分費",null,"㎥",null,null,0,null,0,null,0,null,0,null,0,null,0,null,0]
["発生材運搬費",null,"㎡",null,null,0,null,0,null,0,null,0,null,0,null,0,null,0]
[null,null,"㎡",null,null,0,null,0,null,0,null,null,null,null,null,null,null,{"$f":"IF(S47=\"\",D47,IF(S47>D47,D47,S47))","v":0}]
[null,null,null,null,null,null,null,null,null,null,null,null,null,null,null,null,null,{"$f":"IF(S48=\"\",D48,IF(S48>D48,D48,S48))","v":0}]
[null,null,null,null,null,null,null,null,null,null,null,null,null,null,null,null,null,0]
[null,null,null,null,null,null,null,null,null,null,null,null,null,null,null,null,null,0]
[null,null,null,null,null,null,null,null,null,null,null,null,null,null,null,null,null,0]
[null,null,null,null,null,null,null,null,null,null,null,null,null,null,null,null,null,0]
["小計",null,null,null,null,{"$f":"SUM(F30:F52)","v":0},null,{"$f":"SUM(H41:H52)","v":0},null,{"$f":"SUM(J30:J52)","v":0},null,{"$f":"SUM(L41:L52)","v":0},null,{"$f":"SUM(N30:N52)","v":0},null,{"$f":"SUM(P41:P52)","v":0},null,0]
["基礎工事【修理】",null,null,null,null,null,null,null,null,null,null,null,null,null,null,null,null,0]
["礎石新設","北棟地下内部基礎　300×300","ヶ所",null,null,{"$f":"ROUNDDOWN(D55*E55,0)","v":0},null,{"$f":"ROUNDDOWN(G55*$R55,0)","v":0},null,{"$f":"ROUNDDOWN($D55*I55,0)","v":0},null,{"$f":"ROUNDDOWN(K55*$R55,0)","v":0},null,{"$f":"ROUNDDOWN(D55*M55,0)","v":0},null,{"$f":"ROUNDDOWN(O55*$R55,0)","v":0},null,{"$f":"IF(S55=\"\",D55,IF(S55>D55,D55,S55))","v":0}]
["敷居石取付","WD2、2本レール付","ヶ所",null,null,0,null,0,null,{"$f":"ROUNDDOWN($D56*I56,0)","v":0},null,{"$f":"ROUNDDOWN(K56*$R56,0)","v":0},null,{"$f":"ROUNDDOWN(D56*M56,0)","v":0},null,{"$f":"ROUNDDOWN(O56*$R56,0)","v":0},null,0]
["〃","下地調整、搬入取付","式",null,null,0,null,0,null,0,null,0,null,0,null,0,null,0]
["延石据え直し",null,"ヶ所",null,null,0,null,0,null,0,null,0,null,0,null,0,null,0]
["テストピース","ベース","セット",null,null,0,null,0,null,0,null,0,null,0,null,0,null,0]
["北棟南側布基礎H300","ﾍﾞｰｽt200、D13200ﾀﾃﾖｺ","ｍ",null,null,0,null,0,null,0,null,0,null,0,null,0,null,0]
["型枠工事",null,"㎡",null,null,0,null,0,null,0,null,0,null,0,null,0,null,0]
["鉄筋工事","加工組立とも","kg",null,null,0,null,0,null,0,null,0,null,0,null,0,null,0]
["残土処分、運搬費",null,"式",null,null,{"$f":"ROUNDDOWN(D63*E63,0)","v":0},null,{"$f":"ROUNDDOWN(G63*$R63,0)","v":0},null,{"$f":"ROUNDDOWN($D63*I63,0)","v":0},null,{"$f":"ROUNDDOWN(K63*$R63,0)","v":0},null,{"$f":"ROUNDDOWN(D63*M63,0)","v":0},null,{"$f":"ROUNDDOWN(O63*$R63,0)","v":0},null,{"$f":"IF(S63=\"\",D63,IF(S63>D63,D63,S63))","v":0}]
["既設内部取合い部分","かい物、ワイヤー、油圧ｼﾞｬｯｷ等","式",null,null,0,null,0,null,0,null,0,null,0,null,0,null,0]
["雑工事","仮固定金物、仮筋かい、矢","式",null,null,0,null,0,null,0,null,0,null,0,null,null,null,0,null,null,null,null,null,{"$f":"SUM(F55:F65)","v":0}]
["小計",null,null,null,null,null,null,{"$f":"SUM(H55:H65)","v":0},null,null,null,{"$f":"SUM(L55:L65)","v":0},null,null,null,{"$f":"SUM(P55:P65)","v":0},null,0]
["基礎工事【修景】",null,null,null,null,null,null,null,null,null,null,null,null,null,null,null,null,{"$f":"IF(S67=\"\",D67,IF(S67>D67,D67,S67))","v":0}]
["礎石新設",null,"ヶ所",null,null,{"$f":"ROUNDDOWN(D68*E68,0)","v":0},null,{"$f":"ROUNDDOWN(G68*$R68,0)","v":0},null,{"$f":"ROUNDDOWN($D68*I68,0)","v":0},null,{"$f":"ROUNDDOWN(K68*$R68,0)","v":0},null,{"$f":"ROUNDDOWN(D68*M68,0)","v":0},null,{"$f":"ROUNDDOWN(O68*$R68,0)","v":0},null,0]
["敷居石取付","WD3、2本レール付","ヶ所",null,null,0,null,0,null,{"$f":"ROUNDDOWN($D69*I69,0)","v":0},null,{"$f":"ROUNDDOWN(K69*$R69,0)","v":0},null,{"$f":"ROUNDDOWN(D69*M69,0)","v":0},null,{"$f":"ROUNDDOWN(O69*$R69,0)","v":0},null,0]
["〃","下地調整、搬入取付","式",null,null,0,null,0,null,0,null,0,null,0,null,0,null,0]
["延石据え直し",null,"ヶ所",null,null,0,null,0,null,0,null,0,null,0,null,0,null,0]
["防湿シート",null,"㎡",null,null,0,null,0,null,0,null,0,null,0,null,0,null,0]
["土間コンクリート","ＦＣ１８","㎥",null,null,0,null,0,null,0,null,0,null,0,null,0,null,0]
["型枠工事",null,"㎡",null,null,0,null,0,null,0,null,0,null,0,null,0,null,0]
["鉄筋工事","加工組立とも","kg",null,null,0,null,0,null,0,null,0,null,0,null,0,null,0]
["基礎コンクリート","FC２１","㎥",null,null,0,null,0,null,0,null,0,null,0,null,0,null,0]
["砕石、防湿ﾌｨﾙﾑ","捨コンt50","㎡",null,null,0,null,0,null,0,null,0,null,0,null,0,null,0]
["小計",null,null,null,null,{"$f":"SUM(F55:F77)","v":0},null,{"$f":"SUM(H68:H77)","v":0},null,{"$f":"SUM(J55:J77)","v":0},null,{"$f":"SUM(L68:L77)","v":0},null,{"$f":"SUM(N55:N77)","v":0},null,{"$f":"SUM(P68:P77)","v":0},null,{"$f":"IF(S78=\"\",D78,IF(S78>D78,D78,S78))","v":0}]
["木工事【修理】",null,null,null,null,null,null,null,null,null,null,null,null,null,null,null,null,0]
["構造材",null,null,null,null,null,null,null,null,null,null,null,null,null,null,null,null,{"$f":"IF(S80=\"\",D80,IF(S80>D80,D80,S80))","v":0}]
["材料費",null,"式",null,null,{"$f":"'木材明細(当初修理）'!$U$60","v":0},null,{"$f":"'木材明細(当初修理）'!$V$60","v":0},null,{"$f":"'木材明細(変更修理）'!$U$60","v":0},null,{"$f":"'木材明細(変更修理）'!$V$60","v":0},null,{"$f":"'木材明細(実績修理）'!$U$60","v":0},null,{"$f":"'木材明細(実績修理）'!$V$60","v":0},"木材明細参照",0]
["大工手間",null,"式",null,null,{"$f":"'木材明細(当初修理）'!$J$169","v":0},null,{"$f":"'木材明細(当初修理）'!$L$169","v":0},null,{"$f":"'木材明細(変更修理）'!$J$169","v":0},null,{"$f":"'木材明細(変更修理）'!$L$169","v":0},null,{"$f":"'木材明細(実績修理）'!$J$169","v":0},null,{"$f":"'木材明細(実績修理）'!$L$169","v":0},"木材明細参照",0]
["手元手間",null,"式",null,null,{"$f":"'木材明細(当初修理）'!$J$170","v":0},null,{"$f":"'木材明細(当初修理）'!$L$170","v":0},null,{"$f":"'木材明細(変更修理）'!$J$170","v":0},null,{"$f":"'木材明細(変更修理）'!$L$170","v":0},null,{"$f":"'木材明細(実績修理）'!$J$170","v":0},null,{"$f":"'木材明細(実績修理）'!$L$170","v":0},"木材明細参照",0,null,null,null,"全体","補助","対象外"]
["建起こし",null,"㎡",null,null,{"$f":"ROUNDDOWN(D84*E84,0)","v":0},null,{"$f":"ROUNDDOWN(G84*$R84,0)","v":0},null,null,null,null,null,null,null,null,null,0,null,null,null,{"$f":"F82+F83+F87+F88","v":0},{"$f":"H82+H83+H87+H88","v":0},{"$f":"V84-W84","v":0}]
["造作材",null,null,null,null,null,null,null,null,null,null,null,null,null,null,null,null,0]
["材料費","造作材","式",null,null,{"$f":"'木材明細(当初修理）'!$U$166","v":0},null,{"$f":"'木材明細(当初修理）'!$V$166","v":0},null,{"$f":"'木材明細(変更修理）'!$U$166","v":0},null,{"$f":"'木材明細(変更修理）'!$V$166","v":0},null,{"$f":"'木材明細(実績修理）'!$U$166","v":0},null,{"$f":"'木材明細(実績修理）'!$V$166","v":0},"木材明細参照",0]
["大工手間","造作材","式",null,null,{"$f":"'木材明細(当初修理）'!$J$171","v":0},null,{"$f":"'木材明細(当初修理）'!$L$171","v":0},null,{"$f":"'木材明細(変更修理）'!$J$171","v":0},null,{"$f":"'木材明細(変更修理）'!$L$171","v":0},null,{"$f":"'木材明細(実績修理）'!$J$171","v":0},null,{"$f":"'木材明細(実績修理）'!$L$171","v":0},"木材明細参照",0]
["手元手間","造作材","式",null,null,{"$f":"'木材明細(当初修理）'!$J$172","v":0},null,{"$f":"'木材明細(当初修理）'!$L$172","v":0},null,{"$f":"'木材明細(変更修理）'!$J$172","v":0},null,{"$f":"'木材明細(変更修理）'!$L$172","v":0},null,{"$f":"'木材明細(実績修理）'!$J$172","v":0},null,{"$f":"'木材明細(実績修理）'!$L$172","v":0},"木材明細参照",0]
["釘・金物",null,"㎡",null,null,{"$f":"ROUNDDOWN(D89*E89,0)","v":0},null,{"$f":"ROUNDDOWN(G89*$R89,0)","v":0},null,null,null,null,null,null,{"$f":"IF(N81+N86=0,0,ROUNDDOWN((P81+P86)/(N81+N86)*M89,1))","v":0},null,null,0,null,null,null,"Ⅰ～Ⅳ　材のみ"]
[null,null,null,null,null,0,null,0,null,null,null,null,null,null,null,null,null,{"$f":"IF(S90=\"\",D90,IF(S90>D90,D90,S90))","v":0},null,null,null,"全体","補助","対象外"]
["金物、ビス等",null,"㎡",null,null,0,null,0,null,{"$f":"ROUNDDOWN(D91*I91,0)","v":0},null,{"$f":"ROUNDDOWN(K91*$R91,0)","v":0},null,null,0,null,null,{"$f":"IF(S91=\"\",D91,IF(S91>D91,D91,S91))","v":0},null,null,null,{"$f":"SUM(F91:F102)","v":0},{"$f":"SUM(H91:H102)","v":0},{"$f":"V91-W91","v":0}]
[null,null,null,null,null,0,null,0,null,{"$f":"ROUNDDOWN(D92*I92,0)","v":0},null,0,null,null,0,null,null,0]
[null,null,"㎡",null,null,0,null,0,null,0,null,0,null,null,0,null,null,{"$f":"IF(S93=\"\",D93,IF(S93>D93,D93,S93))","v":0}]
[null,null,null,null,null,0,null,0,null,0,null,0,null,null,0,null,null,0]
[null,null,"㎡",null,null,0,null,0,null,0,null,0,null,null,0,null,null,0]
[null,null,null,null,null,0,null,0,null,0,null,0,null,null,0,null,null,0]
[null,null,"㎡",null,null,0,null,0,null,0,null,0,null,null,0,null,null,{"$f":"IF(S97=\"\",D97,IF(S97>D97,D97,S97))","v":0}]
[null,null,"㎡",null,null,0,null,0,null,0,null,0,null,null,0,null,null,0]
[null,null,"本",null,null,0,null,0,null,0,null,0,null,null,null,null,null,0]
[null,null,"本",null,null,0,null,0,null,0,null,0,null,null,0,null,null,0]
[null,null,"式",null,null,{"$f":"ROUNDDOWN(D101*E101,0)","v":0},null,0,null,0,null,0,null,null,0,null,null,{"$f":"IF(S101=\"\",D101,IF(S101>D101,D101,S101))","v":0}]
[null,null,"枚",null,null,0,null,0,null,0,null,0,null,null,{"$f":"IF(N94+N99=0,0,ROUNDDOWN((P94+P99)/(N94+N99)*M102,1))","v":0},null,null,0]
["小計",null,null,null,null,null,null,{"$f":"SUM(H81:H102)","v":0},null,null,null,{"$f":"SUM(L81:L102)","v":0},null,null,null,{"$f":"SUM(P81:P89)","v":0},null,{"$f":"IF(S103=\"\",D103,IF(S103>D103,D103,S103))","v":0}]
[]
["木工事【修景】",null,null,null,null,null,null,null,null,null,null,null,null,null,null,null,null,{"$f":"IF(S105=\"\",D105,IF(S105>D105,D105,S105))","v":0}]
["構造材",null,null,null,null,null,null,null,null,null,null,null,null,null,null,null,null,0]
["材料費",null,"式",null,null,{"$f":"'木材明細(当初修景）'!$U$60","v":0},null,{"$f":"'木材明細(当初修景）'!$V$60","v":0},null,{"$f":"'木材明細(変更修景）'!$U$60","v":0},null,{"$f":"'木材明細(変更修景）'!$V$60","v":0},null,{"$f":"'木材明細(実績修景）'!$U$60","v":0},null,{"$f":"'木材明細(実績修景）'!$V$60","v":0},"木材明細参照",0]
["大工手間",null,"式",null,null,{"$f":"'木材明細(当初修景）'!$J$169","v":0},null,{"$f":"'木材明細(当初修景）'!$L$169","v":0},null,{"$f":"'木材明細(変更修景）'!$J$169","v":0},null,{"$f":"'木材明細(変更修景）'!$L$169","v":0},null,{"$f":"'木材明細(実績修景）'!$J$169","v":0},null,{"$f":"'木材明細(実績修景）'!$L$169","v":0},"木材明細参照",0]
["手元手間",null,"式",null,null,{"$f":"'木材明細(当初修景）'!$J$170","v":0},null,{"$f":"'木材明細(当初修景）'!$L$170","v":0},null,{"$f":"'木材明細(変更修景）'!$J$170","v":0},null,{"$f":"'木材明細(変更修景）'!$L$170","v":0},null,{"$f":"'木材明細(実績修景）'!$J$170","v":0},null,{"$f":"'木材明細(実績修景）'!$L$170","v":0},"木材明細参照",0]
["建て起こし",null,"㎡",null,null,{"$f":"ROUNDDOWN(D110*E110,0)","v":0},null,{"$f":"ROUNDDOWN(G110*$R110,0)","v":0},null,{"$f":"ROUNDDOWN($D110*I110,0)","v":0},null,{"$f":"ROUNDDOWN(K110*$R110,0)","v":0},null,{"$f":"ROUNDDOWN(D110*M110,0)","v":0},null,{"$f":"ROUNDDOWN(O110*$R110,0)","v":0},null,0]
["造作材",null,null,null,null,null,null,null,null,null,null,null,null,null,null,null,null,0]
["材料費",null,"式",null,null,{"$f":"'木材明細(当初修景）'!$U$166","v":0},null,{"$f":"'木材明細(当初修景）'!$V$166","v":0},null,{"$f":"'木材明細(変更修景）'!$U$166","v":0},null,{"$f":"'木材明細(変更修景）'!$V$166","v":0},null,{"$f":"'木材明細(実績修景）'!$U$166","v":0},null,{"$f":"'木材明細(実績修景）'!$V$166","v":0},"木材明細参照",0]
["大工手間",null,"式",null,null,{"$f":"'木材明細(当初修景）'!$J$171","v":0},null,{"$f":"'木材明細(当初修景）'!$L$171","v":0},null,{"$f":"'木材明細(変更修景）'!$J$171","v":0},null,{"$f":"'木材明細(変更修景）'!$L$171","v":0},null,{"$f":"'木材明細(実績修景）'!$J$171","v":0},null,{"$f":"'木材明細(実績修景）'!$L$171","v":0},"木材明細参照",0]
["手元手間",null,"式",null,null,{"$f":"'木材明細(当初修景）'!$J$172","v":0},null,{"$f":"'木材明細(当初修景）'!$L$172","v":0},null,{"$f":"'木材明細(変更修景）'!$J$172","v":0},null,{"$f":"'木材明細(変更修景）'!$L$172","v":0},null,{"$f":"'木材明細(実績修景）'!$J$172","v":0},null,{"$f":"'木材明細(実績修景）'!$L$172","v":0},"木材明細参照",0]
["釘・金物",null,"㎡",null,null,{"$f":"ROUNDDOWN(D115*E115,0)","v":0},null,{"$f":"ROUNDDOWN(G115*$R115,0)","v":0},null,{"$f":"ROUNDDOWN($D115*I115,0)","v":0},null,{"$f":"ROUNDDOWN(K115*$R115,0)","v":0},null,{"$f":"ROUNDDOWN(D115*M115,0)","v":0},null,{"$f":"ROUNDDOWN(O115*$R115,0)","v":0},null,0]
[null,null,"㎡",null,null,0,null,0,null,null,null,null,null,null,null,null,null,0]
["金物、ビス等",null,"㎡",null,null,0,null,0,null,{"$f":"ROUNDDOWN(D117*I117,0)","v":0},null,{"$f":"ROUNDDOWN(K117*$R117,0)","v":0},null,null,null,null,null,0]
[null,null,"㎡",null,null,0,null,0,null,null,null,null,null,null,null,null,null,0]
[null,null,"㎡",null,null,0,null,0,null,null,null,null,null,null,null,null,null,0]
[null,null,"㎡",null,null,0,null,0,null,null,null,null,null,null,null,null,null,0]
[null,null,"㎡",null,null,0,null,0,null,null,null,null,null,null,null,null,null,{"$f":"IF(S121=\"\",D121,IF(S121>D121,D121,S121))","v":0}]
[null,null,"㎡",null,null,0,null,0,null,null,null,null,null,null,null,null,null,0]
[null,null,"㎡",null,null,0,null,0,null,null,null,null,null,null,null,null,null,0]
[null,null,"㎡",null,null,0,null,0,null,null,null,null,null,null,null,null,null,0]
[null,null,"㎡",null,null,0,null,0,null,null,null,null,null,null,null,null,null,0]
[null,null,"㎡",null,null,0,null,0,null,null,null,null,null,null,null,null,null,0]
[null,null,"㎡",null,null,0,null,0,null,null,null,null,null,null,null,null,null,0]
["小計",null,null,null,null,{"$f":"SUM(F81:F127)","v":0},null,{"$f":"SUM(H107:H127)","v":0},null,{"$f":"SUM(J81:J127)","v":0},null,{"$f":"SUM(L107:L127)","v":0},null,{"$f":"SUM(N81:N127)","v":0},null,{"$f":"SUM(P107:P115)","v":0},null,{"$f":"IF(S128=\"\",D128,IF(S128>D128,D128,S128))","v":0}]
["屋根工事【修理】"]
["既設いぶし瓦選別",null,"㎡",null,null,{"$f":"ROUNDDOWN(D130*E130,0)","v":0},null,{"$f":"ROUNDDOWN(G130*$R130,0)","v":0},null,{"$f":"ROUNDDOWN($D130*I130,0)","v":0},null,{"$f":"ROUNDDOWN(K130*$R130,0)","v":0},null,{"$f":"ROUNDDOWN(D130*M130,0)","v":0},null,{"$f":"ROUNDDOWN(O130*$R130,0)","v":0},null,{"$f":"IF(S130=\"\",D130,IF(S130>D130,D130,S130))","v":0}]
["既設いぶし瓦再利用","葺き手間、洗浄とも","㎡",null,null,0,null,0,null,{"$f":"ROUNDDOWN($D131*I131,0)","v":0},null,{"$f":"ROUNDDOWN(K131*$R131,0)","v":0},null,{"$f":"ROUNDDOWN(D131*M131,0)","v":0},null,{"$f":"ROUNDDOWN(O131*$R131,0)","v":0},null,0]
["いぶし瓦葺き　53A","材工共(丸張若葉7寸、蛇の目)","㎡",null,null,0,null,0,null,0,null,0,null,0,null,0,null,0]
["〃",null,"式",null,null,0,null,0,null,0,null,0,null,0,null,0,null,0]
["いぶし瓦葺き　64判","材工共(蛇の目)、特注","㎡",null,null,0,null,0,null,0,null,0,null,0,null,0,null,0]
["材料運搬費","積降、荷揚共","式",null,null,0,null,0,null,0,null,0,null,0,null,0,null,0]
["軒先","蛇の目","ｍ",null,null,0,null,0,null,0,null,0,null,0,null,0,null,0]
["袖部",null,"ｍ",null,null,0,null,0,null,0,null,0,null,0,null,0,null,0]
["漆喰",null,"式",null,null,0,null,0,null,0,null,0,null,{"$f":"ROUNDDOWN(L138*M138,0)","v":0},null,0,null,0]
["防水","アスファルトルーフィング35kg","本",null,null,0,null,0,null,0,null,0,null,{"$f":"ROUNDDOWN(L139*M139,0)","v":0},null,0,null,0]
["小計",null,null,null,null,null,null,{"$f":"SUM(H130:H139)","v":0},null,null,null,{"$f":"SUM(L130:L139)","v":0},null,null,null,{"$f":"SUM(P130:P139)","v":0},null,{"$f":"IF(S140=\"\",D140,IF(S140>D140,D140,S140))","v":0}]
[]
["屋根工事【修景】"]
["既設いぶし瓦選別",null,"㎡",null,null,{"$f":"ROUNDDOWN(D143*E143,0)","v":0},null,{"$f":"ROUNDDOWN(G143*$R143,0)","v":0},null,{"$f":"ROUNDDOWN($D143*I143,0)","v":0},null,{"$f":"ROUNDDOWN(K143*$R143,0)","v":0},null,{"$f":"ROUNDDOWN(D143*M143,0)","v":0},null,{"$f":"ROUNDDOWN(O143*$R143,0)","v":0},null,{"$f":"IF(S143=\"\",D143,IF(S143>D143,D143,S143))","v":0}]
["既設いぶし瓦再利用","葺き手間、洗浄とも","㎡",null,null,0,null,0,null,{"$f":"ROUNDDOWN($D144*I144,0)","v":0},null,{"$f":"ROUNDDOWN(K144*$R144,0)","v":0},null,{"$f":"ROUNDDOWN(D144*M144,0)","v":0},null,{"$f":"ROUNDDOWN(O144*$R144,0)","v":0},null,0]
["いぶし瓦葺き","桟瓦、切妻、桟木とも","㎡",null,null,0,null,0,null,0,null,0,null,0,null,0,null,0]
["棟瓦","３段","ｍ",null,null,0,null,0,null,0,null,0,null,0,null,0,null,0]
["鬼瓦","又ギ鬼","ヶ",null,null,0,null,0,null,0,null,0,null,0,null,0,null,0]
["土居のし積み",null,"ｍ",null,null,0,null,0,null,0,null,0,null,0,null,0,null,0]
["軒先","蛇の目","ｍ",null,null,0,null,0,null,0,null,0,null,0,null,0,null,0]
["袖部",null,"ｍ",null,null,0,null,0,null,0,null,0,null,0,null,0,null,0]
["漆喰",null,"式",null,null,0,null,0,null,0,null,0,null,{"$f":"ROUNDDOWN(L151*M151,0)","v":0},null,0,null,0]
["防水","アスファルトルーフィング35kg","㎡",null,null,0,null,0,null,0,null,0,null,{"$f":"ROUNDDOWN(L152*M152,0)","v":0},null,0,null,0]
["小計",null,null,null,null,{"$f":"SUM(F130:F152)","v":0},null,{"$f":"SUM(H143:H152)","v":0},null,{"$f":"SUM(J130:J152)","v":0},null,{"$f":"SUM(L143:L152)","v":0},null,{"$f":"SUM(N130:N152)","v":0},null,{"$f":"SUM(P143:P152)","v":0},null,{"$f":"IF(S153=\"\",D153,IF(S153>D153,D153,S153))","v":0}]
["板金工事【修理】"]
["軒樋","塩ビ半丸　120、金物共","m",null,null,{"$f":"ROUNDDOWN(D155*E155,0)","v":0},null,{"$f":"ROUNDDOWN(G155*$R155,0)","v":0},null,{"$f":"ROUNDDOWN($D155*I155,0)","v":0},null,{"$f":"ROUNDDOWN(K155*$R155,0)","v":0},null,{"$f":"ROUNDDOWN(D155*M155,0)","v":0},null,{"$f":"ROUNDDOWN(O155*$R155,0)","v":0},null,{"$f":"IF(S155=\"\",D155,IF(S155>D155,D155,S155))","v":0}]
["竪樋","75φ、金物共","m",null,null,0,null,0,null,{"$f":"ROUNDDOWN($D156*I156,0)","v":0},null,{"$f":"ROUNDDOWN(K156*$R156,0)","v":0},null,{"$f":"ROUNDDOWN(D156*M156,0)","v":0},null,{"$f":"ROUNDDOWN(O156*$R156,0)","v":0},null,0]
["板金水切り",null,"m",null,null,0,null,0,null,0,null,0,null,0,null,0,null,0]
["庇金属板平葺き",null,"㎡",null,null,0,null,0,null,0,null,0,null,0,null,0,null,0]
["金属板貼り",null,"㎡",null,null,0,null,0,null,0,null,0,null,0,null,0,null,0]
["金属板貼り",null,"㎡",null,null,0,null,0,null,0,null,0,null,0,null,0,null,0]
["金属板貼り",null,"式",null,null,0,null,0,null,0,null,0,null,0,null,0,null,0]
["のし水切り",null,"式",null,null,0,null,0,null,0,null,0,null,0,null,0,null,0]
["雑消耗品",null,"式",null,null,0,null,0,null,0,null,0,null,0,null,0,null,0]
["集水器","塩ビ製","基",null,null,0,null,0,null,0,null,0,null,0,null,0,null,0]
["小計",null,null,null,null,null,null,{"$f":"SUM(H155:H164)","v":0},null,null,null,{"$f":"SUM(L155:L164)","v":0},null,null,null,{"$f":"SUM(P155:P164)","v":0},null,{"$f":"IF(S165=\"\",D165,IF(S165>D165,D165,S165))","v":0}]
[]
["板金工事【修景】"]
["軒樋","銅製 t=0.35加工　φ120、金物とも","m",null,null,{"$f":"ROUNDDOWN(D168*E168,0)","v":0},null,{"$f":"ROUNDDOWN(G168*$R168,0)","v":0},null,{"$f":"ROUNDDOWN($D168*I168,0)","v":0},null,{"$f":"ROUNDDOWN(K168*$R168,0)","v":0},null,{"$f":"ROUNDDOWN(D168*M168,0)","v":0},null,{"$f":"ROUNDDOWN(O168*$R168,0)","v":0},null,{"$f":"IF(S168=\"\",D168,IF(S168>D168,D168,S168))","v":0}]
["竪樋","銅製 t=0.35加工　φ60、金物とも","m",null,null,0,null,0,null,{"$f":"ROUNDDOWN($D169*I169,0)","v":0},null,0,null,{"$f":"ROUNDDOWN(D169*M169,0)","v":0},null,0,null,0]
["鮟鱇","銅製 t=0.35","基",null,null,0,null,0,null,0,null,0,null,0,null,0,null,0]
["庇金属板平葺き",null,"㎡",null,null,0,null,0,null,0,null,0,null,0,null,0,null,0]
["金属板貼り","平面、ガルバニューム鋼板","㎡",null,null,0,null,0,null,0,null,0,null,0,null,0,null,0]
["金属板貼り","コーナー、ガルバニューム鋼板","m",null,null,0,null,0,null,0,null,0,null,0,null,0,null,0]
["金属板貼り","水切り、ガルバニューム鋼板","m",null,null,0,null,0,null,0,null,0,null,0,null,0,null,0]
["軒樋","塩ビ製半丸、金物とも","m",null,null,0,null,0,null,0,null,0,null,0,null,0,null,0]
["竪樋","塩ビ製７５φ、金物とも","m",null,null,0,null,0,null,0,null,0,null,0,null,0,null,0]
["集水器",null,"基",null,null,0,null,0,null,0,null,0,null,0,null,0,null,0]
["小計",null,null,null,null,{"$f":"SUM(F155:F177)","v":0},null,{"$f":"SUM(H168:H177)","v":0},null,{"$f":"SUM(J155:J177)","v":0},null,{"$f":"SUM(L168:L177)","v":0},null,{"$f":"SUM(N155:N177)","v":0},null,{"$f":"SUM(P168:P177)","v":0},null,{"$f":"IF(S178=\"\",D178,IF(S178>D178,D178,S178))","v":0}]
["左官工事【修理】"]
["漆喰塗り","軒先、すずめ口、メンド","m",null,null,{"$f":"ROUNDDOWN(D180*E180,0)","v":0},null,{"$f":"ROUNDDOWN(G180*$R180,0)","v":0},null,{"$f":"ROUNDDOWN($D180*I180,0)","v":0},null,{"$f":"ROUNDDOWN(K180*$R180,0)","v":0},null,{"$f":"ROUNDDOWN(D180*M180,0)","v":0},null,{"$f":"ROUNDDOWN(O180*$R180,0)","v":0},null,{"$f":"IF(S180=\"\",D180,IF(S180>D180,D180,S180))","v":0}]
["漆喰塗り","のし瓦巻き上げ","m",null,null,0,null,0,null,0,null,0,null,0,null,{"$f":"Z181*Y181","v":0},null,0]
["漆喰塗り","隅棟瓦メンド","m",null,null,0,null,0,null,0,null,0,null,0,null,0,null,0]
["北・東面既設壁補修","中塗土及び大津壁","㎡",null,null,0,null,0,null,0,null,0,null,0,null,0,null,0]
["材料搬入、小運搬",null,"式",null,null,0,null,0,null,0,null,0,null,0,null,0,null,0]
["ちょぼ漆喰","東妻面","m",null,null,0,null,0,null,0,null,0,null,0,null,0,null,0]
["北棟トイレ土間仕上",null,"㎡",null,null,0,null,0,null,0,null,0,null,0,null,0,null,0]
["養生",null,"式",null,null,0,null,0,null,0,null,0,null,0,null,0,null,0]
["トイレタイル仕上",null,"㎡",null,null,0,null,0,null,0,null,0,null,0,null,0,null,0]
["地階入口柱石固定",null,"か所",null,null,0,null,0,null,0,null,0,null,0,null,0,null,0]
["土壁塗り(荒壁)",null,"㎡",null,null,0,null,0,null,0,null,0,null,0,null,null,null,0]
["小計",null,null,null,null,null,null,{"$f":"SUM(H180:H190)","v":0},null,null,null,{"$f":"SUM(L180:L190)","v":0},null,null,null,{"$f":"SUM(P180:P190)","v":0},null,0]
[]
["左官工事【修景】"]
["荒壁付け","小舞とも","㎡",null,null,{"$f":"ROUNDDOWN(D194*E194,0)","v":0},null,{"$f":"ROUNDDOWN(G194*$R194,0)","v":0},null,{"$f":"ROUNDDOWN($D194*I194,0)","v":0},null,{"$f":"ROUNDDOWN(K194*$R194,0)","v":0},null,{"$f":"ROUNDDOWN(D194*M194,0)","v":0},null,{"$f":"ROUNDDOWN(O194*$R194,0)","v":0},null,{"$f":"IF(S194=\"\",D194,IF(S194>D194,D194,S194))","v":0}]
["荒壁部分補修",null,"式",null,null,{"$f":"ROUNDDOWN(D195*E195,0)","v":0},null,{"$f":"ROUNDDOWN(G195*$R195,0)","v":0},null,{"$f":"ROUNDDOWN($D195*I195,0)","v":0},null,{"$f":"ROUNDDOWN(K195*$R195,0)","v":0},null,{"$f":"ROUNDDOWN(D195*M195,0)","v":0},null,{"$f":"Z195*Y195","v":0},null,{"$f":"IF(S195=\"\",D195,IF(S195>D195,D195,S195))","v":0}]
["中塗",null,"㎡",null,null,{"$f":"ROUNDDOWN(D196*E196,0)","v":0},null,{"$f":"ROUNDDOWN(G196*$R196,0)","v":0},null,{"$f":"ROUNDDOWN($D196*I196,0)","v":0},null,{"$f":"ROUNDDOWN(K196*$R196,0)","v":0},null,{"$f":"ROUNDDOWN(D196*M196,0)","v":0},null,{"$f":"Z196*Y196","v":0},null,{"$f":"IF(S196=\"\",D196,IF(S196>D196,D196,S196))","v":0}]
["大津壁仕上げ塗り",null,"㎡",null,null,{"$f":"ROUNDDOWN(D197*E197,0)","v":0},null,{"$f":"ROUNDDOWN(G197*$R197,0)","v":0},null,{"$f":"ROUNDDOWN($D197*I197,0)","v":0},null,{"$f":"ROUNDDOWN(K197*$R197,0)","v":0},null,{"$f":"ROUNDDOWN(D197*M197,0)","v":0},null,{"$f":"Z197*Y197","v":0},null,{"$f":"IF(S197=\"\",D197,IF(S197>D197,D197,S197))","v":0}]
["土間仕上げ","三和土","㎡",null,null,{"$f":"ROUNDDOWN(D198*E198,0)","v":0},null,{"$f":"ROUNDDOWN(G198*$R198,0)","v":0},null,{"$f":"ROUNDDOWN($D198*I198,0)","v":0},null,{"$f":"ROUNDDOWN(K198*$R198,0)","v":0},null,{"$f":"ROUNDDOWN(D198*M198,0)","v":0},null,{"$f":"Z198*Y198","v":0},null,{"$f":"IF(S198=\"\",D198,IF(S198>D198,D198,S198))","v":0}]
["外壁漆喰仕上",null,"㎡",null,null,{"$f":"ROUNDDOWN(D199*E199,0)","v":0},null,{"$f":"ROUNDDOWN(G199*$R199,0)","v":0},null,{"$f":"ROUNDDOWN($D199*I199,0)","v":0},null,{"$f":"ROUNDDOWN(K199*$R199,0)","v":0},null,{"$f":"ROUNDDOWN(D199*M199,0)","v":0},null,{"$f":"Z199*Y199","v":0},null,{"$f":"IF(S199=\"\",D199,IF(S199>D199,D199,S199))","v":0}]
["漆喰塗り","北棟東面、下塗、中塗、仕上","㎡",null,null,0,null,0,null,0,null,0,null,0,null,0,null,0]
["屋根漆喰","棟","m",null,null,0,null,0,null,0,null,0,null,0,null,0,null,0]
["屋根漆喰","鬼、のし止め","ヶ所",null,null,0,null,0,null,0,null,0,null,0,null,0,null,0]
["小計",null,null,null,null,{"$f":"SUM(F180:F202)","v":0},null,{"$f":"SUM(H194:H202)","v":0},null,{"$f":"SUM(J180:J202)","v":0},null,{"$f":"SUM(L194:L202)","v":0},null,{"$f":"SUM(N180:N202)","v":0},null,{"$f":"SUM(P194:P202)","v":0},null,{"$f":"IF(S203=\"\",D203,IF(S203>D203,D203,S203))","v":0}]
["建具工事【修理】"]
["WD1　北棟北面建具新設","ガラス框戸、網戸なし","本",null,null,{"$f":"ROUNDDOWN(D205*E205,0)","v":0},null,{"$f":"ROUNDDOWN(G205*$R205,0)","v":0},null,{"$f":"ROUNDDOWN($D205*I205,0)","v":0},null,{"$f":"ROUNDDOWN(K205*$R205,0)","v":0},null,{"$f":"ROUNDDOWN(D205*M205,0)","v":0},null,{"$f":"ROUNDDOWN(O205*$R205,0)","v":0},null,{"$f":"IF(S205=\"\",D205,IF(S205>D205,D205,S205))","v":0}]
["RWD1　北棟北面雨戸3本新設","木製雨戸","本",null,null,{"$f":"ROUNDDOWN(D206*E206,0)","v":0},null,{"$f":"ROUNDDOWN(G206*$R206,0)","v":0},null,{"$f":"ROUNDDOWN($D206*I206,0)","v":0},null,{"$f":"ROUNDDOWN(K206*$R206,0)","v":0},null,{"$f":"ROUNDDOWN(D206*M206,0)","v":0},null,{"$f":"Z206*Y206","v":0},null,0]
["WD2　地階東面入口建具新設","ガラス框戸、網戸なし","本",null,null,{"$f":"ROUNDDOWN(D207*E207,0)","v":0},null,{"$f":"ROUNDDOWN(G207*$R207,0)","v":0},null,{"$f":"ROUNDDOWN($D207*I207,0)","v":0},null,{"$f":"ROUNDDOWN(K207*$R207,0)","v":0},null,{"$f":"ROUNDDOWN(D207*M207,0)","v":0},null,{"$f":"Z207*Y207","v":0},null,0]
["WD4　地階南側建具新設","ガラス框戸、網戸なし","本",null,null,{"$f":"ROUNDDOWN(D208*E208,0)","v":0},null,{"$f":"ROUNDDOWN(G208*$R208,0)","v":0},null,{"$f":"ROUNDDOWN($D208*I208,0)","v":0},null,{"$f":"ROUNDDOWN(K208*$R208,0)","v":0},null,{"$f":"ROUNDDOWN(D208*M208,0)","v":0},null,{"$f":"Z208*Y208","v":0},null,0]
["WD5.6　内部建具　既設流用","建付調整費","本",null,null,0,null,0,null,0,null,0,null,{"$f":"ROUNDDOWN(D209*M209,0)","v":0},null,{"$f":"Z209*Y209","v":0},null,0]
["WW1　1階板の間南建具新設","ガラス框戸、網戸なし","本",null,null,0,null,0,null,0,null,0,null,{"$f":"ROUNDDOWN(D210*M210,0)","v":0},null,{"$f":"Z210*Y210","v":0},null,0,null,null,null,null,null,null,null,{"$f":"SUM(F205:F214)","v":0}]
["WW2　1階板の間東建具新設","ガラス框戸、網戸なし","本",null,null,0,null,0,null,0,null,0,null,0,null,0,null,0,null,null,null,null,null,null,null,{"$f":"SUM(F215:F215)","v":0}]
["WW3　1階便所建具新設","ガラス框戸、網戸なし","本",null,null,0,null,0,null,0,null,0,null,0,null,0,null,0,null,null,null,null,null,null,null,{"$f":"SUM(F216:F217)","v":0}]
[null,null,"式",null,null,0,null,0,null,0,null,0,null,0,null,0,null,0,null,null,null,null,null,null,null,{"$f":"SUM(F218:F219)","v":0}]
["RWW1　雨戸","框：桧、鏡板：杉","本",null,null,0,null,0,null,0,null,0,null,0,null,0,null,0]
["材料代及び金物費","桧材同等","式",null,null,0,null,0,null,0,null,0,null,0,null,0,null,0]
[null,null,null,null,null,0,null,0,null,0,null,0,null,0,null,0,null,0]
[null,null,null,null,null,0,null,0,null,0,null,0,null,0,null,0,null,0]
[null,null,null,null,null,{"$f":"ROUNDDOWN(D218*E218,0)","v":0},null,{"$f":"ROUNDDOWN(G218*$R218,0)","v":0},null,0,null,0,null,0,null,0,null,{"$f":"IF(S218=\"\",D218,IF(S218>D218,D218,S218))","v":0}]
[null,null,null,null,null,{"$f":"ROUNDDOWN(D219*E219,0)","v":0},null,{"$f":"ROUNDDOWN(G219*$R219,0)","v":0},null,0,null,0,null,{"$f":"ROUNDDOWN(D219*M219,0)","v":0},null,{"$f":"Z219*Y219","v":0},null,0]
["小計",null,null,null,null,null,null,{"$f":"SUM(H205:H219)","v":0},null,null,null,{"$f":"SUM(L205:L219)","v":0},null,null,null,{"$f":"SUM(P205:P219)","v":0},null,{"$f":"IF(S220=\"\",D220,IF(S220>D220,D220,S220))","v":0}]
["建具工事【修景】"]
["WD3　地階中庭入口建具新設","ガラス框戸、網戸なし","本",null,null,{"$f":"ROUNDDOWN(D222*E222,0)","v":0},null,{"$f":"ROUNDDOWN(G222*$R222,0)","v":0},null,{"$f":"ROUNDDOWN($D222*I222,0)","v":0},null,{"$f":"ROUNDDOWN(K222*$R222,0)","v":0},null,{"$f":"ROUNDDOWN(D222*M222,0)","v":0},null,{"$f":"ROUNDDOWN(O222*$R222,0)","v":0},null,{"$f":"IF(S222=\"\",D222,IF(S222>D222,D222,S222))","v":0}]
["RWD2　1階渡り廊下東面","雨戸","本",null,null,0,null,0,null,0,null,0,null,0,null,{"$f":"Z223*Y223","v":0},null,{"$f":"IF(S223=\"\",D223,IF(S223>D223,D223,S223))","v":0}]
["WW4　建具ガラス破損部取替",null,"式",null,null,0,null,0,null,0,null,0,null,0,null,{"$f":"Z224*Y224","v":0},null,{"$f":"IF(S224=\"\",D224,IF(S224>D224,D224,S224))","v":0}]
["材料代及び金物費","桧材同等","式",null,null,0,null,0,null,0,null,0,null,0,null,{"$f":"Z225*Y225","v":0},null,{"$f":"IF(S225=\"\",D225,IF(S225>D225,D225,S225))","v":0}]
[null,null,null,null,null,0,null,0,null,0,null,0,null,0,null,{"$f":"Z226*Y226","v":0},null,{"$f":"IF(S226=\"\",D226,IF(S226>D226,D226,S226))","v":0}]
[null,null,null,null,null,0,null,0,null,0,null,0,null,0,null,{"$f":"Z227*Y227","v":0}]
["小計",null,null,null,null,{"$f":"SUM(F205:F227)","v":0},null,{"$f":"SUM(H222:H227)","v":0},null,{"$f":"SUM(J205:J227)","v":0},null,{"$f":"SUM(L222:L227)","v":0},null,{"$f":"SUM(N205:N227)","v":0},null,{"$f":"SUM(P222:P227)","v":0},null,{"$f":"IF(S228=\"\",D228,IF(S228>D228,D228,S228))","v":0}]
["塗装工事【修理】"]
["自然塗料","古色塗り、軒裏","㎡",null,null,{"$f":"ROUNDDOWN(D230*E230,0)","v":0},null,{"$f":"ROUNDDOWN(G230*$R230,0)","v":0},null,{"$f":"ROUNDDOWN($D230*I230,0)","v":0},null,{"$f":"ROUNDDOWN(K230*$R230,0)","v":0},null,{"$f":"ROUNDDOWN(D230*M230,0)","v":0},null,{"$f":"ROUNDDOWN(O230*$R230,0)","v":0},null,{"$f":"IF(S230=\"\",D230,IF(S230>D230,D230,S230))","v":0}]
["自然塗料","古色塗り、建具","本",null,null,{"$f":"ROUNDDOWN(D231*E231,0)","v":0},null,{"$f":"ROUNDDOWN(G231*$R231,0)","v":0},null,{"$f":"ROUNDDOWN($D231*I231,0)","v":0},null,{"$f":"ROUNDDOWN(K231*$R231,0)","v":0},null,{"$f":"ROUNDDOWN(D231*M231,0)","v":0},null,{"$f":"ROUNDDOWN(O231*$R231,0)","v":0},null,0]
["自然塗料","古色塗り、細物","㎥",null,null,{"$f":"ROUNDDOWN(D232*E232,0)","v":0},null,{"$f":"ROUNDDOWN(G232*$R232,0)","v":0},null,{"$f":"ROUNDDOWN($D232*I232,0)","v":0},null,{"$f":"ROUNDDOWN(K232*$R232,0)","v":0},null,{"$f":"ROUNDDOWN(D232*M232,0)","v":0},null,{"$f":"ROUNDDOWN(O232*$R232,0)","v":0},null,0]
[null,null,"ｍ",null,null,{"$f":"ROUNDDOWN(D233*E233,0)","v":0},null,{"$f":"ROUNDDOWN(G233*$R233,0)","v":0},null,{"$f":"ROUNDDOWN($D233*I233,0)","v":0},null,{"$f":"ROUNDDOWN(K233*$R233,0)","v":0},null,{"$f":"ROUNDDOWN(D233*M233,0)","v":0},null,{"$f":"ROUNDDOWN(O233*$R233,0)","v":0},null,0]
["外部建具塗装",null,"本",null,null,0,null,0,null,0,null,0,null,0,null,0,null,0]
["手すり塗装",null,"式",null,null,0,null,0,null,0,null,0,null,0,null,0,null,0]
["部分補修",null,"式",null,null,0,null,0,null,0,null,0,null,0,null,0,null,0]
["塗料代","2回塗","式",null,null,0,null,0,null,0,null,0,null,0,null,0,null,0]
["雑消耗品",null,"式",null,null,0,null,0,null,0,null,0,null,0,null,0,null,0]
[null,null,null,null,null,{"$f":"ROUNDDOWN(D239*E239,0)","v":0},null,{"$f":"ROUNDDOWN(G239*$R239,0)","v":0},null,0,null,0,null,{"$f":"ROUNDDOWN(D239*M239,0)","v":0},null,0]
["小計",null,null,null,null,null,null,{"$f":"SUM(H230:H239)","v":0},null,null,null,{"$f":"SUM(L230:L239)","v":0},null,null,null,{"$f":"SUM(P230:P239)","v":0},null,{"$f":"IF(S240=\"\",D240,IF(S240>D240,D240,S240))","v":0}]
["塗装工事【修景】"]
["自然塗料","古色塗り、東面板","㎡",null,null,{"$f":"ROUNDDOWN(D242*E242,0)","v":0},null,{"$f":"ROUNDDOWN(G242*$R242,0)","v":0},null,{"$f":"ROUNDDOWN($D242*I242,0)","v":0},null,{"$f":"ROUNDDOWN(K242*$R242,0)","v":0},null,{"$f":"ROUNDDOWN(D242*M242,0)","v":0},null,{"$f":"ROUNDDOWN(O242*$R242,0)","v":0},null,{"$f":"IF(S242=\"\",D242,IF(S242>D242,D242,S242))","v":0}]
["自然塗料","古色塗り、建具","ｍ",null,null,{"$f":"ROUNDDOWN(D243*E243,0)","v":0},null,{"$f":"ROUNDDOWN(G243*$R243,0)","v":0},null,{"$f":"ROUNDDOWN($D243*I243,0)","v":0},null,{"$f":"ROUNDDOWN(K243*$R243,0)","v":0},null,{"$f":"ROUNDDOWN(D243*M243,0)","v":0},null,{"$f":"ROUNDDOWN(O243*$R243,0)","v":0},null,{"$f":"IF(S243=\"\",D243,IF(S243>D243,D243,S243))","v":0}]
["自然塗料","古色塗り、細物","㎥",null,null,{"$f":"ROUNDDOWN(D244*E244,0)","v":0},null,{"$f":"ROUNDDOWN(G244*$R244,0)","v":0},null,{"$f":"ROUNDDOWN($D244*I244,0)","v":0},null,{"$f":"ROUNDDOWN(K244*$R244,0)","v":0},null,{"$f":"ROUNDDOWN(D244*M244,0)","v":0},null,{"$f":"ROUNDDOWN(O244*$R244,0)","v":0},null,{"$f":"IF(S244=\"\",D244,IF(S244>D244,D244,S244))","v":0}]
["外部建具塗装","東面","本",null,null,{"$f":"ROUNDDOWN(D245*E245,0)","v":0},null,{"$f":"ROUNDDOWN(G245*$R245,0)","v":0},null,{"$f":"ROUNDDOWN($D245*I245,0)","v":0},null,{"$f":"ROUNDDOWN(K245*$R245,0)","v":0},null,{"$f":"ROUNDDOWN(D245*M245,0)","v":0},null,{"$f":"ROUNDDOWN(O245*$R245,0)","v":0},null,{"$f":"IF(S245=\"\",D245,IF(S245>D245,D245,S245))","v":0}]
[null,null,null,null,null,0,null,0,null,0,null,0,null,0,null,0,null,{"$f":"IF(S246=\"\",D246,IF(S246>D246,D246,S246))","v":0}]
[null,null,null,null,null,0,null,0,null,0,null,0,null,0,null,0]
[null,null,null,null,null,0,null,0,null,0,null,0,null,0,null,0]
[null,null,null,null,null,0,null,0,null,0,null,0,null,0,null,0]
[null,null,null,null,null,0,null,0,null,0,null,0,null,0,null,0]
[null,null,null,null,null,0,null,0,null,0,null,0,null,0,null,0]
[null,null,null,null,null,0,null,0,null,0,null,0,null,0,null,0]
["小計",null,null,null,null,{"$f":"SUM(F230:F252)","v":0},null,{"$f":"SUM(H242:H252)","v":0},null,{"$f":"SUM(J230:J252)","v":0},null,{"$f":"SUM(L242:L252)","v":0},null,{"$f":"SUM(N230:N252)","v":0},null,{"$f":"SUM(P242:P252)","v":0},null,{"$f":"IF(S253=\"\",D253,IF(S253>D253,D253,S253))","v":0}]
["雑工事【修理】"]
[null,null,"ヶ所",null,null,{"$f":"ROUNDDOWN(D255*E255,0)","v":0},null,{"$f":"ROUNDDOWN(G255*$R255,0)","v":0},null,{"$f":"ROUNDDOWN($D255*I255,0)","v":0},null,{"$f":"ROUNDDOWN(K255*$R255,0)","v":0},null,{"$f":"ROUNDDOWN(D255*M255,0)","v":0},null,{"$f":"ROUNDDOWN(O255*$R255,0)","v":0},null,{"$f":"IF(S255=\"\",D255,IF(S255>D255,D255,S255))","v":0}]
[null,null,null,null,null,{"$f":"ROUNDDOWN(D256*E256,0)","v":0},null,{"$f":"ROUNDDOWN(G256*$R256,0)","v":0},null,{"$f":"ROUNDDOWN($D256*I256,0)","v":0},null,{"$f":"ROUNDDOWN(K256*$R256,0)","v":0},null,{"$f":"ROUNDDOWN(D256*M256,0)","v":0},null,{"$f":"ROUNDDOWN(O256*$R256,0)","v":0},null,{"$f":"IF(S256=\"\",D256,IF(S256>D256,D256,S256))","v":0}]
[null,null,null,null,null,{"$f":"ROUNDDOWN(D257*E257,0)","v":0},null,{"$f":"ROUNDDOWN(G257*$R257,0)","v":0},null,{"$f":"ROUNDDOWN($D257*I257,0)","v":0},null,{"$f":"ROUNDDOWN(K257*$R257,0)","v":0},null,{"$f":"ROUNDDOWN(D257*M257,0)","v":0},null,{"$f":"ROUNDDOWN(O257*$R257,0)","v":0},null,{"$f":"IF(S257=\"\",D257,IF(S257>D257,D257,S257))","v":0}]
[null,null,null,null,null,{"$f":"ROUNDDOWN(D258*E258,0)","v":0},null,{"$f":"ROUNDDOWN(G258*$R258,0)","v":0},null,{"$f":"ROUNDDOWN($D258*I258,0)","v":0},null,{"$f":"ROUNDDOWN(K258*$R258,0)","v":0},null,{"$f":"ROUNDDOWN(D258*M258,0)","v":0},null,{"$f":"ROUNDDOWN(O258*$R258,0)","v":0},null,{"$f":"IF(S258=\"\",D258,IF(S258>D258,D258,S258))","v":0}]
[null,null,null,null,null,0,null,0,null,0,null,0,null,0,null,0,null,0]
[null,null,null,null,null,0,null,0,null,0,null,0,null,0,null,0,null,0]
[null,null,null,null,null,0,null,0,null,0,null,0,null,0,null,0,null,0]
[null,null,null,null,null,0,null,0,null,0,null,0,null,0,null,0,null,0]
[null,null,null,null,null,0,null,0,null,0,null,0,null,0,null,0,null,0]
[null,null,null,null,null,0,null,0,null,0,null,0,null,0,null,0,null,0]
[null,null,null,null,null,0,null,0,null,0,null,0,null,0,null,0,null,0]
["小計",null,null,null,null,null,null,{"$f":"SUM(H255:H265)","v":0},null,null,null,{"$f":"SUM(L255:L265)","v":0},null,null,null,{"$f":"SUM(P255:P265)","v":0},null,{"$f":"IF(S266=\"\",D266,IF(S266>D266,D266,S266))","v":0}]
["雑工事【修景】"]
[null,null,null,null,null,{"$f":"ROUNDDOWN(D268*E268,0)","v":0},null,{"$f":"ROUNDDOWN(G268*$R268,0)","v":0},null,{"$f":"ROUNDDOWN($D268*I268,0)","v":0},null,{"$f":"ROUNDDOWN(K268*$R268,0)","v":0},null,{"$f":"ROUNDDOWN(D268*M268,0)","v":0},null,{"$f":"ROUNDDOWN(O268*$R268,0)","v":0},null,{"$f":"IF(S268=\"\",D268,IF(S268>D268,D268,S268))","v":0}]
[null,null,null,null,null,{"$f":"ROUNDDOWN(D269*E269,0)","v":0},null,{"$f":"ROUNDDOWN(G269*$R269,0)","v":0},null,{"$f":"ROUNDDOWN($D269*I269,0)","v":0},null,{"$f":"ROUNDDOWN(K269*$R269,0)","v":0},null,{"$f":"ROUNDDOWN(D269*M269,0)","v":0},null,{"$f":"ROUNDDOWN(O269*$R269,0)","v":0},null,{"$f":"IF(S269=\"\",D269,IF(S269>D269,D269,S269))","v":0}]
[null,null,null,null,null,{"$f":"ROUNDDOWN(D270*E270,0)","v":0},null,{"$f":"ROUNDDOWN(G270*$R270,0)","v":0},null,{"$f":"ROUNDDOWN($D270*I270,0)","v":0},null,{"$f":"ROUNDDOWN(K270*$R270,0)","v":0},null,{"$f":"ROUNDDOWN(D270*M270,0)","v":0},null,{"$f":"ROUNDDOWN(O270*$R270,0)","v":0},null,{"$f":"IF(S270=\"\",D270,IF(S270>D270,D270,S270))","v":0}]
[null,null,null,null,null,{"$f":"ROUNDDOWN(D271*E271,0)","v":0},null,{"$f":"ROUNDDOWN(G271*$R271,0)","v":0},null,{"$f":"ROUNDDOWN($D271*I271,0)","v":0},null,{"$f":"ROUNDDOWN(K271*$R271,0)","v":0},null,{"$f":"ROUNDDOWN(D271*M271,0)","v":0},null,{"$f":"ROUNDDOWN(O271*$R271,0)","v":0},null,{"$f":"IF(S271=\"\",D271,IF(S271>D271,D271,S271))","v":0}]
[null,null,null,null,null,0,null,0,null,0,null,0,null,0,null,0,null,0]
[null,null,null,null,null,0,null,0,null,0,null,0,null,0,null,0,null,0]
[null,null,null,null,null,0,null,0,null,0,null,0,null,0,null,0,null,0]
[null,null,null,null,null,0,null,0,null,0,null,0,null,0,null,0,null,0]
[null,null,null,null,null,0,null,0,null,0,null,0,null,0,null,0,null,0]
[null,null,null,null,null,0,null,0,null,0,null,0,null,0,null,0,null,0]
["小計",null,null,null,null,{"$f":"SUM(F255:F277)","v":0},null,{"$f":"SUM(H268:H277)","v":0},null,{"$f":"SUM(J255:J277)","v":0},null,{"$f":"SUM(L268:L277)","v":0},null,{"$f":"SUM(N255:N277)","v":0},null,{"$f":"SUM(P268:P277)","v":0},null,{"$f":"IF(S278=\"\",D278,IF(S278>D278,D278,S278))","v":0}]
["設備工事【修理】"]
["電気工事",null,null,null,null,{"$f":"ROUNDDOWN(D280*E280,0)","v":0},null,{"$f":"ROUNDDOWN(G280*$R280,0)","v":0},null,{"$f":"ROUNDDOWN($D280*I280,0)","v":0},null,{"$f":"ROUNDDOWN(K280*$R280,0)","v":0},null,{"$f":"ROUNDDOWN(D280*M280,0)","v":0},null,{"$f":"ROUNDDOWN(O280*$R280,0)","v":0},null,{"$f":"IF(S280=\"\",D280,IF(S280>D280,D280,S280))","v":0}]
["  引込み線及びメーター取り外し工事","　露出配線","式",null,null,0,null,0,null,{"$f":"ROUNDDOWN($D281*I281,0)","v":0},null,{"$f":"ROUNDDOWN(K281*$R281,0)","v":0},null,{"$f":"ROUNDDOWN(D281*M281,0)","v":0},null,{"$f":"ROUNDDOWN(O281*$R281,0)","v":0},null,0]
["  既設照明器具、配線撤去、迂回配線工事","※エアコン、TV、ひまわり中止","式",null,null,0,null,0,null,{"$f":"ROUNDDOWN($D282*I282,0)","v":0},null,{"$f":"ROUNDDOWN(K282*$R282,0)","v":0},null,{"$f":"ROUNDDOWN(D282*M282,0)","v":0},null,{"$f":"ROUNDDOWN(O282*$R282,0)","v":0},null,0]
["  既設照明器具及び配線処分費",null,"式",null,null,0,null,0,null,{"$f":"ROUNDDOWN($D283*I283,0)","v":0},null,{"$f":"ROUNDDOWN(K283*$R283,0)","v":0},null,{"$f":"ROUNDDOWN(D283*M283,0)","v":0},null,{"$f":"ROUNDDOWN(O283*$R283,0)","v":0},null,0]
["幹線工事",null,null,null,null,0,null,0,null,0,null,0,null,0,null,0,null,0]
["　単三引き込み口幹線配管及び配線工事","５０AELB　CVT14ｓｑ３ｃ","式",null,null,0,null,0,null,{"$f":"ROUNDDOWN($D285*I285,0)","v":0},null,{"$f":"ROUNDDOWN(K285*$R285,0)","v":0},null,{"$f":"ROUNDDOWN(D285*M285,0)","v":0},null,{"$f":"ROUNDDOWN(O285*$R285,0)","v":0},null,0]
["　分電盤取付工事","パナソニック　BQR85124","面",null,null,0,null,0,null,{"$f":"ROUNDDOWN($D286*I286,0)","v":0},null,{"$f":"ROUNDDOWN(K286*$R286,0)","v":0},null,{"$f":"ROUNDDOWN(D286*M286,0)","v":0},null,{"$f":"ROUNDDOWN(O286*$R286,0)","v":0},null,0]
["　D種接地工事","アース工事","式",null,null,0,null,0,null,{"$f":"ROUNDDOWN($D287*I287,0)","v":0},null,{"$f":"ROUNDDOWN(K287*$R287,0)","v":0},null,{"$f":"ROUNDDOWN(D287*M287,0)","v":0},null,{"$f":"ROUNDDOWN(O287*$R287,0)","v":0},null,0]
["　諸経費、中電申請費用",null,"式",null,null,0,null,0,null,{"$f":"ROUNDDOWN($D288*I288,0)","v":0},null,{"$f":"ROUNDDOWN(K288*$R288,0)","v":0},null,{"$f":"ROUNDDOWN(D288*M288,0)","v":0},null,{"$f":"ROUNDDOWN(O288*$R288,0)","v":0},null,0]
["電灯、スイッチ配線工事","露出配線とする",null,null,null,0,null,0,null,0,null,0,null,0,null,0,null,0]
["　電灯配線工事","取付施工共","灯",null,null,0,null,0,null,{"$f":"ROUNDDOWN($D290*I290,0)","v":0},null,{"$f":"ROUNDDOWN(K290*$R290,0)","v":0},null,{"$f":"ROUNDDOWN(D290*M290,0)","v":0},null,{"$f":"ROUNDDOWN(O290*$R290,0)","v":0},null,0]
["　スイッチ配線工事",null,"か所",null,null,0,null,0,null,{"$f":"ROUNDDOWN($D291*I291,0)","v":0},null,{"$f":"ROUNDDOWN(K291*$R291,0)","v":0},null,{"$f":"ROUNDDOWN(D291*M291,0)","v":0},null,{"$f":"ROUNDDOWN(O291*$R291,0)","v":0},null,0]
["　３路スイッチ配線工事",null,"ヶ所",null,null,0,null,0,null,0,null,0,null,0,null,0,null,0]
["コンセント、回路配線工事",null,null,null,null,0,null,0,null,0,null,0,null,0,null,0,null,0]
["　コンセント配線工事","コンセント電源箇所減","か所",null,null,0,null,0,null,{"$f":"ROUNDDOWN($D294*I294,0)","v":0},null,{"$f":"ROUNDDOWN(K294*$R294,0)","v":0},null,{"$f":"ROUNDDOWN(D294*M294,0)","v":0},null,{"$f":"ROUNDDOWN(O294*$R294,0)","v":0},null,0]
["　防水コンセント配線工事",null,"か所",null,null,0,null,0,null,{"$f":"ROUNDDOWN($D295*I295,0)","v":0},null,{"$f":"ROUNDDOWN(K295*$R295,0)","v":0},null,{"$f":"ROUNDDOWN(D295*M295,0)","v":0},null,{"$f":"ROUNDDOWN(O295*$R295,0)","v":0},null,0]
["回路電源配線工事",null,"回路",null,null,0,null,0,null,0,null,0,null,0,null,0,null,0]
["専用電源配線予備回路",null,"回T路",null,null,0,null,0,null,{"$f":"ROUNDDOWN($D297*I297,0)","v":0},null,{"$f":"ROUNDDOWN(K297*$R297,0)","v":0},null,{"$f":"ROUNDDOWN(D297*M297,0)","v":0},null,{"$f":"ROUNDDOWN(O297*$R297,0)","v":0},null,0]
["照明器具",null,null,null,null,0,null,0,null,{"$f":"ROUNDDOWN($D298*I298,0)","v":0},null,{"$f":"ROUNDDOWN(K298*$R298,0)","v":0},null,{"$f":"ROUNDDOWN(D298*M298,0)","v":0},null,{"$f":"ROUNDDOWN(O298*$R298,0)","v":0},null,0]
["　和風。洋風照明器具各種","概算単価　　7→4か所器具付け","か所",null,null,0,null,0,null,0,null,0,null,0,null,0,null,0,null,{"$f":"SUM(F280:F299)","v":0}]
["増築部中止","スイッチ、コンセント減額",null,null,null,0,null,0,null,0,null,0,null,0,null,0,null,0]
[null,null,null,null,null,0,null,0,null,{"$f":"ROUNDDOWN($D301*I301,0)","v":0},null,{"$f":"ROUNDDOWN(K301*$R301,0)","v":0},null,{"$f":"ROUNDDOWN(D301*M301,0)","v":0},null,{"$f":"ROUNDDOWN(O301*$R301,0)","v":0},null,0]
[null,null,null,null,null,0,null,0,null,{"$f":"ROUNDDOWN($D302*I302,0)","v":0},null,{"$f":"ROUNDDOWN(K302*$R302,0)","v":0},null,{"$f":"ROUNDDOWN(D302*M302,0)","v":0},null,{"$f":"ROUNDDOWN(O302*$R302,0)","v":0},null,0]
[null,null,null,null,null,0,null,0,null,0,null,0,null,0,null,0,null,0]
["給水工事",null,null,null,null,{"$f":"ROUNDDOWN(D304*E304,0)","v":0},null,{"$f":"ROUNDDOWN(G304*$R304,0)","v":0},null,0,null,0,null,0,null,0,null,{"$f":"IF(S304=\"\",D304,IF(S304>D304,D304,S304))","v":0}]
["HIYP　20A","給湯器なし、水のみ","ｍ",null,null,0,null,0,null,0,null,0,null,0,null,0,null,0]
["PEX　20A","洋便器2ｾｯﾄ(1F、地階)","ｍ",null,null,0,null,0,null,0,null,0,null,0,null,0,null,0]
["PEX　13A　継手　保温付","小便器、手洗いは無し","ｍ",null,null,0,null,0,null,0,null,0,null,0,null,0,null,0]
["継手WL-1　ｵﾈｼﾞ　20A","給湯器なし","ケ",null,null,0,null,0,null,0,null,0,null,0,null,0,null,0]
["継手WL-1　ｵﾈｼﾞ　13A",null,"ケ",null,null,{"$f":"ROUNDDOWN(D309*E309,0)","v":0},null,{"$f":"ROUNDDOWN(G309*$R309,0)","v":0},null,{"$f":"ROUNDDOWN($D309*I309,0)","v":0},null,{"$f":"ROUNDDOWN(K309*$R309,0)","v":0},null,{"$f":"ROUNDDOWN(D309*M309,0)","v":0},null,{"$f":"ROUNDDOWN(O309*$R309,0)","v":0},null,{"$f":"IF(S309=\"\",D309,IF(S309>D309,D309,S309))","v":0}]
["継手WL-5　座付きｴﾙﾎﾞ　13A",null,"ケ",null,null,0,null,0,null,0,null,0,null,0,null,0,null,0]
["継手WL-1　ﾁｰｽﾞ　13A",null,"ケ",null,null,0,null,0,null,0,null,0,null,0,null,0,null,0]
["エンドプラグ",null,"ケ",null,null,0,null,0,null,0,null,0,null,0,null,0,null,0]
[null,null,null,null,null,0,null,0,null,0,null,0,null,0,null,0,null,0]
["給湯工事",null,null,null,null,0,null,0,null,0,null,0,null,0,null,0,null,0]
["PEX　13A　保温付",null,"ｍ",null,null,0,null,0,null,0,null,0,null,0,null,0,null,0]
["継手WJ-1　ｵﾈｼﾞ　13A",null,"ケ",null,null,0,null,0,null,0,null,0,null,0,null,0,null,0]
["エンドプラグ",null,"ケ",null,null,{"$f":"ROUNDDOWN(D317*E317,0)","v":0},null,{"$f":"ROUNDDOWN(G317*$R317,0)","v":0},null,{"$f":"ROUNDDOWN($D317*I317,0)","v":0},null,{"$f":"ROUNDDOWN(K317*$R317,0)","v":0},null,{"$f":"ROUNDDOWN(D317*M317,0)","v":0},null,{"$f":"ROUNDDOWN(O317*$R317,0)","v":0},null,{"$f":"IF(S317=\"\",D317,IF(S317>D317,D317,S317))","v":0}]
[null,null,null,null,null,0,null,0,null,0,null,0,null,0,null,0,null,0]
["排水工事",null,null,null,null,0,null,0,null,0,null,0,null,0,null,0,null,0]
["VUﾊﾟｲﾌﾟ　100φ",null,"ｍ",null,null,0,null,0,null,0,null,0,null,0,null,0,null,0]
["VUﾊﾟｲﾌﾟ　75φ",null,"ｍ",null,null,0,null,0,null,0,null,0,null,0,null,0,null,0]
["屋外VP　100φ",null,"ｍ",null,null,0,null,0,null,0,null,0,null,0,null,0,null,0]
["小口ます",null,"ヶ所",null,null,{"$f":"ROUNDDOWN(D323*E323,0)","v":0},null,{"$f":"ROUNDDOWN(G323*$R323,0)","v":0},null,{"$f":"ROUNDDOWN($D323*I323,0)","v":0},null,{"$f":"ROUNDDOWN(K323*$R323,0)","v":0},null,{"$f":"ROUNDDOWN(D323*M323,0)","v":0},null,{"$f":"ROUNDDOWN(O323*$R323,0)","v":0},null,{"$f":"IF(S323=\"\",D323,IF(S323>D323,D323,S323))","v":0}]
["掃除口",null,"か所",null,null,0,null,0,null,0,null,0,null,0,null,0,null,0]
["支持金物",null,"式",null,null,0,null,0,null,0,null,0,null,0,null,0,null,0]
["基礎貫通孔",null,"か所",null,null,0,null,0,null,0,null,0,null,0,null,0,null,0]
["ｺﾝｸﾘｰﾄ壊し","復旧、処分共","式",null,null,0,null,0,null,0,null,0,null,0,null,0,null,0]
[null,null,null,null,null,0,null,0,null,0,null,0,null,0,null,0,null,0]
["各器具取付",null,null,null,null,0,null,0,null,0,null,0,null,0,null,0,null,0]
["洋式便器",null,"ｾｯﾄ",null,null,0,null,0,null,0,null,0,null,0,null,0,null,0]
["下水桝廻り接続工","水道メーター廻り共","式",null,null,0,null,0,null,0,null,0,null,0,null,0,null,0,null,null,{"$f":"SUM(F305:F332)","v":0}]
["上下水道申請費","別途","式",null,null,0,null,0,null,0,null,0,null,0,null,0,null,0]
[null,null,null,null,null,0,null,0,null,0,null,0,null,0,null,0,null,0]
["設備機器",null,null,null,null,0,null,0,null,0,null,0,null,0,null,0,null,0]
["アメージュZA便器","YBC-ZA20S、DT-ZA252","ｾｯﾄ",null,null,0,null,0,null,0,null,0,null,0,null,0,null,0]
["紙巻器ほか","CF-AA64KU、KF-AA70C","ｾｯﾄ",null,null,0,null,0,null,0,null,0,null,0,null,0,null,0]
[null,null,null,null,null,0,null,0,null,0,null,0,null,0,null,0,null,0]
[null,null,null,null,null,{"$f":"ROUNDDOWN(D338*E338,0)","v":0},null,{"$f":"ROUNDDOWN(G338*$R338,0)","v":0},null,{"$f":"ROUNDDOWN($D338*I338,0)","v":0},null,{"$f":"ROUNDDOWN(K338*$R338,0)","v":0},null,{"$f":"ROUNDDOWN(D338*M338,0)","v":0},null,{"$f":"ROUNDDOWN(O338*$R338,0)","v":0},null,{"$f":"IF(S338=\"\",D338,IF(S338>D338,D338,S338))","v":0}]
[null,null,null,null,null,0,null,0,null,0,null,0,null,0,null,0,null,0]
[null,null,null,null,null,0,null,0,null,0,null,0,null,0,null,0,null,0]
[null,null,null,null,null,0,null,0,null,0,null,0,null,0,null,0,null,0]
[null,null,null,null,null,0,null,0,null,0,null,0,null,0,null,0,null,0]
[null,null,null,null,null,0,null,0,null,0,null,0,null,0,null,0,null,0]
[null,null,null,null,null,{"$f":"ROUNDDOWN(D344*E344,0)","v":0},null,{"$f":"ROUNDDOWN(G344*$R344,0)","v":0},null,{"$f":"ROUNDDOWN($D344*I344,0)","v":0},null,{"$f":"ROUNDDOWN(K344*$R344,0)","v":0},null,{"$f":"ROUNDDOWN(D344*M344,0)","v":0},null,{"$f":"ROUNDDOWN(O344*$R344,0)","v":0},null,{"$f":"IF(S344=\"\",D344,IF(S344>D344,D344,S344))","v":0}]
[null,null,null,null,null,0,null,0,null,0,null,0,null,0,null,0,null,0]
[null,null,null,null,null,0,null,0,null,0,null,0,null,0,null,0,null,0]
[null,null,null,null,null,0,null,0,null,0,null,0,null,0,null,0,null,0]
[null,null,null,null,null,0,null,0,null,0,null,0,null,0,null,0,null,0]
[null,null,null,null,null,0,null,0,null,0,null,0,null,0,null,0,null,0]
[null,null,null,null,null,0,null,0,null,0,null,0,null,0,null,0,null,0]
[null,null,null,null,null,0,null,0,null,0,null,0,null,0,null,0,null,0]
[null,null,null,null,null,0,null,0,null,0,null,0,null,0,null,0,null,0]
["小計",null,null,null,null,null,null,{"$f":"SUM(H280:H352)","v":0},null,null,null,{"$f":"SUM(L280:L352)","v":0},null,null,null,{"$f":"SUM(P280:P352)","v":0},null,{"$f":"IF(S353=\"\",D353,IF(S353>D353,D353,S353))","v":0}]
["設備工事【修景】"]
["電気工事","引込線及びﾒｰﾀ取外工事","式",null,null,{"$f":"ROUNDDOWN(D355*E355,0)","v":0},null,{"$f":"ROUNDDOWN(G355*$R355,0)","v":0},null,{"$f":"ROUNDDOWN($D355*I355,0)","v":0},null,{"$f":"ROUNDDOWN(K355*$R355,0)","v":0},null,{"$f":"ROUNDDOWN(D355*M355,0)","v":0},null,{"$f":"ROUNDDOWN(O355*$R355,0)","v":0},null,{"$f":"IF(S355=\"\",D355,IF(S355>D355,D355,S355))","v":0}]
[null,"ｴｱｺﾝ移設工事","台",null,null,{"$f":"ROUNDDOWN(D356*E356,0)","v":0},null,{"$f":"ROUNDDOWN(G356*$R356,0)","v":0},null,{"$f":"ROUNDDOWN($D356*I356,0)","v":0},null,{"$f":"ROUNDDOWN(K356*$R356,0)","v":0},null,{"$f":"ROUNDDOWN(D356*M356,0)","v":0},null,{"$f":"ROUNDDOWN(O356*$R356,0)","v":0},null,0]
[null,null,null,null,null,{"$f":"ROUNDDOWN(D357*E357,0)","v":0},null,{"$f":"ROUNDDOWN(G357*$R357,0)","v":0},null,{"$f":"ROUNDDOWN($D357*I357,0)","v":0},null,{"$f":"ROUNDDOWN(K357*$R357,0)","v":0},null,{"$f":"ROUNDDOWN(D357*M357,0)","v":0},null,{"$f":"ROUNDDOWN(O357*$R357,0)","v":0},null,0]
[null,null,null,null,null,{"$f":"ROUNDDOWN(D358*E358,0)","v":0},null,{"$f":"ROUNDDOWN(G358*$R358,0)","v":0},null,{"$f":"ROUNDDOWN($D358*I358,0)","v":0},null,{"$f":"ROUNDDOWN(K358*$R358,0)","v":0},null,{"$f":"ROUNDDOWN(D358*M358,0)","v":0},null,{"$f":"ROUNDDOWN(O358*$R358,0)","v":0},null,0]
[null,null,null,null,null,{"$f":"ROUNDDOWN(D359*E359,0)","v":0},null,{"$f":"ROUNDDOWN(G359*$R359,0)","v":0},null,{"$f":"ROUNDDOWN($D359*I359,0)","v":0},null,{"$f":"ROUNDDOWN(K359*$R359,0)","v":0},null,{"$f":"ROUNDDOWN(D359*M359,0)","v":0},null,{"$f":"ROUNDDOWN(O359*$R359,0)","v":0},null,{"$f":"IF(S359=\"\",D359,IF(S359>D359,D359,S359))","v":0}]
[null,null,null,null,null,{"$f":"ROUNDDOWN(D360*E360,0)","v":0},null,{"$f":"ROUNDDOWN(G360*$R360,0)","v":0},null,{"$f":"ROUNDDOWN($D360*I360,0)","v":0},null,{"$f":"ROUNDDOWN(K360*$R360,0)","v":0},null,{"$f":"ROUNDDOWN(D360*M360,0)","v":0},null,{"$f":"ROUNDDOWN(O360*$R360,0)","v":0},null,0]
[null,null,null,null,null,{"$f":"ROUNDDOWN(D361*E361,0)","v":0},null,{"$f":"ROUNDDOWN(G361*$R361,0)","v":0},null,{"$f":"ROUNDDOWN($D361*I361,0)","v":0},null,{"$f":"ROUNDDOWN(K361*$R361,0)","v":0},null,{"$f":"ROUNDDOWN(D361*M361,0)","v":0},null,{"$f":"ROUNDDOWN(O361*$R361,0)","v":0},null,0]
[null,null,null,null,null,{"$f":"ROUNDDOWN(D362*E362,0)","v":0},null,{"$f":"ROUNDDOWN(G362*$R362,0)","v":0},null,{"$f":"ROUNDDOWN($D362*I362,0)","v":0},null,{"$f":"ROUNDDOWN(K362*$R362,0)","v":0},null,{"$f":"ROUNDDOWN(D362*M362,0)","v":0},null,{"$f":"ROUNDDOWN(O362*$R362,0)","v":0},null,0]
[null,null,null,null,null,{"$f":"ROUNDDOWN(D363*E363,0)","v":0},null,{"$f":"ROUNDDOWN(G363*$R363,0)","v":0},null,{"$f":"ROUNDDOWN($D363*I363,0)","v":0},null,{"$f":"ROUNDDOWN(K363*$R363,0)","v":0},null,{"$f":"ROUNDDOWN(D363*M363,0)","v":0},null,{"$f":"ROUNDDOWN(O363*$R363,0)","v":0},null,{"$f":"IF(S363=\"\",D363,IF(S363>D363,D363,S363))","v":0}]
[null,null,null,null,null,{"$f":"ROUNDDOWN(D364*E364,0)","v":0},null,{"$f":"ROUNDDOWN(G364*$R364,0)","v":0},null,{"$f":"ROUNDDOWN($D364*I364,0)","v":0},null,{"$f":"ROUNDDOWN(K364*$R364,0)","v":0},null,{"$f":"ROUNDDOWN(D364*M364,0)","v":0},null,{"$f":"ROUNDDOWN(O364*$R364,0)","v":0},null,0]
[null,null,null,null,null,0,null,0,null,0,null,0,null,0,null,0,null,0]
["給水工事",null,null,null,null,0,null,0,null,0,null,0,null,0,null,0,null,0]
[null,null,null,null,null,0,null,0,null,0,null,0,null,0,null,0,null,0]
[null,null,null,null,null,0,null,0,null,0,null,0,null,0,null,0,null,0]
[null,null,null,null,null,0,null,0,null,0,null,0,null,0,null,0,null,0]
[null,null,null,null,null,{"$f":"ROUNDDOWN(D370*E370,0)","v":0},null,{"$f":"ROUNDDOWN(G370*$R370,0)","v":0},null,{"$f":"ROUNDDOWN($D370*I370,0)","v":0},null,{"$f":"ROUNDDOWN(K370*$R370,0)","v":0},null,{"$f":"ROUNDDOWN(D370*M370,0)","v":0},null,{"$f":"ROUNDDOWN(O370*$R370,0)","v":0},null,{"$f":"IF(S370=\"\",D370,IF(S370>D370,D370,S370))","v":0}]
[null,null,null,null,null,0,null,0,null,0,null,0,null,0,null,0,null,0]
[null,null,null,null,null,{"$f":"ROUNDDOWN(D372*E372,0)","v":0},null,{"$f":"ROUNDDOWN(G372*$R372,0)","v":0},null,{"$f":"ROUNDDOWN($D372*I372,0)","v":0},null,{"$f":"ROUNDDOWN(K372*$R372,0)","v":0},null,{"$f":"ROUNDDOWN(D372*M372,0)","v":0},null,{"$f":"ROUNDDOWN(O372*$R372,0)","v":0},null,{"$f":"IF(S372=\"\",D372,IF(S372>D372,D372,S372))","v":0}]
[null,null,null,null,null,0,null,0,null,0,null,0,null,0,null,0,null,0]
[null,null,null,null,null,{"$f":"ROUNDDOWN(D374*E374,0)","v":0},null,0,null,0,null,0,null,0,null,0,null,0]
[null,null,null,null,null,{"$f":"ROUNDDOWN(D375*E375,0)","v":0},null,{"$f":"ROUNDDOWN(G375*$R375,0)","v":0},null,{"$f":"ROUNDDOWN($D375*I375,0)","v":0},null,{"$f":"ROUNDDOWN(K375*$R375,0)","v":0},null,{"$f":"ROUNDDOWN(D375*M375,0)","v":0},null,{"$f":"ROUNDDOWN(O375*$R375,0)","v":0},null,{"$f":"IF(S375=\"\",D375,IF(S375>D375,D375,S375))","v":0}]
[null,null,null,null,null,0,null,0,null,0,null,0,null,0,null,0,null,0]
[null,null,null,null,null,0,null,0,null,0,null,0,null,0,null,0,null,0]
["小計",null,null,null,null,{"$f":"SUM(F280:F377)","v":0},null,{"$f":"SUM(H355:H374)","v":0},null,{"$f":"SUM(J280:J374)","v":0},null,{"$f":"SUM(L355:L374)","v":0},null,{"$f":"SUM(N280:N374)","v":0},null,{"$f":"SUM(P355:P374)","v":0},null,0]
["設計監理料",null,null,null,null,null,null,null,null,null,null,null,null,null,null,null,null,null,null,"率"]
["設計監理料【当初】",null,"式",null,null,{"$f":"ROUNDDOWN(D380*E380,0)","v":0},null,null,null,null,null,null,null,null,null,null,null,{"$f":"IF(S380=\"\",D380,IF(S380>D380,D380,S380))","v":0},{"$f":"ROUNDDOWN(支出内訳総括表!C22*内訳書!T380,0)","v":0},0]
[null,"修理補助対象分","式",null,null,null,null,{"$f":"IF(支出内訳総括表!C$22=0,0,(ROUNDDOWN($R380*支出内訳総括表!D$22/支出内訳総括表!C$22,0)))","v":0}]
[null,"修景補助対象分","式",null,null,null,null,{"$f":"IF(支出内訳総括表!C$22=0,0,(ROUNDDOWN($R380*支出内訳総括表!E$22/支出内訳総括表!C$22,0)))","v":0}]
[]
["設計監理料【変更】",null,"式",null,null,null,null,null,null,null,null,null,null,null,null,null,null,{"$f":"IF(S384=\"\",D384,IF(S384>D384,D384,S384))","v":0},{"$f":"ROUNDDOWN(支出内訳総括表!F22*内訳書!T384,0)","v":0},0]
[null,"修理補助対象分","式"]
[null,"修景補助対象分","式"]
[]
["設計監理料【実績】",null,"式",null,null,null,null,null,null,null,null,null,null,null,null,null,null,{"$f":"IF(S388=\"\",D388,IF(S388>D388,D388,S388))","v":0},{"$f":"ROUNDDOWN(支出内訳総括表!I22*内訳書!T388,0)","v":0},0]
[null,"修理補助対象分","式"]
[null,"修景補助対象分","式"]
[]
[]
[]
[]
[]
[]
[]
[]
[]
[]
[]
[]
["小計",null,null,null,null,{"$f":"SUM(F380:F402)","v":0},null,{"$f":"SUM(H380:H402)","v":0},null,{"$f":"SUM(J380:J402)","v":0},null,{"$f":"SUM(L380:L402)","v":0},null,{"$f":"SUM(N380:N402)","v":0},null,{"$f":"SUM(P380:P402)","v":0},null,{"$f":"IF(S403=\"\",D403,IF(S403>D403,D403,S403))","v":0}]
["諸経費",null,null,null,null,null,null,null,null,null,null,null,null,null,null,null,null,"諸経費率","工事費"]
["諸経費【当初】",null,"式",null,null,{"$f":"ROUNDDOWN(D405*E405,0)","v":0},null,null,null,null,null,null,null,null,null,null,null,{"$f":"IF(S405=0,0,ROUNDDOWN(D405/S405,3))","v":0},{"$f":"支出内訳総括表!C18","v":0}]
[null,"修理補助対象分","式",null,null,null,null,{"$f":"IF(支出内訳総括表!C18=0,0,(ROUNDDOWN($D405*支出内訳総括表!D18/支出内訳総括表!C18,0)))","v":0}]
[null,"修景補助対象分","式",null,null,null,null,{"$f":"IF(支出内訳総括表!C18=0,0,(ROUNDDOWN($D405*支出内訳総括表!E18/支出内訳総括表!C18,0)))","v":0}]
[]
["諸経費【変更】",null,null,{"$f":"ROUNDDOWN(支出内訳総括表!F18*内訳書!R405,0)","v":0}]
[null,"修理補助対象分","式"]
[null,"修景補助対象分","式"]
[]
["諸経費【実績】",null,null,{"$f":"ROUNDDOWN(支出内訳総括表!I18*内訳書!R405,0)","v":0}]
[null,"修理補助対象分","式"]
[null,"修景補助対象分","式"]
[]
[]
[]
[]
[]
[]
[]
[]
[]
[]
[]
[]
["小計",null,null,null,null,{"$f":"SUM(F405:F427)","v":0},null,{"$f":"SUM(H405:H427)","v":0},null,{"$f":"SUM(J405:J427)","v":0},null,{"$f":"SUM(L405:L427)","v":0},null,{"$f":"SUM(N405:N427)","v":0},null,{"$f":"SUM(P405:P427)","v":0},null,{"$f":"IF(S428=\"\",D428,IF(S428>D428,D428,S428))","v":0}]

{"sheet":"木材明細(当初修理）","index":9,"n_rows":177,"n_cols":22,"rows_kept":177,"cut":false,"hidden":false,"merged":[[1,24,2,24],[1,25,2,25],[1,7,1,11],[1,12,2,12],[1,13,2,13],[1,14,1,16],[1,18,2,18],[1,23,2,23],[1,21,2,21],[167,3,167,4],[58,1,59,1],[164,1,165,1],[1,19,2,19],[1,20,2,20],[1,1,2,1],[1,2,2,2],[1,3,2,3],[1,4,2,4],[1,5,2,5],[1,6,2,6]]}
[null,null,"木材明細表"]
[null,"分類","名　称","場　所","材種","等級","単位","木材の大きさ",null,null,null,null,"全体数量","全体材積","数量内訳",null,null,"単価","上限単価\n（豊田市）","補助対象\n採用単価","全体金額","補助対象金額"]
[null,null,null,null,null,null,null,"Ｗ (m)","Ｄ (m)","Ｌ (m)","部材\n使用率","材積",null,null,"対象数量","補助対象","対象外","㎥単価"]
[null,"構造材","土台",null,"栗",null,"ｍ3",null,null,null,1,{"$f":"ROUNDDOWN(H4*I4*J4*K4,3)","v":0},null,{"$f":"M4*L4","v":0},null,{"$f":"L4*O4","v":0},{"$f":"N4-P4","v":0},null,null,{"$f":"IF(S4=\"\",R4,MIN(R4:S4))","v":0},{"$f":"ROUNDDOWN(R4*N4,0)","v":0},{"$f":"ROUNDDOWN(P4*T4,0)","v":0}]
[null,null,"土台",null,"栗",null,"ｍ2",null,null,null,1,{"$f":"ROUNDDOWN(H5*I5*J5*K5,3)","v":0},null,{"$f":"M5*L5","v":0},null,{"$f":"L5*O5","v":0},{"$f":"N5-P5","v":0},null,null,{"$f":"IF(S5=\"\",R5,MIN(R5:S5))","v":0},0,0]
[null,null,"土台",null,"栗",null,"ｍ3",null,null,null,1,0,null,0,null,0,0,null,null,0,0,0]
[null,null,"土台",null,"栗",null,"ｍ3",null,null,null,1,0,null,0,null,0,0,null,null,0,0,0]
[null,null,"柱",null,"桧",null,"ｍ3",null,null,null,1,0,null,0,null,0,0,null,null,0,0,0]
[null,null,"柱",null,"桧",null,"ｍ3",null,null,null,1,0,null,0,null,0,0,null,null,0,0,0]
[null,null,"柱",null,null,null,"ｍ3",null,null,null,1,0,null,0,null,0,0,null,null,0,0,0]
[null,null,"柱",null,null,null,"ｍ3",null,null,null,1,0,null,0,null,0,0,null,null,0,0,0]
[null,null,"柱",null,null,null,"ｍ3",null,null,null,1,0,null,0,null,0,0,null,null,0,0,0]
[null,null,"柱",null,null,null,"ｍ3",null,null,null,1,0,null,0,null,0,0,null,null,0,0,0]
[null,null,"柱",null,"桧",null,"ｍ3",null,null,null,1,0,null,0,null,0,0,null,null,0,0,0]
[null,null,"貫",null,"ｽｷﾞ","特一","ｍ3",null,null,null,1,0,null,0,null,0,0,null,null,0,0,0]
[null,null,"貫",null,"桧","特一","ｍ3",null,null,null,1,0,null,0,null,0,0,null,null,0,0,0]
[null,null,"貫",null,"桧","特一","ｍ3",null,null,null,1,0,null,0,null,0,0,null,null,0,0,0]
[null,null,"梁",null,"桧",null,"ｍ3",null,null,null,1,0,null,0,null,0,0,null,null,0,0,0]
[null,null,"梁",null,"桧",null,"ｍ3",null,null,null,1,0,null,0,null,0,0,null,null,0,0,0]
[null,null,"梁",null,"ﾋﾉｷ","特一","ｍ3",null,null,null,1,0,null,0,null,0,0,null,null,0,0,0]
[null,null,"梁",null,null,null,"ｍ3",null,null,null,1,0,null,0,null,0,0,null,null,0,0,0]
[null,null,"梁",null,null,null,"ｍ3",null,null,null,1,0,null,0,null,0,0,null,null,0,0,0]
[null,null,"登り梁",null,"地松","特一","ｍ3",null,null,null,1,0,null,0,null,0,0,null,null,0,0,0]
[null,null,"登り梁",null,"地松","特一","ｍ3",null,null,null,1,0,null,0,null,0,0,null,null,0,0,0]
[null,null,"桁",null,"地松","特一","ｍ3",null,null,null,1,0,null,0,null,0,0,null,null,0,0,0]
[null,null,"桁",null,"地松","特一","ｍ3",null,null,null,1,0,null,0,null,0,0,null,null,0,0,0]
[null,null,"桁",null,"地松","特一","ｍ3",null,null,null,1,0,null,0,null,0,0,null,null,0,0,0]
[null,null,"桁",null,"地松","特一","ｍ3",null,null,null,1,0,null,0,null,0,0,null,null,0,0,0]
[null,null,"桁",null,"地松","特一","ｍ3",null,null,null,1,{"$f":"ROUNDDOWN(H29*I29*J29*K29,3)","v":0},null,{"$f":"M29*L29","v":0},null,{"$f":"L29*O29","v":0},{"$f":"N29-P29","v":0},null,null,{"$f":"IF(S29=\"\",R29,MIN(R29:S29))","v":0},0,0]
[null,null,"桁",null,"地松","特一","ｍ3",null,null,null,1,0,null,0,null,0,0,null,null,0,0,0]
[null,null,"桁",null,"地松","特一","ｍ3",null,null,null,1,0,null,0,null,0,0,null,null,0,0,0]
[null,"構造材","小屋束",null,null,null,"ｍ3",null,null,null,1,0,null,0,null,0,0,null,null,0,0,0]
[null,null,"小屋束",null,null,null,"ｍ3",null,null,null,1,0,null,0,null,0,0,null,null,0,0,0]
[null,null,"母屋",null,"地松","特一","ｍ3",null,null,null,1,0,null,0,null,0,0,null,null,0,0,0]
[null,null,"母屋",null,"地松","特一","ｍ3",null,null,null,1,0,null,0,null,0,0,null,null,0,0,0]
[null,null,"母屋",null,"地松","特一","ｍ3",null,null,null,1,0,null,0,null,0,0,null,null,0,{"$f":"ROUNDDOWN(R36*N36,0)","v":0},{"$f":"ROUNDDOWN(P36*T36,0)","v":0}]
[null,null,"棟木",null,"地松","特一","ｍ3",null,null,null,1,0,null,0,null,0,0,null,null,0,0,0]
[null,null,"棟木",null,"地松","ｺﾐ","ｍ3",null,null,null,1,0,null,0,null,0,0,null,null,0,0,0]
[null,null,"棟木",null,"地松","特一","ｍ3",null,null,null,1,0,null,0,null,0,0,null,null,0,0,0]
[null,null,"垂木",null,"桧","上小節","ｍ3",null,null,null,1,0,null,0,null,0,0,null,null,0,0,0]
[null,null,"垂木",null,"杉",null,"ｍ3",null,null,null,1,0,null,0,null,0,0,null,null,0,0,0]
[null,null,"垂木掛",null,"杉",null,"ｍ3",null,null,null,1,0,null,0,null,0,0,null,null,0,0,0]
[null,null,"野地板",null,"桧",null,"ｍ3",null,null,null,1,0,null,0,null,0,0,null,null,0,0,0]
[null,null,"野地板","化粧板","杉",null,"ｍ3",null,null,null,1,0,null,0,null,0,0,null,null,0,0,0]
[null,null,"広木舞",null,"杉","特一","ｍ3",null,null,null,1,0,null,0,null,0,0,null,null,0,0,0]
[null,null,"広木舞",null,"杉","特一","ｍ3",null,null,null,1,0,null,0,null,0,0,null,null,0,0,0]
[null,null,null,null,null,null,"ｍ3",null,null,null,1,0,null,0,null,0,0,null,null,0,0,0]
[null,null,null,null,null,null,"ｍ3",null,null,null,1,0,null,0,null,0,0,null,null,0,0,0]
[null,null,null,null,null,null,"ｍ3",null,null,null,1,0,null,0,null,0,0,null,null,0,0,0]
[null,null,null,null,null,null,"ｍ3",null,null,null,1,0,null,0,null,0,0,null,null,0,0,0]
[null,null,null,null,null,null,"ｍ3",null,null,null,1,{"$f":"ROUNDDOWN(H51*I51*J51*K51,3)","v":0},null,{"$f":"M51*L51","v":0},null,{"$f":"L51*O51","v":0},{"$f":"N51-P51","v":0},null,null,{"$f":"IF(S51=\"\",R51,MIN(R51:S51))","v":0},0,0]
[null,null,null,null,null,null,"ｍ3",null,null,null,1,{"$f":"ROUNDDOWN(H52*I52*J52*K52,3)","v":0},null,{"$f":"M52*L52","v":0},null,{"$f":"L52*O52","v":0},{"$f":"N52-P52","v":0},null,null,{"$f":"IF(S52=\"\",R52,MIN(R52:S52))","v":0},0,0]
[null,null,null,null,null,null,"ｍ3",null,null,null,1,{"$f":"ROUNDDOWN(H53*I53*J53*K53,3)","v":0},null,{"$f":"M53*L53","v":0},null,{"$f":"L53*O53","v":0},{"$f":"N53-P53","v":0},null,null,{"$f":"IF(S53=\"\",R53,MIN(R53:S53))","v":0},0,0]
[null,null,null,null,null,null,"ｍ3",null,null,null,1,0,null,0,null,0,0,null,null,0,0,0]
[null,null,null,null,null,null,"ｍ3",null,null,null,1,0,null,0,null,0,0,null,null,0,0,0]
[null,null,null,null,null,null,"ｍ3",null,null,null,1,0,null,0,null,0,0,null,null,0,0,0]
[null,null,null,null,null,null,"ｍ3",null,null,null,1,0,null,0,null,0,0,null,null,0,0,0]
[null,null,null,null,null,null,"ｍ3",null,null,null,1,0,null,0,null,0,0,null,null,0,0,0]
[null,"合　　計",null,null,null,null,null,null,null,null,null,{"$f":"SUM(L4:L58)","v":0},null,{"$f":"SUM(N4:N58)","v":0},null,{"$f":"SUM(P4:P58)","v":0},{"$f":"SUM(Q4:Q58)","v":0},null,null,null,{"$f":"SUM(U4:U58)","v":0},{"$f":"SUM(V4:V58)","v":0}]
[null,null,null,null,null,null,null,null,null,null,null,{"$f":"ROUNDDOWN(L59,2)","v":0},null,{"$f":"ROUNDDOWN(N59,2)","v":0},null,{"$f":"ROUNDDOWN(P59,2)","v":0},{"$f":"ROUNDDOWN(Q59,2)","v":0},null,null,"端数切捨て",{"$f":"ROUNDDOWN(U59,-2)","v":0},{"$f":"ROUNDDOWN(V59,-2)","v":0}]
[null,"造作材","窓枠",null,"ﾋﾉｷ","特一","ｍ3",null,null,null,1,{"$f":"ROUNDDOWN(H61*I61*J61*K61,3)","v":0},null,{"$f":"M61*L61","v":0},null,{"$f":"L61*O61","v":0},{"$f":"N61-P61","v":0},null,null,{"$f":"IF(S61=\"\",R61,MIN(R61:S61))","v":0},{"$f":"ROUNDDOWN(R61*N61,0)","v":0},{"$f":"ROUNDDOWN(P61*T61,0)","v":0}]
[null,null,"手摺、出窓",null,"ﾋﾉｷ","上小節","ｍ3",null,null,null,1,0,null,0,null,0,0,null,null,0,0,0]
[null,null,"窓枠",null,"ﾋﾉｷ","上小節","ｍ3",null,null,null,1,0,null,0,null,0,0,null,null,0,0,0]
[null,null,"のし水切り",null,"ﾋﾉｷ","上小節","ｍ3",null,null,null,1,0,null,0,null,0,0,null,null,0,0,0]
[null,null,"下見板",null,"ﾋﾉｷ","特一","ｍ3",null,null,null,1,0,null,0,null,0,0,null,null,0,0,0]
[null,null,"下地",null,"ｽｷﾞ","特一","ｍ3",null,null,null,1,0,null,0,null,0,0,null,null,0,0,0]
[null,null,null,null,"ｽｷﾞ","特一","ｍ3",null,null,null,1,0,null,0,null,0,0,null,null,0,0,0]
[null,null,null,null,"ｽｷﾞ","特一","ｍ3",null,null,null,1,0,null,0,null,0,0,null,null,0,0,0]
[null,null,"既設庇",null,"ﾋﾉｷ","上小節","ｍ3",null,null,null,1,0,null,0,null,0,0,null,null,0,0,0]
[null,null,null,null,"ﾋﾉｷ","上小節","ｍ3",null,null,null,1,0,null,0,null,0,0,null,null,0,0,0]
[null,null,null,null,"ﾋﾉｷ","上小節","ｍ3",null,null,null,1,0,null,0,null,0,0,null,null,0,0,0]
[null,null,null,null,"ﾋﾉｷ","特一","ｍ3",null,null,null,1,0,null,0,null,0,0,null,null,0,0,0]
[null,null,null,null,"ﾋﾉｷ",null,"ｍ3",null,null,null,1,{"$f":"ROUNDDOWN(H73*I73*J73*K73,3)","v":0},null,{"$f":"M73*L73","v":0},null,{"$f":"L73*O73","v":0},{"$f":"N73-P73","v":0},null,null,{"$f":"IF(S73=\"\",R73,MIN(R73:S73))","v":0},{"$f":"ROUNDDOWN(R73*N73,0)","v":0},{"$f":"ROUNDDOWN(P73*T73,0)","v":0}]
[null,null,null,null,"ｽｷﾞ",null,"ｍ3",null,null,null,1,{"$f":"ROUNDDOWN(H74*I74*J74*K74,3)","v":0},null,{"$f":"M74*L74","v":0},null,{"$f":"L74*O74","v":0},{"$f":"N74-P74","v":0},null,null,{"$f":"IF(S74=\"\",R74,MIN(R74:S74))","v":0},{"$f":"ROUNDDOWN(R74*N74,0)","v":0},{"$f":"ROUNDDOWN(P74*T74,0)","v":0}]
[null,null,"外壁",null,"ｽｷﾞ","特一","ｍ3",null,null,null,1,0,null,0,null,0,0,null,null,0,0,0]
[null,null,null,null,"ｽｷﾞ","特一","ｍ3",null,null,null,1,0,null,0,null,0,0,null,null,0,0,0]
[null,null,null,null,"ｽｷﾞ","特一","ｍ3",null,null,null,1,0,null,0,null,0,0,null,null,0,0,0]
[null,null,"床板",null,"桧","節","ｍ3",null,null,null,1,0,null,0,null,0,0,null,null,0,0,0]
[null,null,null,null,null,null,"ｍ3",null,null,null,1,0,null,0,null,0,0,null,null,0,0,0]
[null,null,"外壁",null,"ｽｷﾞ","特一","ｍ3",null,null,null,1,0,null,0,null,0,0,null,null,0,0,0]
[null,null,null,null,"ｽｷﾞ","特一","ｍ3",null,null,null,1,0,null,0,null,0,0,null,null,0,0,0]
[null,null,null,null,"ｽｷﾞ","特一","ｍ3",null,null,null,1,0,null,0,null,0,0,null,null,0,0,0]
[null,null,null,null,"ﾋﾉｷ","特一","ｍ3",null,null,null,1,0,null,0,null,0,0,null,null,0,0,0]
[null,null,null,null,"ﾋﾉｷ","上小節","ｍ3",null,null,null,1,0,null,0,null,0,0,null,null,0,0,0]
[null,null,"内部",null,"ｽｷﾞ","特一","ｍ3",null,null,null,1,0,null,0,null,0,0,null,null,0,0,0]
[null,null,null,null,"ｽｷﾞ","特一","ｍ3",null,null,null,1,0,null,0,null,0,0,null,null,0,0,0]
[null,null,null,null,"ﾋﾉｷ","上小節","ｍ3",null,null,null,1,0,null,0,null,0,0,null,null,0,0,0]
[null,null,null,null,"ﾋﾉｷ","特一","ｍ3",null,null,null,1,{"$f":"ROUNDDOWN(H88*I88*J88*K88,3)","v":0},null,{"$f":"M88*L88","v":0},null,{"$f":"L88*O88","v":0},{"$f":"N88-P88","v":0},null,null,{"$f":"IF(S88=\"\",R88,MIN(R88:S88))","v":0},0,0]
[null,null,null,null,null,null,"ｍ3",null,null,null,1,0,null,0,null,0,0,null,null,0,0,0]
[null,"造作材","庇",null,"ｽｷﾞ",null,"ｍ3",null,null,null,1,0,null,0,null,0,0,null,null,0,0,0]
[null,null,null,null,"ﾋﾉｷ","上小節","ｍ3",null,null,null,1,0,null,0,null,0,0,null,null,0,0,0]
[null,null,null,null,"ﾋﾉｷ","上小節","ｍ3",null,null,null,1,0,null,0,null,0,0,null,null,0,0,0]
[null,null,null,null,null,null,"ｍ3",null,null,null,1,0,null,0,null,0,0,null,null,0,{"$f":"ROUNDDOWN(R93*N93,0)","v":0},{"$f":"ROUNDDOWN(P93*T93,0)","v":0}]
[null,null,"敷居",null,null,null,"ｍ3",null,null,null,1,0,null,0,null,0,0,null,null,0,0,0]
[null,null,"敷居",null,null,null,"ｍ3",null,null,null,1,0,null,0,null,0,0,null,null,0,0,0]
[null,null,"敷居",null,null,null,"ｍ3",null,null,null,1,0,null,0,null,0,0,null,null,0,0,0]
[null,null,"敷居",null,null,null,"ｍ3",null,null,null,1,0,null,0,null,0,0,null,null,0,0,0]
[null,null,"腰壁",null,"杉","赤身","ｍ3",null,null,null,1,0,null,0,null,0,0,null,null,0,0,0]
[null,null,"腰壁",null,"杉","赤身","ｍ3",null,null,null,1,0,null,0,null,0,0,null,null,0,0,0]
[null,null,"腰壁",null,"杉","赤身","ｍ3",null,null,null,1,0,null,0,null,0,0,null,null,0,0,0]
[null,null,"腰壁",null,"杉","赤身","ｍ3",null,null,null,1,0,null,0,null,0,0,null,null,0,0,0]
[null,null,"腰壁",null,"杉","赤身","ｍ3",null,null,null,1,0,null,0,null,0,0,null,null,0,0,0]
[null,null,"戸箱",null,"杉",null,"ｍ3",null,null,null,1,0,null,0,null,0,0,null,null,0,0,0]
[null,null,"戸箱",null,"杉",null,"ｍ3",null,null,null,1,0,null,0,null,0,0,null,null,0,0,0]
[null,null,"戸箱",null,"杉",null,"ｍ3",null,null,null,1,0,null,0,null,0,0,null,null,0,0,0]
[null,null,"戸箱",null,"杉",null,"ｍ3",null,null,null,1,0,null,0,null,0,0,null,null,0,0,0]
[null,null,"格子枠",null,"ﾋﾉｷ",null,"ｍ3",null,null,null,1,0,null,0,null,0,0,null,null,0,0,0]
[null,null,"格子枠",null,"ﾋﾉｷ",null,"ｍ3",null,null,null,1,0,null,0,null,0,0,null,null,0,0,0]
[null,null,"格子枠",null,"ﾋﾉｷ",null,"ｍ3",null,null,null,1,0,null,0,null,0,0,null,null,0,0,0]
[null,null,"格子枠",null,"ﾋﾉｷ",null,"ｍ3",null,null,null,1,0,null,0,null,0,0,null,null,0,0,0]
[null,null,"外部板",null,"杉",null,"ｍ3",null,null,null,1,{"$f":"ROUNDDOWN(H111*I111*J111*K111,3)","v":0},null,{"$f":"M111*L111","v":0},null,{"$f":"L111*O111","v":0},{"$f":"N111-P111","v":0},null,null,{"$f":"IF(S111=\"\",R111,MIN(R111:S111))","v":0},0,0]
[null,null,"外部板",null,"杉",null,"ｍ3",null,null,null,1,{"$f":"ROUNDDOWN(H112*I112*J112*K112,3)","v":0},null,{"$f":"M112*L112","v":0},null,{"$f":"L112*O112","v":0},{"$f":"N112-P112","v":0},null,null,{"$f":"IF(S112=\"\",R112,MIN(R112:S112))","v":0},0,0]
[null,null,"間柱",null,"杉",null,"ｍ3",null,null,null,1,{"$f":"ROUNDDOWN(H113*I113*J113*K113,3)","v":0},null,{"$f":"M113*L113","v":0},null,{"$f":"L113*O113","v":0},{"$f":"N113-P113","v":0},null,null,{"$f":"IF(S113=\"\",R113,MIN(R113:S113))","v":0},0,0]
[null,null,"間柱",null,"杉",null,"ｍ3",null,null,null,1,{"$f":"ROUNDDOWN(H114*I114*J114*K114,3)","v":0},null,{"$f":"M114*L114","v":0},null,{"$f":"L114*O114","v":0},{"$f":"N114-P114","v":0},null,null,{"$f":"IF(S114=\"\",R114,MIN(R114:S114))","v":0},0,0]
[null,null,"間柱",null,"杉",null,"ｍ3",null,null,null,1,0,null,0,null,0,0,null,null,0,0,0]
[null,null,"間柱",null,"杉",null,"ｍ3",null,null,null,1,0,null,0,null,0,0,null,null,0,0,0]
[null,null,"間柱",null,"桧",null,"ｍ3",null,null,null,1,0,null,0,null,0,0,null,null,0,0,0]
[null,null,null,null,null,null,"ｍ3",null,null,null,1,0,null,0,null,0,0,null,null,0,0,0]
[null,"造作材","霧除",null,"杉",null,"ｍ3",null,null,null,1,0,null,0,null,0,0,null,null,0,0,0]
[null,null,"霧除",null,"杉",null,"ｍ3",null,null,null,1,0,null,0,null,0,0,null,null,0,0,0]
[null,null,"霧除",null,"杉",null,"ｍ3",null,null,null,1,0,null,0,null,0,0,null,null,0,0,0]
[null,null,"小庇",null,"杉",null,"ｍ3",null,null,null,1,0,null,0,null,0,0,null,null,0,0,0]
[null,null,"小庇",null,"杉",null,"ｍ3",null,null,null,1,0,null,0,null,0,0,null,null,0,0,0]
[null,null,"小庇",null,"杉",null,"ｍ3",null,null,null,1,0,null,0,null,0,0,null,null,0,0,0]
[null,null,"小庇",null,"杉",null,"ｍ3",null,null,null,1,0,null,0,null,0,0,null,null,0,{"$f":"ROUNDDOWN(R125*N125,0)","v":0},{"$f":"ROUNDDOWN(P125*T125,0)","v":0}]
[null,null,"小庇",null,"杉",null,"ｍ3",null,null,null,1,0,null,0,null,0,0,null,null,0,0,0]
[null,null,"小庇",null,"杉",null,"ｍ3",null,null,null,1,0,null,0,null,0,0,null,null,0,0,0]
[null,null,"屋根","瓦桟","杉",null,"ｍ3",null,null,null,1,{"$f":"ROUNDDOWN(H128*I128*J128*K128,3)","v":0},null,{"$f":"M128*L128","v":0},null,{"$f":"L128*O128","v":0},{"$f":"N128-P128","v":0},null,null,{"$f":"IF(S128=\"\",R128,MIN(R128:S128))","v":0},0,0]
[null,null,"屋根","破風板","杉",null,"ｍ3",null,null,null,1,0,null,0,null,0,0,null,null,0,0,0]
[null,null,"屋根","破風板","杉",null,"ｍ3",null,null,null,1,0,null,0,null,0,0,null,null,0,0,0]
[null,null,"屋根","掛け","杉",null,"ｍ3",null,null,null,1,0,null,0,null,0,0,null,null,0,0,0]
[null,null,"屋根",null,"杉",null,"ｍ3",null,null,null,1,0,null,0,null,0,0,null,null,0,0,0]
[null,null,"屋根",null,"杉",null,"ｍ3",null,null,null,1,0,null,0,null,0,0,null,null,0,0,0]
[null,null,"屋根",null,"杉",null,"ｍ3",null,null,null,1,0,null,0,null,0,0,null,null,0,0,0]
[null,null,"天井板","軒天","杉","無地","ｍ3",null,null,null,1,0,null,0,null,0,0,null,null,0,0,0]
[null,null,"天井板",null,null,null,"ｍ3",null,null,null,1,0,null,0,null,0,0,null,null,0,0,0]
[null,null,"天井板",null,null,null,"ｍ3",null,null,null,1,0,null,0,null,0,0,null,null,0,0,0]
[null,null,"天井板",null,null,null,"ｍ3",null,null,null,1,0,null,0,null,0,0,null,null,0,0,0]
[null,null,"廻縁",null,"ｽｷﾞ",null,"ｍ3",null,null,null,1,0,null,0,null,0,0,null,null,0,0,0]
[null,null,"廻縁",null,null,null,"ｍ3",null,null,null,1,0,null,0,null,0,0,null,null,0,0,0]
[null,null,"棹縁",null,"ｽｷﾞ",null,"ｍ3",null,null,null,1,0,null,0,null,0,0,null,null,0,0,0]
[null,null,"棹縁",null,null,null,"ｍ3",null,null,null,1,0,null,0,null,0,0,null,null,0,0,0]
[null,null,null,null,null,null,null,null,null,null,1,0,null,0,null,0,0,null,null,0,0,0]
[null,null,null,null,null,null,null,null,null,null,1,0,null,0,null,0,0,null,null,0,0,0]
[null,null,null,null,null,null,"ｍ3",null,null,null,1,0,null,0,null,0,0,null,null,0,0,0]
[null,null,null,null,null,null,"ｍ3",null,null,null,1,0,null,0,null,0,0,null,null,0,0,0]
[null,null,null,null,null,null,"ｍ3",null,null,null,1,0,null,0,null,0,0,null,null,0,0,0]
[null,null,null,null,null,null,"ｍ3",null,null,null,1,0,null,0,null,0,0,null,null,0,0,0]
[null,null,null,null,null,null,"ｍ3",null,null,null,1,0,null,0,null,0,0,null,null,0,0,0]
[null,null,null,null,null,null,"ｍ3",null,null,null,1,0,null,0,null,0,0,null,null,0,0,0]
[null,null,null,null,null,null,"ｍ3",null,null,null,1,0,null,0,null,0,0,null,null,0,0,0]
[null,null,null,null,null,null,"ｍ3",null,null,null,1,0,null,0,null,0,0,null,null,0,0,0]
[null,null,null,null,null,null,"ｍ3",null,null,null,1,0,null,0,null,0,0,null,null,0,0,0]
[null,null,null,null,null,null,"ｍ3",null,null,null,1,0,null,0,null,0,0,null,null,0,0,0]
[null,null,null,null,null,null,"ｍ3",null,null,null,1,0,null,0,null,0,0,null,null,0,0,0]
[null,null,null,null,null,null,"ｍ3",null,null,null,1,0,null,0,null,0,0,null,null,0,0,0]
[null,null,null,null,null,null,"ｍ3",null,null,null,1,0,null,0,null,0,0,null,null,0,{"$f":"ROUNDDOWN(R157*N157,0)","v":0},{"$f":"ROUNDDOWN(P157*T157,0)","v":0}]
[null,null,null,null,null,null,"ｍ3",null,null,null,1,0,null,0,null,0,0,null,null,0,0,0]
[null,null,null,null,null,null,"ｍ3",null,null,null,1,0,null,0,null,0,0,null,null,0,0,0]
[null,null,null,null,null,null,"ｍ3",null,null,null,1,0,null,0,null,0,0,null,null,0,0,0]
[null,null,null,null,null,null,"ｍ3",null,null,null,1,0,null,0,null,0,0,null,null,0,0,0]
[null,null,null,null,null,null,"ｍ3",null,null,null,1,0,null,0,null,0,0,null,null,0,0,0]
[null,null,null,null,null,null,"ｍ3",null,null,null,1,0,null,0,null,0,0,null,null,0,0,0]
[null,null,null,null,null,null,"ｍ3",null,null,null,1,0,null,0,null,0,0,null,null,0,0,0]
[null,"合　　計",null,null,null,null,null,null,null,null,null,{"$f":"SUM(L61:L164)","v":0},null,{"$f":"SUM(N61:N164)","v":0},null,{"$f":"SUM(P61:P164)","v":0},{"$f":"SUM(Q61:Q164)","v":0},null,null,null,{"$f":"SUM(U61:U164)","v":0},{"$f":"SUM(V61:V164)","v":0}]
[null,null,null,null,null,null,null,null,null,null,null,{"$f":"ROUNDDOWN(L165,2)","v":0},null,{"$f":"ROUNDDOWN(N165,2)","v":0},null,{"$f":"ROUNDDOWN(P165,2)","v":0},{"$f":"ROUNDDOWN(Q165,2)","v":0},null,null,"端数切捨て",{"$f":"ROUNDDOWN(U165,-2)","v":0},{"$f":"ROUNDDOWN(V165,-2)","v":0}]
[]
[null,null,null,"人工の単価",null,"豊田市設定\n単価","補助対象単価","人工/㎥","全体人工","合計","補助対象人工","合計"]
[null,null,null,"構造材大工手間",20000,23400,{"$f":"IF(F169=\"\",E169,IF(F169>E169,E169,F169))","v":20000},null,{"$f":"ROUNDDOWN(((P60+Q60)*H169),0)","v":0},{"$f":"I169*E169","v":0},{"$f":"ROUNDDOWN((P60*H169),0)","v":0},{"$f":"G169*K169","v":0}]
[null,null,null,"構造材手元手間",15000,17500,{"$f":"IF(F170=\"\",E170,IF(F170>E170,E170,F170))","v":15000},null,{"$f":"ROUNDDOWN((I169*0.15),0)","v":0},{"$f":"I170*E170","v":0},{"$f":"ROUNDDOWN((K169*0.15),0)","v":0},{"$f":"G170*K170","v":0}]
[null,null,null,"造作材大工手間",20000,23400,{"$f":"IF(F171=\"\",E171,IF(F171>E171,E171,F171))","v":20000},null,{"$f":"ROUNDDOWN(((P166+Q166)*H171),0)","v":0},{"$f":"I171*E171","v":0},{"$f":"ROUNDDOWN((P166*H171),0)","v":0},{"$f":"G171*K171","v":0}]
[null,null,null,"造作材手元手間",15000,17500,{"$f":"IF(F172=\"\",E172,IF(F172>E172,E172,F172))","v":15000},null,{"$f":"ROUNDDOWN((I171*0.15),0)","v":0},{"$f":"I172*E172","v":0},{"$f":"ROUNDDOWN((K171*0.15),0)","v":0},{"$f":"G172*K172","v":0}]
[]
[null,null,null,null,null,null,null,null,null,{"$f":"SUM(J169:J170)","v":0}]
[null,null,null,null,null,null,null,null,null,{"$f":"SUM(J171:J172)","v":0}]
[]
[null,null,null,null,null,null,null,null,null,{"$f":"SUM(J174:J175)","v":0}]

{"sheet":"木材明細(当初修景）","index":10,"n_rows":172,"n_cols":22,"rows_kept":172,"cut":false,"hidden":false,"merged":[[1,20,2,20],[1,25,2,25],[1,23,2,23],[1,24,2,24],[1,21,2,21],[1,19,2,19],[1,5,2,5],[1,7,1,11],[1,3,2,3],[1,4,2,4],[1,12,2,12],[1,18,2,18],[1,13,2,13],[1,14,1,16],[1,6,2,6],[167,3,167,4],[1,1,2,1],[1,2,2,2],[58,1,59,1],[164,1,165,1]]}
[null,null,"木材明細表",null,null,null,null,null,null,null,null,null,null,null,null,null,null,null,null,null,null,"「　場所の凡例　Ⅰ.北棟東面部分、Ⅱ.北棟北面部分、Ⅲ.北棟南面部分、Ⅳ.内部柱建て補強土台等取付部分　」"]
[null,"分類","名　称","場　所","材種","等級","単位","木材の大きさ",null,null,null,null,"全体数量","全体材積","数量内訳",null,null,"単価","上限単価\n（豊田市）","補助対象\n採用単価","全体金額","補助対象金額"]
[null,null,null,null,null,null,null,"Ｗ (m)","Ｄ (m)","Ｌ (m)","部材\n使用率","材積",null,null,"対象数量","補助対象","対象外","㎥単価"]
[null,"構造材","土台",null,"栗",null,"ｍ3",null,null,null,1,{"$f":"ROUNDDOWN(H4*I4*J4*K4,3)","v":0},null,{"$f":"M4*L4","v":0},null,{"$f":"L4*O4","v":0},{"$f":"N4-P4","v":0},null,null,{"$f":"IF(S4=\"\",R4,MIN(R4:S4))","v":0},{"$f":"ROUNDDOWN(R4*N4,0)","v":0},{"$f":"ROUNDDOWN(P4*T4,0)","v":0}]
[null,null,"土台",null,"栗",null,"ｍ2",null,null,null,1,{"$f":"ROUNDDOWN(H5*I5*J5*K5,3)","v":0},null,{"$f":"M5*L5","v":0},null,{"$f":"L5*O5","v":0},{"$f":"N5-P5","v":0},null,null,{"$f":"IF(S5=\"\",R5,MIN(R5:S5))","v":0},0,0]
[null,null,"土台",null,"栗",null,"ｍ3",null,null,null,1,0,null,0,null,0,0,null,null,0,0,0]
[null,null,"土台",null,"栗",null,"ｍ3",null,null,null,1,0,null,0,null,0,0,null,null,0,0,0]
[null,null,"足固め",null,null,null,"ｍ3",null,null,null,1,0,null,0,null,0,0,null,null,0,0,0]
[null,null,"足固め",null,null,null,"ｍ3",null,null,null,1,0,null,0,null,0,0,null,null,0,0,0]
[null,null,"柱",null,"桧","小節","ｍ3",null,null,null,1,0,null,0,null,0,0,null,null,0,0,0]
[null,null,"柱",null,"桧","特一","ｍ3",null,null,null,1,0,null,0,null,0,0,null,null,0,0,0]
[null,null,"柱",null,null,null,"ｍ3",null,null,null,1,0,null,0,null,0,0,null,null,0,0,0]
[null,null,"柱","根継","杉",null,"ｍ3",null,null,null,1,0,null,0,null,0,0,null,null,0,0,0]
[null,null,"柱",null,null,null,"ｍ3",null,null,null,1,0,null,0,null,0,0,null,null,0,0,0]
[null,null,"貫","2階","桧","特一","ｍ3",null,null,null,1,0,null,0,null,0,0,null,null,0,0,0]
[null,null,"貫","2階","桧","特一","ｍ3",null,null,null,1,0,null,0,null,0,0,null,null,0,0,0]
[null,null,"貫","2階","桧","特一","ｍ3",null,null,null,1,0,null,0,null,0,0,null,null,0,0,0]
[null,null,"梁",null,"地松","特一","ｍ3",null,null,null,1,0,null,0,null,0,0,null,null,0,0,0]
[null,null,"梁",null,"地松","特一","ｍ3",null,null,null,1,0,null,0,null,0,0,null,null,0,0,0]
[null,null,"梁",null,"地松","特一","ｍ3",null,null,null,1,0,null,0,null,0,0,null,null,0,0,0]
[null,null,"梁",null,null,null,"ｍ3",null,null,null,1,0,null,0,null,0,0,null,null,0,0,0]
[null,null,"梁",null,null,null,"ｍ3",null,null,null,1,0,null,0,null,0,0,null,null,0,0,0]
[null,null,"登り梁",null,"地松","特一","ｍ3",null,null,null,1,0,null,0,null,0,0,null,null,0,0,0]
[null,null,"登り梁",null,"地松","特一","ｍ3",null,null,null,1,0,null,0,null,0,0,null,null,0,0,0]
[null,null,"桁",null,"地松","特一","ｍ3",null,null,null,1,0,null,0,null,0,0,null,null,0,0,0]
[null,null,"桁",null,"地松","特一","ｍ3",null,null,null,1,0,null,0,null,0,0,null,null,0,0,0]
[null,null,"桁",null,"地松","特一","ｍ3",null,null,null,1,0,null,0,null,0,0,null,null,0,0,0]
[null,null,"桁",null,"地松","特一","ｍ3",null,null,null,1,0,null,0,null,0,0,null,null,0,0,0]
[null,null,"桁",null,"地松","特一","ｍ3",null,null,null,1,{"$f":"ROUNDDOWN(H29*I29*J29*K29,3)","v":0},null,{"$f":"M29*L29","v":0},null,{"$f":"L29*O29","v":0},{"$f":"N29-P29","v":0},null,null,{"$f":"IF(S29=\"\",R29,MIN(R29:S29))","v":0},0,0]
[null,null,"桁",null,"地松","特一","ｍ3",null,null,null,1,0,null,0,null,0,0,null,null,0,0,0]
[null,null,"桁",null,"地松","特一","ｍ3",null,null,null,1,0,null,0,null,0,0,null,null,0,0,0]
[null,"構造材","小屋束",null,null,null,"ｍ3",null,null,null,1,0,null,0,null,0,0,null,null,0,0,0]
[null,null,"小屋束",null,null,null,"ｍ3",null,null,null,1,0,null,0,null,0,0,null,null,0,0,0]
[null,null,"母屋",null,"地松","特一","ｍ3",null,null,null,1,0,null,0,null,0,0,null,null,0,0,0]
[null,null,"母屋",null,"地松","特一","ｍ3",null,null,null,1,0,null,0,null,0,0,null,null,0,0,0]
[null,null,"母屋",null,"地松","特一","ｍ3",null,null,null,1,0,null,0,null,0,0,null,null,0,0,0]
[null,null,"棟木",null,"地松","特一","ｍ3",null,null,null,1,0,null,0,null,0,0,null,null,0,0,0]
[null,null,"棟木",null,"地松","ｺﾐ","ｍ3",null,null,null,1,0,null,0,null,0,0,null,null,0,0,0]
[null,null,"棟木",null,"地松","特一","ｍ3",null,null,null,1,0,null,0,null,0,0,null,null,0,0,0]
[null,null,"垂木",null,"杉",null,"ｍ3",null,null,null,1,0,null,0,null,0,0,null,null,0,0,0]
[null,null,"垂木",null,"杉",null,"ｍ3",null,null,null,1,0,null,0,null,0,0,null,null,0,0,0]
[null,null,"垂木掛",null,"杉",null,"ｍ3",null,null,null,1,0,null,0,null,0,0,null,null,0,0,0]
[null,null,"野地板",null,"杉","特一","ｍ3",null,null,null,1,0,null,0,null,0,0,null,null,0,0,0]
[null,null,"野地板",null,"杉","特一","ｍ3",null,null,null,1,0,null,0,null,0,0,null,null,0,0,0]
[null,null,"広木舞",null,"杉","特一","ｍ3",null,null,null,1,0,null,0,null,0,0,null,null,0,0,0]
[null,null,"広木舞",null,"杉","特一","ｍ3",null,null,null,1,0,null,0,null,0,0,null,null,0,0,0]
[null,null,null,null,null,null,"ｍ3",null,null,null,1,0,null,0,null,0,0,null,null,0,0,0]
[null,null,null,null,null,null,"ｍ3",null,null,null,1,0,null,0,null,0,0,null,null,0,0,0]
[null,null,null,null,null,null,"ｍ3",null,null,null,1,0,null,0,null,0,0,null,null,0,0,0]
[null,null,null,null,null,null,"ｍ3",null,null,null,1,0,null,0,null,0,0,null,null,0,0,0]
[null,null,null,null,null,null,"ｍ3",null,null,null,1,{"$f":"ROUNDDOWN(H51*I51*J51*K51,3)","v":0},null,{"$f":"M51*L51","v":0},null,{"$f":"L51*O51","v":0},{"$f":"N51-P51","v":0},null,null,{"$f":"IF(S51=\"\",R51,MIN(R51:S51))","v":0},0,0]
[null,null,null,null,null,null,"ｍ3",null,null,null,1,{"$f":"ROUNDDOWN(H52*I52*J52*K52,3)","v":0},null,{"$f":"M52*L52","v":0},null,{"$f":"L52*O52","v":0},{"$f":"N52-P52","v":0},null,null,{"$f":"IF(S52=\"\",R52,MIN(R52:S52))","v":0},0,0]
[null,null,null,null,null,null,"ｍ3",null,null,null,1,{"$f":"ROUNDDOWN(H53*I53*J53*K53,3)","v":0},null,{"$f":"M53*L53","v":0},null,{"$f":"L53*O53","v":0},{"$f":"N53-P53","v":0},null,null,{"$f":"IF(S53=\"\",R53,MIN(R53:S53))","v":0},0,0]
[null,null,null,null,null,null,"ｍ3",null,null,null,1,0,null,0,null,0,0,null,null,0,0,0]
[null,null,null,null,null,null,"ｍ3",null,null,null,1,0,null,0,null,0,0,null,null,0,0,0]
[null,null,null,null,null,null,"ｍ3",null,null,null,1,0,null,0,null,0,0,null,null,0,0,0]
[null,null,null,null,null,null,"ｍ3",null,null,null,1,0,null,0,null,0,0,null,null,0,0,0]
[null,null,null,null,null,null,"ｍ3",null,null,null,1,0,null,0,null,0,0,null,null,0,0,0]
[null,"合　　計",null,null,null,null,null,null,null,null,null,{"$f":"SUM(L4:L58)","v":0},null,{"$f":"SUM(N4:N58)","v":0},null,{"$f":"SUM(P4:P58)","v":0},{"$f":"SUM(Q4:Q58)","v":0},null,null,null,{"$f":"SUM(U4:U58)","v":0},{"$f":"SUM(V4:V58)","v":0}]
[null,null,null,null,null,null,null,null,null,null,null,{"$f":"ROUNDDOWN(L59,2)","v":0},null,{"$f":"ROUNDDOWN(N59,2)","v":0},null,{"$f":"ROUNDDOWN(P59,2)","v":0},{"$f":"ROUNDDOWN(Q59,2)","v":0},null,null,"端数切捨て",{"$f":"ROUNDDOWN(U59,-2)","v":0},{"$f":"ROUNDDOWN(V59,-2)","v":0}]
[null,"造作材","大引",null,null,null,"ｍ3",null,null,null,1,{"$f":"ROUNDDOWN(H61*I61*J61*K61,3)","v":0},null,{"$f":"M61*L61","v":0},null,{"$f":"L61*O61","v":0},{"$f":"N61-P61","v":0},null,null,{"$f":"IF(S61=\"\",R61,MIN(R61:S61))","v":0},{"$f":"ROUNDDOWN(R61*N61,0)","v":0},{"$f":"ROUNDDOWN(P61*T61,0)","v":0}]
[null,null,"大引",null,null,null,"ｍ3",null,null,null,1,0,null,0,null,0,0,null,null,0,0,0]
[null,null,"大引",null,null,null,"ｍ3",null,null,null,1,0,null,0,null,0,0,null,null,0,0,0]
[null,null,"大引",null,null,null,"ｍ3",null,null,null,1,0,null,0,null,0,0,null,null,0,0,0]
[null,null,"大引",null,null,null,"ｍ3",null,null,null,1,0,null,0,null,0,0,null,null,0,0,0]
[null,null,"根太",null,null,null,"ｍ3",null,null,null,1,0,null,0,null,0,0,null,null,0,0,0]
[null,null,"根太",null,null,null,"ｍ3",null,null,null,1,0,null,0,null,0,0,null,null,0,0,0]
[null,null,"根太",null,null,null,"ｍ3",null,null,null,1,0,null,0,null,0,0,null,null,0,0,0]
[null,null,"根太掛",null,null,null,"ｍ3",null,null,null,1,0,null,0,null,0,0,null,null,0,0,0]
[null,null,"床束",null,null,null,"ｍ3",null,null,null,1,0,null,0,null,0,0,null,null,0,0,0]
[null,null,"床束",null,null,null,"ｍ3",null,null,null,1,0,null,0,null,0,0,null,null,0,0,0]
[null,null,"荒床",null,"ｽｷﾞ",null,"ｍ3",null,null,null,1,0,null,0,null,0,0,null,null,0,0,0]
[null,null,"荒床",null,"ｽｷﾞ",null,"ｍ3",null,null,null,1,0,null,0,null,0,0,null,null,0,0,0]
[null,null,"畳寄",null,"ﾋﾉｷ",null,"ｍ3",null,null,null,1,0,null,0,null,0,0,null,null,0,0,0]
[null,null,"畳寄",null,"ﾋﾉｷ",null,"ｍ3",null,null,null,1,0,null,0,null,0,0,null,null,0,0,0]
[null,null,"床板",null,"桧","節","ｍ3",null,null,null,1,0,null,0,null,0,0,null,null,0,0,0]
[null,null,"床板",null,null,null,"ｍ3",null,null,null,1,0,null,0,null,0,0,null,null,0,0,0]
[null,null,"床板",null,null,null,"ｍ3",null,null,null,1,0,null,0,null,0,0,null,null,0,0,0]
[null,null,"床板",null,null,null,"ｍ3",null,null,null,1,0,null,0,null,0,0,null,null,0,0,0]
[null,null,"床板",null,null,null,"ｍ3",null,null,null,1,0,null,0,null,0,0,null,null,0,0,0]
[null,null,"框",null,null,null,"ｍ3",null,null,null,1,0,null,0,null,0,0,null,null,0,0,0]
[null,null,"框",null,null,null,"ｍ3",null,null,null,1,0,null,0,null,0,0,null,null,0,0,0]
[null,null,"鴨居","仏間",null,null,"ｍ3",null,null,null,1,0,null,0,null,0,0,null,null,0,0,0]
[null,null,"鴨居","外部木建",null,null,"ｍ3",null,null,null,1,0,null,0,null,0,0,null,null,0,0,0]
[null,null,"鴨居","外部木建",null,null,"ｍ3",null,null,null,1,0,null,0,null,0,0,null,null,0,0,0]
[null,null,"鴨居","外部木建",null,null,"ｍ3",null,null,null,1,{"$f":"ROUNDDOWN(H86*I86*J86*K86,3)","v":0},null,{"$f":"M86*L86","v":0},null,{"$f":"L86*O86","v":0},{"$f":"N86-P86","v":0},null,null,{"$f":"IF(S86=\"\",R86,MIN(R86:S86))","v":0},0,0]
[null,null,"鴨居","外部木建",null,null,"ｍ3",null,null,null,1,{"$f":"ROUNDDOWN(H87*I87*J87*K87,3)","v":0},null,{"$f":"M87*L87","v":0},null,{"$f":"L87*O87","v":0},{"$f":"N87-P87","v":0},null,null,{"$f":"IF(S87=\"\",R87,MIN(R87:S87))","v":0},0,0]
[null,null,"鴨居","戸走り(上)",null,null,"ｍ3",null,null,null,1,0,null,0,null,0,0,null,null,0,0,0]
[null,null,"鴨居","戸走り(上)",null,null,"ｍ3",null,null,null,1,0,null,0,null,0,0,null,null,0,0,0]
[null,"造作材","無目","外部木建",null,null,"ｍ3",null,null,null,1,0,null,0,null,0,0,null,null,0,0,0]
[null,null,"無目","内部木建",null,null,"ｍ3",null,null,null,1,0,null,0,null,0,0,null,null,0,0,0]
[null,null,"敷居","外部木建",null,null,"ｍ3",null,null,null,1,0,null,0,null,0,0,null,null,0,0,0]
[null,null,"敷居","外部木建",null,null,"ｍ3",null,null,null,1,0,null,0,null,0,0,null,null,0,0,0]
[null,null,"敷居","戸走り(下)",null,null,"ｍ3",null,null,null,1,0,null,0,null,0,0,null,null,0,0,0]
[null,null,"敷居","戸走り(下)",null,null,"ｍ3",null,null,null,1,0,null,0,null,0,0,null,null,0,0,0]
[null,null,"敷居",null,null,null,"ｍ3",null,null,null,1,0,null,0,null,0,0,null,null,0,0,0]
[null,null,"敷居",null,null,null,"ｍ3",null,null,null,1,0,null,0,null,0,0,null,null,0,0,0]
[null,null,"腰壁","下見板","杉","赤身","ｍ3",null,null,null,1,0,null,0,null,0,0,null,null,0,0,0]
[null,null,"腰壁","押縁(竿)","杉","赤身","ｍ3",null,null,null,1,0,null,0,null,0,0,null,null,0,0,0]
[null,null,"腰壁","見切縁","杉","赤身","ｍ3",null,null,null,1,0,null,0,null,0,0,null,null,0,0,0]
[null,null,"腰壁","額縁","杉","赤身","ｍ3",null,null,null,1,0,null,0,null,0,0,null,null,0,0,0]
[null,null,"腰壁",null,"杉","赤身","ｍ3",null,null,null,1,0,null,0,null,0,0,null,null,0,0,0]
[null,null,"戸箱","胴縁","杉",null,"ｍ3",null,null,null,1,0,null,0,null,0,0,null,null,0,0,0]
[null,null,"戸箱","見切り縁","杉",null,"ｍ3",null,null,null,1,0,null,0,null,0,0,null,null,0,0,0]
[null,null,"戸箱","板","杉",null,"ｍ3",null,null,null,1,0,null,0,null,0,0,null,null,0,0,0]
[null,null,"戸箱","目板","杉",null,"ｍ3",null,null,null,1,0,null,0,null,0,0,null,null,0,0,0]
[null,null,"格子枠",null,"ﾋﾉｷ",null,"ｍ3",null,null,null,1,0,null,0,null,0,0,null,null,0,0,0]
[null,null,"格子枠",null,"ﾋﾉｷ",null,"ｍ3",null,null,null,1,0,null,0,null,0,0,null,null,0,0,0]
[null,null,"格子枠",null,"ﾋﾉｷ",null,"ｍ3",null,null,null,1,0,null,0,null,0,0,null,null,0,0,0]
[null,null,"格子枠",null,"ﾋﾉｷ",null,"ｍ3",null,null,null,1,0,null,0,null,0,0,null,null,0,0,0]
[null,null,"外部板","Ⅰ","杉",null,"ｍ3",null,null,null,1,{"$f":"ROUNDDOWN(H111*I111*J111*K111,3)","v":0},null,{"$f":"M111*L111","v":0},null,{"$f":"L111*O111","v":0},{"$f":"N111-P111","v":0},null,null,{"$f":"IF(S111=\"\",R111,MIN(R111:S111))","v":0},0,0]
[null,null,"外部板","Ⅰ.押え","杉",null,"ｍ3",null,null,null,1,{"$f":"ROUNDDOWN(H112*I112*J112*K112,3)","v":0},null,{"$f":"M112*L112","v":0},null,{"$f":"L112*O112","v":0},{"$f":"N112-P112","v":0},null,null,{"$f":"IF(S112=\"\",R112,MIN(R112:S112))","v":0},0,0]
[null,null,null,null,null,null,"ｍ3",null,null,null,1,{"$f":"ROUNDDOWN(H113*I113*J113*K113,3)","v":0},null,{"$f":"M113*L113","v":0},null,{"$f":"L113*O113","v":0},{"$f":"N113-P113","v":0},null,null,{"$f":"IF(S113=\"\",R113,MIN(R113:S113))","v":0},0,0]
[null,null,null,null,null,null,"ｍ3",null,null,null,1,{"$f":"ROUNDDOWN(H114*I114*J114*K114,3)","v":0},null,{"$f":"M114*L114","v":0},null,{"$f":"L114*O114","v":0},{"$f":"N114-P114","v":0},null,null,{"$f":"IF(S114=\"\",R114,MIN(R114:S114))","v":0},0,0]
[null,null,"外壁下地","Ⅲ.木摺り","ｺﾐ",null,"ｍ3",null,null,null,1,{"$f":"ROUNDDOWN(H115*I115*J115*K115,4)","v":0},null,0,null,0,0,null,null,0,0,0]
[null,null,"大壁",null,null,null,"ｍ3",null,null,null,1,0,null,0,null,0,0,null,null,0,0,0]
[null,null,null,null,null,null,"ｍ3",null,null,null,1,0,null,0,null,0,0,null,null,0,0,0]
[null,null,null,null,null,null,"ｍ3",null,null,null,1,0,null,0,null,0,0,null,null,0,0,0]
[null,"造作材","霧除","腕木","杉",null,"ｍ3",null,null,null,1,0,null,0,null,0,0,null,null,0,0,0]
[null,null,"霧除","桁","杉",null,"ｍ3",null,null,null,1,0,null,0,null,0,0,null,null,0,0,0]
[null,null,"霧除","目板","杉",null,"ｍ3",null,null,null,1,0,null,0,null,0,0,null,null,0,0,0]
[null,null,"小庇","腕木","杉",null,"ｍ3",null,null,null,1,0,null,0,null,0,0,null,null,0,0,0]
[null,null,"小庇","桁","杉",null,"ｍ3",null,null,null,1,0,null,0,null,0,0,null,null,0,0,0]
[null,null,"小庇","持ち送り","杉",null,"ｍ3",null,null,null,1,0,null,0,null,0,0,null,null,0,0,0]
[null,null,"小庇","目板","杉",null,"ｍ3",null,null,null,1,0,null,0,null,0,0,null,null,0,{"$f":"ROUNDDOWN(R125*N125,0)","v":0},{"$f":"ROUNDDOWN(P125*T125,0)","v":0}]
[null,null,"小庇","破風板","杉",null,"ｍ3",null,null,null,1,0,null,0,null,0,0,null,null,0,0,0]
[null,null,"小庇",null,"杉",null,"ｍ3",null,null,null,1,0,null,0,null,0,0,null,null,0,0,0]
[null,null,"屋根","瓦桟","杉",null,"ｍ3",null,null,null,1,{"$f":"ROUNDDOWN(H128*I128*J128*K128,3)","v":0},null,{"$f":"M128*L128","v":0},null,{"$f":"L128*O128","v":0},{"$f":"N128-P128","v":0},null,null,{"$f":"IF(S128=\"\",R128,MIN(R128:S128))","v":0},0,0]
[null,null,"屋根","破風板","杉",null,"ｍ3",null,null,null,1,0,null,0,null,0,0,null,null,0,0,0]
[null,null,"屋根","破風板","杉",null,"ｍ3",null,null,null,1,0,null,0,null,0,0,null,null,0,0,0]
[null,null,"屋根","登り瓦桟","杉",null,"ｍ3",null,null,null,1,0,null,0,null,0,0,null,null,0,0,0]
[null,null,"屋根","面戸板","杉",null,"ｍ3",null,null,null,1,0,null,0,null,0,0,null,null,0,0,0]
[null,null,"屋根",null,"杉",null,"ｍ3",null,null,null,1,0,null,0,null,0,0,null,null,0,0,0]
[null,null,"屋根",null,"杉",null,"ｍ3",null,null,null,1,0,null,0,null,0,0,null,null,0,0,0]
[null,null,"天井板",null,null,null,"ｍ3",null,null,null,1,0,null,0,null,0,0,null,null,0,0,0]
[null,null,"天井板",null,null,null,"ｍ3",null,null,null,1,0,null,0,null,0,0,null,null,0,0,0]
[null,null,"天井板",null,null,null,"ｍ3",null,null,null,1,0,null,0,null,0,0,null,null,0,0,0]
[null,null,"天井板",null,null,null,"ｍ3",null,null,null,1,0,null,0,null,0,0,null,null,0,0,0]
[null,null,"廻縁",null,"ｽｷﾞ",null,"ｍ3",null,null,null,1,0,null,0,null,0,0,null,null,0,0,0]
[null,null,"廻縁",null,null,null,"ｍ3",null,null,null,1,0,null,0,null,0,0,null,null,0,0,0]
[null,null,"棹縁",null,"ｽｷﾞ",null,"ｍ3",null,null,null,1,0,null,0,null,0,0,null,null,0,0,0]
[null,null,"棹縁",null,null,null,"ｍ3",null,null,null,1,0,null,0,null,0,0,null,null,0,0,0]
[null,null,null,null,null,null,null,null,null,null,1,0,null,0,null,0,0,null,null,0,0,0]
[null,null,null,null,null,null,null,null,null,null,1,0,null,0,null,0,0,null,null,0,0,0]
[null,null,null,null,null,null,"ｍ3",null,null,null,1,0,null,0,null,0,0,null,null,0,0,0]
[null,null,null,null,null,null,"ｍ3",null,null,null,1,0,null,0,null,0,0,null,null,0,0,0]
[null,null,null,null,null,null,"ｍ3",null,null,null,1,0,null,0,null,0,0,null,null,0,0,0]
[null,null,null,null,null,null,"ｍ3",null,null,null,1,0,null,0,null,0,0,null,null,0,0,0]
[null,null,null,null,null,null,"ｍ3",null,null,null,1,0,null,0,null,0,0,null,null,0,0,0]
[null,null,null,null,null,null,"ｍ3",null,null,null,1,0,null,0,null,0,0,null,null,0,0,0]
[null,null,null,null,null,null,"ｍ3",null,null,null,1,0,null,0,null,0,0,null,null,0,0,0]
[null,null,null,null,null,null,"ｍ3",null,null,null,1,0,null,0,null,0,0,null,null,0,0,0]
[null,null,null,null,null,null,"ｍ3",null,null,null,1,0,null,0,null,0,0,null,null,0,0,0]
[null,null,null,null,null,null,"ｍ3",null,null,null,1,0,null,0,null,0,0,null,null,0,0,0]
[null,null,null,null,null,null,"ｍ3",null,null,null,1,0,null,0,null,0,0,null,null,0,0,0]
[null,null,null,null,null,null,"ｍ3",null,null,null,1,0,null,0,null,0,0,null,null,0,0,0]
[null,null,null,null,null,null,"ｍ3",null,null,null,1,0,null,0,null,0,0,null,null,0,0,0]
[null,null,null,null,null,null,"ｍ3",null,null,null,1,0,null,0,null,0,0,null,null,0,0,0]
[null,null,null,null,null,null,"ｍ3",null,null,null,1,0,null,0,null,0,0,null,null,0,0,0]
[null,null,null,null,null,null,"ｍ3",null,null,null,1,0,null,0,null,0,0,null,null,0,0,0]
[null,null,null,null,null,null,"ｍ3",null,null,null,1,0,null,0,null,0,0,null,null,0,0,0]
[null,null,null,null,null,null,"ｍ3",null,null,null,1,0,null,0,null,0,0,null,null,0,0,0]
[null,null,null,null,null,null,"ｍ3",null,null,null,1,0,null,0,null,0,0,null,null,0,0,0]
[null,null,null,null,null,null,"ｍ3",null,null,null,1,0,null,0,null,0,0,null,null,0,0,0]
[null,"合　　計",null,null,null,null,null,null,null,null,null,{"$f":"SUM(L61:L164)","v":0},null,{"$f":"SUM(N61:N164)","v":0},null,{"$f":"SUM(P61:P164)","v":0},{"$f":"SUM(Q61:Q164)","v":0},null,null,null,{"$f":"SUM(U61:U164)","v":0},{"$f":"SUM(V61:V164)","v":0}]
[null,null,null,null,null,null,null,null,null,null,null,{"$f":"ROUNDDOWN(L165,2)","v":0},null,{"$f":"ROUNDDOWN(N165,2)","v":0},null,{"$f":"ROUNDDOWN(P165,2)","v":0},{"$f":"ROUNDDOWN(Q165,2)","v":0},null,null,"端数切捨て",{"$f":"ROUNDDOWN(U165,-2)","v":0},{"$f":"ROUNDDOWN(V165,-2)","v":0}]
[]
[null,null,null,"人工の単価",null,"豊田市設定\n単価","補助対象単価","人工/㎥","全体人工","合計","補助対象人工","合計"]
[null,null,null,"構造材大工手間",20000,23400,{"$f":"IF(F169=\"\",E169,IF(F169>E169,E169,F169))","v":20000},null,{"$f":"ROUNDDOWN(((P60+Q60)*H169),0)","v":0},{"$f":"I169*E169","v":0},{"$f":"ROUNDDOWN((P60*H169),0)","v":0},{"$f":"G169*K169","v":0}]
[null,null,null,"構造材手元手間",15000,17500,{"$f":"IF(F170=\"\",E170,IF(F170>E170,E170,F170))","v":15000},null,{"$f":"ROUNDDOWN((I169*0.15),0)","v":0},{"$f":"I170*E170","v":0},{"$f":"ROUNDDOWN((K169*0.15),0)","v":0},{"$f":"G170*K170","v":0}]
[null,null,null,"造作材大工手間",20000,23400,{"$f":"IF(F171=\"\",E171,IF(F171>E171,E171,F171))","v":20000},null,{"$f":"ROUNDDOWN(((P166+Q166)*H171),0)","v":0},{"$f":"I171*E171","v":0},{"$f":"ROUNDDOWN((P166*H171),0)","v":0},{"$f":"G171*K171","v":0}]
[null,null,null,"造作材手元手間",15000,17500,{"$f":"IF(F172=\"\",E172,IF(F172>E172,E172,F172))","v":15000},null,{"$f":"ROUNDDOWN((I171*0.15),0)","v":0},{"$f":"I172*E172","v":0},{"$f":"ROUNDDOWN((K171*0.15),0)","v":0},{"$f":"G172*K172","v":0}]

{"sheet":"木材明細(変更修理）","index":11,"n_rows":172,"n_cols":22,"rows_kept":172,"cut":false,"hidden":false,"merged":[[1,24,2,24],[1,25,2,25],[1,7,1,11],[1,12,2,12],[1,13,2,13],[1,14,1,16],[1,18,2,18],[1,23,2,23],[1,21,2,21],[167,3,167,4],[58,1,59,1],[164,1,165,1],[1,19,2,19],[1,20,2,20],[1,1,2,1],[1,2,2,2],[1,3,2,3],[1,4,2,4],[1,5,2,5],[1,6,2,6]]}
[null,null,"木材明細表",null,null,null,null,null,null,null,null,null,null,null,null,null,null,null,null,null,null,"「　場所の凡例　Ⅰ.北棟東面部分、Ⅱ.北棟北面部分、Ⅲ.北棟南面部分、Ⅳ.内部柱建て補強土台等取付部分　」"]
[null,"分類","名　称","場　所","材種","等級","単位","木材の大きさ",null,null,null,null,"全体数量","全体材積","数量内訳",null,null,"単価","上限単価\n（豊田市）","補助対象\n採用単価","全体金額","補助対象金額"]
[null,null,null,null,null,null,null,"Ｗ (m)","Ｄ (m)","Ｌ (m)","部材\n使用率","材積",null,null,"対象数量","補助対象","対象外","㎥単価"]
[null,"構造材","土台",null,"栗",null,"ｍ3",null,null,null,1,{"$f":"ROUNDDOWN(H4*I4*J4*K4,3)","v":0},null,{"$f":"M4*L4","v":0},null,{"$f":"L4*O4","v":0},{"$f":"N4-P4","v":0},null,null,{"$f":"IF(S4=\"\",R4,MIN(R4:S4))","v":0},{"$f":"ROUNDDOWN(R4*N4,0)","v":0},{"$f":"ROUNDDOWN(P4*T4,0)","v":0}]
[null,null,"土台",null,"栗",null,"ｍ2",null,null,null,1,{"$f":"ROUNDDOWN(H5*I5*J5*K5,3)","v":0},null,{"$f":"M5*L5","v":0},null,{"$f":"L5*O5","v":0},{"$f":"N5-P5","v":0},null,null,{"$f":"IF(S5=\"\",R5,MIN(R5:S5))","v":0},0,0]
[null,null,"土台",null,"栗",null,"ｍ3",null,null,null,1,0,null,0,null,0,0,null,null,0,0,0]
[null,null,"土台",null,"栗",null,"ｍ3",null,null,null,1,0,null,0,null,0,0,null,null,0,0,0]
[null,null,"柱",null,"桧",null,"ｍ3",null,null,null,1,0,null,0,null,0,0,null,null,0,0,0]
[null,null,"柱",null,"桧",null,"ｍ3",null,null,null,1,0,null,0,null,0,0,null,null,0,0,0]
[null,null,"柱",null,null,null,"ｍ3",null,null,null,1,0,null,0,null,0,0,null,null,0,0,0]
[null,null,"柱",null,null,null,"ｍ3",null,null,null,1,0,null,0,null,0,0,null,null,0,0,0]
[null,null,"柱",null,null,null,"ｍ3",null,null,null,1,0,null,0,null,0,0,null,null,0,0,0]
[null,null,"柱",null,null,null,"ｍ3",null,null,null,1,0,null,0,null,0,0,null,null,0,0,0]
[null,null,"柱",null,"桧",null,"ｍ3",null,null,null,1,0,null,0,null,0,0,null,null,0,0,0]
[null,null,"貫",null,"ｽｷﾞ","特一","ｍ3",null,null,null,1,0,null,0,null,0,0,null,null,0,0,0]
[null,null,"貫",null,"桧","特一","ｍ3",null,null,null,1,0,null,0,null,0,0,null,null,0,0,0]
[null,null,"貫",null,"桧","特一","ｍ3",null,null,null,1,0,null,0,null,0,0,null,null,0,0,0]
[null,null,"梁",null,"桧",null,"ｍ3",null,null,null,1,0,null,0,null,0,0,null,null,0,0,0]
[null,null,"梁",null,"桧",null,"ｍ3",null,null,null,1,0,null,0,null,0,0,null,null,0,0,0]
[null,null,"梁",null,"ﾋﾉｷ","特一","ｍ3",null,null,null,1,0,null,0,null,0,0,null,null,0,0,0]
[null,null,"梁",null,null,null,"ｍ3",null,null,null,1,0,null,0,null,0,0,null,null,0,0,0]
[null,null,"梁",null,null,null,"ｍ3",null,null,null,1,0,null,0,null,0,0,null,null,0,0,0]
[null,null,"登り梁",null,"地松","特一","ｍ3",null,null,null,1,0,null,0,null,0,0,null,null,0,0,0]
[null,null,"登り梁",null,"地松","特一","ｍ3",null,null,null,1,0,null,0,null,0,0,null,null,0,0,0]
[null,null,"桁",null,"地松","特一","ｍ3",null,null,null,1,0,null,0,null,0,0,null,null,0,0,0]
[null,null,"桁",null,"地松","特一","ｍ3",null,null,null,1,0,null,0,null,0,0,null,null,0,0,0]
[null,null,"桁",null,"地松","特一","ｍ3",null,null,null,1,0,null,0,null,0,0,null,null,0,0,0]
[null,null,"桁",null,"地松","特一","ｍ3",null,null,null,1,0,null,0,null,0,0,null,null,0,0,0]
[null,null,"桁",null,"地松","特一","ｍ3",null,null,null,1,{"$f":"ROUNDDOWN(H29*I29*J29*K29,3)","v":0},null,{"$f":"M29*L29","v":0},null,{"$f":"L29*O29","v":0},{"$f":"N29-P29","v":0},null,null,{"$f":"IF(S29=\"\",R29,MIN(R29:S29))","v":0},0,0]
[null,null,"桁",null,"地松","特一","ｍ3",null,null,null,1,0,null,0,null,0,0,null,null,0,0,0]
[null,null,"桁",null,"地松","特一","ｍ3",null,null,null,1,0,null,0,null,0,0,null,null,0,0,0]
[null,"構造材","小屋束",null,null,null,"ｍ3",null,null,null,1,0,null,0,null,0,0,null,null,0,0,0]
[null,null,"小屋束",null,null,null,"ｍ3",null,null,null,1,0,null,0,null,0,0,null,null,0,0,0]
[null,null,"母屋",null,"地松","特一","ｍ3",null,null,null,1,0,null,0,null,0,0,null,null,0,0,0]
[null,null,"母屋",null,"地松","特一","ｍ3",null,null,null,1,0,null,0,null,0,0,null,null,0,0,0]
[null,null,"母屋",null,"地松","特一","ｍ3",null,null,null,1,0,null,0,null,0,0,null,null,0,0,0]
[null,null,"棟木",null,"地松","特一","ｍ3",null,null,null,1,0,null,0,null,0,0,null,null,0,0,0]
[null,null,"棟木",null,"地松","ｺﾐ","ｍ3",null,null,null,1,0,null,0,null,0,0,null,null,0,0,0]
[null,null,"棟木",null,"地松","特一","ｍ3",null,null,null,1,0,null,0,null,0,0,null,null,0,0,0]
[null,null,"垂木",null,"杉",null,"ｍ3",null,null,null,1,0,null,0,null,0,0,null,null,0,0,0]
[null,null,"垂木",null,"杉",null,"ｍ3",null,null,null,1,0,null,0,null,0,0,null,null,0,0,0]
[null,null,"垂木掛",null,"杉",null,"ｍ3",null,null,null,1,0,null,0,null,0,0,null,null,0,0,0]
[null,null,"野地板",null,"杉","特一","ｍ3",null,null,null,1,0,null,0,null,0,0,null,null,0,0,0]
[null,null,"野地板",null,"杉","特一","ｍ3",null,null,null,1,0,null,0,null,0,0,null,null,0,0,0]
[null,null,"広木舞",null,"杉","特一","ｍ3",null,null,null,1,0,null,0,null,0,0,null,null,0,0,0]
[null,null,"広木舞",null,"杉","特一","ｍ3",null,null,null,1,0,null,0,null,0,0,null,null,0,0,0]
[null,null,null,null,"桧",null,"ｍ3",null,null,null,1,0,null,0,null,0,0,null,null,0,0,0]
[null,null,null,null,"桧",null,"ｍ3",null,null,null,1,0,null,0,null,0,0,null,null,0,0,0]
[null,null,null,null,"桧",null,"ｍ3",null,null,null,1,0,null,0,null,0,0,null,null,0,0,0]
[null,null,null,null,"桧",null,"ｍ3",null,null,null,1,0,null,0,null,0,0,null,null,0,0,0]
[null,null,null,null,"桧",null,"ｍ3",null,null,null,1,{"$f":"ROUNDDOWN(H51*I51*J51*K51,3)","v":0},null,{"$f":"M51*L51","v":0},null,{"$f":"L51*O51","v":0},{"$f":"N51-P51","v":0},null,null,{"$f":"IF(S51=\"\",R51,MIN(R51:S51))","v":0},0,0]
[null,null,null,null,"桧",null,"ｍ3",null,null,null,1,{"$f":"ROUNDDOWN(H52*I52*J52*K52,3)","v":0},null,{"$f":"M52*L52","v":0},null,{"$f":"L52*O52","v":0},{"$f":"N52-P52","v":0},null,null,{"$f":"IF(S52=\"\",R52,MIN(R52:S52))","v":0},0,0]
[null,null,null,null,"桧",null,"ｍ3",null,null,null,1,{"$f":"ROUNDDOWN(H53*I53*J53*K53,3)","v":0},null,{"$f":"M53*L53","v":0},null,{"$f":"L53*O53","v":0},{"$f":"N53-P53","v":0},null,null,{"$f":"IF(S53=\"\",R53,MIN(R53:S53))","v":0},0,0]
[null,null,null,null,"栗",null,"ｍ3",null,null,null,1,0,null,0,null,0,0,null,null,0,0,0]
[null,null,null,null,"栗",null,"ｍ3",null,null,null,1,0,null,0,null,0,0,null,null,0,0,0]
[null,null,null,null,"桧",null,"ｍ3",null,null,null,1,0,null,0,null,0,0,null,null,0,0,0]
[null,null,null,null,null,null,"ｍ3",null,null,null,1,0,null,0,null,0,0,null,null,0,0,0]
[null,null,null,null,null,null,"ｍ3",null,null,null,1,0,null,0,null,0,0,null,null,0,0,0]
[null,"合　　計",null,null,null,null,null,null,null,null,null,{"$f":"SUM(L4:L58)","v":0},null,{"$f":"SUM(N4:N58)","v":0},null,{"$f":"SUM(P4:P58)","v":0},{"$f":"SUM(Q4:Q58)","v":0},null,null,null,{"$f":"SUM(U4:U58)","v":0},{"$f":"SUM(V4:V58)","v":0}]
[null,null,null,null,null,null,null,null,null,null,null,{"$f":"ROUNDDOWN(L59,2)","v":0},null,{"$f":"ROUNDDOWN(N59,2)","v":0},null,{"$f":"ROUNDDOWN(P59,2)","v":0},{"$f":"ROUNDDOWN(Q59,2)","v":0},null,null,"端数切捨て",{"$f":"ROUNDDOWN(U59,-2)","v":0},{"$f":"ROUNDDOWN(V59,-2)","v":0}]
[null,"造作材","窓枠",null,"ﾋﾉｷ","特一","ｍ3",null,null,null,1,{"$f":"ROUNDDOWN(H61*I61*J61*K61,3)","v":0},null,{"$f":"M61*L61","v":0},null,{"$f":"L61*O61","v":0},{"$f":"N61-P61","v":0},null,null,{"$f":"IF(S61=\"\",R61,MIN(R61:S61))","v":0},{"$f":"ROUNDDOWN(R61*N61,0)","v":0},{"$f":"ROUNDDOWN(P61*T61,0)","v":0}]
[null,null,"手摺、出窓",null,"ﾋﾉｷ","上小節","ｍ3",null,null,null,1,0,null,0,null,0,0,null,null,0,0,0]
[null,null,"窓枠",null,"ﾋﾉｷ","上小節","ｍ3",null,null,null,1,0,null,0,null,0,0,null,null,0,0,0]
[null,null,"のし水切り",null,"ﾋﾉｷ","上小節","ｍ3",null,null,null,1,0,null,0,null,0,0,null,null,0,0,0]
[null,null,"下見板",null,"ﾋﾉｷ","特一","ｍ3",null,null,null,1,0,null,0,null,0,0,null,null,0,0,0]
[null,null,"下地",null,"ｽｷﾞ","特一","ｍ3",null,null,null,1,0,null,0,null,0,0,null,null,0,0,0]
[null,null,null,null,"ｽｷﾞ","特一","ｍ3",null,null,null,1,0,null,0,null,0,0,null,null,0,0,0]
[null,null,null,null,"ｽｷﾞ","特一","ｍ3",null,null,null,1,0,null,0,null,0,0,null,null,0,0,0]
[null,null,"既設庇",null,"ﾋﾉｷ","上小節","ｍ3",null,null,null,1,0,null,0,null,0,0,null,null,0,0,0]
[null,null,null,null,"ﾋﾉｷ","上小節","ｍ3",null,null,null,1,0,null,0,null,0,0,null,null,0,0,0]
[null,null,null,null,"ﾋﾉｷ","上小節","ｍ3",null,null,null,1,0,null,0,null,0,0,null,null,0,0,0]
[null,null,null,null,"ﾋﾉｷ","特一","ｍ3",null,null,null,1,0,null,0,null,0,0,null,null,0,0,0]
[null,null,null,null,"ﾋﾉｷ",null,"ｍ3",null,null,null,1,0,null,0,null,0,0,null,null,0,0,0]
[null,null,null,null,"ｽｷﾞ",null,"ｍ3",null,null,null,1,0,null,0,null,0,0,null,null,0,0,0]
[null,null,"外壁",null,"ｽｷﾞ","特一","ｍ3",null,null,null,1,0,null,0,null,0,0,null,null,0,0,0]
[null,null,null,null,"ｽｷﾞ","特一","ｍ3",null,null,null,1,0,null,0,null,0,0,null,null,0,0,0]
[null,null,null,null,"ｽｷﾞ","特一","ｍ3",null,null,null,1,0,null,0,null,0,0,null,null,0,0,0]
[null,null,"床板",null,"桧","節","ｍ3",null,null,null,1,0,null,0,null,0,0,null,null,0,0,0]
[null,null,null,null,null,null,"ｍ3",null,null,null,1,0,null,0,null,0,0,null,null,0,0,0]
[null,null,"外壁",null,"ｽｷﾞ","特一","ｍ3",null,null,null,1,0,null,0,null,0,0,null,null,0,0,0]
[null,null,null,null,"ｽｷﾞ","特一","ｍ3",null,null,null,1,0,null,0,null,0,0,null,null,0,0,0]
[null,null,null,null,"ｽｷﾞ","特一","ｍ3",null,null,null,1,0,null,0,null,0,0,null,null,0,0,0]
[null,null,null,null,"ﾋﾉｷ","特一","ｍ3",null,null,null,1,0,null,0,null,0,0,null,null,0,0,0]
[null,null,null,null,"ﾋﾉｷ","上小節","ｍ3",null,null,null,1,0,null,0,null,0,0,null,null,0,0,0]
[null,null,"内部",null,"ｽｷﾞ","特一","ｍ3",null,null,null,1,0,null,0,null,0,0,null,null,0,0,0]
[null,null,null,null,"ｽｷﾞ","特一","ｍ3",null,null,null,1,{"$f":"ROUNDDOWN(H86*I86*J86*K86,3)","v":0},null,{"$f":"M86*L86","v":0},null,{"$f":"L86*O86","v":0},{"$f":"N86-P86","v":0},null,null,{"$f":"IF(S86=\"\",R86,MIN(R86:S86))","v":0},0,0]
[null,null,null,null,"ﾋﾉｷ","上小節","ｍ3",null,null,null,1,{"$f":"ROUNDDOWN(H87*I87*J87*K87,3)","v":0},null,{"$f":"M87*L87","v":0},null,{"$f":"L87*O87","v":0},{"$f":"N87-P87","v":0},null,null,{"$f":"IF(S87=\"\",R87,MIN(R87:S87))","v":0},0,0]
[null,null,null,null,"ﾋﾉｷ","特一","ｍ3",null,null,null,1,0,null,0,null,0,0,null,null,0,0,0]
[null,null,null,null,null,null,"ｍ3",null,null,null,1,0,null,0,null,0,0,null,null,0,0,0]
[null,"造作材","南庇",null,"ｽｷﾞ",null,"ｍ3",null,null,null,1,0,null,0,null,0,0,null,null,0,0,0]
[null,null,null,null,"ﾋﾉｷ","上小節","ｍ3",null,null,null,1,0,null,0,null,0,0,null,null,0,0,0]
[null,null,null,null,"ﾋﾉｷ","上小節","ｍ3",null,null,null,1,0,null,0,null,0,0,null,null,0,0,0]
[null,null,null,null,null,null,"ｍ3",null,null,null,1,0,null,0,null,0,0,null,null,0,0,0]
[null,null,"敷居",null,null,null,"ｍ3",null,null,null,1,0,null,0,null,0,0,null,null,0,0,0]
[null,null,"敷居",null,null,null,"ｍ3",null,null,null,1,0,null,0,null,0,0,null,null,0,0,0]
[null,null,"敷居",null,null,null,"ｍ3",null,null,null,1,0,null,0,null,0,0,null,null,0,0,0]
[null,null,"敷居",null,null,null,"ｍ3",null,null,null,1,0,null,0,null,0,0,null,null,0,0,0]
[null,null,"腰壁",null,"杉","赤身","ｍ3",null,null,null,1,0,null,0,null,0,0,null,null,0,0,0]
[null,null,"腰壁",null,"杉","赤身","ｍ3",null,null,null,1,0,null,0,null,0,0,null,null,0,0,0]
[null,null,"腰壁",null,"杉","赤身","ｍ3",null,null,null,1,0,null,0,null,0,0,null,null,0,0,0]
[null,null,"腰壁",null,"杉","赤身","ｍ3",null,null,null,1,0,null,0,null,0,0,null,null,0,0,0]
[null,null,"腰壁",null,"杉","赤身","ｍ3",null,null,null,1,0,null,0,null,0,0,null,null,0,0,0]
[null,null,"戸箱",null,"杉",null,"ｍ3",null,null,null,1,0,null,0,null,0,0,null,null,0,0,0]
[null,null,"戸箱",null,"杉",null,"ｍ3",null,null,null,1,0,null,0,null,0,0,null,null,0,0,0]
[null,null,"戸箱",null,"杉",null,"ｍ3",null,null,null,1,0,null,0,null,0,0,null,null,0,0,0]
[null,null,"戸箱",null,"杉",null,"ｍ3",null,null,null,1,0,null,0,null,0,0,null,null,0,0,0]
[null,null,"格子枠",null,"ﾋﾉｷ",null,"ｍ3",null,null,null,1,0,null,0,null,0,0,null,null,0,0,0]
[null,null,"格子枠",null,"ﾋﾉｷ",null,"ｍ3",null,null,null,1,0,null,0,null,0,0,null,null,0,0,0]
[null,null,"格子枠",null,"ﾋﾉｷ",null,"ｍ3",null,null,null,1,0,null,0,null,0,0,null,null,0,0,0]
[null,null,"格子枠",null,"ﾋﾉｷ",null,"ｍ3",null,null,null,1,0,null,0,null,0,0,null,null,0,0,0]
[null,null,"外部板",null,"杉",null,"ｍ3",null,null,null,1,{"$f":"ROUNDDOWN(H111*I111*J111*K111,3)","v":0},null,{"$f":"M111*L111","v":0},null,{"$f":"L111*O111","v":0},{"$f":"N111-P111","v":0},null,null,{"$f":"IF(S111=\"\",R111,MIN(R111:S111))","v":0},0,0]
[null,null,"外部板",null,"杉",null,"ｍ3",null,null,null,1,{"$f":"ROUNDDOWN(H112*I112*J112*K112,3)","v":0},null,{"$f":"M112*L112","v":0},null,{"$f":"L112*O112","v":0},{"$f":"N112-P112","v":0},null,null,{"$f":"IF(S112=\"\",R112,MIN(R112:S112))","v":0},0,0]
[null,null,"間柱",null,"杉",null,"ｍ3",null,null,null,1,{"$f":"ROUNDDOWN(H113*I113*J113*K113,3)","v":0},null,{"$f":"M113*L113","v":0},null,{"$f":"L113*O113","v":0},{"$f":"N113-P113","v":0},null,null,{"$f":"IF(S113=\"\",R113,MIN(R113:S113))","v":0},0,0]
[null,null,"間柱",null,"杉",null,"ｍ3",null,null,null,1,{"$f":"ROUNDDOWN(H114*I114*J114*K114,3)","v":0},null,{"$f":"M114*L114","v":0},null,{"$f":"L114*O114","v":0},{"$f":"N114-P114","v":0},null,null,{"$f":"IF(S114=\"\",R114,MIN(R114:S114))","v":0},0,0]
[null,null,"間柱",null,"杉",null,"ｍ3",null,null,null,1,0,null,0,null,0,0,null,null,0,0,0]
[null,null,"間柱",null,"杉",null,"ｍ3",null,null,null,1,0,null,0,null,0,0,null,null,0,0,0]
[null,null,"間柱",null,"桧",null,"ｍ3",null,null,null,1,0,null,0,null,0,0,null,null,0,0,0]
[null,null,null,null,null,null,"ｍ3",null,null,null,1,0,null,0,null,0,0,null,null,0,0,0]
[null,"造作材","霧除",null,"杉",null,"ｍ3",null,null,null,1,0,null,0,null,0,0,null,null,0,0,0]
[null,null,"霧除",null,"杉",null,"ｍ3",null,null,null,1,0,null,0,null,0,0,null,null,0,0,0]
[null,null,"霧除",null,"杉",null,"ｍ3",null,null,null,1,0,null,0,null,0,0,null,null,0,0,0]
[null,null,"小庇　東","桁","桧",null,"ｍ3",null,null,null,1,0,null,0,null,0,0,null,null,0,0,0]
[null,null,"小庇　東","柱","桧",null,"ｍ3",null,null,null,1,0,null,0,null,0,0,null,null,0,0,0]
[null,null,"小庇　東","板庇","桧",null,"ｍ3",null,null,null,1,0,null,0,null,0,0,null,null,0,0,0]
[null,null,"小庇",null,"杉",null,"ｍ3",null,null,null,1,0,null,0,null,0,0,null,null,0,{"$f":"ROUNDDOWN(R125*N125,0)","v":0},{"$f":"ROUNDDOWN(P125*T125,0)","v":0}]
[null,null,"小庇",null,"杉",null,"ｍ3",null,null,null,1,0,null,0,null,0,0,null,null,0,0,0]
[null,null,"小庇",null,"杉",null,"ｍ3",null,null,null,1,0,null,0,null,0,0,null,null,0,0,0]
[null,null,"屋根",null,"杉",null,"ｍ3",null,null,null,1,{"$f":"ROUNDDOWN(H128*I128*J128*K128,3)","v":0},null,{"$f":"M128*L128","v":0},null,{"$f":"L128*O128","v":0},{"$f":"N128-P128","v":0},null,null,{"$f":"IF(S128=\"\",R128,MIN(R128:S128))","v":0},0,0]
[null,null,"屋根",null,"杉",null,"ｍ3",null,null,null,1,0,null,0,null,0,0,null,null,0,0,0]
[null,null,"屋根",null,"杉",null,"ｍ3",null,null,null,1,0,null,0,null,0,0,null,null,0,0,0]
[null,null,"屋根",null,"杉",null,"ｍ3",null,null,null,1,0,null,0,null,0,0,null,null,0,0,0]
[null,null,"屋根",null,"杉",null,"ｍ3",null,null,null,1,0,null,0,null,0,0,null,null,0,0,0]
[null,null,"屋根",null,"杉",null,"ｍ3",null,null,null,1,0,null,0,null,0,0,null,null,0,0,0]
[null,null,"屋根",null,"杉",null,"ｍ3",null,null,null,1,0,null,0,null,0,0,null,null,0,0,0]
[null,null,"天井板",null,null,null,"ｍ3",null,null,null,1,0,null,0,null,0,0,null,null,0,0,0]
[null,null,"天井板",null,null,null,"ｍ3",null,null,null,1,0,null,0,null,0,0,null,null,0,0,0]
[null,null,"天井板",null,null,null,"ｍ3",null,null,null,1,0,null,0,null,0,0,null,null,0,0,0]
[null,null,"天井板",null,null,null,"ｍ3",null,null,null,1,0,null,0,null,0,0,null,null,0,0,0]
[null,null,"廻縁",null,"ｽｷﾞ",null,"ｍ3",null,null,null,1,0,null,0,null,0,0,null,null,0,0,0]
[null,null,"廻縁",null,null,null,"ｍ3",null,null,null,1,0,null,0,null,0,0,null,null,0,0,0]
[null,null,"棹縁",null,"ｽｷﾞ",null,"ｍ3",null,null,null,1,0,null,0,null,0,0,null,null,0,0,0]
[null,null,"棹縁",null,null,null,"ｍ3",null,null,null,1,0,null,0,null,0,0,null,null,0,0,0]
[null,null,null,null,null,null,null,null,null,null,1,0,null,0,null,0,0,null,null,0,0,0]
[null,null,null,null,null,null,null,null,null,null,1,0,null,0,null,0,0,null,null,0,0,0]
[null,null,null,null,null,null,"ｍ3",null,null,null,1,0,null,0,null,0,0,null,null,0,0,0]
[null,null,null,null,null,null,"ｍ3",null,null,null,1,0,null,0,null,0,0,null,null,0,0,0]
[null,null,null,null,null,null,"ｍ3",null,null,null,1,0,null,0,null,0,0,null,null,0,0,0]
[null,null,null,null,null,null,"ｍ3",null,null,null,1,0,null,0,null,0,0,null,null,0,0,0]
[null,null,null,null,null,null,"ｍ3",null,null,null,1,0,null,0,null,0,0,null,null,0,0,0]
[null,null,null,null,null,null,"ｍ3",null,null,null,1,0,null,0,null,0,0,null,null,0,0,0]
[null,null,null,null,null,null,"ｍ3",null,null,null,1,0,null,0,null,0,0,null,null,0,0,0]
[null,null,null,null,null,null,"ｍ3",null,null,null,1,0,null,0,null,0,0,null,null,0,0,0]
[null,null,null,null,null,null,"ｍ3",null,null,null,1,0,null,0,null,0,0,null,null,0,0,0]
[null,null,null,null,null,null,"ｍ3",null,null,null,1,0,null,0,null,0,0,null,null,0,0,0]
[null,null,null,null,null,null,"ｍ3",null,null,null,1,0,null,0,null,0,0,null,null,0,0,0]
[null,null,null,null,null,null,"ｍ3",null,null,null,1,0,null,0,null,0,0,null,null,0,0,0]
[null,null,null,null,null,null,"ｍ3",null,null,null,1,0,null,0,null,0,0,null,null,0,0,0]
[null,null,null,null,null,null,"ｍ3",null,null,null,1,0,null,0,null,0,0,null,null,0,0,0]
[null,null,null,null,null,null,"ｍ3",null,null,null,1,0,null,0,null,0,0,null,null,0,0,0]
[null,null,null,null,null,null,"ｍ3",null,null,null,1,0,null,0,null,0,0,null,null,0,0,0]
[null,null,null,null,null,null,"ｍ3",null,null,null,1,0,null,0,null,0,0,null,null,0,0,0]
[null,null,null,null,null,null,"ｍ3",null,null,null,1,0,null,0,null,0,0,null,null,0,0,0]
[null,null,null,null,null,null,"ｍ3",null,null,null,1,0,null,0,null,0,0,null,null,0,0,0]
[null,null,null,null,null,null,"ｍ3",null,null,null,1,0,null,0,null,0,0,null,null,0,0,0]
[null,"合　　計",null,null,null,null,null,null,null,null,null,{"$f":"SUM(L61:L164)","v":0},null,{"$f":"SUM(N61:N164)","v":0},null,{"$f":"SUM(P61:P164)","v":0},{"$f":"SUM(Q61:Q164)","v":0},null,null,null,{"$f":"SUM(U61:U164)","v":0},{"$f":"SUM(V61:V164)","v":0}]
[null,null,null,null,null,null,null,null,null,null,null,{"$f":"ROUNDDOWN(L165,2)","v":0},null,{"$f":"ROUNDDOWN(N165,2)","v":0},null,{"$f":"ROUNDDOWN(P165,2)","v":0},{"$f":"ROUNDDOWN(Q165,2)","v":0},null,null,"端数切捨て",{"$f":"ROUNDDOWN(U165,-2)","v":0},{"$f":"ROUNDDOWN(V165,-2)","v":0}]
[]
[null,null,null,"人工の単価",null,"豊田市設定\n単価","補助対象単価","人工/㎥","全体人工","合計","補助対象人工","合計"]
[null,null,null,"構造材大工手間",20000,23400,{"$f":"IF(F169=\"\",E169,IF(F169>E169,E169,F169))","v":20000},null,{"$f":"ROUNDDOWN(((P60+Q60)*H169),0)","v":0},{"$f":"I169*E169","v":0},{"$f":"ROUNDDOWN((P60*H169),0)","v":0},{"$f":"G169*K169","v":0}]
[null,null,null,"構造材手元手間",15000,17500,{"$f":"IF(F170=\"\",E170,IF(F170>E170,E170,F170))","v":15000},null,{"$f":"ROUNDDOWN((I169*0.15),0)","v":0},{"$f":"I170*E170","v":0},{"$f":"ROUNDDOWN((K169*0.15),0)","v":0},{"$f":"G170*K170","v":0}]
[null,null,null,"造作材大工手間",20000,23400,{"$f":"IF(F171=\"\",E171,IF(F171>E171,E171,F171))","v":20000},null,{"$f":"ROUNDDOWN(((P166+Q166)*H171),0)","v":0},{"$f":"I171*E171","v":0},{"$f":"ROUNDDOWN((P166*H171),0)","v":0},{"$f":"G171*K171","v":0}]
[null,null,null,"造作材手元手間",15000,17500,{"$f":"IF(F172=\"\",E172,IF(F172>E172,E172,F172))","v":15000},null,{"$f":"ROUNDDOWN((I171*0.15),0)","v":0},{"$f":"I172*E172","v":0},{"$f":"ROUNDDOWN((K171*0.15),0)","v":0},{"$f":"G172*K172","v":0}]

{"sheet":"木材明細(変更修景）","index":12,"n_rows":172,"n_cols":22,"rows_kept":172,"cut":false,"hidden":false,"merged":[[1,20,2,20],[1,25,2,25],[1,23,2,23],[1,24,2,24],[1,21,2,21],[1,19,2,19],[1,5,2,5],[1,7,1,11],[1,3,2,3],[1,4,2,4],[1,12,2,12],[1,18,2,18],[1,13,2,13],[1,14,1,16],[1,6,2,6],[167,3,167,4],[1,1,2,1],[1,2,2,2],[58,1,59,1],[164,1,165,1]]}
[null,null,"木材明細表",null,null,null,null,null,null,null,null,null,null,null,null,null,null,null,null,null,null,"「　場所の凡例　Ⅰ.北棟東面部分、Ⅱ.北棟北面部分、Ⅲ.北棟南面部分、Ⅳ.内部柱建て補強土台等取付部分　」"]
[null,"分類","名　称","場　所","材種","等級","単位","木材の大きさ",null,null,null,null,"全体数量","全体材積","数量内訳",null,null,"単価","上限単価\n（豊田市）","補助対象\n採用単価","全体金額","補助対象金額"]
[null,null,null,null,null,null,null,"Ｗ (m)","Ｄ (m)","Ｌ (m)","部材\n使用率","材積",null,null,"対象数量","補助対象","対象外","㎥単価"]
[null,"構造材","土台",null,"栗",null,"ｍ3",null,null,null,1,{"$f":"ROUNDDOWN(H4*I4*J4*K4,3)","v":0},null,{"$f":"M4*L4","v":0},null,{"$f":"L4*O4","v":0},{"$f":"N4-P4","v":0},null,null,{"$f":"IF(S4=\"\",R4,MIN(R4:S4))","v":0},{"$f":"ROUNDDOWN(R4*N4,0)","v":0},{"$f":"ROUNDDOWN(P4*T4,0)","v":0}]
[null,null,"土台",null,"栗",null,"ｍ2",null,null,null,1,{"$f":"ROUNDDOWN(H5*I5*J5*K5,3)","v":0},null,{"$f":"M5*L5","v":0},null,{"$f":"L5*O5","v":0},{"$f":"N5-P5","v":0},null,null,{"$f":"IF(S5=\"\",R5,MIN(R5:S5))","v":0},0,0]
[null,null,"土台",null,"栗",null,"ｍ3",null,null,null,1,0,null,0,null,0,0,null,null,0,0,0]
[null,null,"土台",null,"栗",null,"ｍ3",null,null,null,1,0,null,0,null,0,0,null,null,0,0,0]
[null,null,"足固め",null,null,null,"ｍ3",null,null,null,1,0,null,0,null,0,0,null,null,0,0,0]
[null,null,"足固め",null,null,null,"ｍ3",null,null,null,1,0,null,0,null,0,0,null,null,0,0,0]
[null,null,"柱",null,"桧","小節","ｍ3",null,null,null,1,0,null,0,null,0,0,null,null,0,0,0]
[null,null,"柱",null,"桧","特一","ｍ3",null,null,null,1,0,null,0,null,0,0,null,null,0,0,0]
[null,null,"柱",null,null,null,"ｍ3",null,null,null,1,0,null,0,null,0,0,null,null,0,0,0]
[null,null,"柱","根継","杉",null,"ｍ3",null,null,null,1,0,null,0,null,0,0,null,null,0,0,0]
[null,null,"柱",null,null,null,"ｍ3",null,null,null,1,0,null,0,null,0,0,null,null,0,0,0]
[null,null,"貫","2階","桧","特一","ｍ3",null,null,null,1,0,null,0,null,0,0,null,null,0,0,0]
[null,null,"貫","2階","桧","特一","ｍ3",null,null,null,1,0,null,0,null,0,0,null,null,0,0,0]
[null,null,"貫","2階","桧","特一","ｍ3",null,null,null,1,0,null,0,null,0,0,null,null,0,0,0]
[null,null,"梁",null,"地松","特一","ｍ3",null,null,null,1,0,null,0,null,0,0,null,null,0,0,0]
[null,null,"梁",null,"地松","特一","ｍ3",null,null,null,1,0,null,0,null,0,0,null,null,0,0,0]
[null,null,"梁",null,"地松","特一","ｍ3",null,null,null,1,0,null,0,null,0,0,null,null,0,0,0]
[null,null,"梁",null,null,null,"ｍ3",null,null,null,1,0,null,0,null,0,0,null,null,0,0,0]
[null,null,"梁",null,null,null,"ｍ3",null,null,null,1,0,null,0,null,0,0,null,null,0,0,0]
[null,null,"登り梁",null,"地松","特一","ｍ3",null,null,null,1,0,null,0,null,0,0,null,null,0,0,0]
[null,null,"登り梁",null,"地松","特一","ｍ3",null,null,null,1,0,null,0,null,0,0,null,null,0,0,0]
[null,null,"桁",null,"地松","特一","ｍ3",null,null,null,1,0,null,0,null,0,0,null,null,0,0,0]
[null,null,"桁",null,"地松","特一","ｍ3",null,null,null,1,0,null,0,null,0,0,null,null,0,0,0]
[null,null,"桁",null,"地松","特一","ｍ3",null,null,null,1,0,null,0,null,0,0,null,null,0,0,0]
[null,null,"桁",null,"地松","特一","ｍ3",null,null,null,1,0,null,0,null,0,0,null,null,0,0,0]
[null,null,"桁",null,"地松","特一","ｍ3",null,null,null,1,{"$f":"ROUNDDOWN(H29*I29*J29*K29,3)","v":0},null,{"$f":"M29*L29","v":0},null,{"$f":"L29*O29","v":0},{"$f":"N29-P29","v":0},null,null,{"$f":"IF(S29=\"\",R29,MIN(R29:S29))","v":0},0,0]
[null,null,"桁",null,"地松","特一","ｍ3",null,null,null,1,0,null,0,null,0,0,null,null,0,0,0]
[null,null,"桁",null,"地松","特一","ｍ3",null,null,null,1,0,null,0,null,0,0,null,null,0,0,0]
[null,"構造材","小屋束",null,null,null,"ｍ3",null,null,null,1,0,null,0,null,0,0,null,null,0,0,0]
[null,null,"小屋束",null,null,null,"ｍ3",null,null,null,1,0,null,0,null,0,0,null,null,0,0,0]
[null,null,"母屋",null,"地松","特一","ｍ3",null,null,null,1,0,null,0,null,0,0,null,null,0,0,0]
[null,null,"母屋",null,"地松","特一","ｍ3",null,null,null,1,0,null,0,null,0,0,null,null,0,0,0]
[null,null,"母屋",null,"地松","特一","ｍ3",null,null,null,1,0,null,0,null,0,0,null,null,0,0,0]
[null,null,"棟木",null,"地松","特一","ｍ3",null,null,null,1,0,null,0,null,0,0,null,null,0,0,0]
[null,null,"棟木",null,"地松","ｺﾐ","ｍ3",null,null,null,1,0,null,0,null,0,0,null,null,0,0,0]
[null,null,"棟木",null,"地松","特一","ｍ3",null,null,null,1,0,null,0,null,0,0,null,null,0,0,0]
[null,null,"垂木",null,"杉",null,"ｍ3",null,null,null,1,0,null,0,null,0,0,null,null,0,0,0]
[null,null,"垂木",null,"杉",null,"ｍ3",null,null,null,1,0,null,0,null,0,0,null,null,0,0,0]
[null,null,"垂木掛",null,"杉",null,"ｍ3",null,null,null,1,0,null,0,null,0,0,null,null,0,0,0]
[null,null,"野地板",null,"杉","特一","ｍ3",null,null,null,1,0,null,0,null,0,0,null,null,0,0,0]
[null,null,"野地板",null,"杉","特一","ｍ3",null,null,null,1,0,null,0,null,0,0,null,null,0,0,0]
[null,null,"広木舞",null,"杉","特一","ｍ3",null,null,null,1,0,null,0,null,0,0,null,null,0,0,0]
[null,null,"広木舞",null,"杉","特一","ｍ3",null,null,null,1,0,null,0,null,0,0,null,null,0,0,0]
[null,null,null,null,"桧",null,"ｍ3",null,null,null,1,0,null,0,null,0,0,null,null,0,0,0]
[null,null,null,null,"栗",null,"ｍ3",null,null,null,1,0,null,0,null,0,0,null,null,0,0,0]
[null,null,null,null,null,null,"ｍ3",null,null,null,1,0,null,0,null,0,0,null,null,0,0,0]
[null,null,null,null,null,null,"ｍ3",null,null,null,1,0,null,0,null,0,0,null,null,0,0,0]
[null,null,null,null,null,null,"ｍ3",null,null,null,1,{"$f":"ROUNDDOWN(H51*I51*J51*K51,3)","v":0},null,{"$f":"M51*L51","v":0},null,{"$f":"L51*O51","v":0},{"$f":"N51-P51","v":0},null,null,{"$f":"IF(S51=\"\",R51,MIN(R51:S51))","v":0},0,0]
[null,null,null,null,null,null,"ｍ3",null,null,null,1,{"$f":"ROUNDDOWN(H52*I52*J52*K52,3)","v":0},null,{"$f":"M52*L52","v":0},null,{"$f":"L52*O52","v":0},{"$f":"N52-P52","v":0},null,null,{"$f":"IF(S52=\"\",R52,MIN(R52:S52))","v":0},0,0]
[null,null,null,null,null,null,"ｍ3",null,null,null,1,{"$f":"ROUNDDOWN(H53*I53*J53*K53,3)","v":0},null,{"$f":"M53*L53","v":0},null,{"$f":"L53*O53","v":0},{"$f":"N53-P53","v":0},null,null,{"$f":"IF(S53=\"\",R53,MIN(R53:S53))","v":0},0,0]
[null,null,null,null,null,null,"ｍ3",null,null,null,1,0,null,0,null,0,0,null,null,0,0,0]
[null,null,null,null,null,null,"ｍ3",null,null,null,1,0,null,0,null,0,0,null,null,0,0,0]
[null,null,null,null,null,null,"ｍ3",null,null,null,1,0,null,0,null,0,0,null,null,0,0,0]
[null,null,null,null,null,null,"ｍ3",null,null,null,1,0,null,0,null,0,0,null,null,0,0,0]
[null,null,null,null,null,null,"ｍ3",null,null,null,1,0,null,0,null,0,0,null,null,0,0,0]
[null,"合　　計",null,null,null,null,null,null,null,null,null,{"$f":"SUM(L4:L58)","v":0},null,{"$f":"SUM(N4:N58)","v":0},null,{"$f":"SUM(P4:P58)","v":0},{"$f":"SUM(Q4:Q58)","v":0},null,null,null,{"$f":"SUM(U4:U58)","v":0},{"$f":"SUM(V4:V58)","v":0}]
[null,null,null,null,null,null,null,null,null,null,null,{"$f":"ROUNDDOWN(L59,2)","v":0},null,{"$f":"ROUNDDOWN(N59,2)","v":0},null,{"$f":"ROUNDDOWN(P59,2)","v":0},{"$f":"ROUNDDOWN(Q59,2)","v":0},null,null,"端数切捨て",{"$f":"ROUNDDOWN(U59,-2)","v":0},{"$f":"ROUNDDOWN(V59,-2)","v":0}]
[null,"造作材","大引",null,null,null,"ｍ3",null,null,null,1,{"$f":"ROUNDDOWN(H61*I61*J61*K61,3)","v":0},null,{"$f":"M61*L61","v":0},null,{"$f":"L61*O61","v":0},{"$f":"N61-P61","v":0},null,null,{"$f":"IF(S61=\"\",R61,MIN(R61:S61))","v":0},{"$f":"ROUNDDOWN(R61*N61,0)","v":0},{"$f":"ROUNDDOWN(P61*T61,0)","v":0}]
[null,null,"大引",null,null,null,"ｍ3",null,null,null,1,0,null,0,null,0,0,null,null,0,0,0]
[null,null,"大引",null,null,null,"ｍ3",null,null,null,1,0,null,0,null,0,0,null,null,0,0,0]
[null,null,"大引",null,null,null,"ｍ3",null,null,null,1,0,null,0,null,0,0,null,null,0,0,0]
[null,null,"大引",null,null,null,"ｍ3",null,null,null,1,0,null,0,null,0,0,null,null,0,0,0]
[null,null,"根太",null,null,null,"ｍ3",null,null,null,1,0,null,0,null,0,0,null,null,0,0,0]
[null,null,"根太",null,null,null,"ｍ3",null,null,null,1,0,null,0,null,0,0,null,null,0,0,0]
[null,null,"根太",null,null,null,"ｍ3",null,null,null,1,0,null,0,null,0,0,null,null,0,0,0]
[null,null,"根太掛",null,null,null,"ｍ3",null,null,null,1,0,null,0,null,0,0,null,null,0,0,0]
[null,null,"床束",null,null,null,"ｍ3",null,null,null,1,0,null,0,null,0,0,null,null,0,0,0]
[null,null,"床束",null,null,null,"ｍ3",null,null,null,1,0,null,0,null,0,0,null,null,0,0,0]
[null,null,"荒床",null,"ｽｷﾞ",null,"ｍ3",null,null,null,1,0,null,0,null,0,0,null,null,0,0,0]
[null,null,"荒床",null,"ｽｷﾞ",null,"ｍ3",null,null,null,1,0,null,0,null,0,0,null,null,0,0,0]
[null,null,"畳寄",null,"ﾋﾉｷ",null,"ｍ3",null,null,null,1,0,null,0,null,0,0,null,null,0,0,0]
[null,null,"畳寄",null,"ﾋﾉｷ",null,"ｍ3",null,null,null,1,0,null,0,null,0,0,null,null,0,0,0]
[null,null,"床板",null,"桧","節","ｍ3",null,null,null,1,0,null,0,null,0,0,null,null,0,0,0]
[null,null,"床板",null,null,null,"ｍ3",null,null,null,1,0,null,0,null,0,0,null,null,0,0,0]
[null,null,"床板",null,null,null,"ｍ3",null,null,null,1,0,null,0,null,0,0,null,null,0,0,0]
[null,null,"床板",null,null,null,"ｍ3",null,null,null,1,0,null,0,null,0,0,null,null,0,0,0]
[null,null,"床板",null,null,null,"ｍ3",null,null,null,1,0,null,0,null,0,0,null,null,0,0,0]
[null,null,"框",null,null,null,"ｍ3",null,null,null,1,0,null,0,null,0,0,null,null,0,0,0]
[null,null,"框",null,null,null,"ｍ3",null,null,null,1,0,null,0,null,0,0,null,null,0,0,0]
[null,null,"鴨居","仏間",null,null,"ｍ3",null,null,null,1,0,null,0,null,0,0,null,null,0,0,0]
[null,null,"鴨居","外部木建",null,null,"ｍ3",null,null,null,1,0,null,0,null,0,0,null,null,0,0,0]
[null,null,"鴨居","外部木建",null,null,"ｍ3",null,null,null,1,0,null,0,null,0,0,null,null,0,0,0]
[null,null,"鴨居","外部木建",null,null,"ｍ3",null,null,null,1,{"$f":"ROUNDDOWN(H86*I86*J86*K86,3)","v":0},null,{"$f":"M86*L86","v":0},null,{"$f":"L86*O86","v":0},{"$f":"N86-P86","v":0},null,null,{"$f":"IF(S86=\"\",R86,MIN(R86:S86))","v":0},0,0]
[null,null,"鴨居","外部木建",null,null,"ｍ3",null,null,null,1,{"$f":"ROUNDDOWN(H87*I87*J87*K87,3)","v":0},null,{"$f":"M87*L87","v":0},null,{"$f":"L87*O87","v":0},{"$f":"N87-P87","v":0},null,null,{"$f":"IF(S87=\"\",R87,MIN(R87:S87))","v":0},0,0]
[null,null,"鴨居","戸走り(上)",null,null,"ｍ3",null,null,null,1,0,null,0,null,0,0,null,null,0,0,0]
[null,null,"鴨居","戸走り(上)",null,null,"ｍ3",null,null,null,1,0,null,0,null,0,0,null,null,0,0,0]
[null,"造作材","無目","外部木建",null,null,"ｍ3",null,null,null,1,0,null,0,null,0,0,null,null,0,0,0]
[null,null,"無目","内部木建",null,null,"ｍ3",null,null,null,1,0,null,0,null,0,0,null,null,0,0,0]
[null,null,"敷居","外部木建",null,null,"ｍ3",null,null,null,1,0,null,0,null,0,0,null,null,0,0,0]
[null,null,"敷居","外部木建",null,null,"ｍ3",null,null,null,1,0,null,0,null,0,0,null,null,0,0,0]
[null,null,"敷居","戸走り(下)",null,null,"ｍ3",null,null,null,1,0,null,0,null,0,0,null,null,0,0,0]
[null,null,"敷居","戸走り(下)",null,null,"ｍ3",null,null,null,1,0,null,0,null,0,0,null,null,0,0,0]
[null,null,"敷居",null,null,null,"ｍ3",null,null,null,1,0,null,0,null,0,0,null,null,0,0,0]
[null,null,"敷居",null,null,null,"ｍ3",null,null,null,1,0,null,0,null,0,0,null,null,0,0,0]
[null,null,"腰壁","下見板","杉","赤身","ｍ3",null,null,null,1,0,null,0,null,0,0,null,null,0,0,0]
[null,null,"腰壁","押縁(竿)","杉","赤身","ｍ3",null,null,null,1,0,null,0,null,0,0,null,null,0,0,0]
[null,null,"腰壁","見切縁","杉","赤身","ｍ3",null,null,null,1,0,null,0,null,0,0,null,null,0,0,0]
[null,null,"腰壁","額縁","杉","赤身","ｍ3",null,null,null,1,0,null,0,null,0,0,null,null,0,0,0]
[null,null,"腰壁",null,"杉","赤身","ｍ3",null,null,null,1,0,null,0,null,0,0,null,null,0,0,0]
[null,null,"戸箱","胴縁","杉",null,"ｍ3",null,null,null,1,0,null,0,null,0,0,null,null,0,0,0]
[null,null,"戸箱","見切り縁","杉",null,"ｍ3",null,null,null,1,0,null,0,null,0,0,null,null,0,0,0]
[null,null,"戸箱","板","杉",null,"ｍ3",null,null,null,1,0,null,0,null,0,0,null,null,0,0,0]
[null,null,"戸箱","目板","杉",null,"ｍ3",null,null,null,1,0,null,0,null,0,0,null,null,0,0,0]
[null,null,"格子枠",null,"ﾋﾉｷ",null,"ｍ3",null,null,null,1,0,null,0,null,0,0,null,null,0,0,0]
[null,null,"格子枠",null,"ﾋﾉｷ",null,"ｍ3",null,null,null,1,0,null,0,null,0,0,null,null,0,0,0]
[null,null,"格子枠",null,"ﾋﾉｷ",null,"ｍ3",null,null,null,1,0,null,0,null,0,0,null,null,0,0,0]
[null,null,"格子枠",null,"ﾋﾉｷ",null,"ｍ3",null,null,null,1,0,null,0,null,0,0,null,null,0,0,0]
[null,null,"外部板",null,"杉",null,"ｍ3",null,null,null,1,{"$f":"ROUNDDOWN(H111*I111*J111*K111,3)","v":0},null,{"$f":"M111*L111","v":0},null,{"$f":"L111*O111","v":0},{"$f":"N111-P111","v":0},null,null,{"$f":"IF(S111=\"\",R111,MIN(R111:S111))","v":0},0,0]
[null,null,"外部板",null,"杉",null,"ｍ3",null,null,null,1,{"$f":"ROUNDDOWN(H112*I112*J112*K112,3)","v":0},null,{"$f":"M112*L112","v":0},null,{"$f":"L112*O112","v":0},{"$f":"N112-P112","v":0},null,null,{"$f":"IF(S112=\"\",R112,MIN(R112:S112))","v":0},0,0]
[null,null,null,null,null,null,"ｍ3",null,null,null,1,{"$f":"ROUNDDOWN(H113*I113*J113*K113,3)","v":0},null,{"$f":"M113*L113","v":0},null,{"$f":"L113*O113","v":0},{"$f":"N113-P113","v":0},null,null,{"$f":"IF(S113=\"\",R113,MIN(R113:S113))","v":0},0,0]
[null,null,null,null,null,null,"ｍ3",null,null,null,1,{"$f":"ROUNDDOWN(H114*I114*J114*K114,3)","v":0},null,{"$f":"M114*L114","v":0},null,{"$f":"L114*O114","v":0},{"$f":"N114-P114","v":0},null,null,{"$f":"IF(S114=\"\",R114,MIN(R114:S114))","v":0},0,0]
[null,null,"外壁下地",null,"ｺﾐ",null,"ｍ3",null,null,null,1,{"$f":"ROUNDDOWN(H115*I115*J115*K115,4)","v":0},null,0,null,0,0,null,null,0,0,0]
[null,null,"大壁",null,null,null,"ｍ3",null,null,null,1,0,null,0,null,0,0,null,null,0,0,0]
[null,null,null,null,null,null,"ｍ3",null,null,null,1,0,null,0,null,0,0,null,null,0,0,0]
[null,null,null,null,null,null,"ｍ3",null,null,null,1,0,null,0,null,0,0,null,null,0,0,0]
[null,"造作材","霧除","腕木","杉",null,"ｍ3",null,null,null,1,0,null,0,null,0,0,null,null,0,0,0]
[null,null,"霧除","桁","杉",null,"ｍ3",null,null,null,1,0,null,0,null,0,0,null,null,0,0,0]
[null,null,"霧除","目板","杉",null,"ｍ3",null,null,null,1,0,null,0,null,0,0,null,null,0,0,0]
[null,null,"小庇","腕木","杉",null,"ｍ3",null,null,null,1,0,null,0,null,0,0,null,null,0,0,0]
[null,null,"小庇","桁","杉",null,"ｍ3",null,null,null,1,0,null,0,null,0,0,null,null,0,0,0]
[null,null,"小庇","持ち送り","杉",null,"ｍ3",null,null,null,1,0,null,0,null,0,0,null,null,0,0,0]
[null,null,"小庇","目板","杉",null,"ｍ3",null,null,null,1,0,null,0,null,0,0,null,null,0,{"$f":"ROUNDDOWN(R125*N125,0)","v":0},{"$f":"ROUNDDOWN(P125*T125,0)","v":0}]
[null,null,"小庇","破風板","杉",null,"ｍ3",null,null,null,1,0,null,0,null,0,0,null,null,0,0,0]
[null,null,"小庇",null,"杉",null,"ｍ3",null,null,null,1,0,null,0,null,0,0,null,null,0,0,0]
[null,null,"屋根","瓦桟","杉",null,"ｍ3",null,null,null,1,{"$f":"ROUNDDOWN(H128*I128*J128*K128,3)","v":0},null,{"$f":"M128*L128","v":0},null,{"$f":"L128*O128","v":0},{"$f":"N128-P128","v":0},null,null,{"$f":"IF(S128=\"\",R128,MIN(R128:S128))","v":0},0,0]
[null,null,"屋根","破風板","杉",null,"ｍ3",null,null,null,1,0,null,0,null,0,0,null,null,0,0,0]
[null,null,"屋根","破風板","杉",null,"ｍ3",null,null,null,1,0,null,0,null,0,0,null,null,0,0,0]
[null,null,"屋根","登り瓦桟","杉",null,"ｍ3",null,null,null,1,0,null,0,null,0,0,null,null,0,0,0]
[null,null,"屋根","面戸板","杉",null,"ｍ3",null,null,null,1,0,null,0,null,0,0,null,null,0,0,0]
[null,null,"屋根",null,"杉",null,"ｍ3",null,null,null,1,0,null,0,null,0,0,null,null,0,0,0]
[null,null,"屋根",null,"杉",null,"ｍ3",null,null,null,1,0,null,0,null,0,0,null,null,0,0,0]
[null,null,"天井板",null,null,null,"ｍ3",null,null,null,1,0,null,0,null,0,0,null,null,0,0,0]
[null,null,"天井板",null,null,null,"ｍ3",null,null,null,1,0,null,0,null,0,0,null,null,0,0,0]
[null,null,"天井板",null,null,null,"ｍ3",null,null,null,1,0,null,0,null,0,0,null,null,0,0,0]
[null,null,"天井板",null,null,null,"ｍ3",null,null,null,1,0,null,0,null,0,0,null,null,0,0,0]
[null,null,"廻縁",null,"ｽｷﾞ",null,"ｍ3",null,null,null,1,0,null,0,null,0,0,null,null,0,0,0]
[null,null,"廻縁",null,null,null,"ｍ3",null,null,null,1,0,null,0,null,0,0,null,null,0,0,0]
[null,null,"棹縁",null,"ｽｷﾞ",null,"ｍ3",null,null,null,1,0,null,0,null,0,0,null,null,0,0,0]
[null,null,"棹縁",null,null,null,"ｍ3",null,null,null,1,0,null,0,null,0,0,null,null,0,0,0]
[null,null,null,null,null,null,null,null,null,null,1,0,null,0,null,0,0,null,null,0,0,0]
[null,null,null,null,null,null,null,null,null,null,1,0,null,0,null,0,0,null,null,0,0,0]
[null,null,null,null,null,null,"ｍ3",null,null,null,1,0,null,0,null,0,0,null,null,0,0,0]
[null,null,null,null,null,null,"ｍ3",null,null,null,1,0,null,0,null,0,0,null,null,0,0,0]
[null,null,null,null,null,null,"ｍ3",null,null,null,1,0,null,0,null,0,0,null,null,0,0,0]
[null,null,null,null,null,null,"ｍ3",null,null,null,1,0,null,0,null,0,0,null,null,0,0,0]
[null,null,null,null,null,null,"ｍ3",null,null,null,1,0,null,0,null,0,0,null,null,0,0,0]
[null,null,null,null,null,null,"ｍ3",null,null,null,1,0,null,0,null,0,0,null,null,0,0,0]
[null,null,null,null,null,null,"ｍ3",null,null,null,1,0,null,0,null,0,0,null,null,0,0,0]
[null,null,null,null,null,null,"ｍ3",null,null,null,1,0,null,0,null,0,0,null,null,0,0,0]
[null,null,null,null,null,null,"ｍ3",null,null,null,1,0,null,0,null,0,0,null,null,0,0,0]
[null,null,null,null,null,null,"ｍ3",null,null,null,1,0,null,0,null,0,0,null,null,0,0,0]
[null,null,null,null,null,null,"ｍ3",null,null,null,1,0,null,0,null,0,0,null,null,0,0,0]
[null,null,null,null,null,null,"ｍ3",null,null,null,1,0,null,0,null,0,0,null,null,0,0,0]
[null,null,null,null,null,null,"ｍ3",null,null,null,1,0,null,0,null,0,0,null,null,0,0,0]
[null,null,null,null,null,null,"ｍ3",null,null,null,1,0,null,0,null,0,0,null,null,0,0,0]
[null,null,null,null,null,null,"ｍ3",null,null,null,1,0,null,0,null,0,0,null,null,0,0,0]
[null,null,null,null,null,null,"ｍ3",null,null,null,1,0,null,0,null,0,0,null,null,0,0,0]
[null,null,null,null,null,null,"ｍ3",null,null,null,1,0,null,0,null,0,0,null,null,0,0,0]
[null,null,null,null,null,null,"ｍ3",null,null,null,1,0,null,0,null,0,0,null,null,0,0,0]
[null,null,null,null,null,null,"ｍ3",null,null,null,1,0,null,0,null,0,0,null,null,0,0,0]
[null,null,null,null,null,null,"ｍ3",null,null,null,1,0,null,0,null,0,0,null,null,0,0,0]
[null,"合　　計",null,null,null,null,null,null,null,null,null,{"$f":"SUM(L61:L164)","v":0},null,{"$f":"SUM(N61:N164)","v":0},null,{"$f":"SUM(P61:P164)","v":0},{"$f":"SUM(Q61:Q164)","v":0},null,null,null,{"$f":"SUM(U61:U164)","v":0},{"$f":"SUM(V61:V164)","v":0}]
[null,null,null,null,null,null,null,null,null,null,null,{"$f":"ROUNDDOWN(L165,2)","v":0},null,{"$f":"ROUNDDOWN(N165,2)","v":0},null,{"$f":"ROUNDDOWN(P165,2)","v":0},{"$f":"ROUNDDOWN(Q165,2)","v":0},null,null,"端数切捨て",{"$f":"ROUNDDOWN(U165,-2)","v":0},{"$f":"ROUNDDOWN(V165,-2)","v":0}]
[]
[null,null,null,"人工の単価",null,"豊田市設定\n単価","補助対象単価","人工/㎥","全体人工","合計","補助対象人工","合計"]
[null,null,null,"構造材大工手間",20000,23400,{"$f":"IF(F169=\"\",E169,IF(F169>E169,E169,F169))","v":20000},null,{"$f":"ROUNDDOWN(((P60+Q60)*H169),0)","v":0},{"$f":"I169*E169","v":0},{"$f":"ROUNDDOWN((P60*H169),0)","v":0},{"$f":"G169*K169","v":0}]
[null,null,null,"構造材手元手間",15000,17500,{"$f":"IF(F170=\"\",E170,IF(F170>E170,E170,F170))","v":15000},null,{"$f":"ROUNDDOWN((I169*0.15),0)","v":0},{"$f":"I170*E170","v":0},{"$f":"ROUNDDOWN((K169*0.15),0)","v":0},{"$f":"G170*K170","v":0}]
[null,null,null,"造作材大工手間",20000,23400,{"$f":"IF(F171=\"\",E171,IF(F171>E171,E171,F171))","v":20000},null,{"$f":"ROUNDDOWN(((P166+Q166)*H171),0)","v":0},{"$f":"I171*E171","v":0},{"$f":"ROUNDDOWN((P166*H171),0)","v":0},{"$f":"G171*K171","v":0}]
[null,null,null,"造作材手元手間",15000,17500,{"$f":"IF(F172=\"\",E172,IF(F172>E172,E172,F172))","v":15000},null,{"$f":"ROUNDDOWN((I171*0.15),0)","v":0},{"$f":"I172*E172","v":0},{"$f":"ROUNDDOWN((K171*0.15),0)","v":0},{"$f":"G172*K172","v":0}]

{"sheet":"木材明細(実績修理）","index":13,"n_rows":172,"n_cols":22,"rows_kept":172,"cut":false,"hidden":false,"merged":[[1,24,2,24],[1,25,2,25],[1,7,1,11],[1,12,2,12],[1,13,2,13],[1,14,1,16],[1,18,2,18],[1,23,2,23],[1,21,2,21],[167,3,167,4],[58,1,59,1],[164,1,165,1],[1,19,2,19],[1,20,2,20],[1,1,2,1],[1,2,2,2],[1,3,2,3],[1,4,2,4],[1,5,2,5],[1,6,2,6]]}
[null,null,"木材明細表"]
[null,"分類","名　称","場　所","材種","等級","単位","木材の大きさ",null,null,null,null,"全体数量","全体材積","数量内訳",null,null,"単価","上限単価\n（豊田市）","補助対象\n採用単価","全体金額","補助対象金額"]
[null,null,null,null,null,null,null,"Ｗ (m)","Ｄ (m)","Ｌ (m)","部材\n使用率","材積",null,null,"対象数量","補助対象","対象外","㎥単価"]
[null,"構造材","土台",null,"栗",null,"ｍ3",null,null,null,1,{"$f":"ROUNDDOWN(H4*I4*J4*K4,3)","v":0},null,{"$f":"M4*L4","v":0},null,{"$f":"L4*O4","v":0},{"$f":"N4-P4","v":0},null,null,{"$f":"IF(S4=\"\",R4,MIN(R4:S4))","v":0},{"$f":"ROUNDDOWN(R4*N4,0)","v":0},{"$f":"ROUNDDOWN(P4*T4,0)","v":0}]
[null,null,"土台",null,"栗",null,"ｍ2",null,null,null,1,{"$f":"ROUNDDOWN(H5*I5*J5*K5,3)","v":0},null,{"$f":"M5*L5","v":0},null,{"$f":"L5*O5","v":0},{"$f":"N5-P5","v":0},null,null,{"$f":"IF(S5=\"\",R5,MIN(R5:S5))","v":0},0,0]
[null,null,"土台",null,"栗",null,"ｍ3",null,null,null,1,0,null,0,null,0,0,null,null,0,0,0]
[null,null,"土台",null,"栗",null,"ｍ3",null,null,null,1,0,null,0,null,0,0,null,null,0,0,0]
[null,null,"足固め",null,null,null,"ｍ3",null,null,null,1,0,null,0,null,0,0,null,null,0,0,0]
[null,null,"足固め",null,null,null,"ｍ3",null,null,null,1,0,null,0,null,0,0,null,null,0,0,0]
[null,null,"柱",null,"桧","小節","ｍ3",null,null,null,1,0,null,0,null,0,0,null,null,0,0,0]
[null,null,"柱",null,"桧","特一","ｍ3",null,null,null,1,0,null,0,null,0,0,null,null,0,0,0]
[null,null,"柱",null,null,null,"ｍ3",null,null,null,1,0,null,0,null,0,0,null,null,0,0,0]
[null,null,"柱","根継","杉",null,"ｍ3",null,null,null,1,0,null,0,null,0,0,null,null,0,0,0]
[null,null,"柱",null,null,null,"ｍ3",null,null,null,1,0,null,0,null,0,0,null,null,0,0,0]
[null,null,"貫","2階","桧","特一","ｍ3",null,null,null,1,0,null,0,null,0,0,null,null,0,0,0]
[null,null,"貫","2階","桧","特一","ｍ3",null,null,null,1,0,null,0,null,0,0,null,null,0,0,0]
[null,null,"貫","2階","桧","特一","ｍ3",null,null,null,1,0,null,0,null,0,0,null,null,0,0,0]
[null,null,"梁",null,"地松","特一","ｍ3",null,null,null,1,0,null,0,null,0,0,null,null,0,0,0]
[null,null,"梁",null,"地松","特一","ｍ3",null,null,null,1,0,null,0,null,0,0,null,null,0,0,0]
[null,null,"梁",null,"地松","特一","ｍ3",null,null,null,1,0,null,0,null,0,0,null,null,0,0,0]
[null,null,"梁",null,null,null,"ｍ3",null,null,null,1,0,null,0,null,0,0,null,null,0,0,0]
[null,null,"梁",null,null,null,"ｍ3",null,null,null,1,0,null,0,null,0,0,null,null,0,0,0]
[null,null,"登り梁",null,"地松","特一","ｍ3",null,null,null,1,0,null,0,null,0,0,null,null,0,0,0]
[null,null,"登り梁",null,"地松","特一","ｍ3",null,null,null,1,0,null,0,null,0,0,null,null,0,0,0]
[null,null,"桁",null,"地松","特一","ｍ3",null,null,null,1,0,null,0,null,0,0,null,null,0,0,0]
[null,null,"桁",null,"地松","特一","ｍ3",null,null,null,1,0,null,0,null,0,0,null,null,0,0,0]
[null,null,"桁",null,"地松","特一","ｍ3",null,null,null,1,0,null,0,null,0,0,null,null,0,0,0]
[null,null,"桁",null,"地松","特一","ｍ3",null,null,null,1,0,null,0,null,0,0,null,null,0,0,0]
[null,null,"桁",null,"地松","特一","ｍ3",null,null,null,1,{"$f":"ROUNDDOWN(H29*I29*J29*K29,3)","v":0},null,{"$f":"M29*L29","v":0},null,{"$f":"L29*O29","v":0},{"$f":"N29-P29","v":0},null,null,{"$f":"IF(S29=\"\",R29,MIN(R29:S29))","v":0},0,0]
[null,null,"桁",null,"地松","特一","ｍ3",null,null,null,1,0,null,0,null,0,0,null,null,0,0,0]
[null,null,"桁",null,"地松","特一","ｍ3",null,null,null,1,0,null,0,null,0,0,null,null,0,0,0]
[null,"構造材","小屋束",null,null,null,"ｍ3",null,null,null,1,0,null,0,null,0,0,null,null,0,0,0]
[null,null,"小屋束",null,null,null,"ｍ3",null,null,null,1,0,null,0,null,0,0,null,null,0,0,0]
[null,null,"母屋",null,"地松","特一","ｍ3",null,null,null,1,0,null,0,null,0,0,null,null,0,0,0]
[null,null,"母屋",null,"地松","特一","ｍ3",null,null,null,1,0,null,0,null,0,0,null,null,0,0,0]
[null,null,"母屋",null,"地松","特一","ｍ3",null,null,null,1,0,null,0,null,0,0,null,null,0,0,0]
[null,null,"棟木",null,"地松","特一","ｍ3",null,null,null,1,0,null,0,null,0,0,null,null,0,0,0]
[null,null,"棟木",null,"地松","ｺﾐ","ｍ3",null,null,null,1,0,null,0,null,0,0,null,null,0,0,0]
[null,null,"棟木",null,"地松","特一","ｍ3",null,null,null,1,0,null,0,null,0,0,null,null,0,0,0]
[null,null,"垂木",null,"杉",null,"ｍ3",null,null,null,1,0,null,0,null,0,0,null,null,0,0,0]
[null,null,"垂木",null,"杉",null,"ｍ3",null,null,null,1,0,null,0,null,0,0,null,null,0,0,0]
[null,null,"垂木掛",null,"杉",null,"ｍ3",null,null,null,1,0,null,0,null,0,0,null,null,0,0,0]
[null,null,"野地板",null,"杉","特一","ｍ3",null,null,null,1,0,null,0,null,0,0,null,null,0,0,0]
[null,null,"野地板",null,"杉","特一","ｍ3",null,null,null,1,0,null,0,null,0,0,null,null,0,0,0]
[null,null,"広木舞",null,"杉","特一","ｍ3",null,null,null,1,0,null,0,null,0,0,null,null,0,0,0]
[null,null,"広木舞",null,"杉","特一","ｍ3",null,null,null,1,0,null,0,null,0,0,null,null,0,0,0]
[null,null,null,null,null,null,"ｍ3",null,null,null,1,0,null,0,null,0,0,null,null,0,0,0]
[null,null,null,null,null,null,"ｍ3",null,null,null,1,0,null,0,null,0,0,null,null,0,0,0]
[null,null,null,null,null,null,"ｍ3",null,null,null,1,0,null,0,null,0,0,null,null,0,0,0]
[null,null,null,null,null,null,"ｍ3",null,null,null,1,0,null,0,null,0,0,null,null,0,0,0]
[null,null,null,null,null,null,"ｍ3",null,null,null,1,{"$f":"ROUNDDOWN(H51*I51*J51*K51,3)","v":0},null,{"$f":"M51*L51","v":0},null,{"$f":"L51*O51","v":0},{"$f":"N51-P51","v":0},null,null,{"$f":"IF(S51=\"\",R51,MIN(R51:S51))","v":0},0,0]
[null,null,null,null,null,null,"ｍ3",null,null,null,1,{"$f":"ROUNDDOWN(H52*I52*J52*K52,3)","v":0},null,{"$f":"M52*L52","v":0},null,{"$f":"L52*O52","v":0},{"$f":"N52-P52","v":0},null,null,{"$f":"IF(S52=\"\",R52,MIN(R52:S52))","v":0},0,0]
[null,null,null,null,null,null,"ｍ3",null,null,null,1,{"$f":"ROUNDDOWN(H53*I53*J53*K53,3)","v":0},null,{"$f":"M53*L53","v":0},null,{"$f":"L53*O53","v":0},{"$f":"N53-P53","v":0},null,null,{"$f":"IF(S53=\"\",R53,MIN(R53:S53))","v":0},0,0]
[null,null,null,null,null,null,"ｍ3",null,null,null,1,0,null,0,null,0,0,null,null,0,0,0]
[null,null,null,null,null,null,"ｍ3",null,null,null,1,0,null,0,null,0,0,null,null,0,0,0]
[null,null,null,null,null,null,"ｍ3",null,null,null,1,0,null,0,null,0,0,null,null,0,0,0]
[null,null,null,null,null,null,"ｍ3",null,null,null,1,0,null,0,null,0,0,null,null,0,0,0]
[null,null,null,null,null,null,"ｍ3",null,null,null,1,0,null,0,null,0,0,null,null,0,0,0]
[null,"合　　計",null,null,null,null,null,null,null,null,null,{"$f":"SUM(L4:L58)","v":0},null,{"$f":"SUM(N4:N58)","v":0},null,{"$f":"SUM(P4:P58)","v":0},{"$f":"SUM(Q4:Q58)","v":0},null,null,null,{"$f":"SUM(U4:U58)","v":0},{"$f":"SUM(V4:V58)","v":0}]
[null,null,null,null,null,null,null,null,null,null,null,{"$f":"ROUNDDOWN(L59,2)","v":0},null,{"$f":"ROUNDDOWN(N59,2)","v":0},null,{"$f":"ROUNDDOWN(P59,2)","v":0},{"$f":"ROUNDDOWN(Q59,2)","v":0},null,null,"端数切捨て",{"$f":"ROUNDDOWN(U59,-2)","v":0},{"$f":"ROUNDDOWN(V59,-2)","v":0}]
[null,"造作材","大引",null,null,null,"ｍ3",null,null,null,1,{"$f":"ROUNDDOWN(H61*I61*J61*K61,3)","v":0},null,{"$f":"M61*L61","v":0},null,{"$f":"L61*O61","v":0},{"$f":"N61-P61","v":0},null,null,{"$f":"IF(S61=\"\",R61,MIN(R61:S61))","v":0},{"$f":"ROUNDDOWN(R61*N61,0)","v":0},{"$f":"ROUNDDOWN(P61*T61,0)","v":0}]
[null,null,"大引",null,null,null,"ｍ3",null,null,null,1,0,null,0,null,0,0,null,null,0,0,0]
[null,null,"大引",null,null,null,"ｍ3",null,null,null,1,0,null,0,null,0,0,null,null,0,0,0]
[null,null,"大引",null,null,null,"ｍ3",null,null,null,1,0,null,0,null,0,0,null,null,0,0,0]
[null,null,"大引",null,null,null,"ｍ3",null,null,null,1,0,null,0,null,0,0,null,null,0,0,0]
[null,null,"根太",null,null,null,"ｍ3",null,null,null,1,0,null,0,null,0,0,null,null,0,0,0]
[null,null,"根太",null,null,null,"ｍ3",null,null,null,1,0,null,0,null,0,0,null,null,0,0,0]
[null,null,"根太",null,null,null,"ｍ3",null,null,null,1,0,null,0,null,0,0,null,null,0,0,0]
[null,null,"根太掛",null,null,null,"ｍ3",null,null,null,1,0,null,0,null,0,0,null,null,0,0,0]
[null,null,"床束",null,null,null,"ｍ3",null,null,null,1,0,null,0,null,0,0,null,null,0,0,0]
[null,null,"床束",null,null,null,"ｍ3",null,null,null,1,0,null,0,null,0,0,null,null,0,0,0]
[null,null,"荒床",null,"ｽｷﾞ",null,"ｍ3",null,null,null,1,0,null,0,null,0,0,null,null,0,0,0]
[null,null,"荒床",null,"ｽｷﾞ",null,"ｍ3",null,null,null,1,0,null,0,null,0,0,null,null,0,0,0]
[null,null,"畳寄",null,"ﾋﾉｷ",null,"ｍ3",null,null,null,1,0,null,0,null,0,0,null,null,0,0,0]
[null,null,"畳寄",null,"ﾋﾉｷ",null,"ｍ3",null,null,null,1,0,null,0,null,0,0,null,null,0,0,0]
[null,null,"床板",null,null,null,"ｍ3",null,null,null,1,0,null,0,null,0,0,null,null,0,0,0]
[null,null,"床板",null,null,null,"ｍ3",null,null,null,1,0,null,0,null,0,0,null,null,0,0,0]
[null,null,"床板",null,null,null,"ｍ3",null,null,null,1,0,null,0,null,0,0,null,null,0,0,0]
[null,null,"床板",null,null,null,"ｍ3",null,null,null,1,0,null,0,null,0,0,null,null,0,0,0]
[null,null,"床板",null,null,null,"ｍ3",null,null,null,1,0,null,0,null,0,0,null,null,0,0,0]
[null,null,"框",null,null,null,"ｍ3",null,null,null,1,0,null,0,null,0,0,null,null,0,0,0]
[null,null,"框",null,null,null,"ｍ3",null,null,null,1,0,null,0,null,0,0,null,null,0,0,0]
[null,null,"鴨居","仏間",null,null,"ｍ3",null,null,null,1,0,null,0,null,0,0,null,null,0,0,0]
[null,null,"鴨居","外部木建",null,null,"ｍ3",null,null,null,1,0,null,0,null,0,0,null,null,0,0,0]
[null,null,"鴨居","外部木建",null,null,"ｍ3",null,null,null,1,0,null,0,null,0,0,null,null,0,0,0]
[null,null,"鴨居","外部木建",null,null,"ｍ3",null,null,null,1,{"$f":"ROUNDDOWN(H86*I86*J86*K86,3)","v":0},null,{"$f":"M86*L86","v":0},null,{"$f":"L86*O86","v":0},{"$f":"N86-P86","v":0},null,null,{"$f":"IF(S86=\"\",R86,MIN(R86:S86))","v":0},0,0]
[null,null,"鴨居","外部木建",null,null,"ｍ3",null,null,null,1,{"$f":"ROUNDDOWN(H87*I87*J87*K87,3)","v":0},null,{"$f":"M87*L87","v":0},null,{"$f":"L87*O87","v":0},{"$f":"N87-P87","v":0},null,null,{"$f":"IF(S87=\"\",R87,MIN(R87:S87))","v":0},0,0]
[null,null,"鴨居","戸走り(上)",null,null,"ｍ3",null,null,null,1,0,null,0,null,0,0,null,null,0,0,0]
[null,null,"鴨居","戸走り(上)",null,null,"ｍ3",null,null,null,1,0,null,0,null,0,0,null,null,0,0,0]
[null,"造作材","無目","外部木建",null,null,"ｍ3",null,null,null,1,0,null,0,null,0,0,null,null,0,0,0]
[null,null,"無目","内部木建",null,null,"ｍ3",null,null,null,1,0,null,0,null,0,0,null,null,0,0,0]
[null,null,"敷居","外部木建",null,null,"ｍ3",null,null,null,1,0,null,0,null,0,0,null,null,0,0,0]
[null,null,"敷居","外部木建",null,null,"ｍ3",null,null,null,1,0,null,0,null,0,0,null,null,0,0,0]
[null,null,"敷居","戸走り(下)",null,null,"ｍ3",null,null,null,1,0,null,0,null,0,0,null,null,0,0,0]
[null,null,"敷居","戸走り(下)",null,null,"ｍ3",null,null,null,1,0,null,0,null,0,0,null,null,0,0,0]
[null,null,"敷居",null,null,null,"ｍ3",null,null,null,1,0,null,0,null,0,0,null,null,0,0,0]
[null,null,"敷居",null,null,null,"ｍ3",null,null,null,1,0,null,0,null,0,0,null,null,0,0,0]
[null,null,"腰壁","下見板","杉","赤身","ｍ3",null,null,null,1,0,null,0,null,0,0,null,null,0,0,0]
[null,null,"腰壁","押縁(竿)","杉","赤身","ｍ3",null,null,null,1,0,null,0,null,0,0,null,null,0,0,0]
[null,null,"腰壁","見切縁","杉","赤身","ｍ3",null,null,null,1,0,null,0,null,0,0,null,null,0,0,0]
[null,null,"腰壁","額縁","杉","赤身","ｍ3",null,null,null,1,0,null,0,null,0,0,null,null,0,0,0]
[null,null,"腰壁",null,"杉","赤身","ｍ3",null,null,null,1,0,null,0,null,0,0,null,null,0,0,0]
[null,null,"戸箱","胴縁","杉",null,"ｍ3",null,null,null,1,0,null,0,null,0,0,null,null,0,0,0]
[null,null,"戸箱","見切り縁","杉",null,"ｍ3",null,null,null,1,0,null,0,null,0,0,null,null,0,0,0]
[null,null,"戸箱","板","杉",null,"ｍ3",null,null,null,1,0,null,0,null,0,0,null,null,0,0,0]
[null,null,"戸箱","目板","杉",null,"ｍ3",null,null,null,1,0,null,0,null,0,0,null,null,0,0,0]
[null,null,"格子枠",null,"ﾋﾉｷ",null,"ｍ3",null,null,null,1,0,null,0,null,0,0,null,null,0,0,0]
[null,null,"格子枠",null,"ﾋﾉｷ",null,"ｍ3",null,null,null,1,0,null,0,null,0,0,null,null,0,0,0]
[null,null,"格子枠",null,"ﾋﾉｷ",null,"ｍ3",null,null,null,1,0,null,0,null,0,0,null,null,0,0,0]
[null,null,"格子枠",null,"ﾋﾉｷ",null,"ｍ3",null,null,null,1,0,null,0,null,0,0,null,null,0,0,0]
[null,null,null,null,null,null,"ｍ3",null,null,null,1,{"$f":"ROUNDDOWN(H111*I111*J111*K111,3)","v":0},null,{"$f":"M111*L111","v":0},null,{"$f":"L111*O111","v":0},{"$f":"N111-P111","v":0},null,null,{"$f":"IF(S111=\"\",R111,MIN(R111:S111))","v":0},0,0]
[null,null,null,null,null,null,"ｍ3",null,null,null,1,{"$f":"ROUNDDOWN(H112*I112*J112*K112,3)","v":0},null,{"$f":"M112*L112","v":0},null,{"$f":"L112*O112","v":0},{"$f":"N112-P112","v":0},null,null,{"$f":"IF(S112=\"\",R112,MIN(R112:S112))","v":0},0,0]
[null,null,null,null,null,null,"ｍ3",null,null,null,1,{"$f":"ROUNDDOWN(H113*I113*J113*K113,3)","v":0},null,{"$f":"M113*L113","v":0},null,{"$f":"L113*O113","v":0},{"$f":"N113-P113","v":0},null,null,{"$f":"IF(S113=\"\",R113,MIN(R113:S113))","v":0},0,0]
[null,null,null,null,null,null,"ｍ3",null,null,null,1,{"$f":"ROUNDDOWN(H114*I114*J114*K114,3)","v":0},null,{"$f":"M114*L114","v":0},null,{"$f":"L114*O114","v":0},{"$f":"N114-P114","v":0},null,null,{"$f":"IF(S114=\"\",R114,MIN(R114:S114))","v":0},0,0]
[null,null,null,null,null,null,"ｍ3",null,null,null,1,0,null,0,null,0,0,null,null,0,0,0]
[null,null,null,null,null,null,"ｍ3",null,null,null,1,0,null,0,null,0,0,null,null,0,0,0]
[null,null,null,null,null,null,"ｍ3",null,null,null,1,0,null,0,null,0,0,null,null,0,0,0]
[null,null,null,null,null,null,"ｍ3",null,null,null,1,0,null,0,null,0,0,null,null,0,0,0]
[null,"造作材","霧除","腕木","杉",null,"ｍ3",null,null,null,1,0,null,0,null,0,0,null,null,0,0,0]
[null,null,"霧除","桁","杉",null,"ｍ3",null,null,null,1,0,null,0,null,0,0,null,null,0,0,0]
[null,null,"霧除","目板","杉",null,"ｍ3",null,null,null,1,0,null,0,null,0,0,null,null,0,0,0]
[null,null,"小庇","腕木","杉",null,"ｍ3",null,null,null,1,0,null,0,null,0,0,null,null,0,0,0]
[null,null,"小庇","桁","杉",null,"ｍ3",null,null,null,1,0,null,0,null,0,0,null,null,0,0,0]
[null,null,"小庇","持ち送り","杉",null,"ｍ3",null,null,null,1,0,null,0,null,0,0,null,null,0,0,0]
[null,null,"小庇","目板","杉",null,"ｍ3",null,null,null,1,0,null,0,null,0,0,null,null,0,{"$f":"ROUNDDOWN(R125*N125,0)","v":0},{"$f":"ROUNDDOWN(P125*T125,0)","v":0}]
[null,null,"小庇","破風板","杉",null,"ｍ3",null,null,null,1,0,null,0,null,0,0,null,null,0,0,0]
[null,null,"小庇",null,"杉",null,"ｍ3",null,null,null,1,0,null,0,null,0,0,null,null,0,0,0]
[null,null,"屋根","瓦桟","杉",null,"ｍ3",null,null,null,1,{"$f":"ROUNDDOWN(H128*I128*J128*K128,3)","v":0},null,{"$f":"M128*L128","v":0},null,{"$f":"L128*O128","v":0},{"$f":"N128-P128","v":0},null,null,{"$f":"IF(S128=\"\",R128,MIN(R128:S128))","v":0},0,0]
[null,null,"屋根","破風板","杉",null,"ｍ3",null,null,null,1,0,null,0,null,0,0,null,null,0,0,0]
[null,null,"屋根","破風板","杉",null,"ｍ3",null,null,null,1,0,null,0,null,0,0,null,null,0,0,0]
[null,null,"屋根","登り瓦桟","杉",null,"ｍ3",null,null,null,1,0,null,0,null,0,0,null,null,0,0,0]
[null,null,"屋根","面戸板","杉",null,"ｍ3",null,null,null,1,0,null,0,null,0,0,null,null,0,0,0]
[null,null,"屋根",null,"杉",null,"ｍ3",null,null,null,1,0,null,0,null,0,0,null,null,0,0,0]
[null,null,"屋根",null,"杉",null,"ｍ3",null,null,null,1,0,null,0,null,0,0,null,null,0,0,0]
[null,null,"天井板",null,null,null,"ｍ3",null,null,null,1,0,null,0,null,0,0,null,null,0,0,0]
[null,null,"天井板",null,null,null,"ｍ3",null,null,null,1,0,null,0,null,0,0,null,null,0,0,0]
[null,null,"天井板",null,null,null,"ｍ3",null,null,null,1,0,null,0,null,0,0,null,null,0,0,0]
[null,null,"天井板",null,null,null,"ｍ3",null,null,null,1,0,null,0,null,0,0,null,null,0,0,0]
[null,null,"廻縁",null,"ｽｷﾞ",null,"ｍ3",null,null,null,1,0,null,0,null,0,0,null,null,0,0,0]
[null,null,"廻縁",null,null,null,"ｍ3",null,null,null,1,0,null,0,null,0,0,null,null,0,0,0]
[null,null,"棹縁",null,"ｽｷﾞ",null,"ｍ3",null,null,null,1,0,null,0,null,0,0,null,null,0,0,0]
[null,null,"棹縁",null,null,null,"ｍ3",null,null,null,1,0,null,0,null,0,0,null,null,0,0,0]
[null,null,null,null,null,null,null,null,null,null,1,0,null,0,null,0,0,null,null,0,0,0]
[null,null,null,null,null,null,null,null,null,null,1,0,null,0,null,0,0,null,null,0,0,0]
[null,null,null,null,null,null,"ｍ3",null,null,null,1,0,null,0,null,0,0,null,null,0,0,0]
[null,null,null,null,null,null,"ｍ3",null,null,null,1,0,null,0,null,0,0,null,null,0,0,0]
[null,null,null,null,null,null,"ｍ3",null,null,null,1,0,null,0,null,0,0,null,null,0,0,0]
[null,null,null,null,null,null,"ｍ3",null,null,null,1,0,null,0,null,0,0,null,null,0,0,0]
[null,null,null,null,null,null,"ｍ3",null,null,null,1,0,null,0,null,0,0,null,null,0,0,0]
[null,null,null,null,null,null,"ｍ3",null,null,null,1,0,null,0,null,0,0,null,null,0,0,0]
[null,null,null,null,null,null,"ｍ3",null,null,null,1,0,null,0,null,0,0,null,null,0,0,0]
[null,null,null,null,null,null,"ｍ3",null,null,null,1,0,null,0,null,0,0,null,null,0,0,0]
[null,null,null,null,null,null,"ｍ3",null,null,null,1,0,null,0,null,0,0,null,null,0,0,0]
[null,null,null,null,null,null,"ｍ3",null,null,null,1,0,null,0,null,0,0,null,null,0,0,0]
[null,null,null,null,null,null,"ｍ3",null,null,null,1,0,null,0,null,0,0,null,null,0,0,0]
[null,null,null,null,null,null,"ｍ3",null,null,null,1,0,null,0,null,0,0,null,null,0,0,0]
[null,null,null,null,null,null,"ｍ3",null,null,null,1,0,null,0,null,0,0,null,null,0,0,0]
[null,null,null,null,null,null,"ｍ3",null,null,null,1,0,null,0,null,0,0,null,null,0,0,0]
[null,null,null,null,null,null,"ｍ3",null,null,null,1,0,null,0,null,0,0,null,null,0,0,0]
[null,null,null,null,null,null,"ｍ3",null,null,null,1,0,null,0,null,0,0,null,null,0,0,0]
[null,null,null,null,null,null,"ｍ3",null,null,null,1,0,null,0,null,0,0,null,null,0,0,0]
[null,null,null,null,null,null,"ｍ3",null,null,null,1,0,null,0,null,0,0,null,null,0,0,0]
[null,null,null,null,null,null,"ｍ3",null,null,null,1,0,null,0,null,0,0,null,null,0,0,0]
[null,null,null,null,null,null,"ｍ3",null,null,null,1,0,null,0,null,0,0,null,null,0,0,0]
[null,"合　　計",null,null,null,null,null,null,null,null,null,{"$f":"SUM(L61:L164)","v":0},null,{"$f":"SUM(N61:N164)","v":0},null,{"$f":"SUM(P61:P164)","v":0},{"$f":"SUM(Q61:Q164)","v":0},null,null,null,{"$f":"SUM(U61:U164)","v":0},{"$f":"SUM(V61:V164)","v":0}]
[null,null,null,null,null,null,null,null,null,null,null,{"$f":"ROUNDDOWN(L165,2)","v":0},null,{"$f":"ROUNDDOWN(N165,2)","v":0},null,{"$f":"ROUNDDOWN(P165,2)","v":0},{"$f":"ROUNDDOWN(Q165,2)","v":0},null,null,"端数切捨て",{"$f":"ROUNDDOWN(U165,-2)","v":0},{"$f":"ROUNDDOWN(V165,-2)","v":0}]
[]
[null,null,null,"人工の単価",null,"豊田市設定\n単価","補助対象単価","人工/㎥","全体人工","合計","補助対象人工","合計"]
[null,null,null,"構造材大工手間",20000,23400,{"$f":"IF(F169=\"\",E169,IF(F169>E169,E169,F169))","v":20000},null,{"$f":"ROUNDDOWN(((P60+Q60)*H169),0)","v":0},{"$f":"I169*E169","v":0},{"$f":"ROUNDDOWN((P60*H169),0)","v":0},{"$f":"G169*K169","v":0}]
[null,null,null,"構造材手元手間",15000,17500,{"$f":"IF(F170=\"\",E170,IF(F170>E170,E170,F170))","v":15000},null,{"$f":"ROUNDDOWN((I169*0.15),0)","v":0},{"$f":"I170*E170","v":0},{"$f":"ROUNDDOWN((K169*0.15),0)","v":0},{"$f":"G170*K170","v":0}]
[null,null,null,"造作材大工手間",20000,23400,{"$f":"IF(F171=\"\",E171,IF(F171>E171,E171,F171))","v":20000},null,{"$f":"ROUNDDOWN(((P166+Q166)*H171),0)","v":0},{"$f":"I171*E171","v":0},{"$f":"ROUNDDOWN((P166*H171),0)","v":0},{"$f":"G171*K171","v":0}]
[null,null,null,"造作材手元手間",15000,17500,{"$f":"IF(F172=\"\",E172,IF(F172>E172,E172,F172))","v":15000},null,{"$f":"ROUNDDOWN((I171*0.15),0)","v":0},{"$f":"I172*E172","v":0},{"$f":"ROUNDDOWN((K171*0.15),0)","v":0},{"$f":"G172*K172","v":0}]

{"sheet":"木材明細(実績修景）","index":14,"n_rows":172,"n_cols":22,"rows_kept":172,"cut":false,"hidden":false,"merged":[[58,1,59,1],[164,1,165,1],[1,19,2,19],[1,5,2,5],[1,7,1,11],[1,3,2,3],[1,4,2,4],[1,14,1,16],[1,6,2,6],[1,12,2,12],[1,18,2,18],[1,13,2,13],[1,1,2,1],[1,2,2,2],[167,3,167,4],[1,25,2,25],[1,23,2,23],[1,24,2,24],[1,21,2,21],[1,20,2,20]]}
[null,null,"木材明細表"]
[null,"分類","名　称","場　所","材種","等級","単位","木材の大きさ",null,null,null,null,"全体数量","全体材積","数量内訳",null,null,"単価","上限単価\n（豊田市）","補助対象\n採用単価","全体金額","補助対象金額"]
[null,null,null,null,null,null,null,"Ｗ (m)","Ｄ (m)","Ｌ (m)","部材\n使用率","材積",null,null,"対象数量","補助対象","対象外","㎥単価"]
[null,"構造材","土台",null,"栗",null,"ｍ3",null,null,null,1,{"$f":"ROUNDDOWN(H4*I4*J4*K4,3)","v":0},null,{"$f":"M4*L4","v":0},null,{"$f":"L4*O4","v":0},{"$f":"N4-P4","v":0},null,null,{"$f":"IF(S4=\"\",R4,MIN(R4:S4))","v":0},{"$f":"ROUNDDOWN(R4*N4,0)","v":0},{"$f":"ROUNDDOWN(P4*T4,0)","v":0}]
[null,null,"土台",null,"栗",null,"ｍ2",null,null,null,1,{"$f":"ROUNDDOWN(H5*I5*J5*K5,3)","v":0},null,{"$f":"M5*L5","v":0},null,{"$f":"L5*O5","v":0},{"$f":"N5-P5","v":0},null,null,{"$f":"IF(S5=\"\",R5,MIN(R5:S5))","v":0},0,0]
[null,null,"土台",null,"栗",null,"ｍ3",null,null,null,1,0,null,0,null,0,0,null,null,0,0,0]
[null,null,"土台",null,"栗",null,"ｍ3",null,null,null,1,0,null,0,null,0,0,null,null,0,0,0]
[null,null,"足固め",null,null,null,"ｍ3",null,null,null,1,0,null,0,null,0,0,null,null,0,0,0]
[null,null,"足固め",null,null,null,"ｍ3",null,null,null,1,0,null,0,null,0,0,null,null,0,0,0]
[null,null,"柱",null,"桧","小節","ｍ3",null,null,null,1,0,null,0,null,0,0,null,null,0,0,0]
[null,null,"柱",null,"桧","特一","ｍ3",null,null,null,1,0,null,0,null,0,0,null,null,0,0,0]
[null,null,"柱",null,null,null,"ｍ3",null,null,null,1,0,null,0,null,0,0,null,null,0,0,0]
[null,null,"柱","根継","杉",null,"ｍ3",null,null,null,1,0,null,0,null,0,0,null,null,0,0,0]
[null,null,"柱",null,null,null,"ｍ3",null,null,null,1,0,null,0,null,0,0,null,null,0,0,0]
[null,null,"貫","2階","桧","特一","ｍ3",null,null,null,1,0,null,0,null,0,0,null,null,0,0,0]
[null,null,"貫","2階","桧","特一","ｍ3",null,null,null,1,0,null,0,null,0,0,null,null,0,0,0]
[null,null,"貫","2階","桧","特一","ｍ3",null,null,null,1,0,null,0,null,0,0,null,null,0,0,0]
[null,null,"梁",null,"地松","特一","ｍ3",null,null,null,1,0,null,0,null,0,0,null,null,0,0,0]
[null,null,"梁",null,"地松","特一","ｍ3",null,null,null,1,0,null,0,null,0,0,null,null,0,0,0]
[null,null,"梁",null,"地松","特一","ｍ3",null,null,null,1,0,null,0,null,0,0,null,null,0,0,0]
[null,null,"梁",null,null,null,"ｍ3",null,null,null,1,0,null,0,null,0,0,null,null,0,0,0]
[null,null,"梁",null,null,null,"ｍ3",null,null,null,1,0,null,0,null,0,0,null,null,0,0,0]
[null,null,"登り梁",null,"地松","特一","ｍ3",null,null,null,1,0,null,0,null,0,0,null,null,0,0,0]
[null,null,"登り梁",null,"地松","特一","ｍ3",null,null,null,1,0,null,0,null,0,0,null,null,0,0,0]
[null,null,"桁",null,"地松","特一","ｍ3",null,null,null,1,0,null,0,null,0,0,null,null,0,0,0]
[null,null,"桁",null,"地松","特一","ｍ3",null,null,null,1,0,null,0,null,0,0,null,null,0,0,0]
[null,null,"桁",null,"地松","特一","ｍ3",null,null,null,1,0,null,0,null,0,0,null,null,0,0,0]
[null,null,"桁",null,"地松","特一","ｍ3",null,null,null,1,0,null,0,null,0,0,null,null,0,0,0]
[null,null,"桁",null,"地松","特一","ｍ3",null,null,null,1,{"$f":"ROUNDDOWN(H29*I29*J29*K29,3)","v":0},null,{"$f":"M29*L29","v":0},null,{"$f":"L29*O29","v":0},{"$f":"N29-P29","v":0},null,null,{"$f":"IF(S29=\"\",R29,MIN(R29:S29))","v":0},0,0]
[null,null,"桁",null,"地松","特一","ｍ3",null,null,null,1,0,null,0,null,0,0,null,null,0,0,0]
[null,null,"桁",null,"地松","特一","ｍ3",null,null,null,1,0,null,0,null,0,0,null,null,0,0,0]
[null,"構造材","小屋束",null,null,null,"ｍ3",null,null,null,1,0,null,0,null,0,0,null,null,0,0,0]
[null,null,"小屋束",null,null,null,"ｍ3",null,null,null,1,0,null,0,null,0,0,null,null,0,0,0]
[null,null,"母屋",null,"地松","特一","ｍ3",null,null,null,1,0,null,0,null,0,0,null,null,0,0,0]
[null,null,"母屋",null,"地松","特一","ｍ3",null,null,null,1,0,null,0,null,0,0,null,null,0,0,0]
[null,null,"母屋",null,"地松","特一","ｍ3",null,null,null,1,0,null,0,null,0,0,null,null,0,0,0]
[null,null,"棟木",null,"地松","特一","ｍ3",null,null,null,1,0,null,0,null,0,0,null,null,0,0,0]
[null,null,"棟木",null,"地松","ｺﾐ","ｍ3",null,null,null,1,0,null,0,null,0,0,null,null,0,0,0]
[null,null,"棟木",null,"地松","特一","ｍ3",null,null,null,1,0,null,0,null,0,0,null,null,0,0,0]
[null,null,"垂木",null,"杉",null,"ｍ3",null,null,null,1,0,null,0,null,0,0,null,null,0,0,0]
[null,null,"垂木",null,"杉",null,"ｍ3",null,null,null,1,0,null,0,null,0,0,null,null,0,0,0]
[null,null,"垂木掛",null,"杉",null,"ｍ3",null,null,null,1,0,null,0,null,0,0,null,null,0,0,0]
[null,null,"野地板",null,"杉","特一","ｍ3",null,null,null,1,0,null,0,null,0,0,null,null,0,0,0]
[null,null,"野地板",null,"杉","特一","ｍ3",null,null,null,1,0,null,0,null,0,0,null,null,0,0,0]
[null,null,"広木舞",null,"杉","特一","ｍ3",null,null,null,1,0,null,0,null,0,0,null,null,0,0,0]
[null,null,"広木舞",null,"杉","特一","ｍ3",null,null,null,1,0,null,0,null,0,0,null,null,0,0,0]
[null,null,null,null,null,null,"ｍ3",null,null,null,1,0,null,0,null,0,0,null,null,0,0,0]
[null,null,null,null,null,null,"ｍ3",null,null,null,1,0,null,0,null,0,0,null,null,0,0,0]
[null,null,null,null,null,null,"ｍ3",null,null,null,1,0,null,0,null,0,0,null,null,0,0,0]
[null,null,null,null,null,null,"ｍ3",null,null,null,1,0,null,0,null,0,0,null,null,0,0,0]
[null,null,null,null,null,null,"ｍ3",null,null,null,1,{"$f":"ROUNDDOWN(H51*I51*J51*K51,3)","v":0},null,{"$f":"M51*L51","v":0},null,{"$f":"L51*O51","v":0},{"$f":"N51-P51","v":0},null,null,{"$f":"IF(S51=\"\",R51,MIN(R51:S51))","v":0},0,0]
[null,null,null,null,null,null,"ｍ3",null,null,null,1,{"$f":"ROUNDDOWN(H52*I52*J52*K52,3)","v":0},null,{"$f":"M52*L52","v":0},null,{"$f":"L52*O52","v":0},{"$f":"N52-P52","v":0},null,null,{"$f":"IF(S52=\"\",R52,MIN(R52:S52))","v":0},0,0]
[null,null,null,null,null,null,"ｍ3",null,null,null,1,{"$f":"ROUNDDOWN(H53*I53*J53*K53,3)","v":0},null,{"$f":"M53*L53","v":0},null,{"$f":"L53*O53","v":0},{"$f":"N53-P53","v":0},null,null,{"$f":"IF(S53=\"\",R53,MIN(R53:S53))","v":0},0,0]
[null,null,null,null,null,null,"ｍ3",null,null,null,1,0,null,0,null,0,0,null,null,0,0,0]
[null,null,null,null,null,null,"ｍ3",null,null,null,1,0,null,0,null,0,0,null,null,0,0,0]
[null,null,null,null,null,null,"ｍ3",null,null,null,1,0,null,0,null,0,0,null,null,0,0,0]
[null,null,null,null,null,null,"ｍ3",null,null,null,1,0,null,0,null,0,0,null,null,0,0,0]
[null,null,null,null,null,null,"ｍ3",null,null,null,1,0,null,0,null,0,0,null,null,0,0,0]
[null,"合　　計",null,null,null,null,null,null,null,null,null,{"$f":"SUM(L4:L58)","v":0},null,{"$f":"SUM(N4:N58)","v":0},null,{"$f":"SUM(P4:P58)","v":0},{"$f":"SUM(Q4:Q58)","v":0},null,null,null,{"$f":"SUM(U4:U58)","v":0},{"$f":"SUM(V4:V58)","v":0}]
[null,null,null,null,null,null,null,null,null,null,null,{"$f":"ROUNDDOWN(L59,2)","v":0},null,{"$f":"ROUNDDOWN(N59,2)","v":0},null,{"$f":"ROUNDDOWN(P59,2)","v":0},{"$f":"ROUNDDOWN(Q59,2)","v":0},null,null,"端数切捨て",{"$f":"ROUNDDOWN(U59,-2)","v":0},{"$f":"ROUNDDOWN(V59,-2)","v":0}]
[null,"造作材","大引",null,null,null,"ｍ3",null,null,null,1,{"$f":"ROUNDDOWN(H61*I61*J61*K61,3)","v":0},null,{"$f":"M61*L61","v":0},null,{"$f":"L61*O61","v":0},{"$f":"N61-P61","v":0},null,null,{"$f":"IF(S61=\"\",R61,MIN(R61:S61))","v":0},{"$f":"ROUNDDOWN(R61*N61,0)","v":0},{"$f":"ROUNDDOWN(P61*T61,0)","v":0}]
[null,null,"大引",null,null,null,"ｍ3",null,null,null,1,0,null,0,null,0,0,null,null,0,0,0]
[null,null,"大引",null,null,null,"ｍ3",null,null,null,1,0,null,0,null,0,0,null,null,0,0,0]
[null,null,"大引",null,null,null,"ｍ3",null,null,null,1,0,null,0,null,0,0,null,null,0,0,0]
[null,null,"大引",null,null,null,"ｍ3",null,null,null,1,0,null,0,null,0,0,null,null,0,0,0]
[null,null,"根太",null,null,null,"ｍ3",null,null,null,1,0,null,0,null,0,0,null,null,0,0,0]
[null,null,"根太",null,null,null,"ｍ3",null,null,null,1,0,null,0,null,0,0,null,null,0,0,0]
[null,null,"根太",null,null,null,"ｍ3",null,null,null,1,0,null,0,null,0,0,null,null,0,0,0]
[null,null,"根太掛",null,null,null,"ｍ3",null,null,null,1,0,null,0,null,0,0,null,null,0,0,0]
[null,null,"床束",null,null,null,"ｍ3",null,null,null,1,0,null,0,null,0,0,null,null,0,0,0]
[null,null,"床束",null,null,null,"ｍ3",null,null,null,1,0,null,0,null,0,0,null,null,0,0,0]
[null,null,"荒床",null,"ｽｷﾞ",null,"ｍ3",null,null,null,1,0,null,0,null,0,0,null,null,0,0,0]
[null,null,"荒床",null,"ｽｷﾞ",null,"ｍ3",null,null,null,1,0,null,0,null,0,0,null,null,0,0,0]
[null,null,"畳寄",null,"ﾋﾉｷ",null,"ｍ3",null,null,null,1,0,null,0,null,0,0,null,null,0,0,0]
[null,null,"畳寄",null,"ﾋﾉｷ",null,"ｍ3",null,null,null,1,0,null,0,null,0,0,null,null,0,0,0]
[null,null,"床板",null,null,null,"ｍ3",null,null,null,1,0,null,0,null,0,0,null,null,0,0,0]
[null,null,"床板",null,null,null,"ｍ3",null,null,null,1,0,null,0,null,0,0,null,null,0,0,0]
[null,null,"床板",null,null,null,"ｍ3",null,null,null,1,0,null,0,null,0,0,null,null,0,0,0]
[null,null,"床板",null,null,null,"ｍ3",null,null,null,1,0,null,0,null,0,0,null,null,0,0,0]
[null,null,"床板",null,null,null,"ｍ3",null,null,null,1,0,null,0,null,0,0,null,null,0,0,0]
[null,null,"框",null,null,null,"ｍ3",null,null,null,1,0,null,0,null,0,0,null,null,0,0,0]
[null,null,"框",null,null,null,"ｍ3",null,null,null,1,0,null,0,null,0,0,null,null,0,0,0]
[null,null,"鴨居","仏間",null,null,"ｍ3",null,null,null,1,0,null,0,null,0,0,null,null,0,0,0]
[null,null,"鴨居","外部木建",null,null,"ｍ3",null,null,null,1,0,null,0,null,0,0,null,null,0,0,0]
[null,null,"鴨居","外部木建",null,null,"ｍ3",null,null,null,1,0,null,0,null,0,0,null,null,0,0,0]
[null,null,"鴨居","外部木建",null,null,"ｍ3",null,null,null,1,{"$f":"ROUNDDOWN(H86*I86*J86*K86,3)","v":0},null,{"$f":"M86*L86","v":0},null,{"$f":"L86*O86","v":0},{"$f":"N86-P86","v":0},null,null,{"$f":"IF(S86=\"\",R86,MIN(R86:S86))","v":0},0,0]
[null,null,"鴨居","外部木建",null,null,"ｍ3",null,null,null,1,{"$f":"ROUNDDOWN(H87*I87*J87*K87,3)","v":0},null,{"$f":"M87*L87","v":0},null,{"$f":"L87*O87","v":0},{"$f":"N87-P87","v":0},null,null,{"$f":"IF(S87=\"\",R87,MIN(R87:S87))","v":0},0,0]
[null,null,"鴨居","戸走り(上)",null,null,"ｍ3",null,null,null,1,0,null,0,null,0,0,null,null,0,0,0]
[null,null,"鴨居","戸走り(上)",null,null,"ｍ3",null,null,null,1,0,null,0,null,0,0,null,null,0,0,0]
[null,"造作材","無目","外部木建",null,null,"ｍ3",null,null,null,1,0,null,0,null,0,0,null,null,0,0,0]
[null,null,"無目","内部木建",null,null,"ｍ3",null,null,null,1,0,null,0,null,0,0,null,null,0,0,0]
[null,null,"敷居","外部木建",null,null,"ｍ3",null,null,null,1,0,null,0,null,0,0,null,null,0,0,0]
[null,null,"敷居","外部木建",null,null,"ｍ3",null,null,null,1,0,null,0,null,0,0,null,null,0,0,0]
[null,null,"敷居","戸走り(下)",null,null,"ｍ3",null,null,null,1,0,null,0,null,0,0,null,null,0,0,0]
[null,null,"敷居","戸走り(下)",null,null,"ｍ3",null,null,null,1,0,null,0,null,0,0,null,null,0,0,0]
[null,null,"敷居",null,null,null,"ｍ3",null,null,null,1,0,null,0,null,0,0,null,null,0,0,0]
[null,null,"敷居",null,null,null,"ｍ3",null,null,null,1,0,null,0,null,0,0,null,null,0,0,0]
[null,null,"腰壁","下見板","杉","赤身","ｍ3",null,null,null,1,0,null,0,null,0,0,null,null,0,0,0]
[null,null,"腰壁","押縁(竿)","杉","赤身","ｍ3",null,null,null,1,0,null,0,null,0,0,null,null,0,0,0]
[null,null,"腰壁","見切縁","杉","赤身","ｍ3",null,null,null,1,0,null,0,null,0,0,null,null,0,0,0]
[null,null,"腰壁","額縁","杉","赤身","ｍ3",null,null,null,1,0,null,0,null,0,0,null,null,0,0,0]
[null,null,"腰壁",null,"杉","赤身","ｍ3",null,null,null,1,0,null,0,null,0,0,null,null,0,0,0]
[null,null,"戸箱","胴縁","杉",null,"ｍ3",null,null,null,1,0,null,0,null,0,0,null,null,0,0,0]
[null,null,"戸箱","見切り縁","杉",null,"ｍ3",null,null,null,1,0,null,0,null,0,0,null,null,0,0,0]
[null,null,"戸箱","板","杉",null,"ｍ3",null,null,null,1,0,null,0,null,0,0,null,null,0,0,0]
[null,null,"戸箱","目板","杉",null,"ｍ3",null,null,null,1,0,null,0,null,0,0,null,null,0,0,0]
[null,null,"格子枠",null,"ﾋﾉｷ",null,"ｍ3",null,null,null,1,0,null,0,null,0,0,null,null,0,0,0]
[null,null,"格子枠",null,"ﾋﾉｷ",null,"ｍ3",null,null,null,1,0,null,0,null,0,0,null,null,0,0,0]
[null,null,"格子枠",null,"ﾋﾉｷ",null,"ｍ3",null,null,null,1,0,null,0,null,0,0,null,null,0,0,0]
[null,null,"格子枠",null,"ﾋﾉｷ",null,"ｍ3",null,null,null,1,0,null,0,null,0,0,null,null,0,0,0]
[null,null,null,null,null,null,"ｍ3",null,null,null,1,{"$f":"ROUNDDOWN(H111*I111*J111*K111,3)","v":0},null,{"$f":"M111*L111","v":0},null,{"$f":"L111*O111","v":0},{"$f":"N111-P111","v":0},null,null,{"$f":"IF(S111=\"\",R111,MIN(R111:S111))","v":0},0,0]
[null,null,null,null,null,null,"ｍ3",null,null,null,1,{"$f":"ROUNDDOWN(H112*I112*J112*K112,3)","v":0},null,{"$f":"M112*L112","v":0},null,{"$f":"L112*O112","v":0},{"$f":"N112-P112","v":0},null,null,{"$f":"IF(S112=\"\",R112,MIN(R112:S112))","v":0},0,0]
[null,null,null,null,null,null,"ｍ3",null,null,null,1,{"$f":"ROUNDDOWN(H113*I113*J113*K113,3)","v":0},null,{"$f":"M113*L113","v":0},null,{"$f":"L113*O113","v":0},{"$f":"N113-P113","v":0},null,null,{"$f":"IF(S113=\"\",R113,MIN(R113:S113))","v":0},0,0]
[null,null,null,null,null,null,"ｍ3",null,null,null,1,{"$f":"ROUNDDOWN(H114*I114*J114*K114,3)","v":0},null,{"$f":"M114*L114","v":0},null,{"$f":"L114*O114","v":0},{"$f":"N114-P114","v":0},null,null,{"$f":"IF(S114=\"\",R114,MIN(R114:S114))","v":0},0,0]
[null,null,null,null,null,null,"ｍ3",null,null,null,1,0,null,0,null,0,0,null,null,0,0,0]
[null,null,null,null,null,null,"ｍ3",null,null,null,1,0,null,0,null,0,0,null,null,0,0,0]
[null,null,null,null,null,null,"ｍ3",null,null,null,1,0,null,0,null,0,0,null,null,0,0,0]
[null,null,null,null,null,null,"ｍ3",null,null,null,1,0,null,0,null,0,0,null,null,0,0,0]
[null,"造作材","霧除","腕木","杉",null,"ｍ3",null,null,null,1,0,null,0,null,0,0,null,null,0,0,0]
[null,null,"霧除","桁","杉",null,"ｍ3",null,null,null,1,0,null,0,null,0,0,null,null,0,0,0]
[null,null,"霧除","目板","杉",null,"ｍ3",null,null,null,1,0,null,0,null,0,0,null,null,0,0,0]
[null,null,"小庇","腕木","杉",null,"ｍ3",null,null,null,1,0,null,0,null,0,0,null,null,0,0,0]
[null,null,"小庇","桁","杉",null,"ｍ3",null,null,null,1,0,null,0,null,0,0,null,null,0,0,0]
[null,null,"小庇","持ち送り","杉",null,"ｍ3",null,null,null,1,0,null,0,null,0,0,null,null,0,0,0]
[null,null,"小庇","目板","杉",null,"ｍ3",null,null,null,1,0,null,0,null,0,0,null,null,0,{"$f":"ROUNDDOWN(R125*N125,0)","v":0},{"$f":"ROUNDDOWN(P125*T125,0)","v":0}]
[null,null,"小庇","破風板","杉",null,"ｍ3",null,null,null,1,0,null,0,null,0,0,null,null,0,0,0]
[null,null,"小庇",null,"杉",null,"ｍ3",null,null,null,1,0,null,0,null,0,0,null,null,0,0,0]
[null,null,"屋根","瓦桟","杉",null,"ｍ3",null,null,null,1,{"$f":"ROUNDDOWN(H128*I128*J128*K128,3)","v":0},null,{"$f":"M128*L128","v":0},null,{"$f":"L128*O128","v":0},{"$f":"N128-P128","v":0},null,null,{"$f":"IF(S128=\"\",R128,MIN(R128:S128))","v":0},0,0]
[null,null,"屋根","破風板","杉",null,"ｍ3",null,null,null,1,0,null,0,null,0,0,null,null,0,0,0]
[null,null,"屋根","破風板","杉",null,"ｍ3",null,null,null,1,0,null,0,null,0,0,null,null,0,0,0]
[null,null,"屋根","登り瓦桟","杉",null,"ｍ3",null,null,null,1,0,null,0,null,0,0,null,null,0,0,0]
[null,null,"屋根","面戸板","杉",null,"ｍ3",null,null,null,1,0,null,0,null,0,0,null,null,0,0,0]
[null,null,"屋根",null,"杉",null,"ｍ3",null,null,null,1,0,null,0,null,0,0,null,null,0,0,0]
[null,null,"屋根",null,"杉",null,"ｍ3",null,null,null,1,0,null,0,null,0,0,null,null,0,0,0]
[null,null,"天井板",null,null,null,"ｍ3",null,null,null,1,0,null,0,null,0,0,null,null,0,0,0]
[null,null,"天井板",null,null,null,"ｍ3",null,null,null,1,0,null,0,null,0,0,null,null,0,0,0]
[null,null,"天井板",null,null,null,"ｍ3",null,null,null,1,0,null,0,null,0,0,null,null,0,0,0]
[null,null,"天井板",null,null,null,"ｍ3",null,null,null,1,0,null,0,null,0,0,null,null,0,0,0]
[null,null,"廻縁",null,"ｽｷﾞ",null,"ｍ3",null,null,null,1,0,null,0,null,0,0,null,null,0,0,0]
[null,null,"廻縁",null,null,null,"ｍ3",null,null,null,1,0,null,0,null,0,0,null,null,0,0,0]
[null,null,"棹縁",null,"ｽｷﾞ",null,"ｍ3",null,null,null,1,0,null,0,null,0,0,null,null,0,0,0]
[null,null,"棹縁",null,null,null,"ｍ3",null,null,null,1,0,null,0,null,0,0,null,null,0,0,0]
[null,null,null,null,null,null,null,null,null,null,1,0,null,0,null,0,0,null,null,0,0,0]
[null,null,null,null,null,null,null,null,null,null,1,0,null,0,null,0,0,null,null,0,0,0]
[null,null,null,null,null,null,"ｍ3",null,null,null,1,0,null,0,null,0,0,null,null,0,0,0]
[null,null,null,null,null,null,"ｍ3",null,null,null,1,0,null,0,null,0,0,null,null,0,0,0]
[null,null,null,null,null,null,"ｍ3",null,null,null,1,0,null,0,null,0,0,null,null,0,0,0]
[null,null,null,null,null,null,"ｍ3",null,null,null,1,0,null,0,null,0,0,null,null,0,0,0]
[null,null,null,null,null,null,"ｍ3",null,null,null,1,0,null,0,null,0,0,null,null,0,0,0]
[null,null,null,null,null,null,"ｍ3",null,null,null,1,0,null,0,null,0,0,null,null,0,0,0]
[null,null,null,null,null,null,"ｍ3",null,null,null,1,0,null,0,null,0,0,null,null,0,0,0]
[null,null,null,null,null,null,"ｍ3",null,null,null,1,0,null,0,null,0,0,null,null,0,0,0]
[null,null,null,null,null,null,"ｍ3",null,null,null,1,0,null,0,null,0,0,null,null,0,0,0]
[null,null,null,null,null,null,"ｍ3",null,null,null,1,0,null,0,null,0,0,null,null,0,0,0]
[null,null,null,null,null,null,"ｍ3",null,null,null,1,0,null,0,null,0,0,null,null,0,0,0]
[null,null,null,null,null,null,"ｍ3",null,null,null,1,0,null,0,null,0,0,null,null,0,0,0]
[null,null,null,null,null,null,"ｍ3",null,null,null,1,0,null,0,null,0,0,null,null,0,0,0]
[null,null,null,null,null,null,"ｍ3",null,null,null,1,0,null,0,null,0,0,null,null,0,0,0]
[null,null,null,null,null,null,"ｍ3",null,null,null,1,0,null,0,null,0,0,null,null,0,0,0]
[null,null,null,null,null,null,"ｍ3",null,null,null,1,0,null,0,null,0,0,null,null,0,0,0]
[null,null,null,null,null,null,"ｍ3",null,null,null,1,0,null,0,null,0,0,null,null,0,0,0]
[null,null,null,null,null,null,"ｍ3",null,null,null,1,0,null,0,null,0,0,null,null,0,0,0]
[null,null,null,null,null,null,"ｍ3",null,null,null,1,0,null,0,null,0,0,null,null,0,0,0]
[null,null,null,null,null,null,"ｍ3",null,null,null,1,0,null,0,null,0,0,null,null,0,0,0]
[null,"合　　計",null,null,null,null,null,null,null,null,null,{"$f":"SUM(L61:L164)","v":0},null,{"$f":"SUM(N61:N164)","v":0},null,{"$f":"SUM(P61:P164)","v":0},{"$f":"SUM(Q61:Q164)","v":0},null,null,null,{"$f":"SUM(U61:U164)","v":0},{"$f":"SUM(V61:V164)","v":0}]
[null,null,null,null,null,null,null,null,null,null,null,{"$f":"ROUNDDOWN(L165,2)","v":0},null,{"$f":"ROUNDDOWN(N165,2)","v":0},null,{"$f":"ROUNDDOWN(P165,2)","v":0},{"$f":"ROUNDDOWN(Q165,2)","v":0},null,null,"端数切捨て",{"$f":"ROUNDDOWN(U165,-2)","v":0},{"$f":"ROUNDDOWN(V165,-2)","v":0}]
[]
[null,null,null,"人工の単価",null,"豊田市設定\n単価","補助対象単価","人工/㎥","全体人工","合計","補助対象人工","合計"]
[null,null,null,"構造材大工手間",20000,23400,{"$f":"IF(F169=\"\",E169,IF(F169>E169,E169,F169))","v":20000},null,{"$f":"ROUNDDOWN(((P60+Q60)*H169),0)","v":0},{"$f":"I169*E169","v":0},{"$f":"ROUNDDOWN((P60*H169),0)","v":0},{"$f":"G169*K169","v":0}]
[null,null,null,"構造材手元手間",15000,17500,{"$f":"IF(F170=\"\",E170,IF(F170>E170,E170,F170))","v":15000},null,{"$f":"ROUNDDOWN((I169*0.15),0)","v":0},{"$f":"I170*E170","v":0},{"$f":"ROUNDDOWN((K169*0.15),0)","v":0},{"$f":"G170*K170","v":0}]
[null,null,null,"造作材大工手間",20000,23400,{"$f":"IF(F171=\"\",E171,IF(F171>E171,E171,F171))","v":20000},null,{"$f":"ROUNDDOWN(((P166+Q166)*H171),0)","v":0},{"$f":"I171*E171","v":0},{"$f":"ROUNDDOWN((P166*H171),0)","v":0},{"$f":"G171*K171","v":0}]
[null,null,null,"造作材手元手間",15000,17500,{"$f":"IF(F172=\"\",E172,IF(F172>E172,E172,F172))","v":15000},null,{"$f":"ROUNDDOWN((I171*0.15),0)","v":0},{"$f":"I172*E172","v":0},{"$f":"ROUNDDOWN((K171*0.15),0)","v":0},{"$f":"G172*K172","v":0}]

{"sheet":"同意書","index":15,"n_rows":75,"n_cols":93,"rows_kept":75,"cut":false,"hidden":false,"merged":[[14,87,15,88],[37,75,39,88],[0,1,1,22],[0,70,1,91],[5,0,9,68],[5,69,9,137],[74,51,75,52],[12,71,15,85],[62,89,63,91],[42,81,44,92],[42,93,44,136],[62,82,63,83],[62,84,63,86],[62,87,63,88],[74,120,75,121],[24,69,27,137],[62,92,63,93],[66,75,67,83],[70,81,71,84],[74,81,75,84],[62,75,63,78],[62,79,63,81],[74,12,75,15],[62,18,63,19],[62,20,63,22],[62,23,63,24],[66,6,67,14],[62,6,63,9],[62,10,63,12],[62,13,63,14],[62,15,63,17],[70,12,71,15],[42,12,44,23],[42,24,44,67],[12,2,15,16],[37,6,39,19],[14,18,15,19],[24,0,27,68]]}
[null,"様式第１号　添付書類（７）",null,null,null,null,null,null,null,null,null,null,null,null,null,null,null,null,null,null,null,null,null,null,null,null,null,null,null,null,null,null,null,null,null,null,null,null,null,null,null,null,null,null,null,null,null,null,null,null,null,null,null,null,null,null,null,null,null,null,null,null,null,null,null,null,null,null,null,null,"様式第１号　添付書類（７）"]
[]
[]
[]
[]
["所有者の同意書",null,null,null,null,null,null,null,null,null,null,null,null,null,null,null,null,null,null,null,null,null,null,null,null,null,null,null,null,null,null,null,null,null,null,null,null,null,null,null,null,null,null,null,null,null,null,null,null,null,null,null,null,null,null,null,null,null,null,null,null,null,null,null,null,null,null,null,null,"所有者の同意書"]
[]
[]
[]
[]
[]
[]
[null,null,{"$f":"CONCATENATE(補助金交付申請入力シート!C8,\"　\",補助金交付申請入力シート!H8)","v":"　"},null,null,null,null,null,null,null,null,null,null,null,null,null,null,null,null,null,null,null,null,null,null,null,null,null,null,null,null,null,null,null,null,null,null,null,null,null,null,null,null,null,null,null,null,null,null,null,null,null,null,null,null,null,null,null,null,null,null,null,null,null,null,null,null,null,null,null,null,{"$f":"CONCATENATE(補助金交付申請入力シート!C8,\"　\",補助金交付申請入力シート!H8)","v":"　"}]
[]
[null,null,null,null,null,null,null,null,null,null,null,null,null,null,null,null,null,null,"殿",null,null,null,null,null,null,null,null,null,null,null,null,null,null,null,null,null,null,null,null,null,null,null,null,null,null,null,null,null,null,null,null,null,null,null,null,null,null,null,null,null,null,null,null,null,null,null,null,null,null,null,null,null,null,null,null,null,null,null,null,null,null,null,null,null,null,null,null,"殿"]
[]
[]
[]
[]
[]
[]
[]
[]
[]
["　下記住所の建物に対して、豊田市伝統的建造物群保存地区補助金を受けて、工事を実施することを土地所有者として同意します。",null,null,null,null,null,null,null,null,null,null,null,null,null,null,null,null,null,null,null,null,null,null,null,null,null,null,null,null,null,null,null,null,null,null,null,null,null,null,null,null,null,null,null,null,null,null,null,null,null,null,null,null,null,null,null,null,null,null,null,null,null,null,null,null,null,null,null,null,"　下記住所の建物に対して、豊田市伝統的建造物群保存地区補助金を受けて、工事を実施することを建物所有者として同意します。"]
[]
[]
[]
[]
[]
[]
[]
[]
[]
[]
[]
[]
[null,null,null,null,null,null,"同意する土地の場所",null,null,null,null,null,null,null,null,null,null,null,null,null,null,null,null,null,null,null,null,null,null,null,null,null,null,null,null,null,null,null,null,null,null,null,null,null,null,null,null,null,null,null,null,null,null,null,null,null,null,null,null,null,null,null,null,null,null,null,null,null,null,null,null,null,null,null,null,"同意する建物の場所"]
[]
[]
[]
[]
[null,null,null,null,null,null,null,null,null,null,null,null,"豊田市　足助町",null,null,null,null,null,null,null,null,null,null,null,null,null,null,null,null,null,null,null,null,null,null,null,null,null,null,null,null,null,null,null,null,null,null,null,null,null,null,null,null,null,null,null,null,null,null,null,null,null,null,null,null,null,null,null,null,null,null,null,null,null,null,null,null,null,null,null,null,"豊田市　足助町"]
[]
[]
[]
[]
[]
[]
[]
[]
[]
[]
[]
[]
[]
[]
[]
[]
[]
[]
[]
[null,null,null,null,null,null,"令和",null,null,null,null,null,null,"年",null,null,null,null,"月",null,null,null,null,"日",null,null,null,null,null,null,null,null,null,null,null,null,null,null,null,null,null,null,null,null,null,null,null,null,null,null,null,null,null,null,null,null,null,null,null,null,null,null,null,null,null,null,null,null,null,null,null,null,null,null,null,"令和",null,null,null,null,null,null,"年",null,null,null,null,"月",null,null,null,null,"日"]
[]
[]
[]
[null,null,null,null,null,null,"土地所有者",null,null,null,null,null,null,null,null,null,null,null,null,null,null,null,null,null,null,null,null,null,null,null,null,null,null,null,null,null,null,null,null,null,null,null,null,null,null,null,null,null,null,null,null,null,null,null,null,null,null,null,null,null,null,null,null,null,null,null,null,null,null,null,null,null,null,null,null,"建物所有者"]
[]
[]
[]
[null,null,null,null,null,null,null,null,null,null,null,null,"住所",null,null,null,null,null,null,null,null,null,null,null,null,null,null,null,null,null,null,null,null,null,null,null,null,null,null,null,null,null,null,null,null,null,null,null,null,null,null,null,null,null,null,null,null,null,null,null,null,null,null,null,null,null,null,null,null,null,null,null,null,null,null,null,null,null,null,null,null,"住所"]
[]
[]
[]
[null,null,null,null,null,null,null,null,null,null,null,null,"氏名",null,null,null,null,null,null,null,null,null,null,null,null,null,null,null,null,null,null,null,null,null,null,null,null,null,null,null,null,null,null,null,null,null,null,null,null,null,null,null,null,null,null,null,null,null,null,null,null,null,null,null,null,null,null,null,null,null,null,null,null,null,null,null,null,null,null,null,null,"氏名"]

{"sheet":"消費税仕入税額控除チェックリスト","index":16,"n_rows":54,"n_cols":71,"rows_kept":54,"cut":false,"hidden":false,"merged":[[0,1,1,27],[1,70,82,136],[38,56,40,68],[41,43,43,55],[35,56,37,68],[41,56,43,68],[20,0,23,68],[32,56,34,68],[5,0,9,68],[12,47,15,61],[14,63,15,64],[44,56,46,68],[47,43,49,55],[47,56,49,68],[50,0,55,42],[50,43,52,55],[50,56,52,68],[53,43,55,55],[53,56,55,68],[82,51,83,52],[32,0,37,42],[32,43,34,55],[38,0,43,42],[38,43,40,55],[35,43,37,55],[44,0,49,42],[44,43,46,55]]}
[null,"様式第１号　添付書類（11）-4"]
[null,null,null,null,null,null,null,null,null,null,null,null,null,null,null,null,null,null,null,null,null,null,null,null,null,null,null,null,null,null,null,null,null,null,null,null,null,null,null,null,null,null,null,null,null,null,null,null,null,null,null,null,null,null,null,null,null,null,null,null,null,null,null,null,null,null,null,null,null,null,"　国内取引の納税義務者\n国内取引の場合には、事業者は、非課税取引を除き、事業として行った資産の譲渡や貸付け、役務の提供について消費税の納税義務を負うことになっています。国内取引の消費税の納税義務者は事業者ですから、事業者でない者は納税の義務はありません。\n　なお、事業者とは個人事業者（事業を行う個人）及び法人をいい、法人には株式会社等の営利法人、公共法人、公益法人等のほか人格のない社団等も法人とみなされていますので公共法人、公益法人等や人格のない社団等も課税資産の譲渡等を行う場合には納税義務者となります。\n\n  消費税法第９条第１項（小規模事業者に係る納税義務の免除）\n第９条　事業者のうち、その課税期間に係る基準期間における課税売上高が1000万円以下である者については、第５条第１項の規定にかかわらず、その課税期間中に国内において行った課税資産の譲渡等につき、消費税を納める義務を免除する。ただし、この法律に別段の定めがある場合は、この限りでない。\n\n  消費税法第37条第１項（中小事業者の仕入れに係る消費税額の控除の特例）\n第37条　事業者（第９条第１項本文の規定により消費税を納める義務が免除される事業者を除く。）が、その納税地を所轄する税務署長にその基準期間における課税売上高（同項に規定する基準期間における課税売上高をいう。以下この項及び第38条第１項において同じ。）が5000万円以下である課税期間（第12条第１項に規定する分割等に係る同項の新設分割親法人又は新設分割子法人の政令で定める課税期間（以下この項及び第38条第１項において「分割等に係る課税期間」という。）を除く。）についてこの項の規定の適用を受ける旨を記載した届出書を提出した場合には、当該届出書を提出した日の属する課税期間の翌課税期間（当該届出書を提出した日の属する課税期間が事業を開始した日の属する課税期間その他の政令で定める課税期間である場合には、当該課税期間）以後の課税期間（その基準期間における課税売上高が5000万円を超える課税期間及び分割等に係る課税期間を除く。）については、第30条から前条までの規定により課税標準額に対する消費税額から控除することができる課税仕入れ等の税額の合計額は、これらの規定にかかわらず、当該事業者の当該課税期間の課税標準額に対する消費税額から当該課税期間における第38条第１項に規定する売上げに係る対価の返還等の金額に係る消費税額の合計額を控除した残額の100分の60に相当する金額（卸売業その他の政令で定める事業を営む事業者にあつては、当該残額に、政令で定めるところにより当該事業の種類ごとに当該事業における課税資産の譲渡等に係る消費税額のうちに課税仕入れ等の税額の通常占める割合を勘案して政令で定める率を乗じて計算した金額）とする。この場合において、当該金額は、当該課税期間における仕入れに係る消費税額とみなす。\n\n  消費税法第60条第４項消費税法第60条（国、地方公共団体等に対する特例）\n４　国若しくは地方公共団体（特別会計を設けて事業を行う場合に限る。）、別表第３に掲げる法人又は人格のない社団等（第９条第１項本文の規定により消費税を納める義務が免除される者を除く。）が課税仕入れを行い、又は課税貨物を保税地域から引き取る場合において、当該課税仕入れの日又は課税貨物の保税地域からの引取りの日（当該課税貨物につき特例申告書を提出した場合には、当該特例申告書を提出した日又は特例申告に関する決定の通知を受けた日）の属する課税期間において資産の譲渡等の対価以外の収入（政令で定める収入を除く。以下この項において「特定収入」という。）があり、かつ、当該特定収入の合計額が当該課税期間における資産の譲渡等の対価の額（第28条第１項に規定する対価の額をいう。）の合計額に当該特定収入の合計額を加算した金額に比し僅少でない場合として政令で定める場合に該当するときは、第37条の規定の適用を受ける場合を除き、当該課税期間の課税標準額に対する消費税額（第45条第１項第２号に掲げる課税標準額に対する消費税額をいう。次項及び第６項において同じ。）から控除することができる課税仕入れ等の税額（第30条第２項に規定する課税仕入れ等の税額をいう。以下この項及び次項において同じ。）の合計額は、第30条から第36条までの規定にかかわらず、これらの規定により計算した場合における当該課税仕入れ等の税額の合計額から特定収入に係る課税仕入れ等の税額として政令で定めるところにより計算した金額を控除した残額に相当する金額とする。この場合において、当該金額は、当該課税期間における第32条第１項第１号に規定する仕入れに係る消費税額とみなす。\n\n\n　　　　　　　　　　　　　　　　　　　　　　　　"]
[]
[]
[]
["消費税仕入税額控除チェックリスト"]
[]
[]
[]
[]
[]
[]
[null,null,null,null,null,null,null,null,null,null,null,null,null,null,null,null,null,null,null,null,null,null,null,null,null,null,null,null,null,null,null,null,null,null,null,null,null,null,null,null,null,null,null,null,null,null,null,{"$f":"CONCATENATE(補助金交付申請入力シート!C8,\"　\",補助金交付申請入力シート!H8)","v":"　"}]
[]
[]
[]
[]
[]
[]
[]
["　　下記の通り報告します。"]
[]
[]
[]
[]
[]
[]
[]
[]
[]
[]
[]
["①申請者は、消費税納税義務者ではない又は、地方公共団体の一般会計である。",null,null,null,null,null,null,null,null,null,null,null,null,null,null,null,null,null,null,null,null,null,null,null,null,null,null,null,null,null,null,null,null,null,null,null,null,null,null,null,null,null,null,"□　はい",null,null,null,null,null,null,null,null,null,null,null,null,"□　いいえ"]
[]
[]
[null,null,null,null,null,null,null,null,null,null,null,null,null,null,null,null,null,null,null,null,null,null,null,null,null,null,null,null,null,null,null,null,null,null,null,null,null,null,null,null,null,null,null,"→終了",null,null,null,null,null,null,null,null,null,null,null,null,"→②へ"]
[]
[]
["②申請者は、消費税法第９条第１項の規定により消費税を納める義務が免除される者である。",null,null,null,null,null,null,null,null,null,null,null,null,null,null,null,null,null,null,null,null,null,null,null,null,null,null,null,null,null,null,null,null,null,null,null,null,null,null,null,null,null,null,"□　はい",null,null,null,null,null,null,null,null,null,null,null,null,"□　いいえ"]
[]
[]
[null,null,null,null,null,null,null,null,null,null,null,null,null,null,null,null,null,null,null,null,null,null,null,null,null,null,null,null,null,null,null,null,null,null,null,null,null,null,null,null,null,null,null,"→終了",null,null,null,null,null,null,null,null,null,null,null,null,"→③、④へ"]
[]
[]
["③申請者は、消費税法第37条第１項の規定により中小企業者の仕入に係る消費税額の控除の特例が適用される者である",null,null,null,null,null,null,null,null,null,null,null,null,null,null,null,null,null,null,null,null,null,null,null,null,null,null,null,null,null,null,null,null,null,null,null,null,null,null,null,null,null,null,"□　はい",null,null,null,null,null,null,null,null,null,null,null,null,"□　いいえ"]
[]
[]
[null,null,null,null,null,null,null,null,null,null,null,null,null,null,null,null,null,null,null,null,null,null,null,null,null,null,null,null,null,null,null,null,null,null,null,null,null,null,null,null,null,null,null,"→終了",null,null,null,null,null,null,null,null,null,null,null,null,"別途要相談"]
[]
[]
["④申請者は、消費税法第60条第４項の規定により、国、地方公共団体等に対する仕入に係る消費税額の控除の特例が適用される者である。",null,null,null,null,null,null,null,null,null,null,null,null,null,null,null,null,null,null,null,null,null,null,null,null,null,null,null,null,null,null,null,null,null,null,null,null,null,null,null,null,null,null,"□　はい",null,null,null,null,null,null,null,null,null,null,null,null,"□　いいえ"]
[]
[]
[null,null,null,null,null,null,null,null,null,null,null,null,null,null,null,null,null,null,null,null,null,null,null,null,null,null,null,null,null,null,null,null,null,null,null,null,null,null,null,null,null,null,null,"→終了",null,null,null,null,null,null,null,null,null,null,null,null,"別途要相談"]

{"sheet":"様式７","index":17,"n_rows":73,"n_cols":11,"rows_kept":73,"cut":false,"hidden":false,"merged":[[72,0,72,3],[64,2,64,3],[65,2,65,3],[66,2,66,3],[67,2,67,3],[68,2,68,3],[71,2,71,3],[62,2,62,3],[63,2,63,3],[60,2,60,3],[69,2,69,3],[70,2,70,3],[47,0,60,1],[61,0,71,1],[47,2,47,3],[48,2,48,3],[49,2,49,3],[50,2,50,3],[51,2,51,3],[52,2,52,3],[53,2,53,3],[54,2,54,3],[55,2,55,3],[56,2,56,3],[57,2,57,3],[58,2,58,3],[59,2,59,3],[61,2,61,3],[1,0,1,5],[35,0,35,5],[36,0,36,5],[38,0,38,3],[39,0,39,3],[28,4,28,5],[9,3,9,5],[10,3,10,5],[11,3,11,5],[22,1,22,2],[22,3,22,5],[25,3,25,5],[37,0,37,5],[32,4,32,5],[23,1,23,2],[19,4,19,5],[0,0,0,5],[4,0,6,2],[7,1,7,2],[20,1,20,2],[21,1,21,2],[10,1,10,2],[11,1,11,2],[12,1,12,2],[20,3,20,5],[21,3,21,5],[14,4,14,5],[13,4,13,5],[9,1,9,2],[16,4,16,5],[17,4,17,5],[18,4,18,5],[33,1,33,2],[26,4,26,5],[27,4,27,5],[30,4,30,5],[29,4,29,5],[31,4,31,5],[15,4,15,5],[2,0,2,5],[3,0,3,5],[24,1,24,2],[7,3,7,5],[12,4,12,5],[8,4,8,5],[8,1,8,2],[4,4,4,5],[5,4,5,5],[6,4,6,5],[23,3,23,5],[24,3,24,5],[43,7,44,7],[45,7,46,7],[40,0,40,3],[41,0,41,3],[42,0,42,3],[43,0,43,3],[45,0,45,5],[46,0,46,3]]}
["様式第７号（第１２条関係）"]
["（表）"]
["事　業　実　績　書"]
["１．事業内容"]
["主工事",null,null,"屋根"]
[null,null,null,"外壁"]
[null,null,null,"構造"]
[null,"部位",null,"仕上げ・仕様"]
[null,"庇"]
[null,"建具"]
[null,"格子"]
["既","軒裏"]
[]
[]
["存"]
[]
[]
[]
[]
[]
[null,"部位",null,"仕上げ・仕様"]
[null,"庇"]
[null,"建具"]
[null,"格子"]
["実","軒裏"]
[]
[]
["施"]
[]
[]
[]
[]
[]
[]
[]
["（裏）"]
["２．収支決算書"]
["（１）収　入"]
["項　　目",null,null,null,"変 更 前 金 額（円）","金　　額（円）",null,null,null,"修理","修景"]
["補　助　金（修理）",null,null,null,{"$f":"IF(J45>J41,J41,J45)","v":0},{"$f":"IF(K45>J41,J41,K45)","v":0},null,null,"補助率",0.8,0.6]
["　　　　　（修景）",null,null,null,{"$f":"IF(J47>K41,J47,J47)","v":0},{"$f":"IF(K47>K41,K41,K47)","v":0},null,null,"上限",50000000,5000000]
["自　己　資　金",null,null,null,{"$f":"E44-E43-E40-E41","v":0},{"$f":"F44-F43-F40","v":0}]
["他の補助金（　　　　　　　　）",null,null,null,0,0,"←あれば記入",null,null,"当初","変更"]
["合　　　計",null,null,null,{"$f":"E73","v":0},{"$f":"F73","v":0},null,"修理","補助対象",{"$f":"E48","v":0},{"$f":"F48","v":0}]
[null,null,null,null,null,null,null,null,"計算",{"$f":"ROUNDDOWN(J44*J40,-3)","v":0},{"$f":"ROUNDDOWN(K44*J40,-3)","v":0}]
["（２）支　出",null,null,null,null,null,null,"修景","補助対象",{"$f":"E49","v":0},{"$f":"F49","v":0}]
["項　　目",null,null,null,"変 更 前 金 額（円）","金　　額（円）",null,null,"計算",{"$f":"ROUNDDOWN(J46*K40,-3)","v":0},{"$f":"ROUNDDOWN(K46*K40,-3)","v":0}]
["補　助　対　象　経　費",null,"修理（別添資料参照）",null,{"$f":"支出内訳総括表!G28","v":0},{"$f":"支出内訳総括表!J28","v":0}]
[null,null,"修景（別添資料参照）",null,{"$f":"支出内訳総括表!H28","v":0},{"$f":"支出内訳総括表!K28","v":0}]
[]
[]
[]
[]
[]
[]
[]
[]
[]
[]
[]
[null,null,"小計",null,{"$f":"SUM(E48:E60)","v":0},{"$f":"SUM(F48:F60)","v":0}]
["補助対象とならない経費",null,"(別添資料参照）",null,{"$f":"支出内訳総括表!F28-支出内訳総括表!G28-支出内訳総括表!H28","v":0},{"$f":"支出内訳総括表!I28-支出内訳総括表!J28-支出内訳総括表!K28","v":0}]
[]
[]
[]
[]
[]
[]
[]
[]
[]
[null,null,"小計",null,{"$f":"SUM(E62:E71)","v":0},{"$f":"SUM(F62:F71)","v":0}]
["合　　　計",null,null,null,{"$f":"SUM(E72,E61)","v":0},{"$f":"SUM(F72,F61)","v":0}]

{"sheet":"様式８","index":18,"n_rows":68,"n_cols":62,"rows_kept":68,"cut":false,"hidden":false,"merged":[[95,1,96,65],[34,0,39,63],[42,0,43,66],[44,0,45,25],[47,0,48,66],[49,0,50,25],[52,0,53,66],[54,0,55,25],[57,0,58,66],[59,0,60,25],[62,0,63,66],[67,0,68,66],[64,0,65,66],[32,37,33,63],[26,0,27,63],[32,2,33,4],[32,5,33,7],[32,8,33,9],[32,10,33,12],[32,13,33,14],[32,15,33,17],[32,18,33,30],[32,31,33,36],[13,34,14,41],[13,42,14,64],[15,34,16,41],[15,42,16,64],[19,37,22,63],[9,34,10,41],[9,42,10,64],[2,56,3,57],[11,34,12,41],[11,42,12,64],[2,58,3,60],[2,61,3,62],[5,0,6,13],[7,24,8,31],[7,34,8,41],[7,42,8,64],[0,0,1,22],[2,44,3,47],[2,48,3,50],[2,51,3,52],[2,53,3,55]]}
["様式第８号（第１６条関係）"]
[]
[null,null,null,null,null,null,null,null,null,null,null,null,null,null,null,null,null,null,null,null,null,null,null,null,null,null,null,null,null,null,null,null,null,null,null,null,null,null,null,null,null,null,null,null,"令和",null,null,null,{"$f":"補助金交付申請入力シート!C44","v":0},null,null,"年",null,{"$f":"補助金交付申請入力シート!E44","v":0},null,null,"月",null,{"$f":"補助金交付申請入力シート!G44","v":0},null,null,"日"]
[]
[]
["　豊田市長　様"]
[]
[null,null,null,null,null,null,null,null,null,null,null,null,null,null,null,null,null,null,null,null,null,null,null,null,"（報告者）",null,null,null,null,null,null,null,null,null,"住　　所",null,null,null,null,null,null,null,{"$f":"CONCATENATE(補助金交付申請入力シート!C4)","v":""}]
[]
[null,null,null,null,null,null,null,null,null,null,null,null,null,null,null,null,null,null,null,null,null,null,null,null,null,null,null,null,null,null,null,null,null,null,"（フリガナ）",null,null,null,null,null,null,null,{"$f":"CONCATENATE(補助金交付申請入力シート!C7,\"　\",補助金交付申請入力シート!H7)","v":"　"}]
[]
[null,null,null,null,null,null,null,null,null,null,null,null,null,null,null,null,null,null,null,null,null,null,null,null,null,null,null,null,null,null,null,null,null,null,"氏　　名",null,null,null,null,null,null,null,{"$f":"CONCATENATE(補助金交付申請入力シート!C8,\"　\",補助金交付申請入力シート!H8)","v":"　"}]
[]
[null,null,null,null,null,null,null,null,null,null,null,null,null,null,null,null,null,null,null,null,null,null,null,null,null,null,null,null,null,null,null,null,null,null,"生年月日",null,null,null,null,null,null,null,{"$f":"CONCATENATE(IF(ISBLANK(補助金交付申請入力シート!G9),\"\",補助金交付申請入力シート!C9),補助金交付申請入力シート!G9,IF(ISBLANK(補助金交付申請入力シート!G9),\"\",\"年\"),補助金交付申請入力シート!I9,IF(ISBLANK(補助金交付申請入力シート!I9),\"\",\"月\"),補助金交付申請入力シート!K9,IF(ISBLANK(補助金交付申請入力シート!K9),\"\",\"日\"))","v":""}]
[]
[null,null,null,null,null,null,null,null,null,null,null,null,null,null,null,null,null,null,null,null,null,null,null,null,null,null,null,null,null,null,null,null,null,null,"電話番号",null,null,null,null,null,null,null,{"$f":"IF(ISBLANK(補助金交付申請入力シート!C5),\"\",\nCONCATENATE(補助金交付申請入力シート!C5,\"－\",補助金交付申請入力シート!G5,\"－\",補助金交付申請入力シート!I5))","v":""}]
[]
[]
[]
[null,null,null,null,null,null,null,null,null,null,null,null,null,null,null,null,null,null,null,null,null,null,null,null,null,null,null,null,null,null,null,null,null,null,null,null,null,"法人にあっては、主たる事務所の所在\n地、名称、代表者の氏名及び生年月日"]
[]
[]
[]
[]
[]
[]
["豊田市伝統的建造物群保存地区補助金に係る消費税等仕入控除税額報告書"]
[]
[]
[]
[]
[]
[null,null,"令和",null,null,{"$f":"補助金交付申請入力シート!C32","v":0},null,null,"年",null,{"$f":"補助金交付申請入力シート!E32","v":0},null,null,"月",null,{"$f":"補助金交付申請入力シート!G32","v":0},null,null,"日付け豊文財発第",null,null,null,null,null,null,null,null,null,null,null,null,{"$f":"補助金交付申請入力シート!E33","v":0},null,null,null,null,null,"号もって額の確定の通知があった豊"]
[]
["田市伝統的建造物群保存地区補助金に係る消費税等仕入控除税額について、豊田市伝統的建造物群保存地区補助金交付要綱第１６条第１項の規定により、次のとおり報告します。"]
[]
[]
[]
[]
[]
[]
[]
["１　 額の確定の通知額"]
[]
["円"]
[]
[]
["２　 完了報告時に減額した補助金に係る消費税等仕入控除税額"]
[]
["円"]
[]
[]
["３   確定した補助金に係る消費税等仕入控除税額"]
[]
["円"]
[]
[]
["４ 　補助金返還相当額（３の金額から２の金額を差し引いた額）"]
[]
["円"]
[]
[]
["５　添付書類"]
[]
["    ３の補助金に係る消費税等仕入控除税額の積算内訳など"]
[]
[]
["注：補助金に係る消費税等仕入控除税額が０円の場合でも提出すること。"]

{"sheet":"事業完了届け","index":19,"n_rows":24,"n_cols":30,"rows_kept":24,"cut":false,"hidden":false,"merged":[[1,24,1,25],[1,27,1,28],[3,1,3,10],[6,0,6,30],[23,20,23,21],[23,17,23,18],[23,14,23,15],[15,4,15,5],[1,19,1,20],[1,21,1,22]]}
[null,"様式第６号　添付書類（５）"]
[null,null,null,null,null,null,null,null,null,null,null,null,null,null,null,null,null,null,null,"令和",null,null,null,"年",null,null,"月",null,null,"日"]
[]
[null,{"$f":"'補助金申請書（当初）様式１'!AU12","v":"　"},null,null,null,null,null,null,null,null,null,"様"]
[]
[]
["豊田市伝統的建造物群保存地区事業完了届け"]
[]
[]
[]
[null,null,null,null,null,null,null,null,null,null,null,null,null,"工事施工者",null,null,null,"住所"]
[null,null,null,null,null,null,null,null,null,null,null,null,null,null,null,null,null,"名称"]
[null,null,null,null,null,null,null,null,null,null,null,null,null,null,null,null,null,"代表者",null,null,null,null,null,null,null,null,null,null,"㊞"]
[]
[]
[null,null,"令和",null,null,null,"年",null,null,"月",null,null,"日付け第",null,null,null,null,null,"号により交付決定通知のありました"]
[null,"補助金補助事業が下記のとおり完了しましたので届出ます。"]
[]
[]
[null,"１　事業名",null,null,null,null,null,null,null,null,null,null,{"$f":"補助金交付申請入力シート!C27","v":0}]
[]
[null,"２　事業の実施場所",null,null,null,null,null,null,null,null,null,null,{"$f":"'補助金申請書（当初）様式１'!P41","v":"豊田市　足助町"},null,null,null,null,null,{"$f":"'補助金申請書（当初）様式１'!AA41","v":""}]
[]
[null,"３　完了年月日",null,null,null,null,null,null,null,null,null,null,"令和",null,null,null,"年",null,null,"月",null,null,"日"]

{"sheet":"入札執行調書","index":20,"n_rows":33,"n_cols":10,"rows_kept":33,"cut":false,"hidden":false,"merged":[[31,1,31,8],[32,1,32,8],[21,1,21,3],[28,3,28,4],[28,6,28,7],[29,3,29,4],[29,6,29,7],[30,3,30,4],[30,6,30,7],[25,3,25,4],[25,6,25,7],[26,3,26,4],[26,6,26,7],[27,3,27,4],[27,6,27,7],[22,1,22,8],[23,1,24,1],[23,2,23,4],[23,5,23,7],[23,8,24,8],[24,3,24,4],[24,6,24,7],[21,5,21,8],[13,1,14,4],[13,5,13,8],[14,5,14,8],[15,1,15,8],[16,1,16,8],[17,1,17,3],[17,4,17,8],[18,1,18,3],[18,4,18,8],[19,1,19,3],[19,4,19,8],[20,5,20,8],[10,4,10,5],[2,1,2,2],[4,2,4,8],[6,6,6,8],[8,4,8,5],[9,4,9,5]]}
[null,"様式第６号添付書類（７）－１"]
[]
[null,"豊田市長　様"]
[]
[null,null,"　下記の通り入札を執行しましたので、報告します。"]
[]
[null,null,null,null,null,null,"令和　　年    月　　日"]
[]
[null,null,null,null,"住　　所　",null,null,null,null,"←入札を取り仕切った設計事務所の名前"]
[null,null,null,null,"商号又は　"]
[null,null,null,null,"名　　称　"]
[null,null,null,null,"代表者名　　　　　　　　　　　　　　　　（印）"]
[]
[null,"入 札 執 行 調 書",null,null,null,"入札年月日"]
[null,null,null,null,null,"令和　　  年　　 月　　  日"]
[null,"工事名"]
[null,"寿ゞ家　修理修景工事"]
[null,"工事場所",null,null,"工期"]
[null,"本町１５番地",null,null,"自　　令和　　年　　月　　日"]
[null,null,null,null,"至　　令和　　年　　月　　日"]
[null,"落札者名",null,null,"予定価格",{"$f":"支出内訳総括表!C22","v":0}]
[null,null,null,null,"決定価格"]
[]
[null,"入　　札　　者　　名","初 度 入 札",null,null,"再 度 入 札",null,null,"備考"]
[null,null,"順位"," 金　額（円）",null,"順位"," 金　額（円）"]
[]
[]
[]
[]
[]
[]
[null,"※注意　上記金額に 100分の10に相当する額を加算した金額が、契約金額である。"]
[null,"別添書類：　入札書"]

{"sheet":"請求書","index":21,"n_rows":59,"n_cols":22,"rows_kept":59,"cut":false,"hidden":false,"merged":[[14,2,17,15],[1,2,1,4],[1,5,1,14],[4,4,5,11],[5,15,5,16],[5,18,5,20],[6,1,6,6],[6,10,6,13],[6,15,6,16],[6,18,6,20],[10,14,11,14],[7,2,7,6],[7,9,7,15],[7,18,7,19],[8,17,9,17],[8,18,9,20],[9,2,11,4],[10,5,11,5],[10,6,11,6],[10,7,11,7],[10,8,11,8],[10,15,11,15],[11,17,12,20],[25,21,27,21],[27,1,27,3],[27,4,27,12],[27,13,27,16],[19,2,19,3],[19,4,19,6],[19,10,19,14],[19,17,20,20],[21,2,21,3],[21,4,21,15],[21,17,22,20],[22,4,22,15],[11,21,24,21],[12,2,13,3],[13,17,14,20],[15,17,15,20],[16,17,16,20],[17,19,17,20],[18,17,18,20],[10,9,11,9],[10,10,11,10],[10,11,11,11],[10,12,11,12],[10,13,11,13],[35,4,36,11],[36,15,36,16],[36,18,36,20],[37,1,37,6],[37,10,37,13],[37,15,37,16],[37,18,37,20],[23,4,23,15],[24,2,24,3],[24,4,24,13],[24,14,24,15],[25,4,25,15],[38,2,38,6],[38,9,38,15],[38,18,38,19],[39,17,40,17],[39,18,40,20],[40,2,42,4],[41,5,42,5],[41,6,42,6],[41,7,42,7],[41,8,42,8],[54,4,54,15],[55,2,55,3],[55,4,55,13],[55,14,55,15],[56,4,56,15],[57,21,58,21],[58,1,58,3],[58,4,58,12],[58,13,58,16],[42,21,55,21],[45,2,48,15],[46,17,46,20],[47,17,47,20],[48,19,48,20],[49,17,49,20],[41,9,42,9],[41,10,42,10],[41,11,42,11],[41,12,42,12],[41,13,42,13],[41,14,42,14],[50,2,50,3],[50,4,50,6],[50,10,50,14],[50,17,51,20],[52,2,52,3],[52,4,52,15],[52,17,53,20],[53,4,53,15],[41,15,42,15],[42,17,43,20],[43,2,44,3],[44,17,45,20]]}
[]
[null,null,"請求金額",null,null,null,null,null,null,null,null,null,null,null,null,"円"]
[]
[]
[null,null,null,null,"請　 求　 書",null,null,null,null,null,null,null,null,null,null,null,null,null,null,null,{"$f":"IF(B7=\"豊田市事業管理者 様\",\"（豊田市上下水道事業用）\",\"\")","v":""}]
[null,null,null,null,null,null,null,null,null,null,null,null,null,null,null,"年度",null,"決定区分"," Ａ Ｂ Ｃ Ｄ Ｅ Ｆ Ｇ Ｈ "]
[null,"豊 田 市 長　様",null,null,null,null,null,"合計",null,"枚",null,null,null,null,"円",null,null,"伝票番号","－　　　　 －"]
[null,"（","文化財",null,null,null,null,"課扱）",null,"令和　　年　　月　　日",null,null,null,null,null,null,null,"課コード"]
[null,null,null,null,null,null,null,null,null,null,null,null,null,null,null,null,null,"請求番号"]
[null,null,"金  額",null,null,null,null,null,null,null,null,null,null,null,null,"円"]
[null,null,null,null,null,{"$f":"IF(F2=\"\",\"\",IF(F2<1000000000,\"\",IF(F2<10000000000,\"\\\",RIGHTB(ROUNDDOWN(F2/10000000000,0),1))))","v":""},{"$f":"IF(F2=\"\",\"\",IF(F2<100000000,\"\",IF(F2<1000000000,\"\\\",RIGHTB(ROUNDDOWN(F2/1000000000,0),1))))","v":""},{"$f":"IF(F2=\"\",\"\",IF(F2<10000000,\"\",IF(F2<100000000,\"\\\",RIGHTB(ROUNDDOWN(F2/100000000,0),1))))","v":""},{"$f":"IF(F2=\"\",\"\",IF(F2<1000000,\"\",IF(F2<10000000,\"\\\",RIGHTB(ROUNDDOWN(F2/10000000,0),1))))","v":""},{"$f":"IF(F2=\"\",\"\",IF(F2<100000,\"\",IF(F2<1000000,\"\\\",RIGHTB(ROUNDDOWN(F2/1000000,0),1))))","v":""},{"$f":"IF(F2=\"\",\"\",IF(F2<10000,\"\",IF(F2<100000,\"\\\",RIGHTB(ROUNDDOWN(F2/100000,0),1))))","v":""},{"$f":"IF(F2=\"\",\"\",IF(F2<1000,\"\",IF(F2<10000,\"\\\",RIGHTB(ROUNDDOWN(F2/10000,0),1))))","v":""},{"$f":"IF(F2=\"\",\"\",IF(F2<100,\"\",IF(F2<1000,\"\\\",RIGHTB(ROUNDDOWN(F2/1000,0),1))))","v":""},{"$f":"IF(F2=\"\",\"\",IF(F2<10,\"\",IF(F2<100,\"\\\",RIGHTB(ROUNDDOWN(F2/100,0),1))))","v":""},{"$f":"IF(F2=\"\",\"\",IF(F2<1,\"\",IF(F2<10,\"\\\",RIGHTB(ROUNDDOWN(F2/10,0),1))))","v":""},{"$f":"IF(F2=\"\",\"\",IF(F2<1,0,RIGHTB(ROUNDDOWN(F2,0),1)))","v":""},null,"下記口座へ振込ください。"]
[null,null,null,null,null,null,null,null,null,null,null,null,null,null,null,null,null,"金融機関名 （支店名まで記入してください）",null,null,null,"太枠内のみ記入してください。"]
[null,null,"事業名"]
[]
[null,null,"豊田市伝統的建造物群保存地区補助金"]
[]
[null,null,null,null,null,null,null,null,null,null,null,null,null,null,null,null,null,"口座番号"]
[null,null,null,null,null,null,null,null,null,null,null,null,null,null,null,null,null,"普通","№"]
[null,null,"上記のとおり請求します。",null,null,null,null,null,null,null,null,null,null,null,null,null,null,"口座名（名義人） ※フリガナをつけてください"]
[null,null,"郵便番号",null,null,null,null,null,null,"（電話 ",{"$f":"'補助金申請書（当初）様式１'!AU16","v":""},null,null,null,null,"）",null,{"$f":"'補助金申請書（当初）様式１'!AU10","v":"　"}]
[]
[null,null,"住　所：",null,{"$f":"'補助金申請書（当初）様式１'!AU8","v":""},null,null,null,null,null,null,null,null,null,null,null,null,{"$f":"'補助金申請書（当初）様式１'!AU12","v":"　"}]
[]
[]
[null,null,"氏　名：",null,{"$f":"'補助金申請書（当初）様式１'!AU12","v":"　"},null,null,null,null,null,null,null,null,null,"（印）",null,null," 令和　　年　　月　　日"]
[null,null,null,null,null,null,null,null,null,null,null,null,null,null,null,null,null,null,null,null,null,"（提出用）"]
[null,null,null,"（法人にあっては法人名および代表者肩書氏名と印鑑）"]
[null,"連絡事項",null,null,null,null,null,null,null,null,null,null,null,"Ａ Ｂ Ｃ Ｄ ",null,null,null," 検収者",null,null,"（印） 　"]
[]
[]
[]
[]
[]
[]
[]
[null,null,null,null,"請　 求　 書",null,null,null,null,null,null,null,null,null,null,null,null,null,null,null,{"$f":"IF(B38=\"豊田市事業管理者 様\",\"（豊田市上下水道事業用）\",\"\")","v":""}]
[null,null,null,null,null,null,null,null,null,null,null,null,null,null,null,"年度",null,"決定区分"," Ａ Ｂ Ｃ Ｄ Ｅ Ｆ Ｇ Ｈ "]
[null,{"$f":"B7","v":"豊 田 市 長　様"},null,null,null,null,null,"合計",null,"枚",null,null,null,null,"円",null,null,"伝票番号","－　　　　 －"]
[null,"（",{"$f":"C8","v":"文化財"},null,null,null,null,"課扱）",null,{"$f":"J8","v":"令和　　年　　月　　日"},null,null,null,null,null,null,null,"課コード"]
[null,null,null,null,null,null,null,null,null,null,null,null,null,null,null,null,null,"請求番号"]
[null,null,"金  額",null,null,null,null,null,null,null,null,null,null,null,null,"円"]
[null,null,null,null,null,{"$f":"F11","v":""},{"$f":"G11","v":""},{"$f":"H11","v":""},"","","","","","","",{"$f":"P11","v":""},null,"下記口座へ振込ください。"]
[null,null,null,null,null,null,null,null,null,null,null,null,null,null,null,null,null,"金融機関名 （支店名まで記入してください）",null,null,null,"太枠内のみ記入してください。"]
[null,null,"事業名"]
[null,null,null,null,null,null,null,null,null,null,null,null,null,null,null,null,null,{"$f":"IF(R14=\"\",\"\",R14)","v":""}]
[null,null,{"$f":"C15","v":"豊田市伝統的建造物群保存地区補助金"}]
[null,null,null,null,null,null,null,null,null,null,null,null,null,null,null,null,null,{"$f":"IF(R16=\"\",\"\",R16)","v":""}]
[null,null,null,null,null,null,null,null,null,null,null,null,null,null,null,null,null,"口座番号"]
[null,null,null,null,null,null,null,null,null,null,null,null,null,null,null,null,null,{"$f":"R18","v":"普通"},"№",{"$f":"IF(T18=\"\",\"\",T18)","v":""}]
[null,null,"上記のとおり請求します。",null,null,null,null,null,null,null,null,null,null,null,null,null,null,"口座名（名義人） ※フリガナをつけてください"]
[null,null,"郵便番号",null,{"$f":"IF(E20=0,\"\",E20)","v":""},null,null,null,null,"（電話 ",{"$f":"K20","v":""},null,null,null,null,"）",null,{"$f":"IF(R20=\"\",\"\",R20)","v":"　"}]
[]
[null,null,"住　所：",null,{"$f":"E22","v":""},null,null,null,null,null,null,null,null,null,null,null,null,{"$f":"IF(R22=\"\",\"\",R22)","v":"　"}]
[]
[]
[null,null,"氏　名：",null,{"$f":"E25","v":"　"},null,null,null,null,null,null,null,null,null,"（印）",null,null," 令和　　年　　月　　日"]
[]
[null,null,null,"（法人にあっては法人名および代表者肩書氏名と印鑑）",null,null,null,null,null,null,null,null,null,null,null,null,null,null,null,null,null,"（控）"]
[null,"連絡事項",null,null,null,null,null,null,null,null,null,null,null,"Ａ Ｂ Ｃ Ｄ ",null,null,null," 検収者",null,null,"（印） 　"]

{"sheet":"data","index":22,"n_rows":11,"n_cols":10,"rows_kept":11,"cut":false,"hidden":false,"merged":[]}
[]
[]
[]
[]
[]
[]
[]
[]
[null,null,"別添書類6-（2-2）-1","←このままにしてください。",null,null,null,null,"様式第１号 添付書類（５）－１","別添書類6-（2-2）-1"]
[]
[null,null,"別添書類6-（2-2）-2","←このままにしてください。",null,null,null,null,"様式第１号 添付書類（５）－２","別添書類6-（2-2）-2"]